Workbook

Sheet Bestilling oversigt
A1: Leverandørnr. | C1: Leverandør | E1: 4473 | G1: Afdeling | K1: Omsætningshastighed | O1: =+SUM(N4:N280)/SUM(F4:F280) -> 15.32287209 | Q1: =MATCH(2,1/--(Lageromsætning!L:L<>"")) -> 35
A2: =SUMIFS(Leverandørliste!$A$2:$A$46,Leverandørliste!$A$2:$A$46,LEFT(E1,4)) -> 4473 | G2: 400 | K2: 6 | L2: Lager omsætning
A3: Kreditor | B3: Varegrp. | C3: Varenr. | D3: Varetekst | E3: Varetekst 2 | F3: Lagerbeholdning | G3: Reseveret | H3: Udgår | I3: Lagerføring | J3: Bestillingsforeslag | K3: Bestilt | M3: Lagertal | N3: Salg 12 u/dir | O3: Lager oms.
A4: =IFERROR(INDEX(Lageromsætning!$A$3:$A$79,SMALL(IF(Lageromsætning!$A$3:$A$79=$A$2,ROW(Lageromsætning!$A$3:$A$79)-CELL("row",Lageromsætning!$A$3:$A$79)+1),ROWS($1:1))),"") -> 4473 | B4: =IFERROR(INDEX(Lageromsætning!$C$3:$C$79,SMALL(IF(Lageromsætning!$A$3:$A$79=$A$2,ROW(Lageromsætning!$A$3:$A$79)-CELL("row",Lageromsætning!$A$3:$A$79)+1),ROWS($2:2))),"") -> 4530 | C4: =IFERROR(INDEX(Lageromsætning!$D$3:$D$79,SMALL(IF(Lageromsætning!$A$3:$A$79=$A$2,ROW(Lageromsætning!$A$3:$A$79)-CELL("row",Lageromsætning!$A$3:$A$79)+1),ROWS($2:2))),"") -> 1446513 | D4: =IFERROR(INDEX(Lageromsætning!$E$3:$E$79,SMALL(IF(Lageromsætning!$A$3:$A$79=$A$2,ROW(Lageromsætning!$A$3:$A$79)-CELL("row",Lageromsætning!$A$3:$A$79)+1),ROWS($2:2))),"") -> Vare 14 | E4: =IFERROR(INDEX(Lageromsætning!$AF$3:$AF$79,SMALL(IF(Lageromsætning!$A$3:$A$79=$A$2,ROW(Lageromsætning!$A$3:$A$79)-CELL("row",Lageromsætning!$A$3:$A$79)+1),ROWS($2:2))),"") -> 0 | F4: =SUMIFS('Lager antal'!$D$3:$D$2508,'Lager antal'!$B$3:$B$2508,B4,'Lager antal'!$C$3:$C$2508,C4) -> 211 | G4: =SUMIFS('Lager antal'!$F$3:$F$2508,'Lager antal'!$B$3:$B$2508,B4,'Lager antal'!$C$3:$C$2508,C4) -> 0 | H4: =IF(ISNA(VLOOKUP($C4,'Lager antal'!$C$3:$K$508,9,FALSE))=TRUE,"",VLOOKUP($C4,'Lager antal'!$C$3:$K$508,9,FALSE)) -> udgår | I4: =IFERROR(INDEX(Lageromsætning!$P$3:$P$79,SMALL(IF(Lageromsætning!$A$3:$A$79=$A$2,ROW(Lageromsætning!$A$3:$A$79)-CELL("row",Lageromsætning!$A$3:$A$79)+1),ROWS($2:2))),"") -> 1 | J4: =+_xlfn.IFS($M4>=0.01,$M4,TRUE,0)-$F4-K4+G4 -> -207.5 | K4: =SUMIFS('Lager antal'!$G$3:$G$2508,'Lager antal'!$B$3:$B$2508,B4,'Lager antal'!$C$3:$C$2508,C4) -> 0 | M4: =+$N4/$K$2 -> 3.5 | N4: =SUMIFS(Lageromsætning!$R$3:$R$79,Lageromsætning!$A$3:$A$79,$A$2,Lageromsætning!$C$3:$C$79,B4,Lageromsætning!$D$3:$D$79,C4) -> 21 | O4: =SUMIFS(Lageromsætning!$S$3:$S$79,Lageromsætning!$C$3:$C$79,B4,Lageromsætning!$D$3:$D$79,C4) -> 0.04276985743 | P4: =SUMIFS(INDIRECT($Q$4),Lageromsætning!$C$3:$C$35,B4,Lageromsætning!$D$3:$D$35,C4) -> 21 | Q4: =ADDRESS(3,12+CHOOSE(MATCH(G2,{200;400;500;600},0),0,6,12,18),,,"Lageromsætning")&":"&ADDRESS($Q$1,12+CHOOSE(MATCH(G2,{200;400;500;600},0),0,6,12,18)) -> Lageromsætning!$R$3:$R$35
A5: =IFERROR(INDEX(Lageromsætning!$A$3:$A$79,SMALL(IF(Lageromsætning!$A$3:$A$79=$A$2,ROW(Lageromsætning!$A$3:$A$79)-CELL("row",Lageromsætning!$A$3:$A$79)+1),ROWS($1:2))),"") -> 4473 | B5: =IFERROR(INDEX(Lageromsætning!$C$3:$C$79,SMALL(IF(Lageromsætning!$A$3:$A$79=$A$2,ROW(Lageromsætning!$A$3:$A$79)-CELL("row",Lageromsætning!$A$3:$A$79)+1),ROWS($2:3))),"") -> 4530 | C5: =IFERROR(INDEX(Lageromsætning!$D$3:$D$79,SMALL(IF(Lageromsætning!$A$3:$A$79=$A$2,ROW(Lageromsætning!$A$3:$A$79)-CELL("row",Lageromsætning!$A$3:$A$79)+1),ROWS($2:3))),"") -> 1602059 | D5: =IFERROR(INDEX(Lageromsætning!$E$3:$E$79,SMALL(IF(Lageromsætning!$A$3:$A$79=$A$2,ROW(Lageromsætning!$A$3:$A$79)-CELL("row",Lageromsætning!$A$3:$A$79)+1),ROWS($2:3))),"") -> Vare 15 | E5: =IFERROR(INDEX(Lageromsætning!$AF$3:$AF$79,SMALL(IF(Lageromsætning!$A$3:$A$79=$A$2,ROW(Lageromsætning!$A$3:$A$79)-CELL("row",Lageromsætning!$A$3:$A$79)+1),ROWS($2:3))),"") -> 0 | F5: =SUMIFS('Lager antal'!$D$3:$D$2508,'Lager antal'!$B$3:$B$2508,B5,'Lager antal'!$C$3:$C$2508,C5) -> 0 | G5: =SUMIFS('Lager antal'!$F$3:$F$2508,'Lager antal'!$B$3:$B$2508,B5,'Lager antal'!$C$3:$C$2508,C5) -> 0 | H5: =IF(ISNA(VLOOKUP($C5,'Lager antal'!$C$3:$K$508,9,FALSE))=TRUE,"",VLOOKUP($C5,'Lager antal'!$C$3:$K$508,9,FALSE)) ->  | I5: =IFERROR(INDEX(Lageromsætning!$P$3:$P$79,SMALL(IF(Lageromsætning!$A$3:$A$79=$A$2,ROW(Lageromsætning!$A$3:$A$79)-CELL("row",Lageromsætning!$A$3:$A$79)+1),ROWS($2:3))),"") ->  | J5: =+_xlfn.IFS($M5>=0.01,$M5,TRUE,0)-$F5-K5+G5 -> 150.8333333 | K5: =SUMIFS('Lager antal'!$G$3:$G$2508,'Lager antal'!$B$3:$B$2508,B5,'Lager antal'!$C$3:$C$2508,C5) -> 0 | M5: 150.8333333 | N5: =SUMIFS(Lageromsætning!$R$3:$R$79,Lageromsætning!$A$3:$A$79,$A$2,Lageromsætning!$C$3:$C$79,B5,Lageromsætning!$D$3:$D$79,C5) -> 905 | O5: =SUMIFS(Lageromsætning!$S$3:$S$79,Lageromsætning!$C$3:$C$79,B5,Lageromsætning!$D$3:$D$79,C5) -> 0
A6: =IFERROR(INDEX(Lageromsætning!$A$3:$A$79,SMALL(IF(Lageromsætning!$A$3:$A$79=$A$2,ROW(Lageromsætning!$A$3:$A$79)-CELL("row",Lageromsætning!$A$3:$A$79)+1),ROWS($1:3))),"") -> 4473 | B6: =IFERROR(INDEX(Lageromsætning!$C$3:$C$79,SMALL(IF(Lageromsætning!$A$3:$A$79=$A$2,ROW(Lageromsætning!$A$3:$A$79)-CELL("row",Lageromsætning!$A$3:$A$79)+1),ROWS($2:4))),"") -> 4530 | C6: =IFERROR(INDEX(Lageromsætning!$D$3:$D$79,SMALL(IF(Lageromsætning!$A$3:$A$79=$A$2,ROW(Lageromsætning!$A$3:$A$79)-CELL("row",Lageromsætning!$A$3:$A$79)+1),ROWS($2:4))),"") -> 1863086 | D6: =IFERROR(INDEX(Lageromsætning!$E$3:$E$79,SMALL(IF(Lageromsætning!$A$3:$A$79=$A$2,ROW(Lageromsætning!$A$3:$A$79)-CELL("row",Lageromsætning!$A$3:$A$79)+1),ROWS($2:4))),"") -> Vare 16 | E6: =IFERROR(INDEX(Lageromsætning!$AF$3:$AF$79,SMALL(IF(Lageromsætning!$A$3:$A$79=$A$2,ROW(Lageromsætning!$A$3:$A$79)-CELL("row",Lageromsætning!$A$3:$A$79)+1),ROWS($2:4))),"") -> 0 | F6: =SUMIFS('Lager antal'!$D$3:$D$2508,'Lager antal'!$B$3:$B$2508,B6,'Lager antal'!$C$3:$C$2508,C6) -> 1201 | G6: =SUMIFS('Lager antal'!$F$3:$F$2508,'Lager antal'!$B$3:$B$2508,B6,'Lager antal'!$C$3:$C$2508,C6) -> 334 | H6: =IF(ISNA(VLOOKUP($C6,'Lager antal'!$C$3:$K$508,9,FALSE))=TRUE,"",VLOOKUP($C6,'Lager antal'!$C$3:$K$508,9,FALSE)) ->  | I6: =IFERROR(INDEX(Lageromsætning!$P$3:$P$79,SMALL(IF(Lageromsætning!$A$3:$A$79=$A$2,ROW(Lageromsætning!$A$3:$A$79)-CELL("row",Lageromsætning!$A$3:$A$79)+1),ROWS($2:4))),"") -> 1 | J6: =+_xlfn.IFS($M6>=0.01,$M6,TRUE,0)-$F6-K6+G6 -> -893.5 | K6: =SUMIFS('Lager antal'!$G$3:$G$2508,'Lager antal'!$B$3:$B$2508,B6,'Lager antal'!$C$3:$C$2508,C6) -> 960 | M6: 933.5 | N6: =SUMIFS(Lageromsætning!$R$3:$R$79,Lageromsætning!$A$3:$A$79,$A$2,Lageromsætning!$C$3:$C$79,B6,Lageromsætning!$D$3:$D$79,C6) -> 5601 | O6: =SUMIFS(Lageromsætning!$S$3:$S$79,Lageromsætning!$C$3:$C$79,B6,Lageromsætning!$D$3:$D$79,C6) -> 4.37236534
A7: =IFERROR(INDEX(Lageromsætning!$A$3:$A$79,SMALL(IF(Lageromsætning!$A$3:$A$79=$A$2,ROW(Lageromsætning!$A$3:$A$79)-CELL("row",Lageromsætning!$A$3:$A$79)+1),ROWS($1:4))),"") -> 4473 | B7: =IFERROR(INDEX(Lageromsætning!$C$3:$C$79,SMALL(IF(Lageromsætning!$A$3:$A$79=$A$2,ROW(Lageromsætning!$A$3:$A$79)-CELL("row",Lageromsætning!$A$3:$A$79)+1),ROWS($2:5))),"") -> 4530 | C7: =IFERROR(INDEX(Lageromsætning!$D$3:$D$79,SMALL(IF(Lageromsætning!$A$3:$A$79=$A$2,ROW(Lageromsætning!$A$3:$A$79)-CELL("row",Lageromsætning!$A$3:$A$79)+1),ROWS($2:5))),"") -> 1867031 | D7: =IFERROR(INDEX(Lageromsætning!$E$3:$E$79,SMALL(IF(Lageromsætning!$A$3:$A$79=$A$2,ROW(Lageromsætning!$A$3:$A$79)-CELL("row",Lageromsætning!$A$3:$A$79)+1),ROWS($2:5))),"") -> Vare 17 | E7: =IFERROR(INDEX(Lageromsætning!$AF$3:$AF$79,SMALL(IF(Lageromsætning!$A$3:$A$79=$A$2,ROW(Lageromsætning!$A$3:$A$79)-CELL("row",Lageromsætning!$A$3:$A$79)+1),ROWS($2:5))),"") -> 0 | F7: =SUMIFS('Lager antal'!$D$3:$D$2508,'Lager antal'!$B$3:$B$2508,B7,'Lager antal'!$C$3:$C$2508,C7) -> 159 | G7: =SUMIFS('Lager antal'!$F$3:$F$2508,'Lager antal'!$B$3:$B$2508,B7,'Lager antal'!$C$3:$C$2508,C7) -> 0 | H7: =IF(ISNA(VLOOKUP($C7,'Lager antal'!$C$3:$K$508,9,FALSE))=TRUE,"",VLOOKUP($C7,'Lager antal'!$C$3:$K$508,9,FALSE)) ->  | I7: =IFERROR(INDEX(Lageromsætning!$P$3:$P$79,SMALL(IF(Lageromsætning!$A$3:$A$79=$A$2,ROW(Lageromsætning!$A$3:$A$79)-CELL("row",Lageromsætning!$A$3:$A$79)+1),ROWS($2:5))),"") -> 1 | J7: =+_xlfn.IFS($M7>=0.01,$M7,TRUE,0)-$F7-K7+G7 -> 48.16666667 | K7: =SUMIFS('Lager antal'!$G$3:$G$2508,'Lager antal'!$B$3:$B$2508,B7,'Lager antal'!$C$3:$C$2508,C7) -> 0 | M7: 207.1666667 | N7: =SUMIFS(Lageromsætning!$R$3:$R$79,Lageromsætning!$A$3:$A$79,$A$2,Lageromsætning!$C$3:$C$79,B7,Lageromsætning!$D$3:$D$79,C7) -> 1243 | O7: =SUMIFS(Lageromsætning!$S$3:$S$79,Lageromsætning!$C$3:$C$79,B7,Lageromsætning!$D$3:$D$79,C7) -> 7.579268293
A8: =IFERROR(INDEX(Lageromsætning!$A$3:$A$79,SMALL(IF(Lageromsætning!$A$3:$A$79=$A$2,ROW(Lageromsætning!$A$3:$A$79)-CELL("row",Lageromsætning!$A$3:$A$79)+1),ROWS($1:5))),"") -> 4473 | B8: =IFERROR(INDEX(Lageromsætning!$C$3:$C$79,SMALL(IF(Lageromsætning!$A$3:$A$79=$A$2,ROW(Lageromsætning!$A$3:$A$79)-CELL("row",Lageromsætning!$A$3:$A$79)+1),ROWS($2:6))),"") -> 4530 | C8: =IFERROR(INDEX(Lageromsætning!$D$3:$D$79,SMALL(IF(Lageromsætning!$A$3:$A$79=$A$2,ROW(Lageromsætning!$A$3:$A$79)-CELL("row",Lageromsætning!$A$3:$A$79)+1),ROWS($2:6))),"") -> 5015401 | D8: =IFERROR(INDEX(Lageromsætning!$E$3:$E$79,SMALL(IF(Lageromsætning!$A$3:$A$79=$A$2,ROW(Lageromsætning!$A$3:$A$79)-CELL("row",Lageromsætning!$A$3:$A$79)+1),ROWS($2:6))),"") -> Vare 18 | E8: =IFERROR(INDEX(Lageromsætning!$AF$3:$AF$79,SMALL(IF(Lageromsætning!$A$3:$A$79=$A$2,ROW(Lageromsætning!$A$3:$A$79)-CELL("row",Lageromsætning!$A$3:$A$79)+1),ROWS($2:6))),"") -> 0 | F8: =SUMIFS('Lager antal'!$D$3:$D$2508,'Lager antal'!$B$3:$B$2508,B8,'Lager antal'!$C$3:$C$2508,C8) -> 1125 | G8: =SUMIFS('Lager antal'!$F$3:$F$2508,'Lager antal'!$B$3:$B$2508,B8,'Lager antal'!$C$3:$C$2508,C8) -> 360 | H8: =IF(ISNA(VLOOKUP($C8,'Lager antal'!$C$3:$K$508,9,FALSE))=TRUE,"",VLOOKUP($C8,'Lager antal'!$C$3:$K$508,9,FALSE)) ->  | I8: =IFERROR(INDEX(Lageromsætning!$P$3:$P$79,SMALL(IF(Lageromsætning!$A$3:$A$79=$A$2,ROW(Lageromsætning!$A$3:$A$79)-CELL("row",Lageromsætning!$A$3:$A$79)+1),ROWS($2:6))),"") -> 1 | J8: =+_xlfn.IFS($M8>=0.01,$M8,TRUE,0)-$F8-K8+G8 -> -253.1666667 | K8: =SUMIFS('Lager antal'!$G$3:$G$2508,'Lager antal'!$B$3:$B$2508,B8,'Lager antal'!$C$3:$C$2508,C8) -> 0 | M8: 511.8333333 | N8: =SUMIFS(Lageromsætning!$R$3:$R$79,Lageromsætning!$A$3:$A$79,$A$2,Lageromsætning!$C$3:$C$79,B8,Lageromsætning!$D$3:$D$79,C8) -> 3071 | O8: =SUMIFS(Lageromsætning!$S$3:$S$79,Lageromsætning!$C$3:$C$79,B8,Lageromsætning!$D$3:$D$79,C8) -> 2.970019342
A9: =IFERROR(INDEX(Lageromsætning!$A$3:$A$79,SMALL(IF(Lageromsætning!$A$3:$A$79=$A$2,ROW(Lageromsætning!$A$3:$A$79)-CELL("row",Lageromsætning!$A$3:$A$79)+1),ROWS($1:6))),"") -> 4473 | B9: =IFERROR(INDEX(Lageromsætning!$C$3:$C$79,SMALL(IF(Lageromsætning!$A$3:$A$79=$A$2,ROW(Lageromsætning!$A$3:$A$79)-CELL("row",Lageromsætning!$A$3:$A$79)+1),ROWS($2:7))),"") -> 4530 | C9: =IFERROR(INDEX(Lageromsætning!$D$3:$D$79,SMALL(IF(Lageromsætning!$A$3:$A$79=$A$2,ROW(Lageromsætning!$A$3:$A$79)-CELL("row",Lageromsætning!$A$3:$A$79)+1),ROWS($2:7))),"") -> 5214761 | D9: =IFERROR(INDEX(Lageromsætning!$E$3:$E$79,SMALL(IF(Lageromsætning!$A$3:$A$79=$A$2,ROW(Lageromsætning!$A$3:$A$79)-CELL("row",Lageromsætning!$A$3:$A$79)+1),ROWS($2:7))),"") -> Vare 19 | E9: =IFERROR(INDEX(Lageromsætning!$AF$3:$AF$79,SMALL(IF(Lageromsætning!$A$3:$A$79=$A$2,ROW(Lageromsætning!$A$3:$A$79)-CELL("row",Lageromsætning!$A$3:$A$79)+1),ROWS($2:7))),"") -> 0 | F9: =SUMIFS('Lager antal'!$D$3:$D$2508,'Lager antal'!$B$3:$B$2508,B9,'Lager antal'!$C$3:$C$2508,C9) -> 973 | G9: =SUMIFS('Lager antal'!$F$3:$F$2508,'Lager antal'!$B$3:$B$2508,B9,'Lager antal'!$C$3:$C$2508,C9) -> 2977 | H9: =IF(ISNA(VLOOKUP($C9,'Lager antal'!$C$3:$K$508,9,FALSE))=TRUE,"",VLOOKUP($C9,'Lager antal'!$C$3:$K$508,9,FALSE)) ->  | I9: =IFERROR(INDEX(Lageromsætning!$P$3:$P$79,SMALL(IF(Lageromsætning!$A$3:$A$79=$A$2,ROW(Lageromsætning!$A$3:$A$79)-CELL("row",Lageromsætning!$A$3:$A$79)+1),ROWS($2:7))),"") -> 1 | J9: =+_xlfn.IFS($M9>=0.01,$M9,TRUE,0)-$F9-K9+G9 -> 3388.333333 | K9: =SUMIFS('Lager antal'!$G$3:$G$2508,'Lager antal'!$B$3:$B$2508,B9,'Lager antal'!$C$3:$C$2508,C9) -> 6960 | M9: 8344.333333 | N9: =SUMIFS(Lageromsætning!$R$3:$R$79,Lageromsætning!$A$3:$A$79,$A$2,Lageromsætning!$C$3:$C$79,B9,Lageromsætning!$D$3:$D$79,C9) -> 50066 | O9: =SUMIFS(Lageromsætning!$S$3:$S$79,Lageromsætning!$C$3:$C$79,B9,Lageromsætning!$D$3:$D$79,C9) -> 13.96541144
A10: =IFERROR(INDEX(Lageromsætning!$A$3:$A$79,SMALL(IF(Lageromsætning!$A$3:$A$79=$A$2,ROW(Lageromsætning!$A$3:$A$79)-CELL("row",Lageromsætning!$A$3:$A$79)+1),ROWS($1:7))),"") -> 4473 | B10: =IFERROR(INDEX(Lageromsætning!$C$3:$C$79,SMALL(IF(Lageromsætning!$A$3:$A$79=$A$2,ROW(Lageromsætning!$A$3:$A$79)-CELL("row",Lageromsætning!$A$3:$A$79)+1),ROWS($2:8))),"") -> 4720 | C10: =IFERROR(INDEX(Lageromsætning!$D$3:$D$79,SMALL(IF(Lageromsætning!$A$3:$A$79=$A$2,ROW(Lageromsætning!$A$3:$A$79)-CELL("row",Lageromsætning!$A$3:$A$79)+1),ROWS($2:8))),"") -> 2272567 | D10: =IFERROR(INDEX(Lageromsætning!$E$3:$E$79,SMALL(IF(Lageromsætning!$A$3:$A$79=$A$2,ROW(Lageromsætning!$A$3:$A$79)-CELL("row",Lageromsætning!$A$3:$A$79)+1),ROWS($2:8))),"") -> Vare 20 | E10: =IFERROR(INDEX(Lageromsætning!$AF$3:$AF$79,SMALL(IF(Lageromsætning!$A$3:$A$79=$A$2,ROW(Lageromsætning!$A$3:$A$79)-CELL("row",Lageromsætning!$A$3:$A$79)+1),ROWS($2:8))),"") -> 0 | F10: =SUMIFS('Lager antal'!$D$3:$D$2508,'Lager antal'!$B$3:$B$2508,B10,'Lager antal'!$C$3:$C$2508,C10) -> 12 | G10: =SUMIFS('Lager antal'!$F$3:$F$2508,'Lager antal'!$B$3:$B$2508,B10,'Lager antal'!$C$3:$C$2508,C10) -> 2 | H10: =IF(ISNA(VLOOKUP($C10,'Lager antal'!$C$3:$K$508,9,FALSE))=TRUE,"",VLOOKUP($C10,'Lager antal'!$C$3:$K$508,9,FALSE)) ->  | I10: =IFERROR(INDEX(Lageromsætning!$P$3:$P$79,SMALL(IF(Lageromsætning!$A$3:$A$79=$A$2,ROW(Lageromsætning!$A$3:$A$79)-CELL("row",Lageromsætning!$A$3:$A$79)+1),ROWS($2:8))),"") -> 1 | J10: =+_xlfn.IFS($M10>=0.01,$M10,TRUE,0)-$F10-K10+G10 -> -5.5 | K10: =SUMIFS('Lager antal'!$G$3:$G$2508,'Lager antal'!$B$3:$B$2508,B10,'Lager antal'!$C$3:$C$2508,C10) -> 9 | M10: 13.5 | N10: =SUMIFS(Lageromsætning!$R$3:$R$79,Lageromsætning!$A$3:$A$79,$A$2,Lageromsætning!$C$3:$C$79,B10,Lageromsætning!$D$3:$D$79,C10) -> 81 | O10: =SUMIFS(Lageromsætning!$S$3:$S$79,Lageromsætning!$C$3:$C$79,B10,Lageromsætning!$D$3:$D$79,C10) -> 6.230769231
A11: =IFERROR(INDEX(Lageromsætning!$A$3:$A$79,SMALL(IF(Lageromsætning!$A$3:$A$79=$A$2,ROW(Lageromsætning!$A$3:$A$79)-CELL("row",Lageromsætning!$A$3:$A$79)+1),ROWS($1:8))),"") -> 4473 | B11: =IFERROR(INDEX(Lageromsætning!$C$3:$C$79,SMALL(IF(Lageromsætning!$A$3:$A$79=$A$2,ROW(Lageromsætning!$A$3:$A$79)-CELL("row",Lageromsætning!$A$3:$A$79)+1),ROWS($2:9))),"") -> 4720 | C11: =IFERROR(INDEX(Lageromsætning!$D$3:$D$79,SMALL(IF(Lageromsætning!$A$3:$A$79=$A$2,ROW(Lageromsætning!$A$3:$A$79)-CELL("row",Lageromsætning!$A$3:$A$79)+1),ROWS($2:9))),"") -> 2272569 | D11: =IFERROR(INDEX(Lageromsætning!$E$3:$E$79,SMALL(IF(Lageromsætning!$A$3:$A$79=$A$2,ROW(Lageromsætning!$A$3:$A$79)-CELL("row",Lageromsætning!$A$3:$A$79)+1),ROWS($2:9))),"") -> Vare 21 | E11: =IFERROR(INDEX(Lageromsætning!$AF$3:$AF$79,SMALL(IF(Lageromsætning!$A$3:$A$79=$A$2,ROW(Lageromsætning!$A$3:$A$79)-CELL("row",Lageromsætning!$A$3:$A$79)+1),ROWS($2:9))),"") -> 0 | F11: =SUMIFS('Lager antal'!$D$3:$D$2508,'Lager antal'!$B$3:$B$2508,B11,'Lager antal'!$C$3:$C$2508,C11) -> 4 | G11: =SUMIFS('Lager antal'!$F$3:$F$2508,'Lager antal'!$B$3:$B$2508,B11,'Lager antal'!$C$3:$C$2508,C11) -> 0 | H11: =IF(ISNA(VLOOKUP($C11,'Lager antal'!$C$3:$K$508,9,FALSE))=TRUE,"",VLOOKUP($C11,'Lager antal'!$C$3:$K$508,9,FALSE)) ->  | I11: =IFERROR(INDEX(Lageromsætning!$P$3:$P$79,SMALL(IF(Lageromsætning!$A$3:$A$79=$A$2,ROW(Lageromsætning!$A$3:$A$79)-CELL("row",Lageromsætning!$A$3:$A$79)+1),ROWS($2:9))),"") -> 1 | J11: =+_xlfn.IFS($M11>=0.01,$M11,TRUE,0)-$F11-K11+G11 -> -2 | K11: =SUMIFS('Lager antal'!$G$3:$G$2508,'Lager antal'!$B$3:$B$2508,B11,'Lager antal'!$C$3:$C$2508,C11) -> 0 | M11: 2 | N11: =SUMIFS(Lageromsætning!$R$3:$R$79,Lageromsætning!$A$3:$A$79,$A$2,Lageromsætning!$C$3:$C$79,B11,Lageromsætning!$D$3:$D$79,C11) -> 12 | O11: =SUMIFS(Lageromsætning!$S$3:$S$79,Lageromsætning!$C$3:$C$79,B11,Lageromsætning!$D$3:$D$79,C11) -> 3
A12: =IFERROR(INDEX(Lageromsætning!$A$3:$A$79,SMALL(IF(Lageromsætning!$A$3:$A$79=$A$2,ROW(Lageromsætning!$A$3:$A$79)-CELL("row",Lageromsætning!$A$3:$A$79)+1),ROWS($1:9))),"") -> 4473 | B12: =IFERROR(INDEX(Lageromsætning!$C$3:$C$79,SMALL(IF(Lageromsætning!$A$3:$A$79=$A$2,ROW(Lageromsætning!$A$3:$A$79)-CELL("row",Lageromsætning!$A$3:$A$79)+1),ROWS($2:10))),"") -> 5160 | C12: =IFERROR(INDEX(Lageromsætning!$D$3:$D$79,SMALL(IF(Lageromsætning!$A$3:$A$79=$A$2,ROW(Lageromsætning!$A$3:$A$79)-CELL("row",Lageromsætning!$A$3:$A$79)+1),ROWS($2:10))),"") -> 1703736 | D12: =IFERROR(INDEX(Lageromsætning!$E$3:$E$79,SMALL(IF(Lageromsætning!$A$3:$A$79=$A$2,ROW(Lageromsætning!$A$3:$A$79)-CELL("row",Lageromsætning!$A$3:$A$79)+1),ROWS($2:10))),"") -> Vare 22 | E12: =IFERROR(INDEX(Lageromsætning!$AF$3:$AF$79,SMALL(IF(Lageromsætning!$A$3:$A$79=$A$2,ROW(Lageromsætning!$A$3:$A$79)-CELL("row",Lageromsætning!$A$3:$A$79)+1),ROWS($2:10))),"") -> 0 | F12: =SUMIFS('Lager antal'!$D$3:$D$2508,'Lager antal'!$B$3:$B$2508,B12,'Lager antal'!$C$3:$C$2508,C12) -> 23 | G12: =SUMIFS('Lager antal'!$F$3:$F$2508,'Lager antal'!$B$3:$B$2508,B12,'Lager antal'!$C$3:$C$2508,C12) -> 0 | H12: =IF(ISNA(VLOOKUP($C12,'Lager antal'!$C$3:$K$508,9,FALSE))=TRUE,"",VLOOKUP($C12,'Lager antal'!$C$3:$K$508,9,FALSE)) ->  | I12: =IFERROR(INDEX(Lageromsætning!$P$3:$P$79,SMALL(IF(Lageromsætning!$A$3:$A$79=$A$2,ROW(Lageromsætning!$A$3:$A$79)-CELL("row",Lageromsætning!$A$3:$A$79)+1),ROWS($2:10))),"") -> 1 | J12: =+_xlfn.IFS($M12>=0.01,$M12,TRUE,0)-$F12-K12+G12 -> -21.16666667 | K12: =SUMIFS('Lager antal'!$G$3:$G$2508,'Lager antal'!$B$3:$B$2508,B12,'Lager antal'!$C$3:$C$2508,C12) -> 0 | M12: 1.833333333 | N12: =SUMIFS(Lageromsætning!$R$3:$R$79,Lageromsætning!$A$3:$A$79,$A$2,Lageromsætning!$C$3:$C$79,B12,Lageromsætning!$D$3:$D$79,C12) -> 11 | O12: =SUMIFS(Lageromsætning!$S$3:$S$79,Lageromsætning!$C$3:$C$79,B12,Lageromsætning!$D$3:$D$79,C12) -> 0.4782608696
A13: =IFERROR(INDEX(Lageromsætning!$A$3:$A$79,SMALL(IF(Lageromsætning!$A$3:$A$79=$A$2,ROW(Lageromsætning!$A$3:$A$79)-CELL("row",Lageromsætning!$A$3:$A$79)+1),ROWS($1:10))),"") -> 4473 | B13: =IFERROR(INDEX(Lageromsætning!$C$3:$C$79,SMALL(IF(Lageromsætning!$A$3:$A$79=$A$2,ROW(Lageromsætning!$A$3:$A$79)-CELL("row",Lageromsætning!$A$3:$A$79)+1),ROWS($2:11))),"") -> 5160 | C13: =IFERROR(INDEX(Lageromsætning!$D$3:$D$79,SMALL(IF(Lageromsætning!$A$3:$A$79=$A$2,ROW(Lageromsætning!$A$3:$A$79)-CELL("row",Lageromsætning!$A$3:$A$79)+1),ROWS($2:11))),"") -> 1703739 | D13: =IFERROR(INDEX(Lageromsætning!$E$3:$E$79,SMALL(IF(Lageromsætning!$A$3:$A$79=$A$2,ROW(Lageromsætning!$A$3:$A$79)-CELL("row",Lageromsætning!$A$3:$A$79)+1),ROWS($2:11))),"") -> Vare 23 | E13: =IFERROR(INDEX(Lageromsætning!$AF$3:$AF$79,SMALL(IF(Lageromsætning!$A$3:$A$79=$A$2,ROW(Lageromsætning!$A$3:$A$79)-CELL("row",Lageromsætning!$A$3:$A$79)+1),ROWS($2:11))),"") -> 0 | F13: =SUMIFS('Lager antal'!$D$3:$D$2508,'Lager antal'!$B$3:$B$2508,B13,'Lager antal'!$C$3:$C$2508,C13) -> 155 | G13: =SUMIFS('Lager antal'!$F$3:$F$2508,'Lager antal'!$B$3:$B$2508,B13,'Lager antal'!$C$3:$C$2508,C13) -> 30 | H13: =IF(ISNA(VLOOKUP($C13,'Lager antal'!$C$3:$K$508,9,FALSE))=TRUE,"",VLOOKUP($C13,'Lager antal'!$C$3:$K$508,9,FALSE)) ->  | I13: =IFERROR(INDEX(Lageromsætning!$P$3:$P$79,SMALL(IF(Lageromsætning!$A$3:$A$79=$A$2,ROW(Lageromsætning!$A$3:$A$79)-CELL("row",Lageromsætning!$A$3:$A$79)+1),ROWS($2:11))),"") -> 1 | J13: =+_xlfn.IFS($M13>=0.01,$M13,TRUE,0)-$F13-K13+G13 -> 42.83333333 | K13: =SUMIFS('Lager antal'!$G$3:$G$2508,'Lager antal'!$B$3:$B$2508,B13,'Lager antal'!$C$3:$C$2508,C13) -> 216 | M13: 383.8333333 | N13: =SUMIFS(Lageromsætning!$R$3:$R$79,Lageromsætning!$A$3:$A$79,$A$2,Lageromsætning!$C$3:$C$79,B13,Lageromsætning!$D$3:$D$79,C13) -> 2303 | O13: =SUMIFS(Lageromsætning!$S$3:$S$79,Lageromsætning!$C$3:$C$79,B13,Lageromsætning!$D$3:$D$79,C13) -> 11.99479167
A14: =IFERROR(INDEX(Lageromsætning!$A$3:$A$79,SMALL(IF(Lageromsætning!$A$3:$A$79=$A$2,ROW(Lageromsætning!$A$3:$A$79)-CELL("row",Lageromsætning!$A$3:$A$79)+1),ROWS($1:11))),"") -> 4473 | B14: =IFERROR(INDEX(Lageromsætning!$C$3:$C$79,SMALL(IF(Lageromsætning!$A$3:$A$79=$A$2,ROW(Lageromsætning!$A$3:$A$79)-CELL("row",Lageromsætning!$A$3:$A$79)+1),ROWS($2:12))),"") -> 5160 | C14: =IFERROR(INDEX(Lageromsætning!$D$3:$D$79,SMALL(IF(Lageromsætning!$A$3:$A$79=$A$2,ROW(Lageromsætning!$A$3:$A$79)-CELL("row",Lageromsætning!$A$3:$A$79)+1),ROWS($2:12))),"") -> 1703740 | D14: =IFERROR(INDEX(Lageromsætning!$E$3:$E$79,SMALL(IF(Lageromsætning!$A$3:$A$79=$A$2,ROW(Lageromsætning!$A$3:$A$79)-CELL("row",Lageromsætning!$A$3:$A$79)+1),ROWS($2:12))),"") -> Vare 24 | E14: =IFERROR(INDEX(Lageromsætning!$AF$3:$AF$79,SMALL(IF(Lageromsætning!$A$3:$A$79=$A$2,ROW(Lageromsætning!$A$3:$A$79)-CELL("row",Lageromsætning!$A$3:$A$79)+1),ROWS($2:12))),"") -> 0 | F14: =SUMIFS('Lager antal'!$D$3:$D$2508,'Lager antal'!$B$3:$B$2508,B14,'Lager antal'!$C$3:$C$2508,C14) -> 91 | G14: =SUMIFS('Lager antal'!$F$3:$F$2508,'Lager antal'!$B$3:$B$2508,B14,'Lager antal'!$C$3:$C$2508,C14) -> 0 | H14: =IF(ISNA(VLOOKUP($C14,'Lager antal'!$C$3:$K$508,9,FALSE))=TRUE,"",VLOOKUP($C14,'Lager antal'!$C$3:$K$508,9,FALSE)) ->  | I14: =IFERROR(INDEX(Lageromsætning!$P$3:$P$79,SMALL(IF(Lageromsætning!$A$3:$A$79=$A$2,ROW(Lageromsætning!$A$3:$A$79)-CELL("row",Lageromsætning!$A$3:$A$79)+1),ROWS($2:12))),"") -> 1 | J14: =+_xlfn.IFS($M14>=0.01,$M14,TRUE,0)-$F14-K14+G14 -> 1.666666667 | K14: =SUMIFS('Lager antal'!$G$3:$G$2508,'Lager antal'!$B$3:$B$2508,B14,'Lager antal'!$C$3:$C$2508,C14) -> 0 | M14: 92.66666667 | N14: =SUMIFS(Lageromsætning!$R$3:$R$79,Lageromsætning!$A$3:$A$79,$A$2,Lageromsætning!$C$3:$C$79,B14,Lageromsætning!$D$3:$D$79,C14) -> 556 | O14: =SUMIFS(Lageromsætning!$S$3:$S$79,Lageromsætning!$C$3:$C$79,B14,Lageromsætning!$D$3:$D$79,C14) -> 3.943262411
A15: =IFERROR(INDEX(Lageromsætning!$A$3:$A$79,SMALL(IF(Lageromsætning!$A$3:$A$79=$A$2,ROW(Lageromsætning!$A$3:$A$79)-CELL("row",Lageromsætning!$A$3:$A$79)+1),ROWS($1:12))),"") -> 4473 | B15: =IFERROR(INDEX(Lageromsætning!$C$3:$C$79,SMALL(IF(Lageromsætning!$A$3:$A$79=$A$2,ROW(Lageromsætning!$A$3:$A$79)-CELL("row",Lageromsætning!$A$3:$A$79)+1),ROWS($2:13))),"") -> 5160 | C15: =IFERROR(INDEX(Lageromsætning!$D$3:$D$79,SMALL(IF(Lageromsætning!$A$3:$A$79=$A$2,ROW(Lageromsætning!$A$3:$A$79)-CELL("row",Lageromsætning!$A$3:$A$79)+1),ROWS($2:13))),"") -> 1703741 | D15: =IFERROR(INDEX(Lageromsætning!$E$3:$E$79,SMALL(IF(Lageromsætning!$A$3:$A$79=$A$2,ROW(Lageromsætning!$A$3:$A$79)-CELL("row",Lageromsætning!$A$3:$A$79)+1),ROWS($2:13))),"") -> Vare 25 | E15: =IFERROR(INDEX(Lageromsætning!$AF$3:$AF$79,SMALL(IF(Lageromsætning!$A$3:$A$79=$A$2,ROW(Lageromsætning!$A$3:$A$79)-CELL("row",Lageromsætning!$A$3:$A$79)+1),ROWS($2:13))),"") -> 0 | F15: =SUMIFS('Lager antal'!$D$3:$D$2508,'Lager antal'!$B$3:$B$2508,B15,'Lager antal'!$C$3:$C$2508,C15) -> 0 | G15: =SUMIFS('Lager antal'!$F$3:$F$2508,'Lager antal'!$B$3:$B$2508,B15,'Lager antal'!$C$3:$C$2508,C15) -> 0 | H15: =IF(ISNA(VLOOKUP($C15,'Lager antal'!$C$3:$K$508,9,FALSE))=TRUE,"",VLOOKUP($C15,'Lager antal'!$C$3:$K$508,9,FALSE)) ->  | I15: =IFERROR(INDEX(Lageromsætning!$P$3:$P$79,SMALL(IF(Lageromsætning!$A$3:$A$79=$A$2,ROW(Lageromsætning!$A$3:$A$79)-CELL("row",Lageromsætning!$A$3:$A$79)+1),ROWS($2:13))),"") -> 1 | J15: =+_xlfn.IFS($M15>=0.01,$M15,TRUE,0)-$F15-K15+G15 -> -32 | K15: =SUMIFS('Lager antal'!$G$3:$G$2508,'Lager antal'!$B$3:$B$2508,B15,'Lager antal'!$C$3:$C$2508,C15) -> 32 | M15: 0 | N15: =SUMIFS(Lageromsætning!$R$3:$R$79,Lageromsætning!$A$3:$A$79,$A$2,Lageromsætning!$C$3:$C$79,B15,Lageromsætning!$D$3:$D$79,C15) -> 0 | O15: =SUMIFS(Lageromsætning!$S$3:$S$79,Lageromsætning!$C$3:$C$79,B15,Lageromsætning!$D$3:$D$79,C15) -> 0
A16: =IFERROR(INDEX(Lageromsætning!$A$3:$A$79,SMALL(IF(Lageromsætning!$A$3:$A$79=$A$2,ROW(Lageromsætning!$A$3:$A$79)-CELL("row",Lageromsætning!$A$3:$A$79)+1),ROWS($1:13))),"") -> 4473 | B16: =IFERROR(INDEX(Lageromsætning!$C$3:$C$79,SMALL(IF(Lageromsætning!$A$3:$A$79=$A$2,ROW(Lageromsætning!$A$3:$A$79)-CELL("row",Lageromsætning!$A$3:$A$79)+1),ROWS($2:14))),"") -> 5160 | C16: =IFERROR(INDEX(Lageromsætning!$D$3:$D$79,SMALL(IF(Lageromsætning!$A$3:$A$79=$A$2,ROW(Lageromsætning!$A$3:$A$79)-CELL("row",Lageromsætning!$A$3:$A$79)+1),ROWS($2:14))),"") -> 1704040 | D16: =IFERROR(INDEX(Lageromsætning!$E$3:$E$79,SMALL(IF(Lageromsætning!$A$3:$A$79=$A$2,ROW(Lageromsætning!$A$3:$A$79)-CELL("row",Lageromsætning!$A$3:$A$79)+1),ROWS($2:14))),"") -> Vare 26 | E16: =IFERROR(INDEX(Lageromsætning!$AF$3:$AF$79,SMALL(IF(Lageromsætning!$A$3:$A$79=$A$2,ROW(Lageromsætning!$A$3:$A$79)-CELL("row",Lageromsætning!$A$3:$A$79)+1),ROWS($2:14))),"") -> 0 | F16: =SUMIFS('Lager antal'!$D$3:$D$2508,'Lager antal'!$B$3:$B$2508,B16,'Lager antal'!$C$3:$C$2508,C16) -> 57 | G16: =SUMIFS('Lager antal'!$F$3:$F$2508,'Lager antal'!$B$3:$B$2508,B16,'Lager antal'!$C$3:$C$2508,C16) -> 0 | H16: =IF(ISNA(VLOOKUP($C16,'Lager antal'!$C$3:$K$508,9,FALSE))=TRUE,"",VLOOKUP($C16,'Lager antal'!$C$3:$K$508,9,FALSE)) ->  | I16: =IFERROR(INDEX(Lageromsætning!$P$3:$P$79,SMALL(IF(Lageromsætning!$A$3:$A$79=$A$2,ROW(Lageromsætning!$A$3:$A$79)-CELL("row",Lageromsætning!$A$3:$A$79)+1),ROWS($2:14))),"") -> 1 | J16: =+_xlfn.IFS($M16>=0.01,$M16,TRUE,0)-$F16-K16+G16 -> -40.5 | K16: =SUMIFS('Lager antal'!$G$3:$G$2508,'Lager antal'!$B$3:$B$2508,B16,'Lager antal'!$C$3:$C$2508,C16) -> 0 | M16: 16.5 | N16: =SUMIFS(Lageromsætning!$R$3:$R$79,Lageromsætning!$A$3:$A$79,$A$2,Lageromsætning!$C$3:$C$79,B16,Lageromsætning!$D$3:$D$79,C16) -> 99 | O16: =SUMIFS(Lageromsætning!$S$3:$S$79,Lageromsætning!$C$3:$C$79,B16,Lageromsætning!$D$3:$D$79,C16) -> 1.736842105
A17: =IFERROR(INDEX(Lageromsætning!$A$3:$A$79,SMALL(IF(Lageromsætning!$A$3:$A$79=$A$2,ROW(Lageromsætning!$A$3:$A$79)-CELL("row",Lageromsætning!$A$3:$A$79)+1),ROWS($1:14))),"") -> 4473 | B17: =IFERROR(INDEX(Lageromsætning!$C$3:$C$79,SMALL(IF(Lageromsætning!$A$3:$A$79=$A$2,ROW(Lageromsætning!$A$3:$A$79)-CELL("row",Lageromsætning!$A$3:$A$79)+1),ROWS($2:15))),"") -> 5160 | C17: =IFERROR(INDEX(Lageromsætning!$D$3:$D$79,SMALL(IF(Lageromsætning!$A$3:$A$79=$A$2,ROW(Lageromsætning!$A$3:$A$79)-CELL("row",Lageromsætning!$A$3:$A$79)+1),ROWS($2:15))),"") -> 1965404 | D17: =IFERROR(INDEX(Lageromsætning!$E$3:$E$79,SMALL(IF(Lageromsætning!$A$3:$A$79=$A$2,ROW(Lageromsætning!$A$3:$A$79)-CELL("row",Lageromsætning!$A$3:$A$79)+1),ROWS($2:15))),"") -> Vare 27 | E17: =IFERROR(INDEX(Lageromsætning!$AF$3:$AF$79,SMALL(IF(Lageromsætning!$A$3:$A$79=$A$2,ROW(Lageromsætning!$A$3:$A$79)-CELL("row",Lageromsætning!$A$3:$A$79)+1),ROWS($2:15))),"") -> 0 | F17: =SUMIFS('Lager antal'!$D$3:$D$2508,'Lager antal'!$B$3:$B$2508,B17,'Lager antal'!$C$3:$C$2508,C17) -> 91 | G17: =SUMIFS('Lager antal'!$F$3:$F$2508,'Lager antal'!$B$3:$B$2508,B17,'Lager antal'!$C$3:$C$2508,C17) -> 34 | H17: =IF(ISNA(VLOOKUP($C17,'Lager antal'!$C$3:$K$508,9,FALSE))=TRUE,"",VLOOKUP($C17,'Lager antal'!$C$3:$K$508,9,FALSE)) ->  | I17: =IFERROR(INDEX(Lageromsætning!$P$3:$P$79,SMALL(IF(Lageromsætning!$A$3:$A$79=$A$2,ROW(Lageromsætning!$A$3:$A$79)-CELL("row",Lageromsætning!$A$3:$A$79)+1),ROWS($2:15))),"") -> 1 | J17: =+_xlfn.IFS($M17>=0.01,$M17,TRUE,0)-$F17-K17+G17 -> -71.5 | K17: =SUMIFS('Lager antal'!$G$3:$G$2508,'Lager antal'!$B$3:$B$2508,B17,'Lager antal'!$C$3:$C$2508,C17) -> 34 | M17: 19.5 | N17: =SUMIFS(Lageromsætning!$R$3:$R$79,Lageromsætning!$A$3:$A$79,$A$2,Lageromsætning!$C$3:$C$79,B17,Lageromsætning!$D$3:$D$79,C17) -> 117 | O17: =SUMIFS(Lageromsætning!$S$3:$S$79,Lageromsætning!$C$3:$C$79,B17,Lageromsætning!$D$3:$D$79,C17) -> 1.444444444
A18: =IFERROR(INDEX(Lageromsætning!$A$3:$A$79,SMALL(IF(Lageromsætning!$A$3:$A$79=$A$2,ROW(Lageromsætning!$A$3:$A$79)-CELL("row",Lageromsætning!$A$3:$A$79)+1),ROWS($1:15))),"") -> 4473 | B18: =IFERROR(INDEX(Lageromsætning!$C$3:$C$79,SMALL(IF(Lageromsætning!$A$3:$A$79=$A$2,ROW(Lageromsætning!$A$3:$A$79)-CELL("row",Lageromsætning!$A$3:$A$79)+1),ROWS($2:16))),"") -> 5160 | C18: =IFERROR(INDEX(Lageromsætning!$D$3:$D$79,SMALL(IF(Lageromsætning!$A$3:$A$79=$A$2,ROW(Lageromsætning!$A$3:$A$79)-CELL("row",Lageromsætning!$A$3:$A$79)+1),ROWS($2:16))),"") -> 1965406 | D18: =IFERROR(INDEX(Lageromsætning!$E$3:$E$79,SMALL(IF(Lageromsætning!$A$3:$A$79=$A$2,ROW(Lageromsætning!$A$3:$A$79)-CELL("row",Lageromsætning!$A$3:$A$79)+1),ROWS($2:16))),"") -> Vare 28 | E18: =IFERROR(INDEX(Lageromsætning!$AF$3:$AF$79,SMALL(IF(Lageromsætning!$A$3:$A$79=$A$2,ROW(Lageromsætning!$A$3:$A$79)-CELL("row",Lageromsætning!$A$3:$A$79)+1),ROWS($2:16))),"") -> 0 | F18: =SUMIFS('Lager antal'!$D$3:$D$2508,'Lager antal'!$B$3:$B$2508,B18,'Lager antal'!$C$3:$C$2508,C18) -> 0 | G18: =SUMIFS('Lager antal'!$F$3:$F$2508,'Lager antal'!$B$3:$B$2508,B18,'Lager antal'!$C$3:$C$2508,C18) -> 0 | H18: =IF(ISNA(VLOOKUP($C18,'Lager antal'!$C$3:$K$508,9,FALSE))=TRUE,"",VLOOKUP($C18,'Lager antal'!$C$3:$K$508,9,FALSE)) ->  | I18: =IFERROR(INDEX(Lageromsætning!$P$3:$P$79,SMALL(IF(Lageromsætning!$A$3:$A$79=$A$2,ROW(Lageromsætning!$A$3:$A$79)-CELL("row",Lageromsætning!$A$3:$A$79)+1),ROWS($2:16))),"") ->  | J18: =+_xlfn.IFS($M18>=0.01,$M18,TRUE,0)-$F18-K18+G18 -> 0 | K18: =SUMIFS('Lager antal'!$G$3:$G$2508,'Lager antal'!$B$3:$B$2508,B18,'Lager antal'!$C$3:$C$2508,C18) -> 0 | M18: 0 | N18: =SUMIFS(Lageromsætning!$R$3:$R$79,Lageromsætning!$A$3:$A$79,$A$2,Lageromsætning!$C$3:$C$79,B18,Lageromsætning!$D$3:$D$79,C18) -> 0 | O18: =SUMIFS(Lageromsætning!$S$3:$S$79,Lageromsætning!$C$3:$C$79,B18,Lageromsætning!$D$3:$D$79,C18) -> 0
A19: =IFERROR(INDEX(Lageromsætning!$A$3:$A$79,SMALL(IF(Lageromsætning!$A$3:$A$79=$A$2,ROW(Lageromsætning!$A$3:$A$79)-CELL("row",Lageromsætning!$A$3:$A$79)+1),ROWS($1:16))),"") -> 4473 | B19: =IFERROR(INDEX(Lageromsætning!$C$3:$C$79,SMALL(IF(Lageromsætning!$A$3:$A$79=$A$2,ROW(Lageromsætning!$A$3:$A$79)-CELL("row",Lageromsætning!$A$3:$A$79)+1),ROWS($2:17))),"") -> 9120 | C19: =IFERROR(INDEX(Lageromsætning!$D$3:$D$79,SMALL(IF(Lageromsætning!$A$3:$A$79=$A$2,ROW(Lageromsætning!$A$3:$A$79)-CELL("row",Lageromsætning!$A$3:$A$79)+1),ROWS($2:17))),"") -> 2033614 | D19: =IFERROR(INDEX(Lageromsætning!$E$3:$E$79,SMALL(IF(Lageromsætning!$A$3:$A$79=$A$2,ROW(Lageromsætning!$A$3:$A$79)-CELL("row",Lageromsætning!$A$3:$A$79)+1),ROWS($2:17))),"") -> Vare 29 | E19: =IFERROR(INDEX(Lageromsætning!$AF$3:$AF$79,SMALL(IF(Lageromsætning!$A$3:$A$79=$A$2,ROW(Lageromsætning!$A$3:$A$79)-CELL("row",Lageromsætning!$A$3:$A$79)+1),ROWS($2:17))),"") -> 0 | F19: =SUMIFS('Lager antal'!$D$3:$D$2508,'Lager antal'!$B$3:$B$2508,B19,'Lager antal'!$C$3:$C$2508,C19) -> 25 | G19: =SUMIFS('Lager antal'!$F$3:$F$2508,'Lager antal'!$B$3:$B$2508,B19,'Lager antal'!$C$3:$C$2508,C19) -> 0 | H19: =IF(ISNA(VLOOKUP($C19,'Lager antal'!$C$3:$K$508,9,FALSE))=TRUE,"",VLOOKUP($C19,'Lager antal'!$C$3:$K$508,9,FALSE)) ->  | I19: =IFERROR(INDEX(Lageromsætning!$P$3:$P$79,SMALL(IF(Lageromsætning!$A$3:$A$79=$A$2,ROW(Lageromsætning!$A$3:$A$79)-CELL("row",Lageromsætning!$A$3:$A$79)+1),ROWS($2:17))),"") -> 1 | J19: =+_xlfn.IFS($M19>=0.01,$M19,TRUE,0)-$F19-K19+G19 -> -20.83333333 | K19: =SUMIFS('Lager antal'!$G$3:$G$2508,'Lager antal'!$B$3:$B$2508,B19,'Lager antal'!$C$3:$C$2508,C19) -> 0 | M19: 4.166666667 | N19: =SUMIFS(Lageromsætning!$R$3:$R$79,Lageromsætning!$A$3:$A$79,$A$2,Lageromsætning!$C$3:$C$79,B19,Lageromsætning!$D$3:$D$79,C19) -> 25 | O19: =SUMIFS(Lageromsætning!$S$3:$S$79,Lageromsætning!$C$3:$C$79,B19,Lageromsætning!$D$3:$D$79,C19) -> 0.8333333333
A20: =IFERROR(INDEX(Lageromsætning!$A$3:$A$79,SMALL(IF(Lageromsætning!$A$3:$A$79=$A$2,ROW(Lageromsætning!$A$3:$A$79)-CELL("row",Lageromsætning!$A$3:$A$79)+1),ROWS($1:17))),"") -> 4473 | B20: =IFERROR(INDEX(Lageromsætning!$C$3:$C$79,SMALL(IF(Lageromsætning!$A$3:$A$79=$A$2,ROW(Lageromsætning!$A$3:$A$79)-CELL("row",Lageromsætning!$A$3:$A$79)+1),ROWS($2:18))),"") -> 9120 | C20: =IFERROR(INDEX(Lageromsætning!$D$3:$D$79,SMALL(IF(Lageromsætning!$A$3:$A$79=$A$2,ROW(Lageromsætning!$A$3:$A$79)-CELL("row",Lageromsætning!$A$3:$A$79)+1),ROWS($2:18))),"") -> 2171208 | D20: =IFERROR(INDEX(Lageromsætning!$E$3:$E$79,SMALL(IF(Lageromsætning!$A$3:$A$79=$A$2,ROW(Lageromsætning!$A$3:$A$79)-CELL("row",Lageromsætning!$A$3:$A$79)+1),ROWS($2:18))),"") -> Vare 30 | E20: =IFERROR(INDEX(Lageromsætning!$AF$3:$AF$79,SMALL(IF(Lageromsætning!$A$3:$A$79=$A$2,ROW(Lageromsætning!$A$3:$A$79)-CELL("row",Lageromsætning!$A$3:$A$79)+1),ROWS($2:18))),"") -> 0 | F20: =SUMIFS('Lager antal'!$D$3:$D$2508,'Lager antal'!$B$3:$B$2508,B20,'Lager antal'!$C$3:$C$2508,C20) -> 19 | G20: =SUMIFS('Lager antal'!$F$3:$F$2508,'Lager antal'!$B$3:$B$2508,B20,'Lager antal'!$C$3:$C$2508,C20) -> 0 | H20: =IF(ISNA(VLOOKUP($C20,'Lager antal'!$C$3:$K$508,9,FALSE))=TRUE,"",VLOOKUP($C20,'Lager antal'!$C$3:$K$508,9,FALSE)) ->  | I20: =IFERROR(INDEX(Lageromsætning!$P$3:$P$79,SMALL(IF(Lageromsætning!$A$3:$A$79=$A$2,ROW(Lageromsætning!$A$3:$A$79)-CELL("row",Lageromsætning!$A$3:$A$79)+1),ROWS($2:18))),"") ->  | J20: =+_xlfn.IFS($M20>=0.01,$M20,TRUE,0)-$F20-K20+G20 -> -18 | K20: =SUMIFS('Lager antal'!$G$3:$G$2508,'Lager antal'!$B$3:$B$2508,B20,'Lager antal'!$C$3:$C$2508,C20) -> 0 | M20: 1 | N20: =SUMIFS(Lageromsætning!$R$3:$R$79,Lageromsætning!$A$3:$A$79,$A$2,Lageromsætning!$C$3:$C$79,B20,Lageromsætning!$D$3:$D$79,C20) -> 6 | O20: =SUMIFS(Lageromsætning!$S$3:$S$79,Lageromsætning!$C$3:$C$79,B20,Lageromsætning!$D$3:$D$79,C20) -> 0.3
A21: =IFERROR(INDEX(Lageromsætning!$A$3:$A$79,SMALL(IF(Lageromsætning!$A$3:$A$79=$A$2,ROW(Lageromsætning!$A$3:$A$79)-CELL("row",Lageromsætning!$A$3:$A$79)+1),ROWS($1:18))),"") -> 4473 | B21: =IFERROR(INDEX(Lageromsætning!$C$3:$C$79,SMALL(IF(Lageromsætning!$A$3:$A$79=$A$2,ROW(Lageromsætning!$A$3:$A$79)-CELL("row",Lageromsætning!$A$3:$A$79)+1),ROWS($2:19))),"") -> 9120 | C21: =IFERROR(INDEX(Lageromsætning!$D$3:$D$79,SMALL(IF(Lageromsætning!$A$3:$A$79=$A$2,ROW(Lageromsætning!$A$3:$A$79)-CELL("row",Lageromsætning!$A$3:$A$79)+1),ROWS($2:19))),"") -> 5772333 | D21: =IFERROR(INDEX(Lageromsætning!$E$3:$E$79,SMALL(IF(Lageromsætning!$A$3:$A$79=$A$2,ROW(Lageromsætning!$A$3:$A$79)-CELL("row",Lageromsætning!$A$3:$A$79)+1),ROWS($2:19))),"") -> Vare 31 | E21: =IFERROR(INDEX(Lageromsætning!$AF$3:$AF$79,SMALL(IF(Lageromsætning!$A$3:$A$79=$A$2,ROW(Lageromsætning!$A$3:$A$79)-CELL("row",Lageromsætning!$A$3:$A$79)+1),ROWS($2:19))),"") -> 0 | F21: =SUMIFS('Lager antal'!$D$3:$D$2508,'Lager antal'!$B$3:$B$2508,B21,'Lager antal'!$C$3:$C$2508,C21) -> 0 | G21: =SUMIFS('Lager antal'!$F$3:$F$2508,'Lager antal'!$B$3:$B$2508,B21,'Lager antal'!$C$3:$C$2508,C21) -> 0 | H21: =IF(ISNA(VLOOKUP($C21,'Lager antal'!$C$3:$K$508,9,FALSE))=TRUE,"",VLOOKUP($C21,'Lager antal'!$C$3:$K$508,9,FALSE)) ->  | I21: =IFERROR(INDEX(Lageromsætning!$P$3:$P$79,SMALL(IF(Lageromsætning!$A$3:$A$79=$A$2,ROW(Lageromsætning!$A$3:$A$79)-CELL("row",Lageromsætning!$A$3:$A$79)+1),ROWS($2:19))),"") -> 1 | J21: =+_xlfn.IFS($M21>=0.01,$M21,TRUE,0)-$F21-K21+G21 -> 0 | K21: =SUMIFS('Lager antal'!$G$3:$G$2508,'Lager antal'!$B$3:$B$2508,B21,'Lager antal'!$C$3:$C$2508,C21) -> 1 | M21: 1 | N21: =SUMIFS(Lageromsætning!$R$3:$R$79,Lageromsætning!$A$3:$A$79,$A$2,Lageromsætning!$C$3:$C$79,B21,Lageromsætning!$D$3:$D$79,C21) -> 6 | O21: =SUMIFS(Lageromsætning!$S$3:$S$79,Lageromsætning!$C$3:$C$79,B21,Lageromsætning!$D$3:$D$79,C21) -> -0.6
A22: =IFERROR(INDEX(Lageromsætning!$A$3:$A$79,SMALL(IF(Lageromsætning!$A$3:$A$79=$A$2,ROW(Lageromsætning!$A$3:$A$79)-CELL("row",Lageromsætning!$A$3:$A$79)+1),ROWS($1:19))),"") -> 4473 | B22: =IFERROR(INDEX(Lageromsætning!$C$3:$C$79,SMALL(IF(Lageromsætning!$A$3:$A$79=$A$2,ROW(Lageromsætning!$A$3:$A$79)-CELL("row",Lageromsætning!$A$3:$A$79)+1),ROWS($2:20))),"") -> 9120 | C22: =IFERROR(INDEX(Lageromsætning!$D$3:$D$79,SMALL(IF(Lageromsætning!$A$3:$A$79=$A$2,ROW(Lageromsætning!$A$3:$A$79)-CELL("row",Lageromsætning!$A$3:$A$79)+1),ROWS($2:20))),"") -> 5772513 | D22: =IFERROR(INDEX(Lageromsætning!$E$3:$E$79,SMALL(IF(Lageromsætning!$A$3:$A$79=$A$2,ROW(Lageromsætning!$A$3:$A$79)-CELL("row",Lageromsætning!$A$3:$A$79)+1),ROWS($2:20))),"") -> Vare 32 | E22: =IFERROR(INDEX(Lageromsætning!$AF$3:$AF$79,SMALL(IF(Lageromsætning!$A$3:$A$79=$A$2,ROW(Lageromsætning!$A$3:$A$79)-CELL("row",Lageromsætning!$A$3:$A$79)+1),ROWS($2:20))),"") -> 0 | F22: =SUMIFS('Lager antal'!$D$3:$D$2508,'Lager antal'!$B$3:$B$2508,B22,'Lager antal'!$C$3:$C$2508,C22) -> 2 | G22: =SUMIFS('Lager antal'!$F$3:$F$2508,'Lager antal'!$B$3:$B$2508,B22,'Lager antal'!$C$3:$C$2508,C22) -> 0 | H22: =IF(ISNA(VLOOKUP($C22,'Lager antal'!$C$3:$K$508,9,FALSE))=TRUE,"",VLOOKUP($C22,'Lager antal'!$C$3:$K$508,9,FALSE)) ->  | I22: =IFERROR(INDEX(Lageromsætning!$P$3:$P$79,SMALL(IF(Lageromsætning!$A$3:$A$79=$A$2,ROW(Lageromsætning!$A$3:$A$79)-CELL("row",Lageromsætning!$A$3:$A$79)+1),ROWS($2:20))),"") -> 1 | J22: =+_xlfn.IFS($M22>=0.01,$M22,TRUE,0)-$F22-K22+G22 -> -1.666666667 | K22: =SUMIFS('Lager antal'!$G$3:$G$2508,'Lager antal'!$B$3:$B$2508,B22,'Lager antal'!$C$3:$C$2508,C22) -> 0 | M22: 0.3333333333 | N22: =SUMIFS(Lageromsætning!$R$3:$R$79,Lageromsætning!$A$3:$A$79,$A$2,Lageromsætning!$C$3:$C$79,B22,Lageromsætning!$D$3:$D$79,C22) -> 2 | O22: =SUMIFS(Lageromsætning!$S$3:$S$79,Lageromsætning!$C$3:$C$79,B22,Lageromsætning!$D$3:$D$79,C22) -> 1
A23: =IFERROR(INDEX(Lageromsætning!$A$3:$A$79,SMALL(IF(Lageromsætning!$A$3:$A$79=$A$2,ROW(Lageromsætning!$A$3:$A$79)-CELL("row",Lageromsætning!$A$3:$A$79)+1),ROWS($1:20))),"") -> 4473 | B23: =IFERROR(INDEX(Lageromsætning!$C$3:$C$79,SMALL(IF(Lageromsætning!$A$3:$A$79=$A$2,ROW(Lageromsætning!$A$3:$A$79)-CELL("row",Lageromsætning!$A$3:$A$79)+1),ROWS($2:21))),"") -> 9120 | C23: =IFERROR(INDEX(Lageromsætning!$D$3:$D$79,SMALL(IF(Lageromsætning!$A$3:$A$79=$A$2,ROW(Lageromsætning!$A$3:$A$79)-CELL("row",Lageromsætning!$A$3:$A$79)+1),ROWS($2:21))),"") -> 7603517 | D23: =IFERROR(INDEX(Lageromsætning!$E$3:$E$79,SMALL(IF(Lageromsætning!$A$3:$A$79=$A$2,ROW(Lageromsætning!$A$3:$A$79)-CELL("row",Lageromsætning!$A$3:$A$79)+1),ROWS($2:21))),"") -> Vare 33 | E23: =IFERROR(INDEX(Lageromsætning!$AF$3:$AF$79,SMALL(IF(Lageromsætning!$A$3:$A$79=$A$2,ROW(Lageromsætning!$A$3:$A$79)-CELL("row",Lageromsætning!$A$3:$A$79)+1),ROWS($2:21))),"") -> 0 | F23: =SUMIFS('Lager antal'!$D$3:$D$2508,'Lager antal'!$B$3:$B$2508,B23,'Lager antal'!$C$3:$C$2508,C23) -> 58 | G23: =SUMIFS('Lager antal'!$F$3:$F$2508,'Lager antal'!$B$3:$B$2508,B23,'Lager antal'!$C$3:$C$2508,C23) -> 0 | H23: =IF(ISNA(VLOOKUP($C23,'Lager antal'!$C$3:$K$508,9,FALSE))=TRUE,"",VLOOKUP($C23,'Lager antal'!$C$3:$K$508,9,FALSE)) ->  | I23: =IFERROR(INDEX(Lageromsætning!$P$3:$P$79,SMALL(IF(Lageromsætning!$A$3:$A$79=$A$2,ROW(Lageromsætning!$A$3:$A$79)-CELL("row",Lageromsætning!$A$3:$A$79)+1),ROWS($2:21))),"") -> 1 | J23: =+_xlfn.IFS($M23>=0.01,$M23,TRUE,0)-$F23-K23+G23 -> -44.16666667 | K23: =SUMIFS('Lager antal'!$G$3:$G$2508,'Lager antal'!$B$3:$B$2508,B23,'Lager antal'!$C$3:$C$2508,C23) -> 40 | M23: 53.83333333 | N23: =SUMIFS(Lageromsætning!$R$3:$R$79,Lageromsætning!$A$3:$A$79,$A$2,Lageromsætning!$C$3:$C$79,B23,Lageromsætning!$D$3:$D$79,C23) -> 323 | O23: =SUMIFS(Lageromsætning!$S$3:$S$79,Lageromsætning!$C$3:$C$79,B23,Lageromsætning!$D$3:$D$79,C23) -> 5.295081967
A24: =IFERROR(INDEX(Lageromsætning!$A$3:$A$79,SMALL(IF(Lageromsætning!$A$3:$A$79=$A$2,ROW(Lageromsætning!$A$3:$A$79)-CELL("row",Lageromsætning!$A$3:$A$79)+1),ROWS($1:21))),"") ->  | B24: =IFERROR(INDEX(Lageromsætning!$C$3:$C$79,SMALL(IF(Lageromsætning!$A$3:$A$79=$A$2,ROW(Lageromsætning!$A$3:$A$79)-CELL("row",Lageromsætning!$A$3:$A$79)+1),ROWS($2:22))),"") ->  | C24: =IFERROR(INDEX(Lageromsætning!$D$3:$D$79,SMALL(IF(Lageromsætning!$A$3:$A$79=$A$2,ROW(Lageromsætning!$A$3:$A$79)-CELL("row",Lageromsætning!$A$3:$A$79)+1),ROWS($2:22))),"") ->  | D24: =IFERROR(INDEX(Lageromsætning!$E$3:$E$79,SMALL(IF(Lageromsætning!$A$3:$A$79=$A$2,ROW(Lageromsætning!$A$3:$A$79)-CELL("row",Lageromsætning!$A$3:$A$79)+1),ROWS($2:22))),"") ->  | E24: =IFERROR(INDEX(Lageromsætning!$AF$3:$AF$79,SMALL(IF(Lageromsætning!$A$3:$A$79=$A$2,ROW(Lageromsætning!$A$3:$A$79)-CELL("row",Lageromsætning!$A$3:$A$79)+1),ROWS($2:22))),"") ->  | F24: =SUMIFS('Lager antal'!$D$3:$D$2508,'Lager antal'!$B$3:$B$2508,B24,'Lager antal'!$C$3:$C$2508,C24) -> 0 | G24: =SUMIFS('Lager antal'!$F$3:$F$2508,'Lager antal'!$B$3:$B$2508,B24,'Lager antal'!$C$3:$C$2508,C24) -> 0 | H24: =IF(ISNA(VLOOKUP($C24,'Lager antal'!$C$3:$K$508,9,FALSE))=TRUE,"",VLOOKUP($C24,'Lager antal'!$C$3:$K$508,9,FALSE)) ->  | I24: =IFERROR(INDEX(Lageromsætning!$P$3:$P$79,SMALL(IF(Lageromsætning!$A$3:$A$79=$A$2,ROW(Lageromsætning!$A$3:$A$79)-CELL("row",Lageromsætning!$A$3:$A$79)+1),ROWS($2:22))),"") ->  | J24: =+_xlfn.IFS($M24>=0.01,$M24,TRUE,0)-$F24-K24+G24 -> 0 | K24: =SUMIFS('Lager antal'!$G$3:$G$2508,'Lager antal'!$B$3:$B$2508,B24,'Lager antal'!$C$3:$C$2508,C24) -> 0 | M24: 0 | N24: =SUMIFS(Lageromsætning!$R$3:$R$79,Lageromsætning!$A$3:$A$79,$A$2,Lageromsætning!$C$3:$C$79,B24,Lageromsætning!$D$3:$D$79,C24) -> 0 | O24: =SUMIFS(Lageromsætning!$S$3:$S$79,Lageromsætning!$C$3:$C$79,B24,Lageromsætning!$D$3:$D$79,C24) -> 0
A25: =IFERROR(INDEX(Lageromsætning!$A$3:$A$79,SMALL(IF(Lageromsætning!$A$3:$A$79=$A$2,ROW(Lageromsætning!$A$3:$A$79)-CELL("row",Lageromsætning!$A$3:$A$79)+1),ROWS($1:22))),"") ->  | B25: =IFERROR(INDEX(Lageromsætning!$C$3:$C$79,SMALL(IF(Lageromsætning!$A$3:$A$79=$A$2,ROW(Lageromsætning!$A$3:$A$79)-CELL("row",Lageromsætning!$A$3:$A$79)+1),ROWS($2:23))),"") ->  | C25: =IFERROR(INDEX(Lageromsætning!$D$3:$D$79,SMALL(IF(Lageromsætning!$A$3:$A$79=$A$2,ROW(Lageromsætning!$A$3:$A$79)-CELL("row",Lageromsætning!$A$3:$A$79)+1),ROWS($2:23))),"") ->  | D25: =IFERROR(INDEX(Lageromsætning!$E$3:$E$79,SMALL(IF(Lageromsætning!$A$3:$A$79=$A$2,ROW(Lageromsætning!$A$3:$A$79)-CELL("row",Lageromsætning!$A$3:$A$79)+1),ROWS($2:23))),"") ->  | E25: =IFERROR(INDEX(Lageromsætning!$AF$3:$AF$79,SMALL(IF(Lageromsætning!$A$3:$A$79=$A$2,ROW(Lageromsætning!$A$3:$A$79)-CELL("row",Lageromsætning!$A$3:$A$79)+1),ROWS($2:23))),"") ->  | F25: =SUMIFS('Lager antal'!$D$3:$D$2508,'Lager antal'!$B$3:$B$2508,B25,'Lager antal'!$C$3:$C$2508,C25) -> 0 | G25: =SUMIFS('Lager antal'!$F$3:$F$2508,'Lager antal'!$B$3:$B$2508,B25,'Lager antal'!$C$3:$C$2508,C25) -> 0 | H25: =IF(ISNA(VLOOKUP($C25,'Lager antal'!$C$3:$K$508,9,FALSE))=TRUE,"",VLOOKUP($C25,'Lager antal'!$C$3:$K$508,9,FALSE)) ->  | I25: =IFERROR(INDEX(Lageromsætning!$P$3:$P$79,SMALL(IF(Lageromsætning!$A$3:$A$79=$A$2,ROW(Lageromsætning!$A$3:$A$79)-CELL("row",Lageromsætning!$A$3:$A$79)+1),ROWS($2:23))),"") ->  | J25: =+_xlfn.IFS($M25>=0.01,$M25,TRUE,0)-$F25-K25+G25 -> 0 | K25: =SUMIFS('Lager antal'!$G$3:$G$2508,'Lager antal'!$B$3:$B$2508,B25,'Lager antal'!$C$3:$C$2508,C25) -> 0 | M25: 0 | N25: =SUMIFS(Lageromsætning!$R$3:$R$79,Lageromsætning!$A$3:$A$79,$A$2,Lageromsætning!$C$3:$C$79,B25,Lageromsætning!$D$3:$D$79,C25) -> 0 | O25: =SUMIFS(Lageromsætning!$S$3:$S$79,Lageromsætning!$C$3:$C$79,B25,Lageromsætning!$D$3:$D$79,C25) -> 0
A26: =IFERROR(INDEX(Lageromsætning!$A$3:$A$79,SMALL(IF(Lageromsætning!$A$3:$A$79=$A$2,ROW(Lageromsætning!$A$3:$A$79)-CELL("row",Lageromsætning!$A$3:$A$79)+1),ROWS($1:23))),"") ->  | B26: =IFERROR(INDEX(Lageromsætning!$C$3:$C$79,SMALL(IF(Lageromsætning!$A$3:$A$79=$A$2,ROW(Lageromsætning!$A$3:$A$79)-CELL("row",Lageromsætning!$A$3:$A$79)+1),ROWS($2:24))),"") ->  | C26: =IFERROR(INDEX(Lageromsætning!$D$3:$D$79,SMALL(IF(Lageromsætning!$A$3:$A$79=$A$2,ROW(Lageromsætning!$A$3:$A$79)-CELL("row",Lageromsætning!$A$3:$A$79)+1),ROWS($2:24))),"") ->  | D26: =IFERROR(INDEX(Lageromsætning!$E$3:$E$79,SMALL(IF(Lageromsætning!$A$3:$A$79=$A$2,ROW(Lageromsætning!$A$3:$A$79)-CELL("row",Lageromsætning!$A$3:$A$79)+1),ROWS($2:24))),"") ->  | E26: =IFERROR(INDEX(Lageromsætning!$AF$3:$AF$79,SMALL(IF(Lageromsætning!$A$3:$A$79=$A$2,ROW(Lageromsætning!$A$3:$A$79)-CELL("row",Lageromsætning!$A$3:$A$79)+1),ROWS($2:24))),"") ->  | F26: =SUMIFS('Lager antal'!$D$3:$D$2508,'Lager antal'!$B$3:$B$2508,B26,'Lager antal'!$C$3:$C$2508,C26) -> 0 | G26: =SUMIFS('Lager antal'!$F$3:$F$2508,'Lager antal'!$B$3:$B$2508,B26,'Lager antal'!$C$3:$C$2508,C26) -> 0 | H26: =IF(ISNA(VLOOKUP($C26,'Lager antal'!$C$3:$K$508,9,FALSE))=TRUE,"",VLOOKUP($C26,'Lager antal'!$C$3:$K$508,9,FALSE)) ->  | I26: =IFERROR(INDEX(Lageromsætning!$P$3:$P$79,SMALL(IF(Lageromsætning!$A$3:$A$79=$A$2,ROW(Lageromsætning!$A$3:$A$79)-CELL("row",Lageromsætning!$A$3:$A$79)+1),ROWS($2:24))),"") ->  | J26: =+_xlfn.IFS($M26>=0.01,$M26,TRUE,0)-$F26-K26+G26 -> 0 | K26: =SUMIFS('Lager antal'!$G$3:$G$2508,'Lager antal'!$B$3:$B$2508,B26,'Lager antal'!$C$3:$C$2508,C26) -> 0 | M26: 0 | N26: =SUMIFS(Lageromsætning!$R$3:$R$79,Lageromsætning!$A$3:$A$79,$A$2,Lageromsætning!$C$3:$C$79,B26,Lageromsætning!$D$3:$D$79,C26) -> 0 | O26: =SUMIFS(Lageromsætning!$S$3:$S$79,Lageromsætning!$C$3:$C$79,B26,Lageromsætning!$D$3:$D$79,C26) -> 0
A27: =IFERROR(INDEX(Lageromsætning!$A$3:$A$79,SMALL(IF(Lageromsætning!$A$3:$A$79=$A$2,ROW(Lageromsætning!$A$3:$A$79)-CELL("row",Lageromsætning!$A$3:$A$79)+1),ROWS($1:24))),"") ->  | B27: =IFERROR(INDEX(Lageromsætning!$C$3:$C$79,SMALL(IF(Lageromsætning!$A$3:$A$79=$A$2,ROW(Lageromsætning!$A$3:$A$79)-CELL("row",Lageromsætning!$A$3:$A$79)+1),ROWS($2:25))),"") ->  | C27: =IFERROR(INDEX(Lageromsætning!$D$3:$D$79,SMALL(IF(Lageromsætning!$A$3:$A$79=$A$2,ROW(Lageromsætning!$A$3:$A$79)-CELL("row",Lageromsætning!$A$3:$A$79)+1),ROWS($2:25))),"") ->  | D27: =IFERROR(INDEX(Lageromsætning!$E$3:$E$79,SMALL(IF(Lageromsætning!$A$3:$A$79=$A$2,ROW(Lageromsætning!$A$3:$A$79)-CELL("row",Lageromsætning!$A$3:$A$79)+1),ROWS($2:25))),"") ->  | E27: =IFERROR(INDEX(Lageromsætning!$AF$3:$AF$79,SMALL(IF(Lageromsætning!$A$3:$A$79=$A$2,ROW(Lageromsætning!$A$3:$A$79)-CELL("row",Lageromsætning!$A$3:$A$79)+1),ROWS($2:25))),"") ->  | F27: =SUMIFS('Lager antal'!$D$3:$D$2508,'Lager antal'!$B$3:$B$2508,B27,'Lager antal'!$C$3:$C$2508,C27) -> 0 | G27: =SUMIFS('Lager antal'!$F$3:$F$2508,'Lager antal'!$B$3:$B$2508,B27,'Lager antal'!$C$3:$C$2508,C27) -> 0 | H27: =IF(ISNA(VLOOKUP($C27,'Lager antal'!$C$3:$K$508,9,FALSE))=TRUE,"",VLOOKUP($C27,'Lager antal'!$C$3:$K$508,9,FALSE)) ->  | I27: =IFERROR(INDEX(Lageromsætning!$P$3:$P$79,SMALL(IF(Lageromsætning!$A$3:$A$79=$A$2,ROW(Lageromsætning!$A$3:$A$79)-CELL("row",Lageromsætning!$A$3:$A$79)+1),ROWS($2:25))),"") ->  | J27: =+_xlfn.IFS($M27>=0.01,$M27,TRUE,0)-$F27-K27+G27 -> 0 | K27: =SUMIFS('Lager antal'!$G$3:$G$2508,'Lager antal'!$B$3:$B$2508,B27,'Lager antal'!$C$3:$C$2508,C27) -> 0 | M27: 0 | N27: =SUMIFS(Lageromsætning!$R$3:$R$79,Lageromsætning!$A$3:$A$79,$A$2,Lageromsætning!$C$3:$C$79,B27,Lageromsætning!$D$3:$D$79,C27) -> 0 | O27: =SUMIFS(Lageromsætning!$S$3:$S$79,Lageromsætning!$C$3:$C$79,B27,Lageromsætning!$D$3:$D$79,C27) -> 0
A28: =IFERROR(INDEX(Lageromsætning!$A$3:$A$79,SMALL(IF(Lageromsætning!$A$3:$A$79=$A$2,ROW(Lageromsætning!$A$3:$A$79)-CELL("row",Lageromsætning!$A$3:$A$79)+1),ROWS($1:25))),"") ->  | B28: =IFERROR(INDEX(Lageromsætning!$C$3:$C$79,SMALL(IF(Lageromsætning!$A$3:$A$79=$A$2,ROW(Lageromsætning!$A$3:$A$79)-CELL("row",Lageromsætning!$A$3:$A$79)+1),ROWS($2:26))),"") ->  | C28: =IFERROR(INDEX(Lageromsætning!$D$3:$D$79,SMALL(IF(Lageromsætning!$A$3:$A$79=$A$2,ROW(Lageromsætning!$A$3:$A$79)-CELL("row",Lageromsætning!$A$3:$A$79)+1),ROWS($2:26))),"") ->  | D28: =IFERROR(INDEX(Lageromsætning!$E$3:$E$79,SMALL(IF(Lageromsætning!$A$3:$A$79=$A$2,ROW(Lageromsætning!$A$3:$A$79)-CELL("row",Lageromsætning!$A$3:$A$79)+1),ROWS($2:26))),"") ->  | E28: =IFERROR(INDEX(Lageromsætning!$AF$3:$AF$79,SMALL(IF(Lageromsætning!$A$3:$A$79=$A$2,ROW(Lageromsætning!$A$3:$A$79)-CELL("row",Lageromsætning!$A$3:$A$79)+1),ROWS($2:26))),"") ->  | F28: =SUMIFS('Lager antal'!$D$3:$D$2508,'Lager antal'!$B$3:$B$2508,B28,'Lager antal'!$C$3:$C$2508,C28) -> 0 | G28: =SUMIFS('Lager antal'!$F$3:$F$2508,'Lager antal'!$B$3:$B$2508,B28,'Lager antal'!$C$3:$C$2508,C28) -> 0 | H28: =IF(ISNA(VLOOKUP($C28,'Lager antal'!$C$3:$K$508,9,FALSE))=TRUE,"",VLOOKUP($C28,'Lager antal'!$C$3:$K$508,9,FALSE)) ->  | I28: =IFERROR(INDEX(Lageromsætning!$P$3:$P$79,SMALL(IF(Lageromsætning!$A$3:$A$79=$A$2,ROW(Lageromsætning!$A$3:$A$79)-CELL("row",Lageromsætning!$A$3:$A$79)+1),ROWS($2:26))),"") ->  | J28: =+_xlfn.IFS($M28>=0.01,$M28,TRUE,0)-$F28-K28+G28 -> 0 | K28: =SUMIFS('Lager antal'!$G$3:$G$2508,'Lager antal'!$B$3:$B$2508,B28,'Lager antal'!$C$3:$C$2508,C28) -> 0 | M28: 0 | N28: =SUMIFS(Lageromsætning!$R$3:$R$79,Lageromsætning!$A$3:$A$79,$A$2,Lageromsætning!$C$3:$C$79,B28,Lageromsætning!$D$3:$D$79,C28) -> 0 | O28: =SUMIFS(Lageromsætning!$S$3:$S$79,Lageromsætning!$C$3:$C$79,B28,Lageromsætning!$D$3:$D$79,C28) -> 0
A29: =IFERROR(INDEX(Lageromsætning!$A$3:$A$79,SMALL(IF(Lageromsætning!$A$3:$A$79=$A$2,ROW(Lageromsætning!$A$3:$A$79)-CELL("row",Lageromsætning!$A$3:$A$79)+1),ROWS($1:26))),"") ->  | B29: =IFERROR(INDEX(Lageromsætning!$C$3:$C$79,SMALL(IF(Lageromsætning!$A$3:$A$79=$A$2,ROW(Lageromsætning!$A$3:$A$79)-CELL("row",Lageromsætning!$A$3:$A$79)+1),ROWS($2:27))),"") ->  | C29: =IFERROR(INDEX(Lageromsætning!$D$3:$D$79,SMALL(IF(Lageromsætning!$A$3:$A$79=$A$2,ROW(Lageromsætning!$A$3:$A$79)-CELL("row",Lageromsætning!$A$3:$A$79)+1),ROWS($2:27))),"") ->  | D29: =IFERROR(INDEX(Lageromsætning!$E$3:$E$79,SMALL(IF(Lageromsætning!$A$3:$A$79=$A$2,ROW(Lageromsætning!$A$3:$A$79)-CELL("row",Lageromsætning!$A$3:$A$79)+1),ROWS($2:27))),"") ->  | E29: =IFERROR(INDEX(Lageromsætning!$AF$3:$AF$79,SMALL(IF(Lageromsætning!$A$3:$A$79=$A$2,ROW(Lageromsætning!$A$3:$A$79)-CELL("row",Lageromsætning!$A$3:$A$79)+1),ROWS($2:27))),"") ->  | F29: =SUMIFS('Lager antal'!$D$3:$D$2508,'Lager antal'!$B$3:$B$2508,B29,'Lager antal'!$C$3:$C$2508,C29) -> 0 | G29: =SUMIFS('Lager antal'!$F$3:$F$2508,'Lager antal'!$B$3:$B$2508,B29,'Lager antal'!$C$3:$C$2508,C29) -> 0 | H29: =IF(ISNA(VLOOKUP($C29,'Lager antal'!$C$3:$K$508,9,FALSE))=TRUE,"",VLOOKUP($C29,'Lager antal'!$C$3:$K$508,9,FALSE)) ->  | I29: =IFERROR(INDEX(Lageromsætning!$P$3:$P$79,SMALL(IF(Lageromsætning!$A$3:$A$79=$A$2,ROW(Lageromsætning!$A$3:$A$79)-CELL("row",Lageromsætning!$A$3:$A$79)+1),ROWS($2:27))),"") ->  | J29: =+_xlfn.IFS($M29>=0.01,$M29,TRUE,0)-$F29-K29+G29 -> 0 | K29: =SUMIFS('Lager antal'!$G$3:$G$2508,'Lager antal'!$B$3:$B$2508,B29,'Lager antal'!$C$3:$C$2508,C29) -> 0 | M29: 0 | N29: =SUMIFS(Lageromsætning!$R$3:$R$79,Lageromsætning!$A$3:$A$79,$A$2,Lageromsætning!$C$3:$C$79,B29,Lageromsætning!$D$3:$D$79,C29) -> 0 | O29: =SUMIFS(Lageromsætning!$S$3:$S$79,Lageromsætning!$C$3:$C$79,B29,Lageromsætning!$D$3:$D$79,C29) -> 0
A30: =IFERROR(INDEX(Lageromsætning!$A$3:$A$79,SMALL(IF(Lageromsætning!$A$3:$A$79=$A$2,ROW(Lageromsætning!$A$3:$A$79)-CELL("row",Lageromsætning!$A$3:$A$79)+1),ROWS($1:27))),"") ->  | B30: =IFERROR(INDEX(Lageromsætning!$C$3:$C$79,SMALL(IF(Lageromsætning!$A$3:$A$79=$A$2,ROW(Lageromsætning!$A$3:$A$79)-CELL("row",Lageromsætning!$A$3:$A$79)+1),ROWS($2:28))),"") ->  | C30: =IFERROR(INDEX(Lageromsætning!$D$3:$D$79,SMALL(IF(Lageromsætning!$A$3:$A$79=$A$2,ROW(Lageromsætning!$A$3:$A$79)-CELL("row",Lageromsætning!$A$3:$A$79)+1),ROWS($2:28))),"") ->  | D30: =IFERROR(INDEX(Lageromsætning!$E$3:$E$79,SMALL(IF(Lageromsætning!$A$3:$A$79=$A$2,ROW(Lageromsætning!$A$3:$A$79)-CELL("row",Lageromsætning!$A$3:$A$79)+1),ROWS($2:28))),"") ->  | E30: =IFERROR(INDEX(Lageromsætning!$AF$3:$AF$79,SMALL(IF(Lageromsætning!$A$3:$A$79=$A$2,ROW(Lageromsætning!$A$3:$A$79)-CELL("row",Lageromsætning!$A$3:$A$79)+1),ROWS($2:28))),"") ->  | F30: =SUMIFS('Lager antal'!$D$3:$D$2508,'Lager antal'!$B$3:$B$2508,B30,'Lager antal'!$C$3:$C$2508,C30) -> 0 | G30: =SUMIFS('Lager antal'!$F$3:$F$2508,'Lager antal'!$B$3:$B$2508,B30,'Lager antal'!$C$3:$C$2508,C30) -> 0 | H30: =IF(ISNA(VLOOKUP($C30,'Lager antal'!$C$3:$K$508,9,FALSE))=TRUE,"",VLOOKUP($C30,'Lager antal'!$C$3:$K$508,9,FALSE)) ->  | I30: =IFERROR(INDEX(Lageromsætning!$P$3:$P$79,SMALL(IF(Lageromsætning!$A$3:$A$79=$A$2,ROW(Lageromsætning!$A$3:$A$79)-CELL("row",Lageromsætning!$A$3:$A$79)+1),ROWS($2:28))),"") ->  | J30: =+_xlfn.IFS($M30>=0.01,$M30,TRUE,0)-$F30-K30+G30 -> 0 | K30: =SUMIFS('Lager antal'!$G$3:$G$2508,'Lager antal'!$B$3:$B$2508,B30,'Lager antal'!$C$3:$C$2508,C30) -> 0 | M30: 0 | N30: =SUMIFS(Lageromsætning!$R$3:$R$79,Lageromsætning!$A$3:$A$79,$A$2,Lageromsætning!$C$3:$C$79,B30,Lageromsætning!$D$3:$D$79,C30) -> 0 | O30: =SUMIFS(Lageromsætning!$S$3:$S$79,Lageromsætning!$C$3:$C$79,B30,Lageromsætning!$D$3:$D$79,C30) -> 0
A31: =IFERROR(INDEX(Lageromsætning!$A$3:$A$79,SMALL(IF(Lageromsætning!$A$3:$A$79=$A$2,ROW(Lageromsætning!$A$3:$A$79)-CELL("row",Lageromsætning!$A$3:$A$79)+1),ROWS($1:28))),"") ->  | B31: =IFERROR(INDEX(Lageromsætning!$C$3:$C$79,SMALL(IF(Lageromsætning!$A$3:$A$79=$A$2,ROW(Lageromsætning!$A$3:$A$79)-CELL("row",Lageromsætning!$A$3:$A$79)+1),ROWS($2:29))),"") ->  | C31: =IFERROR(INDEX(Lageromsætning!$D$3:$D$79,SMALL(IF(Lageromsætning!$A$3:$A$79=$A$2,ROW(Lageromsætning!$A$3:$A$79)-CELL("row",Lageromsætning!$A$3:$A$79)+1),ROWS($2:29))),"") ->  | D31: =IFERROR(INDEX(Lageromsætning!$E$3:$E$79,SMALL(IF(Lageromsætning!$A$3:$A$79=$A$2,ROW(Lageromsætning!$A$3:$A$79)-CELL("row",Lageromsætning!$A$3:$A$79)+1),ROWS($2:29))),"") ->  | E31: =IFERROR(INDEX(Lageromsætning!$AF$3:$AF$79,SMALL(IF(Lageromsætning!$A$3:$A$79=$A$2,ROW(Lageromsætning!$A$3:$A$79)-CELL("row",Lageromsætning!$A$3:$A$79)+1),ROWS($2:29))),"") ->  | F31: =SUMIFS('Lager antal'!$D$3:$D$2508,'Lager antal'!$B$3:$B$2508,B31,'Lager antal'!$C$3:$C$2508,C31) -> 0 | G31: =SUMIFS('Lager antal'!$F$3:$F$2508,'Lager antal'!$B$3:$B$2508,B31,'Lager antal'!$C$3:$C$2508,C31) -> 0 | H31: =IF(ISNA(VLOOKUP($C31,'Lager antal'!$C$3:$K$508,9,FALSE))=TRUE,"",VLOOKUP($C31,'Lager antal'!$C$3:$K$508,9,FALSE)) ->  | I31: =IFERROR(INDEX(Lageromsætning!$P$3:$P$79,SMALL(IF(Lageromsætning!$A$3:$A$79=$A$2,ROW(Lageromsætning!$A$3:$A$79)-CELL("row",Lageromsætning!$A$3:$A$79)+1),ROWS($2:29))),"") ->  | J31: =+_xlfn.IFS($M31>=0.01,$M31,TRUE,0)-$F31-K31+G31 -> 0 | K31: =SUMIFS('Lager antal'!$G$3:$G$2508,'Lager antal'!$B$3:$B$2508,B31,'Lager antal'!$C$3:$C$2508,C31) -> 0 | M31: 0 | N31: =SUMIFS(Lageromsætning!$R$3:$R$79,Lageromsætning!$A$3:$A$79,$A$2,Lageromsætning!$C$3:$C$79,B31,Lageromsætning!$D$3:$D$79,C31) -> 0 | O31: =SUMIFS(Lageromsætning!$S$3:$S$79,Lageromsætning!$C$3:$C$79,B31,Lageromsætning!$D$3:$D$79,C31) -> 0
A32: =IFERROR(INDEX(Lageromsætning!$A$3:$A$79,SMALL(IF(Lageromsætning!$A$3:$A$79=$A$2,ROW(Lageromsætning!$A$3:$A$79)-CELL("row",Lageromsætning!$A$3:$A$79)+1),ROWS($1:29))),"") ->  | B32: =IFERROR(INDEX(Lageromsætning!$C$3:$C$79,SMALL(IF(Lageromsætning!$A$3:$A$79=$A$2,ROW(Lageromsætning!$A$3:$A$79)-CELL("row",Lageromsætning!$A$3:$A$79)+1),ROWS($2:30))),"") ->  | C32: =IFERROR(INDEX(Lageromsætning!$D$3:$D$79,SMALL(IF(Lageromsætning!$A$3:$A$79=$A$2,ROW(Lageromsætning!$A$3:$A$79)-CELL("row",Lageromsætning!$A$3:$A$79)+1),ROWS($2:30))),"") ->  | D32: =IFERROR(INDEX(Lageromsætning!$E$3:$E$79,SMALL(IF(Lageromsætning!$A$3:$A$79=$A$2,ROW(Lageromsætning!$A$3:$A$79)-CELL("row",Lageromsætning!$A$3:$A$79)+1),ROWS($2:30))),"") ->  | E32: =IFERROR(INDEX(Lageromsætning!$AF$3:$AF$79,SMALL(IF(Lageromsætning!$A$3:$A$79=$A$2,ROW(Lageromsætning!$A$3:$A$79)-CELL("row",Lageromsætning!$A$3:$A$79)+1),ROWS($2:30))),"") ->  | F32: =SUMIFS('Lager antal'!$D$3:$D$2508,'Lager antal'!$B$3:$B$2508,B32,'Lager antal'!$C$3:$C$2508,C32) -> 0 | G32: =SUMIFS('Lager antal'!$F$3:$F$2508,'Lager antal'!$B$3:$B$2508,B32,'Lager antal'!$C$3:$C$2508,C32) -> 0 | H32: =IF(ISNA(VLOOKUP($C32,'Lager antal'!$C$3:$K$508,9,FALSE))=TRUE,"",VLOOKUP($C32,'Lager antal'!$C$3:$K$508,9,FALSE)) ->  | I32: =IFERROR(INDEX(Lageromsætning!$P$3:$P$79,SMALL(IF(Lageromsætning!$A$3:$A$79=$A$2,ROW(Lageromsætning!$A$3:$A$79)-CELL("row",Lageromsætning!$A$3:$A$79)+1),ROWS($2:30))),"") ->  | J32: =+_xlfn.IFS($M32>=0.01,$M32,TRUE,0)-$F32-K32+G32 -> 0 | K32: =SUMIFS('Lager antal'!$G$3:$G$2508,'Lager antal'!$B$3:$B$2508,B32,'Lager antal'!$C$3:$C$2508,C32) -> 0 | M32: 0 | N32: =SUMIFS(Lageromsætning!$R$3:$R$79,Lageromsætning!$A$3:$A$79,$A$2,Lageromsætning!$C$3:$C$79,B32,Lageromsætning!$D$3:$D$79,C32) -> 0 | O32: =SUMIFS(Lageromsætning!$S$3:$S$79,Lageromsætning!$C$3:$C$79,B32,Lageromsætning!$D$3:$D$79,C32) -> 0
A33: =IFERROR(INDEX(Lageromsætning!$A$3:$A$79,SMALL(IF(Lageromsætning!$A$3:$A$79=$A$2,ROW(Lageromsætning!$A$3:$A$79)-CELL("row",Lageromsætning!$A$3:$A$79)+1),ROWS($1:30))),"") ->  | B33: =IFERROR(INDEX(Lageromsætning!$C$3:$C$79,SMALL(IF(Lageromsætning!$A$3:$A$79=$A$2,ROW(Lageromsætning!$A$3:$A$79)-CELL("row",Lageromsætning!$A$3:$A$79)+1),ROWS($2:31))),"") ->  | C33: =IFERROR(INDEX(Lageromsætning!$D$3:$D$79,SMALL(IF(Lageromsætning!$A$3:$A$79=$A$2,ROW(Lageromsætning!$A$3:$A$79)-CELL("row",Lageromsætning!$A$3:$A$79)+1),ROWS($2:31))),"") ->  | D33: =IFERROR(INDEX(Lageromsætning!$E$3:$E$79,SMALL(IF(Lageromsætning!$A$3:$A$79=$A$2,ROW(Lageromsætning!$A$3:$A$79)-CELL("row",Lageromsætning!$A$3:$A$79)+1),ROWS($2:31))),"") ->  | E33: =IFERROR(INDEX(Lageromsætning!$AF$3:$AF$79,SMALL(IF(Lageromsætning!$A$3:$A$79=$A$2,ROW(Lageromsætning!$A$3:$A$79)-CELL("row",Lageromsætning!$A$3:$A$79)+1),ROWS($2:31))),"") ->  | F33: =SUMIFS('Lager antal'!$D$3:$D$2508,'Lager antal'!$B$3:$B$2508,B33,'Lager antal'!$C$3:$C$2508,C33) -> 0 | G33: =SUMIFS('Lager antal'!$F$3:$F$2508,'Lager antal'!$B$3:$B$2508,B33,'Lager antal'!$C$3:$C$2508,C33) -> 0 | H33: =IF(ISNA(VLOOKUP($C33,'Lager antal'!$C$3:$K$508,9,FALSE))=TRUE,"",VLOOKUP($C33,'Lager antal'!$C$3:$K$508,9,FALSE)) ->  | I33: =IFERROR(INDEX(Lageromsætning!$P$3:$P$79,SMALL(IF(Lageromsætning!$A$3:$A$79=$A$2,ROW(Lageromsætning!$A$3:$A$79)-CELL("row",Lageromsætning!$A$3:$A$79)+1),ROWS($2:31))),"") ->  | J33: =+_xlfn.IFS($M33>=0.01,$M33,TRUE,0)-$F33-K33+G33 -> 0 | K33: =SUMIFS('Lager antal'!$G$3:$G$2508,'Lager antal'!$B$3:$B$2508,B33,'Lager antal'!$C$3:$C$2508,C33) -> 0 | M33: 0 | N33: =SUMIFS(Lageromsætning!$R$3:$R$79,Lageromsætning!$A$3:$A$79,$A$2,Lageromsætning!$C$3:$C$79,B33,Lageromsætning!$D$3:$D$79,C33) -> 0 | O33: =SUMIFS(Lageromsætning!$S$3:$S$79,Lageromsætning!$C$3:$C$79,B33,Lageromsætning!$D$3:$D$79,C33) -> 0
A34: =IFERROR(INDEX(Lageromsætning!$A$3:$A$79,SMALL(IF(Lageromsætning!$A$3:$A$79=$A$2,ROW(Lageromsætning!$A$3:$A$79)-CELL("row",Lageromsætning!$A$3:$A$79)+1),ROWS($1:31))),"") ->  | B34: =IFERROR(INDEX(Lageromsætning!$C$3:$C$79,SMALL(IF(Lageromsætning!$A$3:$A$79=$A$2,ROW(Lageromsætning!$A$3:$A$79)-CELL("row",Lageromsætning!$A$3:$A$79)+1),ROWS($2:32))),"") ->  | C34: =IFERROR(INDEX(Lageromsætning!$D$3:$D$79,SMALL(IF(Lageromsætning!$A$3:$A$79=$A$2,ROW(Lageromsætning!$A$3:$A$79)-CELL("row",Lageromsætning!$A$3:$A$79)+1),ROWS($2:32))),"") ->  | D34: =IFERROR(INDEX(Lageromsætning!$E$3:$E$79,SMALL(IF(Lageromsætning!$A$3:$A$79=$A$2,ROW(Lageromsætning!$A$3:$A$79)-CELL("row",Lageromsætning!$A$3:$A$79)+1),ROWS($2:32))),"") ->  | E34: =IFERROR(INDEX(Lageromsætning!$AF$3:$AF$79,SMALL(IF(Lageromsætning!$A$3:$A$79=$A$2,ROW(Lageromsætning!$A$3:$A$79)-CELL("row",Lageromsætning!$A$3:$A$79)+1),ROWS($2:32))),"") ->  | F34: =SUMIFS('Lager antal'!$D$3:$D$2508,'Lager antal'!$B$3:$B$2508,B34,'Lager antal'!$C$3:$C$2508,C34) -> 0 | G34: =SUMIFS('Lager antal'!$F$3:$F$2508,'Lager antal'!$B$3:$B$2508,B34,'Lager antal'!$C$3:$C$2508,C34) -> 0 | H34: =IF(ISNA(VLOOKUP($C34,'Lager antal'!$C$3:$K$508,9,FALSE))=TRUE,"",VLOOKUP($C34,'Lager antal'!$C$3:$K$508,9,FALSE)) ->  | I34: =IFERROR(INDEX(Lageromsætning!$P$3:$P$79,SMALL(IF(Lageromsætning!$A$3:$A$79=$A$2,ROW(Lageromsætning!$A$3:$A$79)-CELL("row",Lageromsætning!$A$3:$A$79)+1),ROWS($2:32))),"") ->  | J34: =+_xlfn.IFS($M34>=0.01,$M34,TRUE,0)-$F34-K34+G34 -> 0 | K34: =SUMIFS('Lager antal'!$G$3:$G$2508,'Lager antal'!$B$3:$B$2508,B34,'Lager antal'!$C$3:$C$2508,C34) -> 0 | M34: 0 | N34: =SUMIFS(Lageromsætning!$R$3:$R$79,Lageromsætning!$A$3:$A$79,$A$2,Lageromsætning!$C$3:$C$79,B34,Lageromsætning!$D$3:$D$79,C34) -> 0 | O34: =SUMIFS(Lageromsætning!$S$3:$S$79,Lageromsætning!$C$3:$C$79,B34,Lageromsætning!$D$3:$D$79,C34) -> 0
A35: =IFERROR(INDEX(Lageromsætning!$A$3:$A$79,SMALL(IF(Lageromsætning!$A$3:$A$79=$A$2,ROW(Lageromsætning!$A$3:$A$79)-CELL("row",Lageromsætning!$A$3:$A$79)+1),ROWS($1:32))),"") ->  | B35: =IFERROR(INDEX(Lageromsætning!$C$3:$C$79,SMALL(IF(Lageromsætning!$A$3:$A$79=$A$2,ROW(Lageromsætning!$A$3:$A$79)-CELL("row",Lageromsætning!$A$3:$A$79)+1),ROWS($2:33))),"") ->  | C35: =IFERROR(INDEX(Lageromsætning!$D$3:$D$79,SMALL(IF(Lageromsætning!$A$3:$A$79=$A$2,ROW(Lageromsætning!$A$3:$A$79)-CELL("row",Lageromsætning!$A$3:$A$79)+1),ROWS($2:33))),"") ->  | D35: =IFERROR(INDEX(Lageromsætning!$E$3:$E$79,SMALL(IF(Lageromsætning!$A$3:$A$79=$A$2,ROW(Lageromsætning!$A$3:$A$79)-CELL("row",Lageromsætning!$A$3:$A$79)+1),ROWS($2:33))),"") ->  | E35: =IFERROR(INDEX(Lageromsætning!$AF$3:$AF$79,SMALL(IF(Lageromsætning!$A$3:$A$79=$A$2,ROW(Lageromsætning!$A$3:$A$79)-CELL("row",Lageromsætning!$A$3:$A$79)+1),ROWS($2:33))),"") ->  | F35: =SUMIFS('Lager antal'!$D$3:$D$2508,'Lager antal'!$B$3:$B$2508,B35,'Lager antal'!$C$3:$C$2508,C35) -> 0 | G35: =SUMIFS('Lager antal'!$F$3:$F$2508,'Lager antal'!$B$3:$B$2508,B35,'Lager antal'!$C$3:$C$2508,C35) -> 0 | H35: =IF(ISNA(VLOOKUP($C35,'Lager antal'!$C$3:$K$508,9,FALSE))=TRUE,"",VLOOKUP($C35,'Lager antal'!$C$3:$K$508,9,FALSE)) ->  | I35: =IFERROR(INDEX(Lageromsætning!$P$3:$P$79,SMALL(IF(Lageromsætning!$A$3:$A$79=$A$2,ROW(Lageromsætning!$A$3:$A$79)-CELL("row",Lageromsætning!$A$3:$A$79)+1),ROWS($2:33))),"") ->  | J35: =+_xlfn.IFS($M35>=0.01,$M35,TRUE,0)-$F35-K35+G35 -> 0 | K35: =SUMIFS('Lager antal'!$G$3:$G$2508,'Lager antal'!$B$3:$B$2508,B35,'Lager antal'!$C$3:$C$2508,C35) -> 0 | M35: 0 | N35: =SUMIFS(Lageromsætning!$R$3:$R$79,Lageromsætning!$A$3:$A$79,$A$2,Lageromsætning!$C$3:$C$79,B35,Lageromsætning!$D$3:$D$79,C35) -> 0 | O35: =SUMIFS(Lageromsætning!$S$3:$S$79,Lageromsætning!$C$3:$C$79,B35,Lageromsætning!$D$3:$D$79,C35) -> 0
A36: =IFERROR(INDEX(Lageromsætning!$A$3:$A$79,SMALL(IF(Lageromsætning!$A$3:$A$79=$A$2,ROW(Lageromsætning!$A$3:$A$79)-CELL("row",Lageromsætning!$A$3:$A$79)+1),ROWS($1:33))),"") ->  | B36: =IFERROR(INDEX(Lageromsætning!$C$3:$C$79,SMALL(IF(Lageromsætning!$A$3:$A$79=$A$2,ROW(Lageromsætning!$A$3:$A$79)-CELL("row",Lageromsætning!$A$3:$A$79)+1),ROWS($2:34))),"") ->  | C36: =IFERROR(INDEX(Lageromsætning!$D$3:$D$79,SMALL(IF(Lageromsætning!$A$3:$A$79=$A$2,ROW(Lageromsætning!$A$3:$A$79)-CELL("row",Lageromsætning!$A$3:$A$79)+1),ROWS($2:34))),"") ->  | D36: =IFERROR(INDEX(Lageromsætning!$E$3:$E$79,SMALL(IF(Lageromsætning!$A$3:$A$79=$A$2,ROW(Lageromsætning!$A$3:$A$79)-CELL("row",Lageromsætning!$A$3:$A$79)+1),ROWS($2:34))),"") ->  | E36: =IFERROR(INDEX(Lageromsætning!$AF$3:$AF$79,SMALL(IF(Lageromsætning!$A$3:$A$79=$A$2,ROW(Lageromsætning!$A$3:$A$79)-CELL("row",Lageromsætning!$A$3:$A$79)+1),ROWS($2:34))),"") ->  | F36: =SUMIFS('Lager antal'!$D$3:$D$2508,'Lager antal'!$B$3:$B$2508,B36,'Lager antal'!$C$3:$C$2508,C36) -> 0 | G36: =SUMIFS('Lager antal'!$F$3:$F$2508,'Lager antal'!$B$3:$B$2508,B36,'Lager antal'!$C$3:$C$2508,C36) -> 0 | H36: =IF(ISNA(VLOOKUP($C36,'Lager antal'!$C$3:$K$508,9,FALSE))=TRUE,"",VLOOKUP($C36,'Lager antal'!$C$3:$K$508,9,FALSE)) ->  | I36: =IFERROR(INDEX(Lageromsætning!$P$3:$P$79,SMALL(IF(Lageromsætning!$A$3:$A$79=$A$2,ROW(Lageromsætning!$A$3:$A$79)-CELL("row",Lageromsætning!$A$3:$A$79)+1),ROWS($2:34))),"") ->  | J36: =+_xlfn.IFS($M36>=0.01,$M36,TRUE,0)-$F36-K36+G36 -> 0 | K36: =SUMIFS('Lager antal'!$G$3:$G$2508,'Lager antal'!$B$3:$B$2508,B36,'Lager antal'!$C$3:$C$2508,C36) -> 0 | M36: 0 | N36: =SUMIFS(Lageromsætning!$R$3:$R$79,Lageromsætning!$A$3:$A$79,$A$2,Lageromsætning!$C$3:$C$79,B36,Lageromsætning!$D$3:$D$79,C36) -> 0 | O36: =SUMIFS(Lageromsætning!$S$3:$S$79,Lageromsætning!$C$3:$C$79,B36,Lageromsætning!$D$3:$D$79,C36) -> 0
A37: =IFERROR(INDEX(Lageromsætning!$A$3:$A$79,SMALL(IF(Lageromsætning!$A$3:$A$79=$A$2,ROW(Lageromsætning!$A$3:$A$79)-CELL("row",Lageromsætning!$A$3:$A$79)+1),ROWS($1:34))),"") ->  | B37: =IFERROR(INDEX(Lageromsætning!$C$3:$C$79,SMALL(IF(Lageromsætning!$A$3:$A$79=$A$2,ROW(Lageromsætning!$A$3:$A$79)-CELL("row",Lageromsætning!$A$3:$A$79)+1),ROWS($2:35))),"") ->  | C37: =IFERROR(INDEX(Lageromsætning!$D$3:$D$79,SMALL(IF(Lageromsætning!$A$3:$A$79=$A$2,ROW(Lageromsætning!$A$3:$A$79)-CELL("row",Lageromsætning!$A$3:$A$79)+1),ROWS($2:35))),"") ->  | D37: =IFERROR(INDEX(Lageromsætning!$E$3:$E$79,SMALL(IF(Lageromsætning!$A$3:$A$79=$A$2,ROW(Lageromsætning!$A$3:$A$79)-CELL("row",Lageromsætning!$A$3:$A$79)+1),ROWS($2:35))),"") ->  | E37: =IFERROR(INDEX(Lageromsætning!$AF$3:$AF$79,SMALL(IF(Lageromsætning!$A$3:$A$79=$A$2,ROW(Lageromsætning!$A$3:$A$79)-CELL("row",Lageromsætning!$A$3:$A$79)+1),ROWS($2:35))),"") ->  | F37: =SUMIFS('Lager antal'!$D$3:$D$2508,'Lager antal'!$B$3:$B$2508,B37,'Lager antal'!$C$3:$C$2508,C37) -> 0 | G37: =SUMIFS('Lager antal'!$F$3:$F$2508,'Lager antal'!$B$3:$B$2508,B37,'Lager antal'!$C$3:$C$2508,C37) -> 0 | H37: =IF(ISNA(VLOOKUP($C37,'Lager antal'!$C$3:$K$508,9,FALSE))=TRUE,"",VLOOKUP($C37,'Lager antal'!$C$3:$K$508,9,FALSE)) ->  | I37: =IFERROR(INDEX(Lageromsætning!$P$3:$P$79,SMALL(IF(Lageromsætning!$A$3:$A$79=$A$2,ROW(Lageromsætning!$A$3:$A$79)-CELL("row",Lageromsætning!$A$3:$A$79)+1),ROWS($2:35))),"") ->  | J37: =+_xlfn.IFS($M37>=0.01,$M37,TRUE,0)-$F37-K37+G37 -> 0 | K37: =SUMIFS('Lager antal'!$G$3:$G$2508,'Lager antal'!$B$3:$B$2508,B37,'Lager antal'!$C$3:$C$2508,C37) -> 0 | M37: 0 | N37: =SUMIFS(Lageromsætning!$R$3:$R$79,Lageromsætning!$A$3:$A$79,$A$2,Lageromsætning!$C$3:$C$79,B37,Lageromsætning!$D$3:$D$79,C37) -> 0 | O37: =SUMIFS(Lageromsætning!$S$3:$S$79,Lageromsætning!$C$3:$C$79,B37,Lageromsætning!$D$3:$D$79,C37) -> 0
A38: =IFERROR(INDEX(Lageromsætning!$A$3:$A$79,SMALL(IF(Lageromsætning!$A$3:$A$79=$A$2,ROW(Lageromsætning!$A$3:$A$79)-CELL("row",Lageromsætning!$A$3:$A$79)+1),ROWS($1:35))),"") ->  | B38: =IFERROR(INDEX(Lageromsætning!$C$3:$C$79,SMALL(IF(Lageromsætning!$A$3:$A$79=$A$2,ROW(Lageromsætning!$A$3:$A$79)-CELL("row",Lageromsætning!$A$3:$A$79)+1),ROWS($2:36))),"") ->  | C38: =IFERROR(INDEX(Lageromsætning!$D$3:$D$79,SMALL(IF(Lageromsætning!$A$3:$A$79=$A$2,ROW(Lageromsætning!$A$3:$A$79)-CELL("row",Lageromsætning!$A$3:$A$79)+1),ROWS($2:36))),"") ->  | D38: =IFERROR(INDEX(Lageromsætning!$E$3:$E$79,SMALL(IF(Lageromsætning!$A$3:$A$79=$A$2,ROW(Lageromsætning!$A$3:$A$79)-CELL("row",Lageromsætning!$A$3:$A$79)+1),ROWS($2:36))),"") ->  | E38: =IFERROR(INDEX(Lageromsætning!$AF$3:$AF$79,SMALL(IF(Lageromsætning!$A$3:$A$79=$A$2,ROW(Lageromsætning!$A$3:$A$79)-CELL("row",Lageromsætning!$A$3:$A$79)+1),ROWS($2:36))),"") ->  | F38: =SUMIFS('Lager antal'!$D$3:$D$2508,'Lager antal'!$B$3:$B$2508,B38,'Lager antal'!$C$3:$C$2508,C38) -> 0 | G38: =SUMIFS('Lager antal'!$F$3:$F$2508,'Lager antal'!$B$3:$B$2508,B38,'Lager antal'!$C$3:$C$2508,C38) -> 0 | H38: =IF(ISNA(VLOOKUP($C38,'Lager antal'!$C$3:$K$508,9,FALSE))=TRUE,"",VLOOKUP($C38,'Lager antal'!$C$3:$K$508,9,FALSE)) ->  | I38: =IFERROR(INDEX(Lageromsætning!$P$3:$P$79,SMALL(IF(Lageromsætning!$A$3:$A$79=$A$2,ROW(Lageromsætning!$A$3:$A$79)-CELL("row",Lageromsætning!$A$3:$A$79)+1),ROWS($2:36))),"") ->  | J38: =+_xlfn.IFS($M38>=0.01,$M38,TRUE,0)-$F38-K38+G38 -> 0 | K38: =SUMIFS('Lager antal'!$G$3:$G$2508,'Lager antal'!$B$3:$B$2508,B38,'Lager antal'!$C$3:$C$2508,C38) -> 0 | M38: 0 | N38: =SUMIFS(Lageromsætning!$R$3:$R$79,Lageromsætning!$A$3:$A$79,$A$2,Lageromsætning!$C$3:$C$79,B38,Lageromsætning!$D$3:$D$79,C38) -> 0 | O38: =SUMIFS(Lageromsætning!$S$3:$S$79,Lageromsætning!$C$3:$C$79,B38,Lageromsætning!$D$3:$D$79,C38) -> 0
A39: =IFERROR(INDEX(Lageromsætning!$A$3:$A$79,SMALL(IF(Lageromsætning!$A$3:$A$79=$A$2,ROW(Lageromsætning!$A$3:$A$79)-CELL("row",Lageromsætning!$A$3:$A$79)+1),ROWS($1:36))),"") ->  | B39: =IFERROR(INDEX(Lageromsætning!$C$3:$C$79,SMALL(IF(Lageromsætning!$A$3:$A$79=$A$2,ROW(Lageromsætning!$A$3:$A$79)-CELL("row",Lageromsætning!$A$3:$A$79)+1),ROWS($2:37))),"") ->  | C39: =IFERROR(INDEX(Lageromsætning!$D$3:$D$79,SMALL(IF(Lageromsætning!$A$3:$A$79=$A$2,ROW(Lageromsætning!$A$3:$A$79)-CELL("row",Lageromsætning!$A$3:$A$79)+1),ROWS($2:37))),"") ->  | D39: =IFERROR(INDEX(Lageromsætning!$E$3:$E$79,SMALL(IF(Lageromsætning!$A$3:$A$79=$A$2,ROW(Lageromsætning!$A$3:$A$79)-CELL("row",Lageromsætning!$A$3:$A$79)+1),ROWS($2:37))),"") ->  | E39: =IFERROR(INDEX(Lageromsætning!$AF$3:$AF$79,SMALL(IF(Lageromsætning!$A$3:$A$79=$A$2,ROW(Lageromsætning!$A$3:$A$79)-CELL("row",Lageromsætning!$A$3:$A$79)+1),ROWS($2:37))),"") ->  | F39: =SUMIFS('Lager antal'!$D$3:$D$2508,'Lager antal'!$B$3:$B$2508,B39,'Lager antal'!$C$3:$C$2508,C39) -> 0 | G39: =SUMIFS('Lager antal'!$F$3:$F$2508,'Lager antal'!$B$3:$B$2508,B39,'Lager antal'!$C$3:$C$2508,C39) -> 0 | H39: =IF(ISNA(VLOOKUP($C39,'Lager antal'!$C$3:$K$508,9,FALSE))=TRUE,"",VLOOKUP($C39,'Lager antal'!$C$3:$K$508,9,FALSE)) ->  | I39: =IFERROR(INDEX(Lageromsætning!$P$3:$P$79,SMALL(IF(Lageromsætning!$A$3:$A$79=$A$2,ROW(Lageromsætning!$A$3:$A$79)-CELL("row",Lageromsætning!$A$3:$A$79)+1),ROWS($2:37))),"") ->  | J39: =+_xlfn.IFS($M39>=0.01,$M39,TRUE,0)-$F39-K39+G39 -> 0 | K39: =SUMIFS('Lager antal'!$G$3:$G$2508,'Lager antal'!$B$3:$B$2508,B39,'Lager antal'!$C$3:$C$2508,C39) -> 0 | M39: 0 | N39: =SUMIFS(Lageromsætning!$R$3:$R$79,Lageromsætning!$A$3:$A$79,$A$2,Lageromsætning!$C$3:$C$79,B39,Lageromsætning!$D$3:$D$79,C39) -> 0 | O39: =SUMIFS(Lageromsætning!$S$3:$S$79,Lageromsætning!$C$3:$C$79,B39,Lageromsætning!$D$3:$D$79,C39) -> 0
A40: =IFERROR(INDEX(Lageromsætning!$A$3:$A$79,SMALL(IF(Lageromsætning!$A$3:$A$79=$A$2,ROW(Lageromsætning!$A$3:$A$79)-CELL("row",Lageromsætning!$A$3:$A$79)+1),ROWS($1:37))),"") ->  | B40: =IFERROR(INDEX(Lageromsætning!$C$3:$C$79,SMALL(IF(Lageromsætning!$A$3:$A$79=$A$2,ROW(Lageromsætning!$A$3:$A$79)-CELL("row",Lageromsætning!$A$3:$A$79)+1),ROWS($2:38))),"") ->  | C40: =IFERROR(INDEX(Lageromsætning!$D$3:$D$79,SMALL(IF(Lageromsætning!$A$3:$A$79=$A$2,ROW(Lageromsætning!$A$3:$A$79)-CELL("row",Lageromsætning!$A$3:$A$79)+1),ROWS($2:38))),"") ->  | D40: =IFERROR(INDEX(Lageromsætning!$E$3:$E$79,SMALL(IF(Lageromsætning!$A$3:$A$79=$A$2,ROW(Lageromsætning!$A$3:$A$79)-CELL("row",Lageromsætning!$A$3:$A$79)+1),ROWS($2:38))),"") ->  | E40: =IFERROR(INDEX(Lageromsætning!$AF$3:$AF$79,SMALL(IF(Lageromsætning!$A$3:$A$79=$A$2,ROW(Lageromsætning!$A$3:$A$79)-CELL("row",Lageromsætning!$A$3:$A$79)+1),ROWS($2:38))),"") ->  | F40: =SUMIFS('Lager antal'!$D$3:$D$2508,'Lager antal'!$B$3:$B$2508,B40,'Lager antal'!$C$3:$C$2508,C40) -> 0 | G40: =SUMIFS('Lager antal'!$F$3:$F$2508,'Lager antal'!$B$3:$B$2508,B40,'Lager antal'!$C$3:$C$2508,C40) -> 0 | H40: =IF(ISNA(VLOOKUP($C40,'Lager antal'!$C$3:$K$508,9,FALSE))=TRUE,"",VLOOKUP($C40,'Lager antal'!$C$3:$K$508,9,FALSE)) ->  | I40: =IFERROR(INDEX(Lageromsætning!$P$3:$P$79,SMALL(IF(Lageromsætning!$A$3:$A$79=$A$2,ROW(Lageromsætning!$A$3:$A$79)-CELL("row",Lageromsætning!$A$3:$A$79)+1),ROWS($2:38))),"") ->  | J40: =+_xlfn.IFS($M40>=0.01,$M40,TRUE,0)-$F40-K40+G40 -> 0 | K40: =SUMIFS('Lager antal'!$G$3:$G$2508,'Lager antal'!$B$3:$B$2508,B40,'Lager antal'!$C$3:$C$2508,C40) -> 0 | M40: 0 | N40: =SUMIFS(Lageromsætning!$R$3:$R$79,Lageromsætning!$A$3:$A$79,$A$2,Lageromsætning!$C$3:$C$79,B40,Lageromsætning!$D$3:$D$79,C40) -> 0 | O40: =SUMIFS(Lageromsætning!$S$3:$S$79,Lageromsætning!$C$3:$C$79,B40,Lageromsætning!$D$3:$D$79,C40) -> 0
A41: =IFERROR(INDEX(Lageromsætning!$A$3:$A$79,SMALL(IF(Lageromsætning!$A$3:$A$79=$A$2,ROW(Lageromsætning!$A$3:$A$79)-CELL("row",Lageromsætning!$A$3:$A$79)+1),ROWS($1:38))),"") ->  | B41: =IFERROR(INDEX(Lageromsætning!$C$3:$C$79,SMALL(IF(Lageromsætning!$A$3:$A$79=$A$2,ROW(Lageromsætning!$A$3:$A$79)-CELL("row",Lageromsætning!$A$3:$A$79)+1),ROWS($2:39))),"") ->  | C41: =IFERROR(INDEX(Lageromsætning!$D$3:$D$79,SMALL(IF(Lageromsætning!$A$3:$A$79=$A$2,ROW(Lageromsætning!$A$3:$A$79)-CELL("row",Lageromsætning!$A$3:$A$79)+1),ROWS($2:39))),"") ->  | D41: =IFERROR(INDEX(Lageromsætning!$E$3:$E$79,SMALL(IF(Lageromsætning!$A$3:$A$79=$A$2,ROW(Lageromsætning!$A$3:$A$79)-CELL("row",Lageromsætning!$A$3:$A$79)+1),ROWS($2:39))),"") ->  | E41: =IFERROR(INDEX(Lageromsætning!$AF$3:$AF$79,SMALL(IF(Lageromsætning!$A$3:$A$79=$A$2,ROW(Lageromsætning!$A$3:$A$79)-CELL("row",Lageromsætning!$A$3:$A$79)+1),ROWS($2:39))),"") ->  | F41: =SUMIFS('Lager antal'!$D$3:$D$2508,'Lager antal'!$B$3:$B$2508,B41,'Lager antal'!$C$3:$C$2508,C41) -> 0 | G41: =SUMIFS('Lager antal'!$F$3:$F$2508,'Lager antal'!$B$3:$B$2508,B41,'Lager antal'!$C$3:$C$2508,C41) -> 0 | H41: =IF(ISNA(VLOOKUP($C41,'Lager antal'!$C$3:$K$508,9,FALSE))=TRUE,"",VLOOKUP($C41,'Lager antal'!$C$3:$K$508,9,FALSE)) ->  | I41: =IFERROR(INDEX(Lageromsætning!$P$3:$P$79,SMALL(IF(Lageromsætning!$A$3:$A$79=$A$2,ROW(Lageromsætning!$A$3:$A$79)-CELL("row",Lageromsætning!$A$3:$A$79)+1),ROWS($2:39))),"") ->  | J41: =+_xlfn.IFS($M41>=0.01,$M41,TRUE,0)-$F41-K41+G41 -> 0 | K41: =SUMIFS('Lager antal'!$G$3:$G$2508,'Lager antal'!$B$3:$B$2508,B41,'Lager antal'!$C$3:$C$2508,C41) -> 0 | M41: 0 | N41: =SUMIFS(Lageromsætning!$R$3:$R$79,Lageromsætning!$A$3:$A$79,$A$2,Lageromsætning!$C$3:$C$79,B41,Lageromsætning!$D$3:$D$79,C41) -> 0 | O41: =SUMIFS(Lageromsætning!$S$3:$S$79,Lageromsætning!$C$3:$C$79,B41,Lageromsætning!$D$3:$D$79,C41) -> 0
A42: =IFERROR(INDEX(Lageromsætning!$A$3:$A$79,SMALL(IF(Lageromsætning!$A$3:$A$79=$A$2,ROW(Lageromsætning!$A$3:$A$79)-CELL("row",Lageromsætning!$A$3:$A$79)+1),ROWS($1:39))),"") ->  | B42: =IFERROR(INDEX(Lageromsætning!$C$3:$C$79,SMALL(IF(Lageromsætning!$A$3:$A$79=$A$2,ROW(Lageromsætning!$A$3:$A$79)-CELL("row",Lageromsætning!$A$3:$A$79)+1),ROWS($2:40))),"") ->  | C42: =IFERROR(INDEX(Lageromsætning!$D$3:$D$79,SMALL(IF(Lageromsætning!$A$3:$A$79=$A$2,ROW(Lageromsætning!$A$3:$A$79)-CELL("row",Lageromsætning!$A$3:$A$79)+1),ROWS($2:40))),"") ->  | D42: =IFERROR(INDEX(Lageromsætning!$E$3:$E$79,SMALL(IF(Lageromsætning!$A$3:$A$79=$A$2,ROW(Lageromsætning!$A$3:$A$79)-CELL("row",Lageromsætning!$A$3:$A$79)+1),ROWS($2:40))),"") ->  | E42: =IFERROR(INDEX(Lageromsætning!$AF$3:$AF$79,SMALL(IF(Lageromsætning!$A$3:$A$79=$A$2,ROW(Lageromsætning!$A$3:$A$79)-CELL("row",Lageromsætning!$A$3:$A$79)+1),ROWS($2:40))),"") ->  | F42: =SUMIFS('Lager antal'!$D$3:$D$2508,'Lager antal'!$B$3:$B$2508,B42,'Lager antal'!$C$3:$C$2508,C42) -> 0 | G42: =SUMIFS('Lager antal'!$F$3:$F$2508,'Lager antal'!$B$3:$B$2508,B42,'Lager antal'!$C$3:$C$2508,C42) -> 0 | H42: =IF(ISNA(VLOOKUP($C42,'Lager antal'!$C$3:$K$508,9,FALSE))=TRUE,"",VLOOKUP($C42,'Lager antal'!$C$3:$K$508,9,FALSE)) ->  | I42: =IFERROR(INDEX(Lageromsætning!$P$3:$P$79,SMALL(IF(Lageromsætning!$A$3:$A$79=$A$2,ROW(Lageromsætning!$A$3:$A$79)-CELL("row",Lageromsætning!$A$3:$A$79)+1),ROWS($2:40))),"") ->  | J42: =+_xlfn.IFS($M42>=0.01,$M42,TRUE,0)-$F42-K42+G42 -> 0 | K42: =SUMIFS('Lager antal'!$G$3:$G$2508,'Lager antal'!$B$3:$B$2508,B42,'Lager antal'!$C$3:$C$2508,C42) -> 0 | M42: 0 | N42: =SUMIFS(Lageromsætning!$R$3:$R$79,Lageromsætning!$A$3:$A$79,$A$2,Lageromsætning!$C$3:$C$79,B42,Lageromsætning!$D$3:$D$79,C42) -> 0 | O42: =SUMIFS(Lageromsætning!$S$3:$S$79,Lageromsætning!$C$3:$C$79,B42,Lageromsætning!$D$3:$D$79,C42) -> 0
A43: =IFERROR(INDEX(Lageromsætning!$A$3:$A$79,SMALL(IF(Lageromsætning!$A$3:$A$79=$A$2,ROW(Lageromsætning!$A$3:$A$79)-CELL("row",Lageromsætning!$A$3:$A$79)+1),ROWS($1:40))),"") ->  | B43: =IFERROR(INDEX(Lageromsætning!$C$3:$C$79,SMALL(IF(Lageromsætning!$A$3:$A$79=$A$2,ROW(Lageromsætning!$A$3:$A$79)-CELL("row",Lageromsætning!$A$3:$A$79)+1),ROWS($2:41))),"") ->  | C43: =IFERROR(INDEX(Lageromsætning!$D$3:$D$79,SMALL(IF(Lageromsætning!$A$3:$A$79=$A$2,ROW(Lageromsætning!$A$3:$A$79)-CELL("row",Lageromsætning!$A$3:$A$79)+1),ROWS($2:41))),"") ->  | D43: =IFERROR(INDEX(Lageromsætning!$E$3:$E$79,SMALL(IF(Lageromsætning!$A$3:$A$79=$A$2,ROW(Lageromsætning!$A$3:$A$79)-CELL("row",Lageromsætning!$A$3:$A$79)+1),ROWS($2:41))),"") ->  | E43: =IFERROR(INDEX(Lageromsætning!$AF$3:$AF$79,SMALL(IF(Lageromsætning!$A$3:$A$79=$A$2,ROW(Lageromsætning!$A$3:$A$79)-CELL("row",Lageromsætning!$A$3:$A$79)+1),ROWS($2:41))),"") ->  | F43: =SUMIFS('Lager antal'!$D$3:$D$2508,'Lager antal'!$B$3:$B$2508,B43,'Lager antal'!$C$3:$C$2508,C43) -> 0 | G43: =SUMIFS('Lager antal'!$F$3:$F$2508,'Lager antal'!$B$3:$B$2508,B43,'Lager antal'!$C$3:$C$2508,C43) -> 0 | H43: =IF(ISNA(VLOOKUP($C43,'Lager antal'!$C$3:$K$508,9,FALSE))=TRUE,"",VLOOKUP($C43,'Lager antal'!$C$3:$K$508,9,FALSE)) ->  | I43: =IFERROR(INDEX(Lageromsætning!$P$3:$P$79,SMALL(IF(Lageromsætning!$A$3:$A$79=$A$2,ROW(Lageromsætning!$A$3:$A$79)-CELL("row",Lageromsætning!$A$3:$A$79)+1),ROWS($2:41))),"") ->  | J43: =+_xlfn.IFS($M43>=0.01,$M43,TRUE,0)-$F43-K43+G43 -> 0 | K43: =SUMIFS('Lager antal'!$G$3:$G$2508,'Lager antal'!$B$3:$B$2508,B43,'Lager antal'!$C$3:$C$2508,C43) -> 0 | M43: 0 | N43: =SUMIFS(Lageromsætning!$R$3:$R$79,Lageromsætning!$A$3:$A$79,$A$2,Lageromsætning!$C$3:$C$79,B43,Lageromsætning!$D$3:$D$79,C43) -> 0 | O43: =SUMIFS(Lageromsætning!$S$3:$S$79,Lageromsætning!$C$3:$C$79,B43,Lageromsætning!$D$3:$D$79,C43) -> 0
A44: =IFERROR(INDEX(Lageromsætning!$A$3:$A$79,SMALL(IF(Lageromsætning!$A$3:$A$79=$A$2,ROW(Lageromsætning!$A$3:$A$79)-CELL("row",Lageromsætning!$A$3:$A$79)+1),ROWS($1:41))),"") ->  | B44: =IFERROR(INDEX(Lageromsætning!$C$3:$C$79,SMALL(IF(Lageromsætning!$A$3:$A$79=$A$2,ROW(Lageromsætning!$A$3:$A$79)-CELL("row",Lageromsætning!$A$3:$A$79)+1),ROWS($2:42))),"") ->  | C44: =IFERROR(INDEX(Lageromsætning!$D$3:$D$79,SMALL(IF(Lageromsætning!$A$3:$A$79=$A$2,ROW(Lageromsætning!$A$3:$A$79)-CELL("row",Lageromsætning!$A$3:$A$79)+1),ROWS($2:42))),"") ->  | D44: =IFERROR(INDEX(Lageromsætning!$E$3:$E$79,SMALL(IF(Lageromsætning!$A$3:$A$79=$A$2,ROW(Lageromsætning!$A$3:$A$79)-CELL("row",Lageromsætning!$A$3:$A$79)+1),ROWS($2:42))),"") ->  | E44: =IFERROR(INDEX(Lageromsætning!$AF$3:$AF$79,SMALL(IF(Lageromsætning!$A$3:$A$79=$A$2,ROW(Lageromsætning!$A$3:$A$79)-CELL("row",Lageromsætning!$A$3:$A$79)+1),ROWS($2:42))),"") ->  | F44: =SUMIFS('Lager antal'!$D$3:$D$2508,'Lager antal'!$B$3:$B$2508,B44,'Lager antal'!$C$3:$C$2508,C44) -> 0 | G44: =SUMIFS('Lager antal'!$F$3:$F$2508,'Lager antal'!$B$3:$B$2508,B44,'Lager antal'!$C$3:$C$2508,C44) -> 0 | H44: =IF(ISNA(VLOOKUP($C44,'Lager antal'!$C$3:$K$508,9,FALSE))=TRUE,"",VLOOKUP($C44,'Lager antal'!$C$3:$K$508,9,FALSE)) ->  | I44: =IFERROR(INDEX(Lageromsætning!$P$3:$P$79,SMALL(IF(Lageromsætning!$A$3:$A$79=$A$2,ROW(Lageromsætning!$A$3:$A$79)-CELL("row",Lageromsætning!$A$3:$A$79)+1),ROWS($2:42))),"") ->  | J44: =+_xlfn.IFS($M44>=0.01,$M44,TRUE,0)-$F44-K44+G44 -> 0 | K44: =SUMIFS('Lager antal'!$G$3:$G$2508,'Lager antal'!$B$3:$B$2508,B44,'Lager antal'!$C$3:$C$2508,C44) -> 0 | M44: 0 | N44: =SUMIFS(Lageromsætning!$R$3:$R$79,Lageromsætning!$A$3:$A$79,$A$2,Lageromsætning!$C$3:$C$79,B44,Lageromsætning!$D$3:$D$79,C44) -> 0 | O44: =SUMIFS(Lageromsætning!$S$3:$S$79,Lageromsætning!$C$3:$C$79,B44,Lageromsætning!$D$3:$D$79,C44) -> 0
A45: =IFERROR(INDEX(Lageromsætning!$A$3:$A$79,SMALL(IF(Lageromsætning!$A$3:$A$79=$A$2,ROW(Lageromsætning!$A$3:$A$79)-CELL("row",Lageromsætning!$A$3:$A$79)+1),ROWS($1:42))),"") ->  | B45: =IFERROR(INDEX(Lageromsætning!$C$3:$C$79,SMALL(IF(Lageromsætning!$A$3:$A$79=$A$2,ROW(Lageromsætning!$A$3:$A$79)-CELL("row",Lageromsætning!$A$3:$A$79)+1),ROWS($2:43))),"") ->  | C45: =IFERROR(INDEX(Lageromsætning!$D$3:$D$79,SMALL(IF(Lageromsætning!$A$3:$A$79=$A$2,ROW(Lageromsætning!$A$3:$A$79)-CELL("row",Lageromsætning!$A$3:$A$79)+1),ROWS($2:43))),"") ->  | D45: =IFERROR(INDEX(Lageromsætning!$E$3:$E$79,SMALL(IF(Lageromsætning!$A$3:$A$79=$A$2,ROW(Lageromsætning!$A$3:$A$79)-CELL("row",Lageromsætning!$A$3:$A$79)+1),ROWS($2:43))),"") ->  | E45: =IFERROR(INDEX(Lageromsætning!$AF$3:$AF$79,SMALL(IF(Lageromsætning!$A$3:$A$79=$A$2,ROW(Lageromsætning!$A$3:$A$79)-CELL("row",Lageromsætning!$A$3:$A$79)+1),ROWS($2:43))),"") ->  | F45: =SUMIFS('Lager antal'!$D$3:$D$2508,'Lager antal'!$B$3:$B$2508,B45,'Lager antal'!$C$3:$C$2508,C45) -> 0 | G45: =SUMIFS('Lager antal'!$F$3:$F$2508,'Lager antal'!$B$3:$B$2508,B45,'Lager antal'!$C$3:$C$2508,C45) -> 0 | H45: =IF(ISNA(VLOOKUP($C45,'Lager antal'!$C$3:$K$508,9,FALSE))=TRUE,"",VLOOKUP($C45,'Lager antal'!$C$3:$K$508,9,FALSE)) ->  | I45: =IFERROR(INDEX(Lageromsætning!$P$3:$P$79,SMALL(IF(Lageromsætning!$A$3:$A$79=$A$2,ROW(Lageromsætning!$A$3:$A$79)-CELL("row",Lageromsætning!$A$3:$A$79)+1),ROWS($2:43))),"") ->  | J45: =+_xlfn.IFS($M45>=0.01,$M45,TRUE,0)-$F45-K45+G45 -> 0 | K45: =SUMIFS('Lager antal'!$G$3:$G$2508,'Lager antal'!$B$3:$B$2508,B45,'Lager antal'!$C$3:$C$2508,C45) -> 0 | M45: 0 | N45: =SUMIFS(Lageromsætning!$R$3:$R$79,Lageromsætning!$A$3:$A$79,$A$2,Lageromsætning!$C$3:$C$79,B45,Lageromsætning!$D$3:$D$79,C45) -> 0 | O45: =SUMIFS(Lageromsætning!$S$3:$S$79,Lageromsætning!$C$3:$C$79,B45,Lageromsætning!$D$3:$D$79,C45) -> 0
A46: =IFERROR(INDEX(Lageromsætning!$A$3:$A$79,SMALL(IF(Lageromsætning!$A$3:$A$79=$A$2,ROW(Lageromsætning!$A$3:$A$79)-CELL("row",Lageromsætning!$A$3:$A$79)+1),ROWS($1:43))),"") ->  | B46: =IFERROR(INDEX(Lageromsætning!$C$3:$C$79,SMALL(IF(Lageromsætning!$A$3:$A$79=$A$2,ROW(Lageromsætning!$A$3:$A$79)-CELL("row",Lageromsætning!$A$3:$A$79)+1),ROWS($2:44))),"") ->  | C46: =IFERROR(INDEX(Lageromsætning!$D$3:$D$79,SMALL(IF(Lageromsætning!$A$3:$A$79=$A$2,ROW(Lageromsætning!$A$3:$A$79)-CELL("row",Lageromsætning!$A$3:$A$79)+1),ROWS($2:44))),"") ->  | D46: =IFERROR(INDEX(Lageromsætning!$E$3:$E$79,SMALL(IF(Lageromsætning!$A$3:$A$79=$A$2,ROW(Lageromsætning!$A$3:$A$79)-CELL("row",Lageromsætning!$A$3:$A$79)+1),ROWS($2:44))),"") ->  | E46: =IFERROR(INDEX(Lageromsætning!$AF$3:$AF$79,SMALL(IF(Lageromsætning!$A$3:$A$79=$A$2,ROW(Lageromsætning!$A$3:$A$79)-CELL("row",Lageromsætning!$A$3:$A$79)+1),ROWS($2:44))),"") ->  | F46: =SUMIFS('Lager antal'!$D$3:$D$2508,'Lager antal'!$B$3:$B$2508,B46,'Lager antal'!$C$3:$C$2508,C46) -> 0 | G46: =SUMIFS('Lager antal'!$F$3:$F$2508,'Lager antal'!$B$3:$B$2508,B46,'Lager antal'!$C$3:$C$2508,C46) -> 0 | H46: =IF(ISNA(VLOOKUP($C46,'Lager antal'!$C$3:$K$508,9,FALSE))=TRUE,"",VLOOKUP($C46,'Lager antal'!$C$3:$K$508,9,FALSE)) ->  | I46: =IFERROR(INDEX(Lageromsætning!$P$3:$P$79,SMALL(IF(Lageromsætning!$A$3:$A$79=$A$2,ROW(Lageromsætning!$A$3:$A$79)-CELL("row",Lageromsætning!$A$3:$A$79)+1),ROWS($2:44))),"") ->  | J46: =+_xlfn.IFS($M46>=0.01,$M46,TRUE,0)-$F46-K46+G46 -> 0 | K46: =SUMIFS('Lager antal'!$G$3:$G$2508,'Lager antal'!$B$3:$B$2508,B46,'Lager antal'!$C$3:$C$2508,C46) -> 0 | M46: 0 | N46: =SUMIFS(Lageromsætning!$R$3:$R$79,Lageromsætning!$A$3:$A$79,$A$2,Lageromsætning!$C$3:$C$79,B46,Lageromsætning!$D$3:$D$79,C46) -> 0 | O46: =SUMIFS(Lageromsætning!$S$3:$S$79,Lageromsætning!$C$3:$C$79,B46,Lageromsætning!$D$3:$D$79,C46) -> 0
A47: =IFERROR(INDEX(Lageromsætning!$A$3:$A$79,SMALL(IF(Lageromsætning!$A$3:$A$79=$A$2,ROW(Lageromsætning!$A$3:$A$79)-CELL("row",Lageromsætning!$A$3:$A$79)+1),ROWS($1:44))),"") ->  | B47: =IFERROR(INDEX(Lageromsætning!$C$3:$C$79,SMALL(IF(Lageromsætning!$A$3:$A$79=$A$2,ROW(Lageromsætning!$A$3:$A$79)-CELL("row",Lageromsætning!$A$3:$A$79)+1),ROWS($2:45))),"") ->  | C47: =IFERROR(INDEX(Lageromsætning!$D$3:$D$79,SMALL(IF(Lageromsætning!$A$3:$A$79=$A$2,ROW(Lageromsætning!$A$3:$A$79)-CELL("row",Lageromsætning!$A$3:$A$79)+1),ROWS($2:45))),"") ->  | D47: =IFERROR(INDEX(Lageromsætning!$E$3:$E$79,SMALL(IF(Lageromsætning!$A$3:$A$79=$A$2,ROW(Lageromsætning!$A$3:$A$79)-CELL("row",Lageromsætning!$A$3:$A$79)+1),ROWS($2:45))),"") ->  | E47: =IFERROR(INDEX(Lageromsætning!$AF$3:$AF$79,SMALL(IF(Lageromsætning!$A$3:$A$79=$A$2,ROW(Lageromsætning!$A$3:$A$79)-CELL("row",Lageromsætning!$A$3:$A$79)+1),ROWS($2:45))),"") ->  | F47: =SUMIFS('Lager antal'!$D$3:$D$2508,'Lager antal'!$B$3:$B$2508,B47,'Lager antal'!$C$3:$C$2508,C47) -> 0 | G47: =SUMIFS('Lager antal'!$F$3:$F$2508,'Lager antal'!$B$3:$B$2508,B47,'Lager antal'!$C$3:$C$2508,C47) -> 0 | H47: =IF(ISNA(VLOOKUP($C47,'Lager antal'!$C$3:$K$508,9,FALSE))=TRUE,"",VLOOKUP($C47,'Lager antal'!$C$3:$K$508,9,FALSE)) ->  | I47: =IFERROR(INDEX(Lageromsætning!$P$3:$P$79,SMALL(IF(Lageromsætning!$A$3:$A$79=$A$2,ROW(Lageromsætning!$A$3:$A$79)-CELL("row",Lageromsætning!$A$3:$A$79)+1),ROWS($2:45))),"") ->  | J47: =+_xlfn.IFS($M47>=0.01,$M47,TRUE,0)-$F47-K47+G47 -> 0 | K47: =SUMIFS('Lager antal'!$G$3:$G$2508,'Lager antal'!$B$3:$B$2508,B47,'Lager antal'!$C$3:$C$2508,C47) -> 0 | M47: 0 | N47: =SUMIFS(Lageromsætning!$R$3:$R$79,Lageromsætning!$A$3:$A$79,$A$2,Lageromsætning!$C$3:$C$79,B47,Lageromsætning!$D$3:$D$79,C47) -> 0 | O47: =SUMIFS(Lageromsætning!$S$3:$S$79,Lageromsætning!$C$3:$C$79,B47,Lageromsætning!$D$3:$D$79,C47) -> 0
A48: =IFERROR(INDEX(Lageromsætning!$A$3:$A$79,SMALL(IF(Lageromsætning!$A$3:$A$79=$A$2,ROW(Lageromsætning!$A$3:$A$79)-CELL("row",Lageromsætning!$A$3:$A$79)+1),ROWS($1:45))),"") ->  | B48: =IFERROR(INDEX(Lageromsætning!$C$3:$C$79,SMALL(IF(Lageromsætning!$A$3:$A$79=$A$2,ROW(Lageromsætning!$A$3:$A$79)-CELL("row",Lageromsætning!$A$3:$A$79)+1),ROWS($2:46))),"") ->  | C48: =IFERROR(INDEX(Lageromsætning!$D$3:$D$79,SMALL(IF(Lageromsætning!$A$3:$A$79=$A$2,ROW(Lageromsætning!$A$3:$A$79)-CELL("row",Lageromsætning!$A$3:$A$79)+1),ROWS($2:46))),"") ->  | D48: =IFERROR(INDEX(Lageromsætning!$E$3:$E$79,SMALL(IF(Lageromsætning!$A$3:$A$79=$A$2,ROW(Lageromsætning!$A$3:$A$79)-CELL("row",Lageromsætning!$A$3:$A$79)+1),ROWS($2:46))),"") ->  | E48: =IFERROR(INDEX(Lageromsætning!$AF$3:$AF$79,SMALL(IF(Lageromsætning!$A$3:$A$79=$A$2,ROW(Lageromsætning!$A$3:$A$79)-CELL("row",Lageromsætning!$A$3:$A$79)+1),ROWS($2:46))),"") ->  | F48: =SUMIFS('Lager antal'!$D$3:$D$2508,'Lager antal'!$B$3:$B$2508,B48,'Lager antal'!$C$3:$C$2508,C48) -> 0 | G48: =SUMIFS('Lager antal'!$F$3:$F$2508,'Lager antal'!$B$3:$B$2508,B48,'Lager antal'!$C$3:$C$2508,C48) -> 0 | H48: =IF(ISNA(VLOOKUP($C48,'Lager antal'!$C$3:$K$508,9,FALSE))=TRUE,"",VLOOKUP($C48,'Lager antal'!$C$3:$K$508,9,FALSE)) ->  | I48: =IFERROR(INDEX(Lageromsætning!$P$3:$P$79,SMALL(IF(Lageromsætning!$A$3:$A$79=$A$2,ROW(Lageromsætning!$A$3:$A$79)-CELL("row",Lageromsætning!$A$3:$A$79)+1),ROWS($2:46))),"") ->  | J48: =+_xlfn.IFS($M48>=0.01,$M48,TRUE,0)-$F48-K48+G48 -> 0 | K48: =SUMIFS('Lager antal'!$G$3:$G$2508,'Lager antal'!$B$3:$B$2508,B48,'Lager antal'!$C$3:$C$2508,C48) -> 0 | M48: 0 | N48: =SUMIFS(Lageromsætning!$R$3:$R$79,Lageromsætning!$A$3:$A$79,$A$2,Lageromsætning!$C$3:$C$79,B48,Lageromsætning!$D$3:$D$79,C48) -> 0 | O48: =SUMIFS(Lageromsætning!$S$3:$S$79,Lageromsætning!$C$3:$C$79,B48,Lageromsætning!$D$3:$D$79,C48) -> 0
A49: =IFERROR(INDEX(Lageromsætning!$A$3:$A$79,SMALL(IF(Lageromsætning!$A$3:$A$79=$A$2,ROW(Lageromsætning!$A$3:$A$79)-CELL("row",Lageromsætning!$A$3:$A$79)+1),ROWS($1:46))),"") ->  | B49: =IFERROR(INDEX(Lageromsætning!$C$3:$C$79,SMALL(IF(Lageromsætning!$A$3:$A$79=$A$2,ROW(Lageromsætning!$A$3:$A$79)-CELL("row",Lageromsætning!$A$3:$A$79)+1),ROWS($2:47))),"") ->  | C49: =IFERROR(INDEX(Lageromsætning!$D$3:$D$79,SMALL(IF(Lageromsætning!$A$3:$A$79=$A$2,ROW(Lageromsætning!$A$3:$A$79)-CELL("row",Lageromsætning!$A$3:$A$79)+1),ROWS($2:47))),"") ->  | D49: =IFERROR(INDEX(Lageromsætning!$E$3:$E$79,SMALL(IF(Lageromsætning!$A$3:$A$79=$A$2,ROW(Lageromsætning!$A$3:$A$79)-CELL("row",Lageromsætning!$A$3:$A$79)+1),ROWS($2:47))),"") ->  | E49: =IFERROR(INDEX(Lageromsætning!$AF$3:$AF$79,SMALL(IF(Lageromsætning!$A$3:$A$79=$A$2,ROW(Lageromsætning!$A$3:$A$79)-CELL("row",Lageromsætning!$A$3:$A$79)+1),ROWS($2:47))),"") ->  | F49: =SUMIFS('Lager antal'!$D$3:$D$2508,'Lager antal'!$B$3:$B$2508,B49,'Lager antal'!$C$3:$C$2508,C49) -> 0 | G49: =SUMIFS('Lager antal'!$F$3:$F$2508,'Lager antal'!$B$3:$B$2508,B49,'Lager antal'!$C$3:$C$2508,C49) -> 0 | H49: =IF(ISNA(VLOOKUP($C49,'Lager antal'!$C$3:$K$508,9,FALSE))=TRUE,"",VLOOKUP($C49,'Lager antal'!$C$3:$K$508,9,FALSE)) ->  | I49: =IFERROR(INDEX(Lageromsætning!$P$3:$P$79,SMALL(IF(Lageromsætning!$A$3:$A$79=$A$2,ROW(Lageromsætning!$A$3:$A$79)-CELL("row",Lageromsætning!$A$3:$A$79)+1),ROWS($2:47))),"") ->  | J49: =+_xlfn.IFS($M49>=0.01,$M49,TRUE,0)-$F49-K49+G49 -> 0 | K49: =SUMIFS('Lager antal'!$G$3:$G$2508,'Lager antal'!$B$3:$B$2508,B49,'Lager antal'!$C$3:$C$2508,C49) -> 0 | M49: 0 | N49: =SUMIFS(Lageromsætning!$R$3:$R$79,Lageromsætning!$A$3:$A$79,$A$2,Lageromsætning!$C$3:$C$79,B49,Lageromsætning!$D$3:$D$79,C49) -> 0 | O49: =SUMIFS(Lageromsætning!$S$3:$S$79,Lageromsætning!$C$3:$C$79,B49,Lageromsætning!$D$3:$D$79,C49) -> 0
A50: =IFERROR(INDEX(Lageromsætning!$A$3:$A$79,SMALL(IF(Lageromsætning!$A$3:$A$79=$A$2,ROW(Lageromsætning!$A$3:$A$79)-CELL("row",Lageromsætning!$A$3:$A$79)+1),ROWS($1:47))),"") ->  | B50: =IFERROR(INDEX(Lageromsætning!$C$3:$C$79,SMALL(IF(Lageromsætning!$A$3:$A$79=$A$2,ROW(Lageromsætning!$A$3:$A$79)-CELL("row",Lageromsætning!$A$3:$A$79)+1),ROWS($2:48))),"") ->  | C50: =IFERROR(INDEX(Lageromsætning!$D$3:$D$79,SMALL(IF(Lageromsætning!$A$3:$A$79=$A$2,ROW(Lageromsætning!$A$3:$A$79)-CELL("row",Lageromsætning!$A$3:$A$79)+1),ROWS($2:48))),"") ->  | D50: =IFERROR(INDEX(Lageromsætning!$E$3:$E$79,SMALL(IF(Lageromsætning!$A$3:$A$79=$A$2,ROW(Lageromsætning!$A$3:$A$79)-CELL("row",Lageromsætning!$A$3:$A$79)+1),ROWS($2:48))),"") ->  | E50: =IFERROR(INDEX(Lageromsætning!$AF$3:$AF$79,SMALL(IF(Lageromsætning!$A$3:$A$79=$A$2,ROW(Lageromsætning!$A$3:$A$79)-CELL("row",Lageromsætning!$A$3:$A$79)+1),ROWS($2:48))),"") ->  | F50: =SUMIFS('Lager antal'!$D$3:$D$2508,'Lager antal'!$B$3:$B$2508,B50,'Lager antal'!$C$3:$C$2508,C50) -> 0 | G50: =SUMIFS('Lager antal'!$F$3:$F$2508,'Lager antal'!$B$3:$B$2508,B50,'Lager antal'!$C$3:$C$2508,C50) -> 0 | H50: =IF(ISNA(VLOOKUP($C50,'Lager antal'!$C$3:$K$508,9,FALSE))=TRUE,"",VLOOKUP($C50,'Lager antal'!$C$3:$K$508,9,FALSE)) ->  | I50: =IFERROR(INDEX(Lageromsætning!$P$3:$P$79,SMALL(IF(Lageromsætning!$A$3:$A$79=$A$2,ROW(Lageromsætning!$A$3:$A$79)-CELL("row",Lageromsætning!$A$3:$A$79)+1),ROWS($2:48))),"") ->  | J50: =+_xlfn.IFS($M50>=0.01,$M50,TRUE,0)-$F50-K50+G50 -> 0 | K50: =SUMIFS('Lager antal'!$G$3:$G$2508,'Lager antal'!$B$3:$B$2508,B50,'Lager antal'!$C$3:$C$2508,C50) -> 0 | M50: 0 | N50: =SUMIFS(Lageromsætning!$R$3:$R$79,Lageromsætning!$A$3:$A$79,$A$2,Lageromsætning!$C$3:$C$79,B50,Lageromsætning!$D$3:$D$79,C50) -> 0 | O50: =SUMIFS(Lageromsætning!$S$3:$S$79,Lageromsætning!$C$3:$C$79,B50,Lageromsætning!$D$3:$D$79,C50) -> 0
A51: =IFERROR(INDEX(Lageromsætning!$A$3:$A$79,SMALL(IF(Lageromsætning!$A$3:$A$79=$A$2,ROW(Lageromsætning!$A$3:$A$79)-CELL("row",Lageromsætning!$A$3:$A$79)+1),ROWS($1:48))),"") ->  | B51: =IFERROR(INDEX(Lageromsætning!$C$3:$C$79,SMALL(IF(Lageromsætning!$A$3:$A$79=$A$2,ROW(Lageromsætning!$A$3:$A$79)-CELL("row",Lageromsætning!$A$3:$A$79)+1),ROWS($2:49))),"") ->  | C51: =IFERROR(INDEX(Lageromsætning!$D$3:$D$79,SMALL(IF(Lageromsætning!$A$3:$A$79=$A$2,ROW(Lageromsætning!$A$3:$A$79)-CELL("row",Lageromsætning!$A$3:$A$79)+1),ROWS($2:49))),"") ->  | D51: =IFERROR(INDEX(Lageromsætning!$E$3:$E$79,SMALL(IF(Lageromsætning!$A$3:$A$79=$A$2,ROW(Lageromsætning!$A$3:$A$79)-CELL("row",Lageromsætning!$A$3:$A$79)+1),ROWS($2:49))),"") ->  | E51: =IFERROR(INDEX(Lageromsætning!$AF$3:$AF$79,SMALL(IF(Lageromsætning!$A$3:$A$79=$A$2,ROW(Lageromsætning!$A$3:$A$79)-CELL("row",Lageromsætning!$A$3:$A$79)+1),ROWS($2:49))),"") ->  | F51: =SUMIFS('Lager antal'!$D$3:$D$2508,'Lager antal'!$B$3:$B$2508,B51,'Lager antal'!$C$3:$C$2508,C51) -> 0 | G51: =SUMIFS('Lager antal'!$F$3:$F$2508,'Lager antal'!$B$3:$B$2508,B51,'Lager antal'!$C$3:$C$2508,C51) -> 0 | H51: =IF(ISNA(VLOOKUP($C51,'Lager antal'!$C$3:$K$508,9,FALSE))=TRUE,"",VLOOKUP($C51,'Lager antal'!$C$3:$K$508,9,FALSE)) ->  | I51: =IFERROR(INDEX(Lageromsætning!$P$3:$P$79,SMALL(IF(Lageromsætning!$A$3:$A$79=$A$2,ROW(Lageromsætning!$A$3:$A$79)-CELL("row",Lageromsætning!$A$3:$A$79)+1),ROWS($2:49))),"") ->  | J51: =+_xlfn.IFS($M51>=0.01,$M51,TRUE,0)-$F51-K51+G51 -> 0 | K51: =SUMIFS('Lager antal'!$G$3:$G$2508,'Lager antal'!$B$3:$B$2508,B51,'Lager antal'!$C$3:$C$2508,C51) -> 0 | M51: 0 | N51: =SUMIFS(Lageromsætning!$R$3:$R$79,Lageromsætning!$A$3:$A$79,$A$2,Lageromsætning!$C$3:$C$79,B51,Lageromsætning!$D$3:$D$79,C51) -> 0 | O51: =SUMIFS(Lageromsætning!$S$3:$S$79,Lageromsætning!$C$3:$C$79,B51,Lageromsætning!$D$3:$D$79,C51) -> 0
A52: =IFERROR(INDEX(Lageromsætning!$A$3:$A$79,SMALL(IF(Lageromsætning!$A$3:$A$79=$A$2,ROW(Lageromsætning!$A$3:$A$79)-CELL("row",Lageromsætning!$A$3:$A$79)+1),ROWS($1:49))),"") ->  | B52: =IFERROR(INDEX(Lageromsætning!$C$3:$C$79,SMALL(IF(Lageromsætning!$A$3:$A$79=$A$2,ROW(Lageromsætning!$A$3:$A$79)-CELL("row",Lageromsætning!$A$3:$A$79)+1),ROWS($2:50))),"") ->  | C52: =IFERROR(INDEX(Lageromsætning!$D$3:$D$79,SMALL(IF(Lageromsætning!$A$3:$A$79=$A$2,ROW(Lageromsætning!$A$3:$A$79)-CELL("row",Lageromsætning!$A$3:$A$79)+1),ROWS($2:50))),"") ->  | D52: =IFERROR(INDEX(Lageromsætning!$E$3:$E$79,SMALL(IF(Lageromsætning!$A$3:$A$79=$A$2,ROW(Lageromsætning!$A$3:$A$79)-CELL("row",Lageromsætning!$A$3:$A$79)+1),ROWS($2:50))),"") ->  | E52: =IFERROR(INDEX(Lageromsætning!$AF$3:$AF$79,SMALL(IF(Lageromsætning!$A$3:$A$79=$A$2,ROW(Lageromsætning!$A$3:$A$79)-CELL("row",Lageromsætning!$A$3:$A$79)+1),ROWS($2:50))),"") ->  | F52: =SUMIFS('Lager antal'!$D$3:$D$2508,'Lager antal'!$B$3:$B$2508,B52,'Lager antal'!$C$3:$C$2508,C52) -> 0 | G52: =SUMIFS('Lager antal'!$F$3:$F$2508,'Lager antal'!$B$3:$B$2508,B52,'Lager antal'!$C$3:$C$2508,C52) -> 0 | H52: =IF(ISNA(VLOOKUP($C52,'Lager antal'!$C$3:$K$508,9,FALSE))=TRUE,"",VLOOKUP($C52,'Lager antal'!$C$3:$K$508,9,FALSE)) ->  | I52: =IFERROR(INDEX(Lageromsætning!$P$3:$P$79,SMALL(IF(Lageromsætning!$A$3:$A$79=$A$2,ROW(Lageromsætning!$A$3:$A$79)-CELL("row",Lageromsætning!$A$3:$A$79)+1),ROWS($2:50))),"") ->  | J52: =+_xlfn.IFS($M52>=0.01,$M52,TRUE,0)-$F52-K52+G52 -> 0 | K52: =SUMIFS('Lager antal'!$G$3:$G$2508,'Lager antal'!$B$3:$B$2508,B52,'Lager antal'!$C$3:$C$2508,C52) -> 0 | M52: 0 | N52: =SUMIFS(Lageromsætning!$R$3:$R$79,Lageromsætning!$A$3:$A$79,$A$2,Lageromsætning!$C$3:$C$79,B52,Lageromsætning!$D$3:$D$79,C52) -> 0 | O52: =SUMIFS(Lageromsætning!$S$3:$S$79,Lageromsætning!$C$3:$C$79,B52,Lageromsætning!$D$3:$D$79,C52) -> 0
A53: =IFERROR(INDEX(Lageromsætning!$A$3:$A$79,SMALL(IF(Lageromsætning!$A$3:$A$79=$A$2,ROW(Lageromsætning!$A$3:$A$79)-CELL("row",Lageromsætning!$A$3:$A$79)+1),ROWS($1:50))),"") ->  | B53: =IFERROR(INDEX(Lageromsætning!$C$3:$C$79,SMALL(IF(Lageromsætning!$A$3:$A$79=$A$2,ROW(Lageromsætning!$A$3:$A$79)-CELL("row",Lageromsætning!$A$3:$A$79)+1),ROWS($2:51))),"") ->  | C53: =IFERROR(INDEX(Lageromsætning!$D$3:$D$79,SMALL(IF(Lageromsætning!$A$3:$A$79=$A$2,ROW(Lageromsætning!$A$3:$A$79)-CELL("row",Lageromsætning!$A$3:$A$79)+1),ROWS($2:51))),"") ->  | D53: =IFERROR(INDEX(Lageromsætning!$E$3:$E$79,SMALL(IF(Lageromsætning!$A$3:$A$79=$A$2,ROW(Lageromsætning!$A$3:$A$79)-CELL("row",Lageromsætning!$A$3:$A$79)+1),ROWS($2:51))),"") ->  | E53: =IFERROR(INDEX(Lageromsætning!$AF$3:$AF$79,SMALL(IF(Lageromsætning!$A$3:$A$79=$A$2,ROW(Lageromsætning!$A$3:$A$79)-CELL("row",Lageromsætning!$A$3:$A$79)+1),ROWS($2:51))),"") ->  | F53: =SUMIFS('Lager antal'!$D$3:$D$2508,'Lager antal'!$B$3:$B$2508,B53,'Lager antal'!$C$3:$C$2508,C53) -> 0 | G53: =SUMIFS('Lager antal'!$F$3:$F$2508,'Lager antal'!$B$3:$B$2508,B53,'Lager antal'!$C$3:$C$2508,C53) -> 0 | H53: =IF(ISNA(VLOOKUP($C53,'Lager antal'!$C$3:$K$508,9,FALSE))=TRUE,"",VLOOKUP($C53,'Lager antal'!$C$3:$K$508,9,FALSE)) ->  | I53: =IFERROR(INDEX(Lageromsætning!$P$3:$P$79,SMALL(IF(Lageromsætning!$A$3:$A$79=$A$2,ROW(Lageromsætning!$A$3:$A$79)-CELL("row",Lageromsætning!$A$3:$A$79)+1),ROWS($2:51))),"") ->  | J53: =+_xlfn.IFS($M53>=0.01,$M53,TRUE,0)-$F53-K53+G53 -> 0 | K53: =SUMIFS('Lager antal'!$G$3:$G$2508,'Lager antal'!$B$3:$B$2508,B53,'Lager antal'!$C$3:$C$2508,C53) -> 0 | M53: 0 | N53: =SUMIFS(Lageromsætning!$R$3:$R$79,Lageromsætning!$A$3:$A$79,$A$2,Lageromsætning!$C$3:$C$79,B53,Lageromsætning!$D$3:$D$79,C53) -> 0 | O53: =SUMIFS(Lageromsætning!$S$3:$S$79,Lageromsætning!$C$3:$C$79,B53,Lageromsætning!$D$3:$D$79,C53) -> 0
A54: =IFERROR(INDEX(Lageromsætning!$A$3:$A$79,SMALL(IF(Lageromsætning!$A$3:$A$79=$A$2,ROW(Lageromsætning!$A$3:$A$79)-CELL("row",Lageromsætning!$A$3:$A$79)+1),ROWS($1:51))),"") ->  | B54: =IFERROR(INDEX(Lageromsætning!$C$3:$C$79,SMALL(IF(Lageromsætning!$A$3:$A$79=$A$2,ROW(Lageromsætning!$A$3:$A$79)-CELL("row",Lageromsætning!$A$3:$A$79)+1),ROWS($2:52))),"") ->  | C54: =IFERROR(INDEX(Lageromsætning!$D$3:$D$79,SMALL(IF(Lageromsætning!$A$3:$A$79=$A$2,ROW(Lageromsætning!$A$3:$A$79)-CELL("row",Lageromsætning!$A$3:$A$79)+1),ROWS($2:52))),"") ->  | D54: =IFERROR(INDEX(Lageromsætning!$E$3:$E$79,SMALL(IF(Lageromsætning!$A$3:$A$79=$A$2,ROW(Lageromsætning!$A$3:$A$79)-CELL("row",Lageromsætning!$A$3:$A$79)+1),ROWS($2:52))),"") ->  | E54: =IFERROR(INDEX(Lageromsætning!$AF$3:$AF$79,SMALL(IF(Lageromsætning!$A$3:$A$79=$A$2,ROW(Lageromsætning!$A$3:$A$79)-CELL("row",Lageromsætning!$A$3:$A$79)+1),ROWS($2:52))),"") ->  | F54: =SUMIFS('Lager antal'!$D$3:$D$2508,'Lager antal'!$B$3:$B$2508,B54,'Lager antal'!$C$3:$C$2508,C54) -> 0 | G54: =SUMIFS('Lager antal'!$F$3:$F$2508,'Lager antal'!$B$3:$B$2508,B54,'Lager antal'!$C$3:$C$2508,C54) -> 0 | H54: =IF(ISNA(VLOOKUP($C54,'Lager antal'!$C$3:$K$508,9,FALSE))=TRUE,"",VLOOKUP($C54,'Lager antal'!$C$3:$K$508,9,FALSE)) ->  | I54: =IFERROR(INDEX(Lageromsætning!$P$3:$P$79,SMALL(IF(Lageromsætning!$A$3:$A$79=$A$2,ROW(Lageromsætning!$A$3:$A$79)-CELL("row",Lageromsætning!$A$3:$A$79)+1),ROWS($2:52))),"") ->  | J54: =+_xlfn.IFS($M54>=0.01,$M54,TRUE,0)-$F54-K54+G54 -> 0 | K54: =SUMIFS('Lager antal'!$G$3:$G$2508,'Lager antal'!$B$3:$B$2508,B54,'Lager antal'!$C$3:$C$2508,C54) -> 0 | M54: 0 | N54: =SUMIFS(Lageromsætning!$R$3:$R$79,Lageromsætning!$A$3:$A$79,$A$2,Lageromsætning!$C$3:$C$79,B54,Lageromsætning!$D$3:$D$79,C54) -> 0 | O54: =SUMIFS(Lageromsætning!$S$3:$S$79,Lageromsætning!$C$3:$C$79,B54,Lageromsætning!$D$3:$D$79,C54) -> 0
A55: =IFERROR(INDEX(Lageromsætning!$A$3:$A$79,SMALL(IF(Lageromsætning!$A$3:$A$79=$A$2,ROW(Lageromsætning!$A$3:$A$79)-CELL("row",Lageromsætning!$A$3:$A$79)+1),ROWS($1:52))),"") ->  | B55: =IFERROR(INDEX(Lageromsætning!$C$3:$C$79,SMALL(IF(Lageromsætning!$A$3:$A$79=$A$2,ROW(Lageromsætning!$A$3:$A$79)-CELL("row",Lageromsætning!$A$3:$A$79)+1),ROWS($2:53))),"") ->  | C55: =IFERROR(INDEX(Lageromsætning!$D$3:$D$79,SMALL(IF(Lageromsætning!$A$3:$A$79=$A$2,ROW(Lageromsætning!$A$3:$A$79)-CELL("row",Lageromsætning!$A$3:$A$79)+1),ROWS($2:53))),"") ->  | D55: =IFERROR(INDEX(Lageromsætning!$E$3:$E$79,SMALL(IF(Lageromsætning!$A$3:$A$79=$A$2,ROW(Lageromsætning!$A$3:$A$79)-CELL("row",Lageromsætning!$A$3:$A$79)+1),ROWS($2:53))),"") ->  | E55: =IFERROR(INDEX(Lageromsætning!$AF$3:$AF$79,SMALL(IF(Lageromsætning!$A$3:$A$79=$A$2,ROW(Lageromsætning!$A$3:$A$79)-CELL("row",Lageromsætning!$A$3:$A$79)+1),ROWS($2:53))),"") ->  | F55: =SUMIFS('Lager antal'!$D$3:$D$2508,'Lager antal'!$B$3:$B$2508,B55,'Lager antal'!$C$3:$C$2508,C55) -> 0 | G55: =SUMIFS('Lager antal'!$F$3:$F$2508,'Lager antal'!$B$3:$B$2508,B55,'Lager antal'!$C$3:$C$2508,C55) -> 0 | H55: =IF(ISNA(VLOOKUP($C55,'Lager antal'!$C$3:$K$508,9,FALSE))=TRUE,"",VLOOKUP($C55,'Lager antal'!$C$3:$K$508,9,FALSE)) ->  | I55: =IFERROR(INDEX(Lageromsætning!$P$3:$P$79,SMALL(IF(Lageromsætning!$A$3:$A$79=$A$2,ROW(Lageromsætning!$A$3:$A$79)-CELL("row",Lageromsætning!$A$3:$A$79)+1),ROWS($2:53))),"") ->  | J55: =+_xlfn.IFS($M55>=0.01,$M55,TRUE,0)-$F55-K55+G55 -> 0 | K55: =SUMIFS('Lager antal'!$G$3:$G$2508,'Lager antal'!$B$3:$B$2508,B55,'Lager antal'!$C$3:$C$2508,C55) -> 0 | M55: 0 | N55: =SUMIFS(Lageromsætning!$R$3:$R$79,Lageromsætning!$A$3:$A$79,$A$2,Lageromsætning!$C$3:$C$79,B55,Lageromsætning!$D$3:$D$79,C55) -> 0 | O55: =SUMIFS(Lageromsætning!$S$3:$S$79,Lageromsætning!$C$3:$C$79,B55,Lageromsætning!$D$3:$D$79,C55) -> 0
A56: =IFERROR(INDEX(Lageromsætning!$A$3:$A$79,SMALL(IF(Lageromsætning!$A$3:$A$79=$A$2,ROW(Lageromsætning!$A$3:$A$79)-CELL("row",Lageromsætning!$A$3:$A$79)+1),ROWS($1:53))),"") ->  | B56: =IFERROR(INDEX(Lageromsætning!$C$3:$C$79,SMALL(IF(Lageromsætning!$A$3:$A$79=$A$2,ROW(Lageromsætning!$A$3:$A$79)-CELL("row",Lageromsætning!$A$3:$A$79)+1),ROWS($2:54))),"") ->  | C56: =IFERROR(INDEX(Lageromsætning!$D$3:$D$79,SMALL(IF(Lageromsætning!$A$3:$A$79=$A$2,ROW(Lageromsætning!$A$3:$A$79)-CELL("row",Lageromsætning!$A$3:$A$79)+1),ROWS($2:54))),"") ->  | D56: =IFERROR(INDEX(Lageromsætning!$E$3:$E$79,SMALL(IF(Lageromsætning!$A$3:$A$79=$A$2,ROW(Lageromsætning!$A$3:$A$79)-CELL("row",Lageromsætning!$A$3:$A$79)+1),ROWS($2:54))),"") ->  | E56: =IFERROR(INDEX(Lageromsætning!$AF$3:$AF$79,SMALL(IF(Lageromsætning!$A$3:$A$79=$A$2,ROW(Lageromsætning!$A$3:$A$79)-CELL("row",Lageromsætning!$A$3:$A$79)+1),ROWS($2:54))),"") ->  | F56: =SUMIFS('Lager antal'!$D$3:$D$2508,'Lager antal'!$B$3:$B$2508,B56,'Lager antal'!$C$3:$C$2508,C56) -> 0 | G56: =SUMIFS('Lager antal'!$F$3:$F$2508,'Lager antal'!$B$3:$B$2508,B56,'Lager antal'!$C$3:$C$2508,C56) -> 0 | H56: =IF(ISNA(VLOOKUP($C56,'Lager antal'!$C$3:$K$508,9,FALSE))=TRUE,"",VLOOKUP($C56,'Lager antal'!$C$3:$K$508,9,FALSE)) ->  | I56: =IFERROR(INDEX(Lageromsætning!$P$3:$P$79,SMALL(IF(Lageromsætning!$A$3:$A$79=$A$2,ROW(Lageromsætning!$A$3:$A$79)-CELL("row",Lageromsætning!$A$3:$A$79)+1),ROWS($2:54))),"") ->  | J56: =+_xlfn.IFS($M56>=0.01,$M56,TRUE,0)-$F56-K56+G56 -> 0 | K56: =SUMIFS('Lager antal'!$G$3:$G$2508,'Lager antal'!$B$3:$B$2508,B56,'Lager antal'!$C$3:$C$2508,C56) -> 0 | M56: 0 | N56: =SUMIFS(Lageromsætning!$R$3:$R$79,Lageromsætning!$A$3:$A$79,$A$2,Lageromsætning!$C$3:$C$79,B56,Lageromsætning!$D$3:$D$79,C56) -> 0 | O56: =SUMIFS(Lageromsætning!$S$3:$S$79,Lageromsætning!$C$3:$C$79,B56,Lageromsætning!$D$3:$D$79,C56) -> 0
A57: =IFERROR(INDEX(Lageromsætning!$A$3:$A$79,SMALL(IF(Lageromsætning!$A$3:$A$79=$A$2,ROW(Lageromsætning!$A$3:$A$79)-CELL("row",Lageromsætning!$A$3:$A$79)+1),ROWS($1:54))),"") ->  | B57: =IFERROR(INDEX(Lageromsætning!$C$3:$C$79,SMALL(IF(Lageromsætning!$A$3:$A$79=$A$2,ROW(Lageromsætning!$A$3:$A$79)-CELL("row",Lageromsætning!$A$3:$A$79)+1),ROWS($2:55))),"") ->  | C57: =IFERROR(INDEX(Lageromsætning!$D$3:$D$79,SMALL(IF(Lageromsætning!$A$3:$A$79=$A$2,ROW(Lageromsætning!$A$3:$A$79)-CELL("row",Lageromsætning!$A$3:$A$79)+1),ROWS($2:55))),"") ->  | D57: =IFERROR(INDEX(Lageromsætning!$E$3:$E$79,SMALL(IF(Lageromsætning!$A$3:$A$79=$A$2,ROW(Lageromsætning!$A$3:$A$79)-CELL("row",Lageromsætning!$A$3:$A$79)+1),ROWS($2:55))),"") ->  | E57: =IFERROR(INDEX(Lageromsætning!$AF$3:$AF$79,SMALL(IF(Lageromsætning!$A$3:$A$79=$A$2,ROW(Lageromsætning!$A$3:$A$79)-CELL("row",Lageromsætning!$A$3:$A$79)+1),ROWS($2:55))),"") ->  | F57: =SUMIFS('Lager antal'!$D$3:$D$2508,'Lager antal'!$B$3:$B$2508,B57,'Lager antal'!$C$3:$C$2508,C57) -> 0 | G57: =SUMIFS('Lager antal'!$F$3:$F$2508,'Lager antal'!$B$3:$B$2508,B57,'Lager antal'!$C$3:$C$2508,C57) -> 0 | H57: =IF(ISNA(VLOOKUP($C57,'Lager antal'!$C$3:$K$508,9,FALSE))=TRUE,"",VLOOKUP($C57,'Lager antal'!$C$3:$K$508,9,FALSE)) ->  | I57: =IFERROR(INDEX(Lageromsætning!$P$3:$P$79,SMALL(IF(Lageromsætning!$A$3:$A$79=$A$2,ROW(Lageromsætning!$A$3:$A$79)-CELL("row",Lageromsætning!$A$3:$A$79)+1),ROWS($2:55))),"") ->  | J57: =+_xlfn.IFS($M57>=0.01,$M57,TRUE,0)-$F57-K57+G57 -> 0 | K57: =SUMIFS('Lager antal'!$G$3:$G$2508,'Lager antal'!$B$3:$B$2508,B57,'Lager antal'!$C$3:$C$2508,C57) -> 0 | M57: 0 | N57: =SUMIFS(Lageromsætning!$R$3:$R$79,Lageromsætning!$A$3:$A$79,$A$2,Lageromsætning!$C$3:$C$79,B57,Lageromsætning!$D$3:$D$79,C57) -> 0 | O57: =SUMIFS(Lageromsætning!$S$3:$S$79,Lageromsætning!$C$3:$C$79,B57,Lageromsætning!$D$3:$D$79,C57) -> 0
A58: =IFERROR(INDEX(Lageromsætning!$A$3:$A$79,SMALL(IF(Lageromsætning!$A$3:$A$79=$A$2,ROW(Lageromsætning!$A$3:$A$79)-CELL("row",Lageromsætning!$A$3:$A$79)+1),ROWS($1:55))),"") ->  | B58: =IFERROR(INDEX(Lageromsætning!$C$3:$C$79,SMALL(IF(Lageromsætning!$A$3:$A$79=$A$2,ROW(Lageromsætning!$A$3:$A$79)-CELL("row",Lageromsætning!$A$3:$A$79)+1),ROWS($2:56))),"") ->  | C58: =IFERROR(INDEX(Lageromsætning!$D$3:$D$79,SMALL(IF(Lageromsætning!$A$3:$A$79=$A$2,ROW(Lageromsætning!$A$3:$A$79)-CELL("row",Lageromsætning!$A$3:$A$79)+1),ROWS($2:56))),"") ->  | D58: =IFERROR(INDEX(Lageromsætning!$E$3:$E$79,SMALL(IF(Lageromsætning!$A$3:$A$79=$A$2,ROW(Lageromsætning!$A$3:$A$79)-CELL("row",Lageromsætning!$A$3:$A$79)+1),ROWS($2:56))),"") ->  | E58: =IFERROR(INDEX(Lageromsætning!$AF$3:$AF$79,SMALL(IF(Lageromsætning!$A$3:$A$79=$A$2,ROW(Lageromsætning!$A$3:$A$79)-CELL("row",Lageromsætning!$A$3:$A$79)+1),ROWS($2:56))),"") ->  | F58: =SUMIFS('Lager antal'!$D$3:$D$2508,'Lager antal'!$B$3:$B$2508,B58,'Lager antal'!$C$3:$C$2508,C58) -> 0 | G58: =SUMIFS('Lager antal'!$F$3:$F$2508,'Lager antal'!$B$3:$B$2508,B58,'Lager antal'!$C$3:$C$2508,C58) -> 0 | H58: =IF(ISNA(VLOOKUP($C58,'Lager antal'!$C$3:$K$508,9,FALSE))=TRUE,"",VLOOKUP($C58,'Lager antal'!$C$3:$K$508,9,FALSE)) ->  | I58: =IFERROR(INDEX(Lageromsætning!$P$3:$P$79,SMALL(IF(Lageromsætning!$A$3:$A$79=$A$2,ROW(Lageromsætning!$A$3:$A$79)-CELL("row",Lageromsætning!$A$3:$A$79)+1),ROWS($2:56))),"") ->  | J58: =+_xlfn.IFS($M58>=0.01,$M58,TRUE,0)-$F58-K58+G58 -> 0 | K58: =SUMIFS('Lager antal'!$G$3:$G$2508,'Lager antal'!$B$3:$B$2508,B58,'Lager antal'!$C$3:$C$2508,C58) -> 0 | M58: 0 | N58: =SUMIFS(Lageromsætning!$R$3:$R$79,Lageromsætning!$A$3:$A$79,$A$2,Lageromsætning!$C$3:$C$79,B58,Lageromsætning!$D$3:$D$79,C58) -> 0 | O58: =SUMIFS(Lageromsætning!$S$3:$S$79,Lageromsætning!$C$3:$C$79,B58,Lageromsætning!$D$3:$D$79,C58) -> 0
A59: =IFERROR(INDEX(Lageromsætning!$A$3:$A$79,SMALL(IF(Lageromsætning!$A$3:$A$79=$A$2,ROW(Lageromsætning!$A$3:$A$79)-CELL("row",Lageromsætning!$A$3:$A$79)+1),ROWS($1:56))),"") ->  | B59: =IFERROR(INDEX(Lageromsætning!$C$3:$C$79,SMALL(IF(Lageromsætning!$A$3:$A$79=$A$2,ROW(Lageromsætning!$A$3:$A$79)-CELL("row",Lageromsætning!$A$3:$A$79)+1),ROWS($2:57))),"") ->  | C59: =IFERROR(INDEX(Lageromsætning!$D$3:$D$79,SMALL(IF(Lageromsætning!$A$3:$A$79=$A$2,ROW(Lageromsætning!$A$3:$A$79)-CELL("row",Lageromsætning!$A$3:$A$79)+1),ROWS($2:57))),"") ->  | D59: =IFERROR(INDEX(Lageromsætning!$E$3:$E$79,SMALL(IF(Lageromsætning!$A$3:$A$79=$A$2,ROW(Lageromsætning!$A$3:$A$79)-CELL("row",Lageromsætning!$A$3:$A$79)+1),ROWS($2:57))),"") ->  | E59: =IFERROR(INDEX(Lageromsætning!$AF$3:$AF$79,SMALL(IF(Lageromsætning!$A$3:$A$79=$A$2,ROW(Lageromsætning!$A$3:$A$79)-CELL("row",Lageromsætning!$A$3:$A$79)+1),ROWS($2:57))),"") ->  | F59: =SUMIFS('Lager antal'!$D$3:$D$2508,'Lager antal'!$B$3:$B$2508,B59,'Lager antal'!$C$3:$C$2508,C59) -> 0 | G59: =SUMIFS('Lager antal'!$F$3:$F$2508,'Lager antal'!$B$3:$B$2508,B59,'Lager antal'!$C$3:$C$2508,C59) -> 0 | H59: =IF(ISNA(VLOOKUP($C59,'Lager antal'!$C$3:$K$508,9,FALSE))=TRUE,"",VLOOKUP($C59,'Lager antal'!$C$3:$K$508,9,FALSE)) ->  | I59: =IFERROR(INDEX(Lageromsætning!$P$3:$P$79,SMALL(IF(Lageromsætning!$A$3:$A$79=$A$2,ROW(Lageromsætning!$A$3:$A$79)-CELL("row",Lageromsætning!$A$3:$A$79)+1),ROWS($2:57))),"") ->  | J59: =+_xlfn.IFS($M59>=0.01,$M59,TRUE,0)-$F59-K59+G59 -> 0 | K59: =SUMIFS('Lager antal'!$G$3:$G$2508,'Lager antal'!$B$3:$B$2508,B59,'Lager antal'!$C$3:$C$2508,C59) -> 0 | M59: 0 | N59: =SUMIFS(Lageromsætning!$R$3:$R$79,Lageromsætning!$A$3:$A$79,$A$2,Lageromsætning!$C$3:$C$79,B59,Lageromsætning!$D$3:$D$79,C59) -> 0 | O59: =SUMIFS(Lageromsætning!$S$3:$S$79,Lageromsætning!$C$3:$C$79,B59,Lageromsætning!$D$3:$D$79,C59) -> 0
A60: =IFERROR(INDEX(Lageromsætning!$A$3:$A$79,SMALL(IF(Lageromsætning!$A$3:$A$79=$A$2,ROW(Lageromsætning!$A$3:$A$79)-CELL("row",Lageromsætning!$A$3:$A$79)+1),ROWS($1:57))),"") ->  | B60: =IFERROR(INDEX(Lageromsætning!$C$3:$C$79,SMALL(IF(Lageromsætning!$A$3:$A$79=$A$2,ROW(Lageromsætning!$A$3:$A$79)-CELL("row",Lageromsætning!$A$3:$A$79)+1),ROWS($2:58))),"") ->  | C60: =IFERROR(INDEX(Lageromsætning!$D$3:$D$79,SMALL(IF(Lageromsætning!$A$3:$A$79=$A$2,ROW(Lageromsætning!$A$3:$A$79)-CELL("row",Lageromsætning!$A$3:$A$79)+1),ROWS($2:58))),"") ->  | D60: =IFERROR(INDEX(Lageromsætning!$E$3:$E$79,SMALL(IF(Lageromsætning!$A$3:$A$79=$A$2,ROW(Lageromsætning!$A$3:$A$79)-CELL("row",Lageromsætning!$A$3:$A$79)+1),ROWS($2:58))),"") ->  | E60: =IFERROR(INDEX(Lageromsætning!$AF$3:$AF$79,SMALL(IF(Lageromsætning!$A$3:$A$79=$A$2,ROW(Lageromsætning!$A$3:$A$79)-CELL("row",Lageromsætning!$A$3:$A$79)+1),ROWS($2:58))),"") ->  | F60: =SUMIFS('Lager antal'!$D$3:$D$2508,'Lager antal'!$B$3:$B$2508,B60,'Lager antal'!$C$3:$C$2508,C60) -> 0 | G60: =SUMIFS('Lager antal'!$F$3:$F$2508,'Lager antal'!$B$3:$B$2508,B60,'Lager antal'!$C$3:$C$2508,C60) -> 0 | H60: =IF(ISNA(VLOOKUP($C60,'Lager antal'!$C$3:$K$508,9,FALSE))=TRUE,"",VLOOKUP($C60,'Lager antal'!$C$3:$K$508,9,FALSE)) ->  | I60: =IFERROR(INDEX(Lageromsætning!$P$3:$P$79,SMALL(IF(Lageromsætning!$A$3:$A$79=$A$2,ROW(Lageromsætning!$A$3:$A$79)-CELL("row",Lageromsætning!$A$3:$A$79)+1),ROWS($2:58))),"") ->  | J60: =+_xlfn.IFS($M60>=0.01,$M60,TRUE,0)-$F60-K60+G60 -> 0 | K60: =SUMIFS('Lager antal'!$G$3:$G$2508,'Lager antal'!$B$3:$B$2508,B60,'Lager antal'!$C$3:$C$2508,C60) -> 0 | M60: 0 | N60: =SUMIFS(Lageromsætning!$R$3:$R$79,Lageromsætning!$A$3:$A$79,$A$2,Lageromsætning!$C$3:$C$79,B60,Lageromsætning!$D$3:$D$79,C60) -> 0 | O60: =SUMIFS(Lageromsætning!$S$3:$S$79,Lageromsætning!$C$3:$C$79,B60,Lageromsætning!$D$3:$D$79,C60) -> 0
A61: =IFERROR(INDEX(Lageromsætning!$A$3:$A$79,SMALL(IF(Lageromsætning!$A$3:$A$79=$A$2,ROW(Lageromsætning!$A$3:$A$79)-CELL("row",Lageromsætning!$A$3:$A$79)+1),ROWS($1:58))),"") ->  | B61: =IFERROR(INDEX(Lageromsætning!$C$3:$C$79,SMALL(IF(Lageromsætning!$A$3:$A$79=$A$2,ROW(Lageromsætning!$A$3:$A$79)-CELL("row",Lageromsætning!$A$3:$A$79)+1),ROWS($2:59))),"") ->  | C61: =IFERROR(INDEX(Lageromsætning!$D$3:$D$79,SMALL(IF(Lageromsætning!$A$3:$A$79=$A$2,ROW(Lageromsætning!$A$3:$A$79)-CELL("row",Lageromsætning!$A$3:$A$79)+1),ROWS($2:59))),"") ->  | D61: =IFERROR(INDEX(Lageromsætning!$E$3:$E$79,SMALL(IF(Lageromsætning!$A$3:$A$79=$A$2,ROW(Lageromsætning!$A$3:$A$79)-CELL("row",Lageromsætning!$A$3:$A$79)+1),ROWS($2:59))),"") ->  | E61: =IFERROR(INDEX(Lageromsætning!$AF$3:$AF$79,SMALL(IF(Lageromsætning!$A$3:$A$79=$A$2,ROW(Lageromsætning!$A$3:$A$79)-CELL("row",Lageromsætning!$A$3:$A$79)+1),ROWS($2:59))),"") ->  | F61: =SUMIFS('Lager antal'!$D$3:$D$2508,'Lager antal'!$B$3:$B$2508,B61,'Lager antal'!$C$3:$C$2508,C61) -> 0 | G61: =SUMIFS('Lager antal'!$F$3:$F$2508,'Lager antal'!$B$3:$B$2508,B61,'Lager antal'!$C$3:$C$2508,C61) -> 0 | H61: =IF(ISNA(VLOOKUP($C61,'Lager antal'!$C$3:$K$508,9,FALSE))=TRUE,"",VLOOKUP($C61,'Lager antal'!$C$3:$K$508,9,FALSE)) ->  | I61: =IFERROR(INDEX(Lageromsætning!$P$3:$P$79,SMALL(IF(Lageromsætning!$A$3:$A$79=$A$2,ROW(Lageromsætning!$A$3:$A$79)-CELL("row",Lageromsætning!$A$3:$A$79)+1),ROWS($2:59))),"") ->  | J61: =+_xlfn.IFS($M61>=0.01,$M61,TRUE,0)-$F61-K61+G61 -> 0 | K61: =SUMIFS('Lager antal'!$G$3:$G$2508,'Lager antal'!$B$3:$B$2508,B61,'Lager antal'!$C$3:$C$2508,C61) -> 0 | M61: 0 | N61: =SUMIFS(Lageromsætning!$R$3:$R$79,Lageromsætning!$A$3:$A$79,$A$2,Lageromsætning!$C$3:$C$79,B61,Lageromsætning!$D$3:$D$79,C61) -> 0 | O61: =SUMIFS(Lageromsætning!$S$3:$S$79,Lageromsætning!$C$3:$C$79,B61,Lageromsætning!$D$3:$D$79,C61) -> 0
A62: =IFERROR(INDEX(Lageromsætning!$A$3:$A$79,SMALL(IF(Lageromsætning!$A$3:$A$79=$A$2,ROW(Lageromsætning!$A$3:$A$79)-CELL("row",Lageromsætning!$A$3:$A$79)+1),ROWS($1:59))),"") ->  | B62: =IFERROR(INDEX(Lageromsætning!$C$3:$C$79,SMALL(IF(Lageromsætning!$A$3:$A$79=$A$2,ROW(Lageromsætning!$A$3:$A$79)-CELL("row",Lageromsætning!$A$3:$A$79)+1),ROWS($2:60))),"") ->  | C62: =IFERROR(INDEX(Lageromsætning!$D$3:$D$79,SMALL(IF(Lageromsætning!$A$3:$A$79=$A$2,ROW(Lageromsætning!$A$3:$A$79)-CELL("row",Lageromsætning!$A$3:$A$79)+1),ROWS($2:60))),"") ->  | D62: =IFERROR(INDEX(Lageromsætning!$E$3:$E$79,SMALL(IF(Lageromsætning!$A$3:$A$79=$A$2,ROW(Lageromsætning!$A$3:$A$79)-CELL("row",Lageromsætning!$A$3:$A$79)+1),ROWS($2:60))),"") ->  | E62: =IFERROR(INDEX(Lageromsætning!$AF$3:$AF$79,SMALL(IF(Lageromsætning!$A$3:$A$79=$A$2,ROW(Lageromsætning!$A$3:$A$79)-CELL("row",Lageromsætning!$A$3:$A$79)+1),ROWS($2:60))),"") ->  | F62: =SUMIFS('Lager antal'!$D$3:$D$2508,'Lager antal'!$B$3:$B$2508,B62,'Lager antal'!$C$3:$C$2508,C62) -> 0 | G62: =SUMIFS('Lager antal'!$F$3:$F$2508,'Lager antal'!$B$3:$B$2508,B62,'Lager antal'!$C$3:$C$2508,C62) -> 0 | H62: =IF(ISNA(VLOOKUP($C62,'Lager antal'!$C$3:$K$508,9,FALSE))=TRUE,"",VLOOKUP($C62,'Lager antal'!$C$3:$K$508,9,FALSE)) ->  | I62: =IFERROR(INDEX(Lageromsætning!$P$3:$P$79,SMALL(IF(Lageromsætning!$A$3:$A$79=$A$2,ROW(Lageromsætning!$A$3:$A$79)-CELL("row",Lageromsætning!$A$3:$A$79)+1),ROWS($2:60))),"") ->  | J62: =+_xlfn.IFS($M62>=0.01,$M62,TRUE,0)-$F62-K62+G62 -> 0 | K62: =SUMIFS('Lager antal'!$G$3:$G$2508,'Lager antal'!$B$3:$B$2508,B62,'Lager antal'!$C$3:$C$2508,C62) -> 0 | M62: 0 | N62: =SUMIFS(Lageromsætning!$R$3:$R$79,Lageromsætning!$A$3:$A$79,$A$2,Lageromsætning!$C$3:$C$79,B62,Lageromsætning!$D$3:$D$79,C62) -> 0 | O62: =SUMIFS(Lageromsætning!$S$3:$S$79,Lageromsætning!$C$3:$C$79,B62,Lageromsætning!$D$3:$D$79,C62) -> 0
A63: =IFERROR(INDEX(Lageromsætning!$A$3:$A$79,SMALL(IF(Lageromsætning!$A$3:$A$79=$A$2,ROW(Lageromsætning!$A$3:$A$79)-CELL("row",Lageromsætning!$A$3:$A$79)+1),ROWS($1:60))),"") ->  | B63: =IFERROR(INDEX(Lageromsætning!$C$3:$C$79,SMALL(IF(Lageromsætning!$A$3:$A$79=$A$2,ROW(Lageromsætning!$A$3:$A$79)-CELL("row",Lageromsætning!$A$3:$A$79)+1),ROWS($2:61))),"") ->  | C63: =IFERROR(INDEX(Lageromsætning!$D$3:$D$79,SMALL(IF(Lageromsætning!$A$3:$A$79=$A$2,ROW(Lageromsætning!$A$3:$A$79)-CELL("row",Lageromsætning!$A$3:$A$79)+1),ROWS($2:61))),"") ->  | D63: =IFERROR(INDEX(Lageromsætning!$E$3:$E$79,SMALL(IF(Lageromsætning!$A$3:$A$79=$A$2,ROW(Lageromsætning!$A$3:$A$79)-CELL("row",Lageromsætning!$A$3:$A$79)+1),ROWS($2:61))),"") ->  | E63: =IFERROR(INDEX(Lageromsætning!$AF$3:$AF$79,SMALL(IF(Lageromsætning!$A$3:$A$79=$A$2,ROW(Lageromsætning!$A$3:$A$79)-CELL("row",Lageromsætning!$A$3:$A$79)+1),ROWS($2:61))),"") ->  | F63: =SUMIFS('Lager antal'!$D$3:$D$2508,'Lager antal'!$B$3:$B$2508,B63,'Lager antal'!$C$3:$C$2508,C63) -> 0 | G63: =SUMIFS('Lager antal'!$F$3:$F$2508,'Lager antal'!$B$3:$B$2508,B63,'Lager antal'!$C$3:$C$2508,C63) -> 0 | H63: =IF(ISNA(VLOOKUP($C63,'Lager antal'!$C$3:$K$508,9,FALSE))=TRUE,"",VLOOKUP($C63,'Lager antal'!$C$3:$K$508,9,FALSE)) ->  | I63: =IFERROR(INDEX(Lageromsætning!$P$3:$P$79,SMALL(IF(Lageromsætning!$A$3:$A$79=$A$2,ROW(Lageromsætning!$A$3:$A$79)-CELL("row",Lageromsætning!$A$3:$A$79)+1),ROWS($2:61))),"") ->  | J63: =+_xlfn.IFS($M63>=0.01,$M63,TRUE,0)-$F63-K63+G63 -> 0 | K63: =SUMIFS('Lager antal'!$G$3:$G$2508,'Lager antal'!$B$3:$B$2508,B63,'Lager antal'!$C$3:$C$2508,C63) -> 0 | M63: 0 | N63: =SUMIFS(Lageromsætning!$R$3:$R$79,Lageromsætning!$A$3:$A$79,$A$2,Lageromsætning!$C$3:$C$79,B63,Lageromsætning!$D$3:$D$79,C63) -> 0 | O63: =SUMIFS(Lageromsætning!$S$3:$S$79,Lageromsætning!$C$3:$C$79,B63,Lageromsætning!$D$3:$D$79,C63) -> 0
A64: =IFERROR(INDEX(Lageromsætning!$A$3:$A$79,SMALL(IF(Lageromsætning!$A$3:$A$79=$A$2,ROW(Lageromsætning!$A$3:$A$79)-CELL("row",Lageromsætning!$A$3:$A$79)+1),ROWS($1:61))),"") ->  | B64: =IFERROR(INDEX(Lageromsætning!$C$3:$C$79,SMALL(IF(Lageromsætning!$A$3:$A$79=$A$2,ROW(Lageromsætning!$A$3:$A$79)-CELL("row",Lageromsætning!$A$3:$A$79)+1),ROWS($2:62))),"") ->  | C64: =IFERROR(INDEX(Lageromsætning!$D$3:$D$79,SMALL(IF(Lageromsætning!$A$3:$A$79=$A$2,ROW(Lageromsætning!$A$3:$A$79)-CELL("row",Lageromsætning!$A$3:$A$79)+1),ROWS($2:62))),"") ->  | D64: =IFERROR(INDEX(Lageromsætning!$E$3:$E$79,SMALL(IF(Lageromsætning!$A$3:$A$79=$A$2,ROW(Lageromsætning!$A$3:$A$79)-CELL("row",Lageromsætning!$A$3:$A$79)+1),ROWS($2:62))),"") ->  | E64: =IFERROR(INDEX(Lageromsætning!$AF$3:$AF$79,SMALL(IF(Lageromsætning!$A$3:$A$79=$A$2,ROW(Lageromsætning!$A$3:$A$79)-CELL("row",Lageromsætning!$A$3:$A$79)+1),ROWS($2:62))),"") ->  | F64: =SUMIFS('Lager antal'!$D$3:$D$2508,'Lager antal'!$B$3:$B$2508,B64,'Lager antal'!$C$3:$C$2508,C64) -> 0 | G64: =SUMIFS('Lager antal'!$F$3:$F$2508,'Lager antal'!$B$3:$B$2508,B64,'Lager antal'!$C$3:$C$2508,C64) -> 0 | H64: =IF(ISNA(VLOOKUP($C64,'Lager antal'!$C$3:$K$508,9,FALSE))=TRUE,"",VLOOKUP($C64,'Lager antal'!$C$3:$K$508,9,FALSE)) ->  | I64: =IFERROR(INDEX(Lageromsætning!$P$3:$P$79,SMALL(IF(Lageromsætning!$A$3:$A$79=$A$2,ROW(Lageromsætning!$A$3:$A$79)-CELL("row",Lageromsætning!$A$3:$A$79)+1),ROWS($2:62))),"") ->  | J64: =+_xlfn.IFS($M64>=0.01,$M64,TRUE,0)-$F64-K64+G64 -> 0 | K64: =SUMIFS('Lager antal'!$G$3:$G$2508,'Lager antal'!$B$3:$B$2508,B64,'Lager antal'!$C$3:$C$2508,C64) -> 0 | M64: 0 | N64: =SUMIFS(Lageromsætning!$R$3:$R$79,Lageromsætning!$A$3:$A$79,$A$2,Lageromsætning!$C$3:$C$79,B64,Lageromsætning!$D$3:$D$79,C64) -> 0 | O64: =SUMIFS(Lageromsætning!$S$3:$S$79,Lageromsætning!$C$3:$C$79,B64,Lageromsætning!$D$3:$D$79,C64) -> 0
A65: =IFERROR(INDEX(Lageromsætning!$A$3:$A$79,SMALL(IF(Lageromsætning!$A$3:$A$79=$A$2,ROW(Lageromsætning!$A$3:$A$79)-CELL("row",Lageromsætning!$A$3:$A$79)+1),ROWS($1:62))),"") ->  | B65: =IFERROR(INDEX(Lageromsætning!$C$3:$C$79,SMALL(IF(Lageromsætning!$A$3:$A$79=$A$2,ROW(Lageromsætning!$A$3:$A$79)-CELL("row",Lageromsætning!$A$3:$A$79)+1),ROWS($2:63))),"") ->  | C65: =IFERROR(INDEX(Lageromsætning!$D$3:$D$79,SMALL(IF(Lageromsætning!$A$3:$A$79=$A$2,ROW(Lageromsætning!$A$3:$A$79)-CELL("row",Lageromsætning!$A$3:$A$79)+1),ROWS($2:63))),"") ->  | D65: =IFERROR(INDEX(Lageromsætning!$E$3:$E$79,SMALL(IF(Lageromsætning!$A$3:$A$79=$A$2,ROW(Lageromsætning!$A$3:$A$79)-CELL("row",Lageromsætning!$A$3:$A$79)+1),ROWS($2:63))),"") ->  | E65: =IFERROR(INDEX(Lageromsætning!$AF$3:$AF$79,SMALL(IF(Lageromsætning!$A$3:$A$79=$A$2,ROW(Lageromsætning!$A$3:$A$79)-CELL("row",Lageromsætning!$A$3:$A$79)+1),ROWS($2:63))),"") ->  | F65: =SUMIFS('Lager antal'!$D$3:$D$2508,'Lager antal'!$B$3:$B$2508,B65,'Lager antal'!$C$3:$C$2508,C65) -> 0 | G65: =SUMIFS('Lager antal'!$F$3:$F$2508,'Lager antal'!$B$3:$B$2508,B65,'Lager antal'!$C$3:$C$2508,C65) -> 0 | H65: =IF(ISNA(VLOOKUP($C65,'Lager antal'!$C$3:$K$508,9,FALSE))=TRUE,"",VLOOKUP($C65,'Lager antal'!$C$3:$K$508,9,FALSE)) ->  | I65: =IFERROR(INDEX(Lageromsætning!$P$3:$P$79,SMALL(IF(Lageromsætning!$A$3:$A$79=$A$2,ROW(Lageromsætning!$A$3:$A$79)-CELL("row",Lageromsætning!$A$3:$A$79)+1),ROWS($2:63))),"") ->  | J65: =+_xlfn.IFS($M65>=0.01,$M65,TRUE,0)-$F65-K65+G65 -> 0 | K65: =SUMIFS('Lager antal'!$G$3:$G$2508,'Lager antal'!$B$3:$B$2508,B65,'Lager antal'!$C$3:$C$2508,C65) -> 0 | M65: 0 | N65: =SUMIFS(Lageromsætning!$R$3:$R$79,Lageromsætning!$A$3:$A$79,$A$2,Lageromsætning!$C$3:$C$79,B65,Lageromsætning!$D$3:$D$79,C65) -> 0 | O65: =SUMIFS(Lageromsætning!$S$3:$S$79,Lageromsætning!$C$3:$C$79,B65,Lageromsætning!$D$3:$D$79,C65) -> 0
A66: =IFERROR(INDEX(Lageromsætning!$A$3:$A$79,SMALL(IF(Lageromsætning!$A$3:$A$79=$A$2,ROW(Lageromsætning!$A$3:$A$79)-CELL("row",Lageromsætning!$A$3:$A$79)+1),ROWS($1:63))),"") ->  | B66: =IFERROR(INDEX(Lageromsætning!$C$3:$C$79,SMALL(IF(Lageromsætning!$A$3:$A$79=$A$2,ROW(Lageromsætning!$A$3:$A$79)-CELL("row",Lageromsætning!$A$3:$A$79)+1),ROWS($2:64))),"") ->  | C66: =IFERROR(INDEX(Lageromsætning!$D$3:$D$79,SMALL(IF(Lageromsætning!$A$3:$A$79=$A$2,ROW(Lageromsætning!$A$3:$A$79)-CELL("row",Lageromsætning!$A$3:$A$79)+1),ROWS($2:64))),"") ->  | D66: =IFERROR(INDEX(Lageromsætning!$E$3:$E$79,SMALL(IF(Lageromsætning!$A$3:$A$79=$A$2,ROW(Lageromsætning!$A$3:$A$79)-CELL("row",Lageromsætning!$A$3:$A$79)+1),ROWS($2:64))),"") ->  | E66: =IFERROR(INDEX(Lageromsætning!$AF$3:$AF$79,SMALL(IF(Lageromsætning!$A$3:$A$79=$A$2,ROW(Lageromsætning!$A$3:$A$79)-CELL("row",Lageromsætning!$A$3:$A$79)+1),ROWS($2:64))),"") ->  | F66: =SUMIFS('Lager antal'!$D$3:$D$2508,'Lager antal'!$B$3:$B$2508,B66,'Lager antal'!$C$3:$C$2508,C66) -> 0 | G66: =SUMIFS('Lager antal'!$F$3:$F$2508,'Lager antal'!$B$3:$B$2508,B66,'Lager antal'!$C$3:$C$2508,C66) -> 0 | H66: =IF(ISNA(VLOOKUP($C66,'Lager antal'!$C$3:$K$508,9,FALSE))=TRUE,"",VLOOKUP($C66,'Lager antal'!$C$3:$K$508,9,FALSE)) ->  | I66: =IFERROR(INDEX(Lageromsætning!$P$3:$P$79,SMALL(IF(Lageromsætning!$A$3:$A$79=$A$2,ROW(Lageromsætning!$A$3:$A$79)-CELL("row",Lageromsætning!$A$3:$A$79)+1),ROWS($2:64))),"") ->  | J66: =+_xlfn.IFS($M66>=0.01,$M66,TRUE,0)-$F66-K66+G66 -> 0 | K66: =SUMIFS('Lager antal'!$G$3:$G$2508,'Lager antal'!$B$3:$B$2508,B66,'Lager antal'!$C$3:$C$2508,C66) -> 0 | M66: 0 | N66: =SUMIFS(Lageromsætning!$R$3:$R$79,Lageromsætning!$A$3:$A$79,$A$2,Lageromsætning!$C$3:$C$79,B66,Lageromsætning!$D$3:$D$79,C66) -> 0 | O66: =SUMIFS(Lageromsætning!$S$3:$S$79,Lageromsætning!$C$3:$C$79,B66,Lageromsætning!$D$3:$D$79,C66) -> 0
A67: =IFERROR(INDEX(Lageromsætning!$A$3:$A$79,SMALL(IF(Lageromsætning!$A$3:$A$79=$A$2,ROW(Lageromsætning!$A$3:$A$79)-CELL("row",Lageromsætning!$A$3:$A$79)+1),ROWS($1:64))),"") ->  | B67: =IFERROR(INDEX(Lageromsætning!$C$3:$C$79,SMALL(IF(Lageromsætning!$A$3:$A$79=$A$2,ROW(Lageromsætning!$A$3:$A$79)-CELL("row",Lageromsætning!$A$3:$A$79)+1),ROWS($2:65))),"") ->  | C67: =IFERROR(INDEX(Lageromsætning!$D$3:$D$79,SMALL(IF(Lageromsætning!$A$3:$A$79=$A$2,ROW(Lageromsætning!$A$3:$A$79)-CELL("row",Lageromsætning!$A$3:$A$79)+1),ROWS($2:65))),"") ->  | D67: =IFERROR(INDEX(Lageromsætning!$E$3:$E$79,SMALL(IF(Lageromsætning!$A$3:$A$79=$A$2,ROW(Lageromsætning!$A$3:$A$79)-CELL("row",Lageromsætning!$A$3:$A$79)+1),ROWS($2:65))),"") ->  | E67: =IFERROR(INDEX(Lageromsætning!$AF$3:$AF$79,SMALL(IF(Lageromsætning!$A$3:$A$79=$A$2,ROW(Lageromsætning!$A$3:$A$79)-CELL("row",Lageromsætning!$A$3:$A$79)+1),ROWS($2:65))),"") ->  | F67: =SUMIFS('Lager antal'!$D$3:$D$2508,'Lager antal'!$B$3:$B$2508,B67,'Lager antal'!$C$3:$C$2508,C67) -> 0 | G67: =SUMIFS('Lager antal'!$F$3:$F$2508,'Lager antal'!$B$3:$B$2508,B67,'Lager antal'!$C$3:$C$2508,C67) -> 0 | H67: =IF(ISNA(VLOOKUP($C67,'Lager antal'!$C$3:$K$508,9,FALSE))=TRUE,"",VLOOKUP($C67,'Lager antal'!$C$3:$K$508,9,FALSE)) ->  | I67: =IFERROR(INDEX(Lageromsætning!$P$3:$P$79,SMALL(IF(Lageromsætning!$A$3:$A$79=$A$2,ROW(Lageromsætning!$A$3:$A$79)-CELL("row",Lageromsætning!$A$3:$A$79)+1),ROWS($2:65))),"") ->  | J67: =+_xlfn.IFS($M67>=0.01,$M67,TRUE,0)-$F67-K67+G67 -> 0 | K67: =SUMIFS('Lager antal'!$G$3:$G$2508,'Lager antal'!$B$3:$B$2508,B67,'Lager antal'!$C$3:$C$2508,C67) -> 0 | M67: 0 | N67: =SUMIFS(Lageromsætning!$R$3:$R$79,Lageromsætning!$A$3:$A$79,$A$2,Lageromsætning!$C$3:$C$79,B67,Lageromsætning!$D$3:$D$79,C67) -> 0 | O67: =SUMIFS(Lageromsætning!$S$3:$S$79,Lageromsætning!$C$3:$C$79,B67,Lageromsætning!$D$3:$D$79,C67) -> 0
A68: =IFERROR(INDEX(Lageromsætning!$A$3:$A$79,SMALL(IF(Lageromsætning!$A$3:$A$79=$A$2,ROW(Lageromsætning!$A$3:$A$79)-CELL("row",Lageromsætning!$A$3:$A$79)+1),ROWS($1:65))),"") ->  | B68: =IFERROR(INDEX(Lageromsætning!$C$3:$C$79,SMALL(IF(Lageromsætning!$A$3:$A$79=$A$2,ROW(Lageromsætning!$A$3:$A$79)-CELL("row",Lageromsætning!$A$3:$A$79)+1),ROWS($2:66))),"") ->  | C68: =IFERROR(INDEX(Lageromsætning!$D$3:$D$79,SMALL(IF(Lageromsætning!$A$3:$A$79=$A$2,ROW(Lageromsætning!$A$3:$A$79)-CELL("row",Lageromsætning!$A$3:$A$79)+1),ROWS($2:66))),"") ->  | D68: =IFERROR(INDEX(Lageromsætning!$E$3:$E$79,SMALL(IF(Lageromsætning!$A$3:$A$79=$A$2,ROW(Lageromsætning!$A$3:$A$79)-CELL("row",Lageromsætning!$A$3:$A$79)+1),ROWS($2:66))),"") ->  | E68: =IFERROR(INDEX(Lageromsætning!$AF$3:$AF$79,SMALL(IF(Lageromsætning!$A$3:$A$79=$A$2,ROW(Lageromsætning!$A$3:$A$79)-CELL("row",Lageromsætning!$A$3:$A$79)+1),ROWS($2:66))),"") ->  | F68: =SUMIFS('Lager antal'!$D$3:$D$2508,'Lager antal'!$B$3:$B$2508,B68,'Lager antal'!$C$3:$C$2508,C68) -> 0 | G68: =SUMIFS('Lager antal'!$F$3:$F$2508,'Lager antal'!$B$3:$B$2508,B68,'Lager antal'!$C$3:$C$2508,C68) -> 0 | H68: =IF(ISNA(VLOOKUP($C68,'Lager antal'!$C$3:$K$508,9,FALSE))=TRUE,"",VLOOKUP($C68,'Lager antal'!$C$3:$K$508,9,FALSE)) ->  | I68: =IFERROR(INDEX(Lageromsætning!$P$3:$P$79,SMALL(IF(Lageromsætning!$A$3:$A$79=$A$2,ROW(Lageromsætning!$A$3:$A$79)-CELL("row",Lageromsætning!$A$3:$A$79)+1),ROWS($2:66))),"") ->  | J68: =+_xlfn.IFS($M68>=0.01,$M68,TRUE,0)-$F68-K68+G68 -> 0 | K68: =SUMIFS('Lager antal'!$G$3:$G$2508,'Lager antal'!$B$3:$B$2508,B68,'Lager antal'!$C$3:$C$2508,C68) -> 0 | M68: =+$N68/$K$2 -> 0 | N68: =SUMIFS(Lageromsætning!$R$3:$R$79,Lageromsætning!$A$3:$A$79,$A$2,Lageromsætning!$C$3:$C$79,B68,Lageromsætning!$D$3:$D$79,C68) -> 0 | O68: =SUMIFS(Lageromsætning!$S$3:$S$79,Lageromsætning!$C$3:$C$79,B68,Lageromsætning!$D$3:$D$79,C68) -> 0
A69: =IFERROR(INDEX(Lageromsætning!$A$3:$A$79,SMALL(IF(Lageromsætning!$A$3:$A$79=$A$2,ROW(Lageromsætning!$A$3:$A$79)-CELL("row",Lageromsætning!$A$3:$A$79)+1),ROWS($1:66))),"") ->  | B69: =IFERROR(INDEX(Lageromsætning!$C$3:$C$79,SMALL(IF(Lageromsætning!$A$3:$A$79=$A$2,ROW(Lageromsætning!$A$3:$A$79)-CELL("row",Lageromsætning!$A$3:$A$79)+1),ROWS($2:67))),"") ->  | C69: =IFERROR(INDEX(Lageromsætning!$D$3:$D$79,SMALL(IF(Lageromsætning!$A$3:$A$79=$A$2,ROW(Lageromsætning!$A$3:$A$79)-CELL("row",Lageromsætning!$A$3:$A$79)+1),ROWS($2:67))),"") ->  | D69: =IFERROR(INDEX(Lageromsætning!$E$3:$E$79,SMALL(IF(Lageromsætning!$A$3:$A$79=$A$2,ROW(Lageromsætning!$A$3:$A$79)-CELL("row",Lageromsætning!$A$3:$A$79)+1),ROWS($2:67))),"") ->  | E69: =IFERROR(INDEX(Lageromsætning!$AF$3:$AF$79,SMALL(IF(Lageromsætning!$A$3:$A$79=$A$2,ROW(Lageromsætning!$A$3:$A$79)-CELL("row",Lageromsætning!$A$3:$A$79)+1),ROWS($2:67))),"") ->  | F69: =SUMIFS('Lager antal'!$D$3:$D$2508,'Lager antal'!$B$3:$B$2508,B69,'Lager antal'!$C$3:$C$2508,C69) -> 0 | G69: =SUMIFS('Lager antal'!$F$3:$F$2508,'Lager antal'!$B$3:$B$2508,B69,'Lager antal'!$C$3:$C$2508,C69) -> 0 | H69: =IF(ISNA(VLOOKUP($C69,'Lager antal'!$C$3:$K$508,9,FALSE))=TRUE,"",VLOOKUP($C69,'Lager antal'!$C$3:$K$508,9,FALSE)) ->  | I69: =IFERROR(INDEX(Lageromsætning!$P$3:$P$79,SMALL(IF(Lageromsætning!$A$3:$A$79=$A$2,ROW(Lageromsætning!$A$3:$A$79)-CELL("row",Lageromsætning!$A$3:$A$79)+1),ROWS($2:67))),"") ->  | J69: =+_xlfn.IFS($M69>=0.01,$M69,TRUE,0)-$F69-K69+G69 -> 0 | K69: =SUMIFS('Lager antal'!$G$3:$G$2508,'Lager antal'!$B$3:$B$2508,B69,'Lager antal'!$C$3:$C$2508,C69) -> 0 | M69: 0 | N69: =SUMIFS(Lageromsætning!$R$3:$R$79,Lageromsætning!$A$3:$A$79,$A$2,Lageromsætning!$C$3:$C$79,B69,Lageromsætning!$D$3:$D$79,C69) -> 0 | O69: =SUMIFS(Lageromsætning!$S$3:$S$79,Lageromsætning!$C$3:$C$79,B69,Lageromsætning!$D$3:$D$79,C69) -> 0
A70: =IFERROR(INDEX(Lageromsætning!$A$3:$A$79,SMALL(IF(Lageromsætning!$A$3:$A$79=$A$2,ROW(Lageromsætning!$A$3:$A$79)-CELL("row",Lageromsætning!$A$3:$A$79)+1),ROWS($1:67))),"") ->  | B70: =IFERROR(INDEX(Lageromsætning!$C$3:$C$79,SMALL(IF(Lageromsætning!$A$3:$A$79=$A$2,ROW(Lageromsætning!$A$3:$A$79)-CELL("row",Lageromsætning!$A$3:$A$79)+1),ROWS($2:68))),"") ->  | C70: =IFERROR(INDEX(Lageromsætning!$D$3:$D$79,SMALL(IF(Lageromsætning!$A$3:$A$79=$A$2,ROW(Lageromsætning!$A$3:$A$79)-CELL("row",Lageromsætning!$A$3:$A$79)+1),ROWS($2:68))),"") ->  | D70: =IFERROR(INDEX(Lageromsætning!$E$3:$E$79,SMALL(IF(Lageromsætning!$A$3:$A$79=$A$2,ROW(Lageromsætning!$A$3:$A$79)-CELL("row",Lageromsætning!$A$3:$A$79)+1),ROWS($2:68))),"") ->  | E70: =IFERROR(INDEX(Lageromsætning!$AF$3:$AF$79,SMALL(IF(Lageromsætning!$A$3:$A$79=$A$2,ROW(Lageromsætning!$A$3:$A$79)-CELL("row",Lageromsætning!$A$3:$A$79)+1),ROWS($2:68))),"") ->  | F70: =SUMIFS('Lager antal'!$D$3:$D$2508,'Lager antal'!$B$3:$B$2508,B70,'Lager antal'!$C$3:$C$2508,C70) -> 0 | G70: =SUMIFS('Lager antal'!$F$3:$F$2508,'Lager antal'!$B$3:$B$2508,B70,'Lager antal'!$C$3:$C$2508,C70) -> 0 | H70: =IF(ISNA(VLOOKUP($C70,'Lager antal'!$C$3:$K$508,9,FALSE))=TRUE,"",VLOOKUP($C70,'Lager antal'!$C$3:$K$508,9,FALSE)) ->  | I70: =IFERROR(INDEX(Lageromsætning!$P$3:$P$79,SMALL(IF(Lageromsætning!$A$3:$A$79=$A$2,ROW(Lageromsætning!$A$3:$A$79)-CELL("row",Lageromsætning!$A$3:$A$79)+1),ROWS($2:68))),"") ->  | J70: =+_xlfn.IFS($M70>=0.01,$M70,TRUE,0)-$F70-K70+G70 -> 0 | K70: =SUMIFS('Lager antal'!$G$3:$G$2508,'Lager antal'!$B$3:$B$2508,B70,'Lager antal'!$C$3:$C$2508,C70) -> 0 | M70: 0 | N70: =SUMIFS(Lageromsætning!$R$3:$R$79,Lageromsætning!$A$3:$A$79,$A$2,Lageromsætning!$C$3:$C$79,B70,Lageromsætning!$D$3:$D$79,C70) -> 0 | O70: =SUMIFS(Lageromsætning!$S$3:$S$79,Lageromsætning!$C$3:$C$79,B70,Lageromsætning!$D$3:$D$79,C70) -> 0
A71: =IFERROR(INDEX(Lageromsætning!$A$3:$A$79,SMALL(IF(Lageromsætning!$A$3:$A$79=$A$2,ROW(Lageromsætning!$A$3:$A$79)-CELL("row",Lageromsætning!$A$3:$A$79)+1),ROWS($1:68))),"") ->  | B71: =IFERROR(INDEX(Lageromsætning!$C$3:$C$79,SMALL(IF(Lageromsætning!$A$3:$A$79=$A$2,ROW(Lageromsætning!$A$3:$A$79)-CELL("row",Lageromsætning!$A$3:$A$79)+1),ROWS($2:69))),"") ->  | C71: =IFERROR(INDEX(Lageromsætning!$D$3:$D$79,SMALL(IF(Lageromsætning!$A$3:$A$79=$A$2,ROW(Lageromsætning!$A$3:$A$79)-CELL("row",Lageromsætning!$A$3:$A$79)+1),ROWS($2:69))),"") ->  | D71: =IFERROR(INDEX(Lageromsætning!$E$3:$E$79,SMALL(IF(Lageromsætning!$A$3:$A$79=$A$2,ROW(Lageromsætning!$A$3:$A$79)-CELL("row",Lageromsætning!$A$3:$A$79)+1),ROWS($2:69))),"") ->  | E71: =IFERROR(INDEX(Lageromsætning!$AF$3:$AF$79,SMALL(IF(Lageromsætning!$A$3:$A$79=$A$2,ROW(Lageromsætning!$A$3:$A$79)-CELL("row",Lageromsætning!$A$3:$A$79)+1),ROWS($2:69))),"") ->  | F71: =SUMIFS('Lager antal'!$D$3:$D$2508,'Lager antal'!$B$3:$B$2508,B71,'Lager antal'!$C$3:$C$2508,C71) -> 0 | G71: =SUMIFS('Lager antal'!$F$3:$F$2508,'Lager antal'!$B$3:$B$2508,B71,'Lager antal'!$C$3:$C$2508,C71) -> 0 | H71: =IF(ISNA(VLOOKUP($C71,'Lager antal'!$C$3:$K$508,9,FALSE))=TRUE,"",VLOOKUP($C71,'Lager antal'!$C$3:$K$508,9,FALSE)) ->  | I71: =IFERROR(INDEX(Lageromsætning!$P$3:$P$79,SMALL(IF(Lageromsætning!$A$3:$A$79=$A$2,ROW(Lageromsætning!$A$3:$A$79)-CELL("row",Lageromsætning!$A$3:$A$79)+1),ROWS($2:69))),"") ->  | J71: =+_xlfn.IFS($M71>=0.01,$M71,TRUE,0)-$F71-K71+G71 -> 0 | K71: =SUMIFS('Lager antal'!$G$3:$G$2508,'Lager antal'!$B$3:$B$2508,B71,'Lager antal'!$C$3:$C$2508,C71) -> 0 | M71: 0 | N71: =SUMIFS(Lageromsætning!$R$3:$R$79,Lageromsætning!$A$3:$A$79,$A$2,Lageromsætning!$C$3:$C$79,B71,Lageromsætning!$D$3:$D$79,C71) -> 0 | O71: =SUMIFS(Lageromsætning!$S$3:$S$79,Lageromsætning!$C$3:$C$79,B71,Lageromsætning!$D$3:$D$79,C71) -> 0
A72: =IFERROR(INDEX(Lageromsætning!$A$3:$A$79,SMALL(IF(Lageromsætning!$A$3:$A$79=$A$2,ROW(Lageromsætning!$A$3:$A$79)-CELL("row",Lageromsætning!$A$3:$A$79)+1),ROWS($1:69))),"") ->  | B72: =IFERROR(INDEX(Lageromsætning!$C$3:$C$79,SMALL(IF(Lageromsætning!$A$3:$A$79=$A$2,ROW(Lageromsætning!$A$3:$A$79)-CELL("row",Lageromsætning!$A$3:$A$79)+1),ROWS($2:70))),"") ->  | C72: =IFERROR(INDEX(Lageromsætning!$D$3:$D$79,SMALL(IF(Lageromsætning!$A$3:$A$79=$A$2,ROW(Lageromsætning!$A$3:$A$79)-CELL("row",Lageromsætning!$A$3:$A$79)+1),ROWS($2:70))),"") ->  | D72: =IFERROR(INDEX(Lageromsætning!$E$3:$E$79,SMALL(IF(Lageromsætning!$A$3:$A$79=$A$2,ROW(Lageromsætning!$A$3:$A$79)-CELL("row",Lageromsætning!$A$3:$A$79)+1),ROWS($2:70))),"") ->  | E72: =IFERROR(INDEX(Lageromsætning!$AF$3:$AF$79,SMALL(IF(Lageromsætning!$A$3:$A$79=$A$2,ROW(Lageromsætning!$A$3:$A$79)-CELL("row",Lageromsætning!$A$3:$A$79)+1),ROWS($2:70))),"") ->  | F72: =SUMIFS('Lager antal'!$D$3:$D$2508,'Lager antal'!$B$3:$B$2508,B72,'Lager antal'!$C$3:$C$2508,C72) -> 0 | G72: =SUMIFS('Lager antal'!$F$3:$F$2508,'Lager antal'!$B$3:$B$2508,B72,'Lager antal'!$C$3:$C$2508,C72) -> 0 | H72: =IF(ISNA(VLOOKUP($C72,'Lager antal'!$C$3:$K$508,9,FALSE))=TRUE,"",VLOOKUP($C72,'Lager antal'!$C$3:$K$508,9,FALSE)) ->  | I72: =IFERROR(INDEX(Lageromsætning!$P$3:$P$79,SMALL(IF(Lageromsætning!$A$3:$A$79=$A$2,ROW(Lageromsætning!$A$3:$A$79)-CELL("row",Lageromsætning!$A$3:$A$79)+1),ROWS($2:70))),"") ->  | J72: =+_xlfn.IFS($M72>=0.01,$M72,TRUE,0)-$F72-K72+G72 -> 0 | K72: =SUMIFS('Lager antal'!$G$3:$G$2508,'Lager antal'!$B$3:$B$2508,B72,'Lager antal'!$C$3:$C$2508,C72) -> 0 | M72: 0 | N72: =SUMIFS(Lageromsætning!$R$3:$R$79,Lageromsætning!$A$3:$A$79,$A$2,Lageromsætning!$C$3:$C$79,B72,Lageromsætning!$D$3:$D$79,C72) -> 0 | O72: =SUMIFS(Lageromsætning!$S$3:$S$79,Lageromsætning!$C$3:$C$79,B72,Lageromsætning!$D$3:$D$79,C72) -> 0
A73: =IFERROR(INDEX(Lageromsætning!$A$3:$A$79,SMALL(IF(Lageromsætning!$A$3:$A$79=$A$2,ROW(Lageromsætning!$A$3:$A$79)-CELL("row",Lageromsætning!$A$3:$A$79)+1),ROWS($1:70))),"") ->  | B73: =IFERROR(INDEX(Lageromsætning!$C$3:$C$79,SMALL(IF(Lageromsætning!$A$3:$A$79=$A$2,ROW(Lageromsætning!$A$3:$A$79)-CELL("row",Lageromsætning!$A$3:$A$79)+1),ROWS($2:71))),"") ->  | C73: =IFERROR(INDEX(Lageromsætning!$D$3:$D$79,SMALL(IF(Lageromsætning!$A$3:$A$79=$A$2,ROW(Lageromsætning!$A$3:$A$79)-CELL("row",Lageromsætning!$A$3:$A$79)+1),ROWS($2:71))),"") ->  | D73: =IFERROR(INDEX(Lageromsætning!$E$3:$E$79,SMALL(IF(Lageromsætning!$A$3:$A$79=$A$2,ROW(Lageromsætning!$A$3:$A$79)-CELL("row",Lageromsætning!$A$3:$A$79)+1),ROWS($2:71))),"") ->  | E73: =IFERROR(INDEX(Lageromsætning!$AF$3:$AF$79,SMALL(IF(Lageromsætning!$A$3:$A$79=$A$2,ROW(Lageromsætning!$A$3:$A$79)-CELL("row",Lageromsætning!$A$3:$A$79)+1),ROWS($2:71))),"") ->  | F73: =SUMIFS('Lager antal'!$D$3:$D$2508,'Lager antal'!$B$3:$B$2508,B73,'Lager antal'!$C$3:$C$2508,C73) -> 0 | G73: =SUMIFS('Lager antal'!$F$3:$F$2508,'Lager antal'!$B$3:$B$2508,B73,'Lager antal'!$C$3:$C$2508,C73) -> 0 | H73: =IF(ISNA(VLOOKUP($C73,'Lager antal'!$C$3:$K$508,9,FALSE))=TRUE,"",VLOOKUP($C73,'Lager antal'!$C$3:$K$508,9,FALSE)) ->  | I73: =IFERROR(INDEX(Lageromsætning!$P$3:$P$79,SMALL(IF(Lageromsætning!$A$3:$A$79=$A$2,ROW(Lageromsætning!$A$3:$A$79)-CELL("row",Lageromsætning!$A$3:$A$79)+1),ROWS($2:71))),"") ->  | J73: =+_xlfn.IFS($M73>=0.01,$M73,TRUE,0)-$F73-K73+G73 -> 0 | K73: =SUMIFS('Lager antal'!$G$3:$G$2508,'Lager antal'!$B$3:$B$2508,B73,'Lager antal'!$C$3:$C$2508,C73) -> 0 | M73: 0 | N73: =SUMIFS(Lageromsætning!$R$3:$R$79,Lageromsætning!$A$3:$A$79,$A$2,Lageromsætning!$C$3:$C$79,B73,Lageromsætning!$D$3:$D$79,C73) -> 0 | O73: =SUMIFS(Lageromsætning!$S$3:$S$79,Lageromsætning!$C$3:$C$79,B73,Lageromsætning!$D$3:$D$79,C73) -> 0
A74: =IFERROR(INDEX(Lageromsætning!$A$3:$A$79,SMALL(IF(Lageromsætning!$A$3:$A$79=$A$2,ROW(Lageromsætning!$A$3:$A$79)-CELL("row",Lageromsætning!$A$3:$A$79)+1),ROWS($1:71))),"") ->  | B74: =IFERROR(INDEX(Lageromsætning!$C$3:$C$79,SMALL(IF(Lageromsætning!$A$3:$A$79=$A$2,ROW(Lageromsætning!$A$3:$A$79)-CELL("row",Lageromsætning!$A$3:$A$79)+1),ROWS($2:72))),"") ->  | C74: =IFERROR(INDEX(Lageromsætning!$D$3:$D$79,SMALL(IF(Lageromsætning!$A$3:$A$79=$A$2,ROW(Lageromsætning!$A$3:$A$79)-CELL("row",Lageromsætning!$A$3:$A$79)+1),ROWS($2:72))),"") ->  | D74: =IFERROR(INDEX(Lageromsætning!$E$3:$E$79,SMALL(IF(Lageromsætning!$A$3:$A$79=$A$2,ROW(Lageromsætning!$A$3:$A$79)-CELL("row",Lageromsætning!$A$3:$A$79)+1),ROWS($2:72))),"") ->  | E74: =IFERROR(INDEX(Lageromsætning!$AF$3:$AF$79,SMALL(IF(Lageromsætning!$A$3:$A$79=$A$2,ROW(Lageromsætning!$A$3:$A$79)-CELL("row",Lageromsætning!$A$3:$A$79)+1),ROWS($2:72))),"") ->  | F74: =SUMIFS('Lager antal'!$D$3:$D$2508,'Lager antal'!$B$3:$B$2508,B74,'Lager antal'!$C$3:$C$2508,C74) -> 0 | G74: =SUMIFS('Lager antal'!$F$3:$F$2508,'Lager antal'!$B$3:$B$2508,B74,'Lager antal'!$C$3:$C$2508,C74) -> 0 | H74: =IF(ISNA(VLOOKUP($C74,'Lager antal'!$C$3:$K$508,9,FALSE))=TRUE,"",VLOOKUP($C74,'Lager antal'!$C$3:$K$508,9,FALSE)) ->  | I74: =IFERROR(INDEX(Lageromsætning!$P$3:$P$79,SMALL(IF(Lageromsætning!$A$3:$A$79=$A$2,ROW(Lageromsætning!$A$3:$A$79)-CELL("row",Lageromsætning!$A$3:$A$79)+1),ROWS($2:72))),"") ->  | J74: =+_xlfn.IFS($M74>=0.01,$M74,TRUE,0)-$F74-K74+G74 -> 0 | K74: =SUMIFS('Lager antal'!$G$3:$G$2508,'Lager antal'!$B$3:$B$2508,B74,'Lager antal'!$C$3:$C$2508,C74) -> 0 | M74: 0 | N74: =SUMIFS(Lageromsætning!$R$3:$R$79,Lageromsætning!$A$3:$A$79,$A$2,Lageromsætning!$C$3:$C$79,B74,Lageromsætning!$D$3:$D$79,C74) -> 0 | O74: =SUMIFS(Lageromsætning!$S$3:$S$79,Lageromsætning!$C$3:$C$79,B74,Lageromsætning!$D$3:$D$79,C74) -> 0
A75: =IFERROR(INDEX(Lageromsætning!$A$3:$A$79,SMALL(IF(Lageromsætning!$A$3:$A$79=$A$2,ROW(Lageromsætning!$A$3:$A$79)-CELL("row",Lageromsætning!$A$3:$A$79)+1),ROWS($1:72))),"") ->  | B75: =IFERROR(INDEX(Lageromsætning!$C$3:$C$79,SMALL(IF(Lageromsætning!$A$3:$A$79=$A$2,ROW(Lageromsætning!$A$3:$A$79)-CELL("row",Lageromsætning!$A$3:$A$79)+1),ROWS($2:73))),"") ->  | C75: =IFERROR(INDEX(Lageromsætning!$D$3:$D$79,SMALL(IF(Lageromsætning!$A$3:$A$79=$A$2,ROW(Lageromsætning!$A$3:$A$79)-CELL("row",Lageromsætning!$A$3:$A$79)+1),ROWS($2:73))),"") ->  | D75: =IFERROR(INDEX(Lageromsætning!$E$3:$E$79,SMALL(IF(Lageromsætning!$A$3:$A$79=$A$2,ROW(Lageromsætning!$A$3:$A$79)-CELL("row",Lageromsætning!$A$3:$A$79)+1),ROWS($2:73))),"") ->  | E75: =IFERROR(INDEX(Lageromsætning!$AF$3:$AF$79,SMALL(IF(Lageromsætning!$A$3:$A$79=$A$2,ROW(Lageromsætning!$A$3:$A$79)-CELL("row",Lageromsætning!$A$3:$A$79)+1),ROWS($2:73))),"") ->  | F75: =SUMIFS('Lager antal'!$D$3:$D$2508,'Lager antal'!$B$3:$B$2508,B75,'Lager antal'!$C$3:$C$2508,C75) -> 0 | G75: =SUMIFS('Lager antal'!$F$3:$F$2508,'Lager antal'!$B$3:$B$2508,B75,'Lager antal'!$C$3:$C$2508,C75) -> 0 | H75: =IF(ISNA(VLOOKUP($C75,'Lager antal'!$C$3:$K$508,9,FALSE))=TRUE,"",VLOOKUP($C75,'Lager antal'!$C$3:$K$508,9,FALSE)) ->  | I75: =IFERROR(INDEX(Lageromsætning!$P$3:$P$79,SMALL(IF(Lageromsætning!$A$3:$A$79=$A$2,ROW(Lageromsætning!$A$3:$A$79)-CELL("row",Lageromsætning!$A$3:$A$79)+1),ROWS($2:73))),"") ->  | J75: =+_xlfn.IFS($M75>=0.01,$M75,TRUE,0)-$F75-K75+G75 -> 0 | K75: =SUMIFS('Lager antal'!$G$3:$G$2508,'Lager antal'!$B$3:$B$2508,B75,'Lager antal'!$C$3:$C$2508,C75) -> 0 | M75: 0 | N75: =SUMIFS(Lageromsætning!$R$3:$R$79,Lageromsætning!$A$3:$A$79,$A$2,Lageromsætning!$C$3:$C$79,B75,Lageromsætning!$D$3:$D$79,C75) -> 0 | O75: =SUMIFS(Lageromsætning!$S$3:$S$79,Lageromsætning!$C$3:$C$79,B75,Lageromsætning!$D$3:$D$79,C75) -> 0
A76: =IFERROR(INDEX(Lageromsætning!$A$3:$A$79,SMALL(IF(Lageromsætning!$A$3:$A$79=$A$2,ROW(Lageromsætning!$A$3:$A$79)-CELL("row",Lageromsætning!$A$3:$A$79)+1),ROWS($1:73))),"") ->  | B76: =IFERROR(INDEX(Lageromsætning!$C$3:$C$79,SMALL(IF(Lageromsætning!$A$3:$A$79=$A$2,ROW(Lageromsætning!$A$3:$A$79)-CELL("row",Lageromsætning!$A$3:$A$79)+1),ROWS($2:74))),"") ->  | C76: =IFERROR(INDEX(Lageromsætning!$D$3:$D$79,SMALL(IF(Lageromsætning!$A$3:$A$79=$A$2,ROW(Lageromsætning!$A$3:$A$79)-CELL("row",Lageromsætning!$A$3:$A$79)+1),ROWS($2:74))),"") ->  | D76: =IFERROR(INDEX(Lageromsætning!$E$3:$E$79,SMALL(IF(Lageromsætning!$A$3:$A$79=$A$2,ROW(Lageromsætning!$A$3:$A$79)-CELL("row",Lageromsætning!$A$3:$A$79)+1),ROWS($2:74))),"") ->  | E76: =IFERROR(INDEX(Lageromsætning!$AF$3:$AF$79,SMALL(IF(Lageromsætning!$A$3:$A$79=$A$2,ROW(Lageromsætning!$A$3:$A$79)-CELL("row",Lageromsætning!$A$3:$A$79)+1),ROWS($2:74))),"") ->  | F76: =SUMIFS('Lager antal'!$D$3:$D$2508,'Lager antal'!$B$3:$B$2508,B76,'Lager antal'!$C$3:$C$2508,C76) -> 0 | G76: =SUMIFS('Lager antal'!$F$3:$F$2508,'Lager antal'!$B$3:$B$2508,B76,'Lager antal'!$C$3:$C$2508,C76) -> 0 | H76: =IF(ISNA(VLOOKUP($C76,'Lager antal'!$C$3:$K$508,9,FALSE))=TRUE,"",VLOOKUP($C76,'Lager antal'!$C$3:$K$508,9,FALSE)) ->  | I76: =IFERROR(INDEX(Lageromsætning!$P$3:$P$79,SMALL(IF(Lageromsætning!$A$3:$A$79=$A$2,ROW(Lageromsætning!$A$3:$A$79)-CELL("row",Lageromsætning!$A$3:$A$79)+1),ROWS($2:74))),"") ->  | J76: =+_xlfn.IFS($M76>=0.01,$M76,TRUE,0)-$F76-K76+G76 -> 0 | K76: =SUMIFS('Lager antal'!$G$3:$G$2508,'Lager antal'!$B$3:$B$2508,B76,'Lager antal'!$C$3:$C$2508,C76) -> 0 | M76: 0 | N76: =SUMIFS(Lageromsætning!$R$3:$R$79,Lageromsætning!$A$3:$A$79,$A$2,Lageromsætning!$C$3:$C$79,B76,Lageromsætning!$D$3:$D$79,C76) -> 0 | O76: =SUMIFS(Lageromsætning!$S$3:$S$79,Lageromsætning!$C$3:$C$79,B76,Lageromsætning!$D$3:$D$79,C76) -> 0
A77: =IFERROR(INDEX(Lageromsætning!$A$3:$A$79,SMALL(IF(Lageromsætning!$A$3:$A$79=$A$2,ROW(Lageromsætning!$A$3:$A$79)-CELL("row",Lageromsætning!$A$3:$A$79)+1),ROWS($1:74))),"") ->  | B77: =IFERROR(INDEX(Lageromsætning!$C$3:$C$79,SMALL(IF(Lageromsætning!$A$3:$A$79=$A$2,ROW(Lageromsætning!$A$3:$A$79)-CELL("row",Lageromsætning!$A$3:$A$79)+1),ROWS($2:75))),"") ->  | C77: =IFERROR(INDEX(Lageromsætning!$D$3:$D$79,SMALL(IF(Lageromsætning!$A$3:$A$79=$A$2,ROW(Lageromsætning!$A$3:$A$79)-CELL("row",Lageromsætning!$A$3:$A$79)+1),ROWS($2:75))),"") ->  | D77: =IFERROR(INDEX(Lageromsætning!$E$3:$E$79,SMALL(IF(Lageromsætning!$A$3:$A$79=$A$2,ROW(Lageromsætning!$A$3:$A$79)-CELL("row",Lageromsætning!$A$3:$A$79)+1),ROWS($2:75))),"") ->  | E77: =IFERROR(INDEX(Lageromsætning!$AF$3:$AF$79,SMALL(IF(Lageromsætning!$A$3:$A$79=$A$2,ROW(Lageromsætning!$A$3:$A$79)-CELL("row",Lageromsætning!$A$3:$A$79)+1),ROWS($2:75))),"") ->  | F77: =SUMIFS('Lager antal'!$D$3:$D$2508,'Lager antal'!$B$3:$B$2508,B77,'Lager antal'!$C$3:$C$2508,C77) -> 0 | G77: =SUMIFS('Lager antal'!$F$3:$F$2508,'Lager antal'!$B$3:$B$2508,B77,'Lager antal'!$C$3:$C$2508,C77) -> 0 | H77: =IF(ISNA(VLOOKUP($C77,'Lager antal'!$C$3:$K$508,9,FALSE))=TRUE,"",VLOOKUP($C77,'Lager antal'!$C$3:$K$508,9,FALSE)) ->  | I77: =IFERROR(INDEX(Lageromsætning!$P$3:$P$79,SMALL(IF(Lageromsætning!$A$3:$A$79=$A$2,ROW(Lageromsætning!$A$3:$A$79)-CELL("row",Lageromsætning!$A$3:$A$79)+1),ROWS($2:75))),"") ->  | J77: =+_xlfn.IFS($M77>=0.01,$M77,TRUE,0)-$F77-K77+G77 -> 0 | K77: =SUMIFS('Lager antal'!$G$3:$G$2508,'Lager antal'!$B$3:$B$2508,B77,'Lager antal'!$C$3:$C$2508,C77) -> 0 | M77: 0 | N77: =SUMIFS(Lageromsætning!$R$3:$R$79,Lageromsætning!$A$3:$A$79,$A$2,Lageromsætning!$C$3:$C$79,B77,Lageromsætning!$D$3:$D$79,C77) -> 0 | O77: =SUMIFS(Lageromsætning!$S$3:$S$79,Lageromsætning!$C$3:$C$79,B77,Lageromsætning!$D$3:$D$79,C77) -> 0
A78: =IFERROR(INDEX(Lageromsætning!$A$3:$A$79,SMALL(IF(Lageromsætning!$A$3:$A$79=$A$2,ROW(Lageromsætning!$A$3:$A$79)-CELL("row",Lageromsætning!$A$3:$A$79)+1),ROWS($1:75))),"") ->  | B78: =IFERROR(INDEX(Lageromsætning!$C$3:$C$79,SMALL(IF(Lageromsætning!$A$3:$A$79=$A$2,ROW(Lageromsætning!$A$3:$A$79)-CELL("row",Lageromsætning!$A$3:$A$79)+1),ROWS($2:76))),"") ->  | C78: =IFERROR(INDEX(Lageromsætning!$D$3:$D$79,SMALL(IF(Lageromsætning!$A$3:$A$79=$A$2,ROW(Lageromsætning!$A$3:$A$79)-CELL("row",Lageromsætning!$A$3:$A$79)+1),ROWS($2:76))),"") ->  | D78: =IFERROR(INDEX(Lageromsætning!$E$3:$E$79,SMALL(IF(Lageromsætning!$A$3:$A$79=$A$2,ROW(Lageromsætning!$A$3:$A$79)-CELL("row",Lageromsætning!$A$3:$A$79)+1),ROWS($2:76))),"") ->  | E78: =IFERROR(INDEX(Lageromsætning!$AF$3:$AF$79,SMALL(IF(Lageromsætning!$A$3:$A$79=$A$2,ROW(Lageromsætning!$A$3:$A$79)-CELL("row",Lageromsætning!$A$3:$A$79)+1),ROWS($2:76))),"") ->  | F78: =SUMIFS('Lager antal'!$D$3:$D$2508,'Lager antal'!$B$3:$B$2508,B78,'Lager antal'!$C$3:$C$2508,C78) -> 0 | G78: =SUMIFS('Lager antal'!$F$3:$F$2508,'Lager antal'!$B$3:$B$2508,B78,'Lager antal'!$C$3:$C$2508,C78) -> 0 | H78: =IF(ISNA(VLOOKUP($C78,'Lager antal'!$C$3:$K$508,9,FALSE))=TRUE,"",VLOOKUP($C78,'Lager antal'!$C$3:$K$508,9,FALSE)) ->  | I78: =IFERROR(INDEX(Lageromsætning!$P$3:$P$79,SMALL(IF(Lageromsætning!$A$3:$A$79=$A$2,ROW(Lageromsætning!$A$3:$A$79)-CELL("row",Lageromsætning!$A$3:$A$79)+1),ROWS($2:76))),"") ->  | J78: =+_xlfn.IFS($M78>=0.01,$M78,TRUE,0)-$F78-K78+G78 -> 0 | K78: =SUMIFS('Lager antal'!$G$3:$G$2508,'Lager antal'!$B$3:$B$2508,B78,'Lager antal'!$C$3:$C$2508,C78) -> 0 | M78: 0 | N78: =SUMIFS(Lageromsætning!$R$3:$R$79,Lageromsætning!$A$3:$A$79,$A$2,Lageromsætning!$C$3:$C$79,B78,Lageromsætning!$D$3:$D$79,C78) -> 0 | O78: =SUMIFS(Lageromsætning!$S$3:$S$79,Lageromsætning!$C$3:$C$79,B78,Lageromsætning!$D$3:$D$79,C78) -> 0
A79: =IFERROR(INDEX(Lageromsætning!$A$3:$A$79,SMALL(IF(Lageromsætning!$A$3:$A$79=$A$2,ROW(Lageromsætning!$A$3:$A$79)-CELL("row",Lageromsætning!$A$3:$A$79)+1),ROWS($1:76))),"") ->  | B79: =IFERROR(INDEX(Lageromsætning!$C$3:$C$79,SMALL(IF(Lageromsætning!$A$3:$A$79=$A$2,ROW(Lageromsætning!$A$3:$A$79)-CELL("row",Lageromsætning!$A$3:$A$79)+1),ROWS($2:77))),"") ->  | C79: =IFERROR(INDEX(Lageromsætning!$D$3:$D$79,SMALL(IF(Lageromsætning!$A$3:$A$79=$A$2,ROW(Lageromsætning!$A$3:$A$79)-CELL("row",Lageromsætning!$A$3:$A$79)+1),ROWS($2:77))),"") ->  | D79: =IFERROR(INDEX(Lageromsætning!$E$3:$E$79,SMALL(IF(Lageromsætning!$A$3:$A$79=$A$2,ROW(Lageromsætning!$A$3:$A$79)-CELL("row",Lageromsætning!$A$3:$A$79)+1),ROWS($2:77))),"") ->  | E79: =IFERROR(INDEX(Lageromsætning!$AF$3:$AF$79,SMALL(IF(Lageromsætning!$A$3:$A$79=$A$2,ROW(Lageromsætning!$A$3:$A$79)-CELL("row",Lageromsætning!$A$3:$A$79)+1),ROWS($2:77))),"") ->  | F79: =SUMIFS('Lager antal'!$D$3:$D$2508,'Lager antal'!$B$3:$B$2508,B79,'Lager antal'!$C$3:$C$2508,C79) -> 0 | G79: =SUMIFS('Lager antal'!$F$3:$F$2508,'Lager antal'!$B$3:$B$2508,B79,'Lager antal'!$C$3:$C$2508,C79) -> 0 | H79: =IF(ISNA(VLOOKUP($C79,'Lager antal'!$C$3:$K$508,9,FALSE))=TRUE,"",VLOOKUP($C79,'Lager antal'!$C$3:$K$508,9,FALSE)) ->  | I79: =IFERROR(INDEX(Lageromsætning!$P$3:$P$79,SMALL(IF(Lageromsætning!$A$3:$A$79=$A$2,ROW(Lageromsætning!$A$3:$A$79)-CELL("row",Lageromsætning!$A$3:$A$79)+1),ROWS($2:77))),"") ->  | J79: =+_xlfn.IFS($M79>=0.01,$M79,TRUE,0)-$F79-K79+G79 -> 0 | K79: =SUMIFS('Lager antal'!$G$3:$G$2508,'Lager antal'!$B$3:$B$2508,B79,'Lager antal'!$C$3:$C$2508,C79) -> 0 | M79: 0 | N79: =SUMIFS(Lageromsætning!$R$3:$R$79,Lageromsætning!$A$3:$A$79,$A$2,Lageromsætning!$C$3:$C$79,B79,Lageromsætning!$D$3:$D$79,C79) -> 0 | O79: =SUMIFS(Lageromsætning!$S$3:$S$79,Lageromsætning!$C$3:$C$79,B79,Lageromsætning!$D$3:$D$79,C79) -> 0
A80: =IFERROR(INDEX(Lageromsætning!$A$3:$A$79,SMALL(IF(Lageromsætning!$A$3:$A$79=$A$2,ROW(Lageromsætning!$A$3:$A$79)-CELL("row",Lageromsætning!$A$3:$A$79)+1),ROWS($1:77))),"") ->  | B80: =IFERROR(INDEX(Lageromsætning!$C$3:$C$79,SMALL(IF(Lageromsætning!$A$3:$A$79=$A$2,ROW(Lageromsætning!$A$3:$A$79)-CELL("row",Lageromsætning!$A$3:$A$79)+1),ROWS($2:78))),"") ->  | C80: =IFERROR(INDEX(Lageromsætning!$D$3:$D$79,SMALL(IF(Lageromsætning!$A$3:$A$79=$A$2,ROW(Lageromsætning!$A$3:$A$79)-CELL("row",Lageromsætning!$A$3:$A$79)+1),ROWS($2:78))),"") ->  | D80: =IFERROR(INDEX(Lageromsætning!$E$3:$E$79,SMALL(IF(Lageromsætning!$A$3:$A$79=$A$2,ROW(Lageromsætning!$A$3:$A$79)-CELL("row",Lageromsætning!$A$3:$A$79)+1),ROWS($2:78))),"") ->  | E80: =IFERROR(INDEX(Lageromsætning!$AF$3:$AF$79,SMALL(IF(Lageromsætning!$A$3:$A$79=$A$2,ROW(Lageromsætning!$A$3:$A$79)-CELL("row",Lageromsætning!$A$3:$A$79)+1),ROWS($2:78))),"") ->  | F80: =SUMIFS('Lager antal'!$D$3:$D$2508,'Lager antal'!$B$3:$B$2508,B80,'Lager antal'!$C$3:$C$2508,C80) -> 0 | G80: =SUMIFS('Lager antal'!$F$3:$F$2508,'Lager antal'!$B$3:$B$2508,B80,'Lager antal'!$C$3:$C$2508,C80) -> 0 | H80: =IF(ISNA(VLOOKUP($C80,'Lager antal'!$C$3:$K$508,9,FALSE))=TRUE,"",VLOOKUP($C80,'Lager antal'!$C$3:$K$508,9,FALSE)) ->  | I80: =IFERROR(INDEX(Lageromsætning!$P$3:$P$79,SMALL(IF(Lageromsætning!$A$3:$A$79=$A$2,ROW(Lageromsætning!$A$3:$A$79)-CELL("row",Lageromsætning!$A$3:$A$79)+1),ROWS($2:78))),"") ->  | J80: =+_xlfn.IFS($M80>=0.01,$M80,TRUE,0)-$F80-K80+G80 -> 0 | K80: =SUMIFS('Lager antal'!$G$3:$G$2508,'Lager antal'!$B$3:$B$2508,B80,'Lager antal'!$C$3:$C$2508,C80) -> 0 | M80: 0 | N80: =SUMIFS(Lageromsætning!$R$3:$R$79,Lageromsætning!$A$3:$A$79,$A$2,Lageromsætning!$C$3:$C$79,B80,Lageromsætning!$D$3:$D$79,C80) -> 0 | O80: =SUMIFS(Lageromsætning!$S$3:$S$79,Lageromsætning!$C$3:$C$79,B80,Lageromsætning!$D$3:$D$79,C80) -> 0
A81: =IFERROR(INDEX(Lageromsætning!$A$3:$A$79,SMALL(IF(Lageromsætning!$A$3:$A$79=$A$2,ROW(Lageromsætning!$A$3:$A$79)-CELL("row",Lageromsætning!$A$3:$A$79)+1),ROWS($1:78))),"") ->  | B81: =IFERROR(INDEX(Lageromsætning!$C$3:$C$79,SMALL(IF(Lageromsætning!$A$3:$A$79=$A$2,ROW(Lageromsætning!$A$3:$A$79)-CELL("row",Lageromsætning!$A$3:$A$79)+1),ROWS($2:79))),"") ->  | C81: =IFERROR(INDEX(Lageromsætning!$D$3:$D$79,SMALL(IF(Lageromsætning!$A$3:$A$79=$A$2,ROW(Lageromsætning!$A$3:$A$79)-CELL("row",Lageromsætning!$A$3:$A$79)+1),ROWS($2:79))),"") ->  | D81: =IFERROR(INDEX(Lageromsætning!$E$3:$E$79,SMALL(IF(Lageromsætning!$A$3:$A$79=$A$2,ROW(Lageromsætning!$A$3:$A$79)-CELL("row",Lageromsætning!$A$3:$A$79)+1),ROWS($2:79))),"") ->  | E81: =IFERROR(INDEX(Lageromsætning!$AF$3:$AF$79,SMALL(IF(Lageromsætning!$A$3:$A$79=$A$2,ROW(Lageromsætning!$A$3:$A$79)-CELL("row",Lageromsætning!$A$3:$A$79)+1),ROWS($2:79))),"") ->  | F81: =SUMIFS('Lager antal'!$D$3:$D$2508,'Lager antal'!$B$3:$B$2508,B81,'Lager antal'!$C$3:$C$2508,C81) -> 0 | G81: =SUMIFS('Lager antal'!$F$3:$F$2508,'Lager antal'!$B$3:$B$2508,B81,'Lager antal'!$C$3:$C$2508,C81) -> 0 | H81: =IF(ISNA(VLOOKUP($C81,'Lager antal'!$C$3:$K$508,9,FALSE))=TRUE,"",VLOOKUP($C81,'Lager antal'!$C$3:$K$508,9,FALSE)) ->  | I81: =IFERROR(INDEX(Lageromsætning!$P$3:$P$79,SMALL(IF(Lageromsætning!$A$3:$A$79=$A$2,ROW(Lageromsætning!$A$3:$A$79)-CELL("row",Lageromsætning!$A$3:$A$79)+1),ROWS($2:79))),"") ->  | J81: =+_xlfn.IFS($M81>=0.01,$M81,TRUE,0)-$F81-K81+G81 -> 0 | K81: =SUMIFS('Lager antal'!$G$3:$G$2508,'Lager antal'!$B$3:$B$2508,B81,'Lager antal'!$C$3:$C$2508,C81) -> 0 | M81: 0 | N81: =SUMIFS(Lageromsætning!$R$3:$R$79,Lageromsætning!$A$3:$A$79,$A$2,Lageromsætning!$C$3:$C$79,B81,Lageromsætning!$D$3:$D$79,C81) -> 0 | O81: =SUMIFS(Lageromsætning!$S$3:$S$79,Lageromsætning!$C$3:$C$79,B81,Lageromsætning!$D$3:$D$79,C81) -> 0
A82: =IFERROR(INDEX(Lageromsætning!$A$3:$A$79,SMALL(IF(Lageromsætning!$A$3:$A$79=$A$2,ROW(Lageromsætning!$A$3:$A$79)-CELL("row",Lageromsætning!$A$3:$A$79)+1),ROWS($1:79))),"") ->  | B82: =IFERROR(INDEX(Lageromsætning!$C$3:$C$79,SMALL(IF(Lageromsætning!$A$3:$A$79=$A$2,ROW(Lageromsætning!$A$3:$A$79)-CELL("row",Lageromsætning!$A$3:$A$79)+1),ROWS($2:80))),"") ->  | C82: =IFERROR(INDEX(Lageromsætning!$D$3:$D$79,SMALL(IF(Lageromsætning!$A$3:$A$79=$A$2,ROW(Lageromsætning!$A$3:$A$79)-CELL("row",Lageromsætning!$A$3:$A$79)+1),ROWS($2:80))),"") ->  | D82: =IFERROR(INDEX(Lageromsætning!$E$3:$E$79,SMALL(IF(Lageromsætning!$A$3:$A$79=$A$2,ROW(Lageromsætning!$A$3:$A$79)-CELL("row",Lageromsætning!$A$3:$A$79)+1),ROWS($2:80))),"") ->  | E82: =IFERROR(INDEX(Lageromsætning!$AF$3:$AF$79,SMALL(IF(Lageromsætning!$A$3:$A$79=$A$2,ROW(Lageromsætning!$A$3:$A$79)-CELL("row",Lageromsætning!$A$3:$A$79)+1),ROWS($2:80))),"") ->  | F82: =SUMIFS('Lager antal'!$D$3:$D$2508,'Lager antal'!$B$3:$B$2508,B82,'Lager antal'!$C$3:$C$2508,C82) -> 0 | G82: =SUMIFS('Lager antal'!$F$3:$F$2508,'Lager antal'!$B$3:$B$2508,B82,'Lager antal'!$C$3:$C$2508,C82) -> 0 | H82: =IF(ISNA(VLOOKUP($C82,'Lager antal'!$C$3:$K$508,9,FALSE))=TRUE,"",VLOOKUP($C82,'Lager antal'!$C$3:$K$508,9,FALSE)) ->  | I82: =IFERROR(INDEX(Lageromsætning!$P$3:$P$79,SMALL(IF(Lageromsætning!$A$3:$A$79=$A$2,ROW(Lageromsætning!$A$3:$A$79)-CELL("row",Lageromsætning!$A$3:$A$79)+1),ROWS($2:80))),"") ->  | J82: =+_xlfn.IFS($M82>=0.01,$M82,TRUE,0)-$F82-K82+G82 -> 0 | K82: =SUMIFS('Lager antal'!$G$3:$G$2508,'Lager antal'!$B$3:$B$2508,B82,'Lager antal'!$C$3:$C$2508,C82) -> 0 | M82: 0 | N82: =SUMIFS(Lageromsætning!$R$3:$R$79,Lageromsætning!$A$3:$A$79,$A$2,Lageromsætning!$C$3:$C$79,B82,Lageromsætning!$D$3:$D$79,C82) -> 0 | O82: =SUMIFS(Lageromsætning!$S$3:$S$79,Lageromsætning!$C$3:$C$79,B82,Lageromsætning!$D$3:$D$79,C82) -> 0
A83: =IFERROR(INDEX(Lageromsætning!$A$3:$A$79,SMALL(IF(Lageromsætning!$A$3:$A$79=$A$2,ROW(Lageromsætning!$A$3:$A$79)-CELL("row",Lageromsætning!$A$3:$A$79)+1),ROWS($1:80))),"") ->  | B83: =IFERROR(INDEX(Lageromsætning!$C$3:$C$79,SMALL(IF(Lageromsætning!$A$3:$A$79=$A$2,ROW(Lageromsætning!$A$3:$A$79)-CELL("row",Lageromsætning!$A$3:$A$79)+1),ROWS($2:81))),"") ->  | C83: =IFERROR(INDEX(Lageromsætning!$D$3:$D$79,SMALL(IF(Lageromsætning!$A$3:$A$79=$A$2,ROW(Lageromsætning!$A$3:$A$79)-CELL("row",Lageromsætning!$A$3:$A$79)+1),ROWS($2:81))),"") ->  | D83: =IFERROR(INDEX(Lageromsætning!$E$3:$E$79,SMALL(IF(Lageromsætning!$A$3:$A$79=$A$2,ROW(Lageromsætning!$A$3:$A$79)-CELL("row",Lageromsætning!$A$3:$A$79)+1),ROWS($2:81))),"") ->  | E83: =IFERROR(INDEX(Lageromsætning!$AF$3:$AF$79,SMALL(IF(Lageromsætning!$A$3:$A$79=$A$2,ROW(Lageromsætning!$A$3:$A$79)-CELL("row",Lageromsætning!$A$3:$A$79)+1),ROWS($2:81))),"") ->  | F83: =SUMIFS('Lager antal'!$D$3:$D$2508,'Lager antal'!$B$3:$B$2508,B83,'Lager antal'!$C$3:$C$2508,C83) -> 0 | G83: =SUMIFS('Lager antal'!$F$3:$F$2508,'Lager antal'!$B$3:$B$2508,B83,'Lager antal'!$C$3:$C$2508,C83) -> 0 | H83: =IF(ISNA(VLOOKUP($C83,'Lager antal'!$C$3:$K$508,9,FALSE))=TRUE,"",VLOOKUP($C83,'Lager antal'!$C$3:$K$508,9,FALSE)) ->  | I83: =IFERROR(INDEX(Lageromsætning!$P$3:$P$79,SMALL(IF(Lageromsætning!$A$3:$A$79=$A$2,ROW(Lageromsætning!$A$3:$A$79)-CELL("row",Lageromsætning!$A$3:$A$79)+1),ROWS($2:81))),"") ->  | J83: =+_xlfn.IFS($M83>=0.01,$M83,TRUE,0)-$F83-K83+G83 -> 0 | K83: =SUMIFS('Lager antal'!$G$3:$G$2508,'Lager antal'!$B$3:$B$2508,B83,'Lager antal'!$C$3:$C$2508,C83) -> 0 | M83: 0 | N83: =SUMIFS(Lageromsætning!$R$3:$R$79,Lageromsætning!$A$3:$A$79,$A$2,Lageromsætning!$C$3:$C$79,B83,Lageromsætning!$D$3:$D$79,C83) -> 0 | O83: =SUMIFS(Lageromsætning!$S$3:$S$79,Lageromsætning!$C$3:$C$79,B83,Lageromsætning!$D$3:$D$79,C83) -> 0
A84: =IFERROR(INDEX(Lageromsætning!$A$3:$A$79,SMALL(IF(Lageromsætning!$A$3:$A$79=$A$2,ROW(Lageromsætning!$A$3:$A$79)-CELL("row",Lageromsætning!$A$3:$A$79)+1),ROWS($1:81))),"") ->  | B84: =IFERROR(INDEX(Lageromsætning!$C$3:$C$79,SMALL(IF(Lageromsætning!$A$3:$A$79=$A$2,ROW(Lageromsætning!$A$3:$A$79)-CELL("row",Lageromsætning!$A$3:$A$79)+1),ROWS($2:82))),"") ->  | C84: =IFERROR(INDEX(Lageromsætning!$D$3:$D$79,SMALL(IF(Lageromsætning!$A$3:$A$79=$A$2,ROW(Lageromsætning!$A$3:$A$79)-CELL("row",Lageromsætning!$A$3:$A$79)+1),ROWS($2:82))),"") ->  | D84: =IFERROR(INDEX(Lageromsætning!$E$3:$E$79,SMALL(IF(Lageromsætning!$A$3:$A$79=$A$2,ROW(Lageromsætning!$A$3:$A$79)-CELL("row",Lageromsætning!$A$3:$A$79)+1),ROWS($2:82))),"") ->  | E84: =IFERROR(INDEX(Lageromsætning!$AF$3:$AF$79,SMALL(IF(Lageromsætning!$A$3:$A$79=$A$2,ROW(Lageromsætning!$A$3:$A$79)-CELL("row",Lageromsætning!$A$3:$A$79)+1),ROWS($2:82))),"") ->  | F84: =SUMIFS('Lager antal'!$D$3:$D$2508,'Lager antal'!$B$3:$B$2508,B84,'Lager antal'!$C$3:$C$2508,C84) -> 0 | G84: =SUMIFS('Lager antal'!$F$3:$F$2508,'Lager antal'!$B$3:$B$2508,B84,'Lager antal'!$C$3:$C$2508,C84) -> 0 | H84: =IF(ISNA(VLOOKUP($C84,'Lager antal'!$C$3:$K$508,9,FALSE))=TRUE,"",VLOOKUP($C84,'Lager antal'!$C$3:$K$508,9,FALSE)) ->  | I84: =IFERROR(INDEX(Lageromsætning!$P$3:$P$79,SMALL(IF(Lageromsætning!$A$3:$A$79=$A$2,ROW(Lageromsætning!$A$3:$A$79)-CELL("row",Lageromsætning!$A$3:$A$79)+1),ROWS($2:82))),"") ->  | J84: =+_xlfn.IFS($M84>=0.01,$M84,TRUE,0)-$F84-K84+G84 -> 0 | K84: =SUMIFS('Lager antal'!$G$3:$G$2508,'Lager antal'!$B$3:$B$2508,B84,'Lager antal'!$C$3:$C$2508,C84) -> 0 | M84: 0 | N84: =SUMIFS(Lageromsætning!$R$3:$R$79,Lageromsætning!$A$3:$A$79,$A$2,Lageromsætning!$C$3:$C$79,B84,Lageromsætning!$D$3:$D$79,C84) -> 0 | O84: =SUMIFS(Lageromsætning!$S$3:$S$79,Lageromsætning!$C$3:$C$79,B84,Lageromsætning!$D$3:$D$79,C84) -> 0
A85: =IFERROR(INDEX(Lageromsætning!$A$3:$A$79,SMALL(IF(Lageromsætning!$A$3:$A$79=$A$2,ROW(Lageromsætning!$A$3:$A$79)-CELL("row",Lageromsætning!$A$3:$A$79)+1),ROWS($1:82))),"") ->  | B85: =IFERROR(INDEX(Lageromsætning!$C$3:$C$79,SMALL(IF(Lageromsætning!$A$3:$A$79=$A$2,ROW(Lageromsætning!$A$3:$A$79)-CELL("row",Lageromsætning!$A$3:$A$79)+1),ROWS($2:83))),"") ->  | C85: =IFERROR(INDEX(Lageromsætning!$D$3:$D$79,SMALL(IF(Lageromsætning!$A$3:$A$79=$A$2,ROW(Lageromsætning!$A$3:$A$79)-CELL("row",Lageromsætning!$A$3:$A$79)+1),ROWS($2:83))),"") ->  | D85: =IFERROR(INDEX(Lageromsætning!$E$3:$E$79,SMALL(IF(Lageromsætning!$A$3:$A$79=$A$2,ROW(Lageromsætning!$A$3:$A$79)-CELL("row",Lageromsætning!$A$3:$A$79)+1),ROWS($2:83))),"") ->  | E85: =IFERROR(INDEX(Lageromsætning!$AF$3:$AF$79,SMALL(IF(Lageromsætning!$A$3:$A$79=$A$2,ROW(Lageromsætning!$A$3:$A$79)-CELL("row",Lageromsætning!$A$3:$A$79)+1),ROWS($2:83))),"") ->  | F85: =SUMIFS('Lager antal'!$D$3:$D$2508,'Lager antal'!$B$3:$B$2508,B85,'Lager antal'!$C$3:$C$2508,C85) -> 0 | G85: =SUMIFS('Lager antal'!$F$3:$F$2508,'Lager antal'!$B$3:$B$2508,B85,'Lager antal'!$C$3:$C$2508,C85) -> 0 | H85: =IF(ISNA(VLOOKUP($C85,'Lager antal'!$C$3:$K$508,9,FALSE))=TRUE,"",VLOOKUP($C85,'Lager antal'!$C$3:$K$508,9,FALSE)) ->  | I85: =IFERROR(INDEX(Lageromsætning!$P$3:$P$79,SMALL(IF(Lageromsætning!$A$3:$A$79=$A$2,ROW(Lageromsætning!$A$3:$A$79)-CELL("row",Lageromsætning!$A$3:$A$79)+1),ROWS($2:83))),"") ->  | J85: =+_xlfn.IFS($M85>=0.01,$M85,TRUE,0)-$F85-K85+G85 -> 0 | K85: =SUMIFS('Lager antal'!$G$3:$G$2508,'Lager antal'!$B$3:$B$2508,B85,'Lager antal'!$C$3:$C$2508,C85) -> 0 | M85: 0 | N85: =SUMIFS(Lageromsætning!$R$3:$R$79,Lageromsætning!$A$3:$A$79,$A$2,Lageromsætning!$C$3:$C$79,B85,Lageromsætning!$D$3:$D$79,C85) -> 0 | O85: =SUMIFS(Lageromsætning!$S$3:$S$79,Lageromsætning!$C$3:$C$79,B85,Lageromsætning!$D$3:$D$79,C85) -> 0
A86: =IFERROR(INDEX(Lageromsætning!$A$3:$A$79,SMALL(IF(Lageromsætning!$A$3:$A$79=$A$2,ROW(Lageromsætning!$A$3:$A$79)-CELL("row",Lageromsætning!$A$3:$A$79)+1),ROWS($1:83))),"") ->  | B86: =IFERROR(INDEX(Lageromsætning!$C$3:$C$79,SMALL(IF(Lageromsætning!$A$3:$A$79=$A$2,ROW(Lageromsætning!$A$3:$A$79)-CELL("row",Lageromsætning!$A$3:$A$79)+1),ROWS($2:84))),"") ->  | C86: =IFERROR(INDEX(Lageromsætning!$D$3:$D$79,SMALL(IF(Lageromsætning!$A$3:$A$79=$A$2,ROW(Lageromsætning!$A$3:$A$79)-CELL("row",Lageromsætning!$A$3:$A$79)+1),ROWS($2:84))),"") ->  | D86: =IFERROR(INDEX(Lageromsætning!$E$3:$E$79,SMALL(IF(Lageromsætning!$A$3:$A$79=$A$2,ROW(Lageromsætning!$A$3:$A$79)-CELL("row",Lageromsætning!$A$3:$A$79)+1),ROWS($2:84))),"") ->  | E86: =IFERROR(INDEX(Lageromsætning!$AF$3:$AF$79,SMALL(IF(Lageromsætning!$A$3:$A$79=$A$2,ROW(Lageromsætning!$A$3:$A$79)-CELL("row",Lageromsætning!$A$3:$A$79)+1),ROWS($2:84))),"") ->  | F86: =SUMIFS('Lager antal'!$D$3:$D$2508,'Lager antal'!$B$3:$B$2508,B86,'Lager antal'!$C$3:$C$2508,C86) -> 0 | G86: =SUMIFS('Lager antal'!$F$3:$F$2508,'Lager antal'!$B$3:$B$2508,B86,'Lager antal'!$C$3:$C$2508,C86) -> 0 | H86: =IF(ISNA(VLOOKUP($C86,'Lager antal'!$C$3:$K$508,9,FALSE))=TRUE,"",VLOOKUP($C86,'Lager antal'!$C$3:$K$508,9,FALSE)) ->  | I86: =IFERROR(INDEX(Lageromsætning!$P$3:$P$79,SMALL(IF(Lageromsætning!$A$3:$A$79=$A$2,ROW(Lageromsætning!$A$3:$A$79)-CELL("row",Lageromsætning!$A$3:$A$79)+1),ROWS($2:84))),"") ->  | J86: =+_xlfn.IFS($M86>=0.01,$M86,TRUE,0)-$F86-K86+G86 -> 0 | K86: =SUMIFS('Lager antal'!$G$3:$G$2508,'Lager antal'!$B$3:$B$2508,B86,'Lager antal'!$C$3:$C$2508,C86) -> 0 | M86: 0 | N86: =SUMIFS(Lageromsætning!$R$3:$R$79,Lageromsætning!$A$3:$A$79,$A$2,Lageromsætning!$C$3:$C$79,B86,Lageromsætning!$D$3:$D$79,C86) -> 0 | O86: =SUMIFS(Lageromsætning!$S$3:$S$79,Lageromsætning!$C$3:$C$79,B86,Lageromsætning!$D$3:$D$79,C86) -> 0
A87: =IFERROR(INDEX(Lageromsætning!$A$3:$A$79,SMALL(IF(Lageromsætning!$A$3:$A$79=$A$2,ROW(Lageromsætning!$A$3:$A$79)-CELL("row",Lageromsætning!$A$3:$A$79)+1),ROWS($1:84))),"") ->  | B87: =IFERROR(INDEX(Lageromsætning!$C$3:$C$79,SMALL(IF(Lageromsætning!$A$3:$A$79=$A$2,ROW(Lageromsætning!$A$3:$A$79)-CELL("row",Lageromsætning!$A$3:$A$79)+1),ROWS($2:85))),"") ->  | C87: =IFERROR(INDEX(Lageromsætning!$D$3:$D$79,SMALL(IF(Lageromsætning!$A$3:$A$79=$A$2,ROW(Lageromsætning!$A$3:$A$79)-CELL("row",Lageromsætning!$A$3:$A$79)+1),ROWS($2:85))),"") ->  | D87: =IFERROR(INDEX(Lageromsætning!$E$3:$E$79,SMALL(IF(Lageromsætning!$A$3:$A$79=$A$2,ROW(Lageromsætning!$A$3:$A$79)-CELL("row",Lageromsætning!$A$3:$A$79)+1),ROWS($2:85))),"") ->  | E87: =IFERROR(INDEX(Lageromsætning!$AF$3:$AF$79,SMALL(IF(Lageromsætning!$A$3:$A$79=$A$2,ROW(Lageromsætning!$A$3:$A$79)-CELL("row",Lageromsætning!$A$3:$A$79)+1),ROWS($2:85))),"") ->  | F87: =SUMIFS('Lager antal'!$D$3:$D$2508,'Lager antal'!$B$3:$B$2508,B87,'Lager antal'!$C$3:$C$2508,C87) -> 0 | G87: =SUMIFS('Lager antal'!$F$3:$F$2508,'Lager antal'!$B$3:$B$2508,B87,'Lager antal'!$C$3:$C$2508,C87) -> 0 | H87: =IF(ISNA(VLOOKUP($C87,'Lager antal'!$C$3:$K$508,9,FALSE))=TRUE,"",VLOOKUP($C87,'Lager antal'!$C$3:$K$508,9,FALSE)) ->  | I87: =IFERROR(INDEX(Lageromsætning!$P$3:$P$79,SMALL(IF(Lageromsætning!$A$3:$A$79=$A$2,ROW(Lageromsætning!$A$3:$A$79)-CELL("row",Lageromsætning!$A$3:$A$79)+1),ROWS($2:85))),"") ->  | J87: =+_xlfn.IFS($M87>=0.01,$M87,TRUE,0)-$F87-K87+G87 -> 0 | K87: =SUMIFS('Lager antal'!$G$3:$G$2508,'Lager antal'!$B$3:$B$2508,B87,'Lager antal'!$C$3:$C$2508,C87) -> 0 | M87: 0 | N87: =SUMIFS(Lageromsætning!$R$3:$R$79,Lageromsætning!$A$3:$A$79,$A$2,Lageromsætning!$C$3:$C$79,B87,Lageromsætning!$D$3:$D$79,C87) -> 0 | O87: =SUMIFS(Lageromsætning!$S$3:$S$79,Lageromsætning!$C$3:$C$79,B87,Lageromsætning!$D$3:$D$79,C87) -> 0
A88: =IFERROR(INDEX(Lageromsætning!$A$3:$A$79,SMALL(IF(Lageromsætning!$A$3:$A$79=$A$2,ROW(Lageromsætning!$A$3:$A$79)-CELL("row",Lageromsætning!$A$3:$A$79)+1),ROWS($1:85))),"") ->  | B88: =IFERROR(INDEX(Lageromsætning!$C$3:$C$79,SMALL(IF(Lageromsætning!$A$3:$A$79=$A$2,ROW(Lageromsætning!$A$3:$A$79)-CELL("row",Lageromsætning!$A$3:$A$79)+1),ROWS($2:86))),"") ->  | C88: =IFERROR(INDEX(Lageromsætning!$D$3:$D$79,SMALL(IF(Lageromsætning!$A$3:$A$79=$A$2,ROW(Lageromsætning!$A$3:$A$79)-CELL("row",Lageromsætning!$A$3:$A$79)+1),ROWS($2:86))),"") ->  | D88: =IFERROR(INDEX(Lageromsætning!$E$3:$E$79,SMALL(IF(Lageromsætning!$A$3:$A$79=$A$2,ROW(Lageromsætning!$A$3:$A$79)-CELL("row",Lageromsætning!$A$3:$A$79)+1),ROWS($2:86))),"") ->  | E88: =IFERROR(INDEX(Lageromsætning!$AF$3:$AF$79,SMALL(IF(Lageromsætning!$A$3:$A$79=$A$2,ROW(Lageromsætning!$A$3:$A$79)-CELL("row",Lageromsætning!$A$3:$A$79)+1),ROWS($2:86))),"") ->  | F88: =SUMIFS('Lager antal'!$D$3:$D$2508,'Lager antal'!$B$3:$B$2508,B88,'Lager antal'!$C$3:$C$2508,C88) -> 0 | G88: =SUMIFS('Lager antal'!$F$3:$F$2508,'Lager antal'!$B$3:$B$2508,B88,'Lager antal'!$C$3:$C$2508,C88) -> 0 | H88: =IF(ISNA(VLOOKUP($C88,'Lager antal'!$C$3:$K$508,9,FALSE))=TRUE,"",VLOOKUP($C88,'Lager antal'!$C$3:$K$508,9,FALSE)) ->  | I88: =IFERROR(INDEX(Lageromsætning!$P$3:$P$79,SMALL(IF(Lageromsætning!$A$3:$A$79=$A$2,ROW(Lageromsætning!$A$3:$A$79)-CELL("row",Lageromsætning!$A$3:$A$79)+1),ROWS($2:86))),"") ->  | J88: =+_xlfn.IFS($M88>=0.01,$M88,TRUE,0)-$F88-K88+G88 -> 0 | K88: =SUMIFS('Lager antal'!$G$3:$G$2508,'Lager antal'!$B$3:$B$2508,B88,'Lager antal'!$C$3:$C$2508,C88) -> 0 | M88: 0 | N88: =SUMIFS(Lageromsætning!$R$3:$R$79,Lageromsætning!$A$3:$A$79,$A$2,Lageromsætning!$C$3:$C$79,B88,Lageromsætning!$D$3:$D$79,C88) -> 0 | O88: =SUMIFS(Lageromsætning!$S$3:$S$79,Lageromsætning!$C$3:$C$79,B88,Lageromsætning!$D$3:$D$79,C88) -> 0
A89: =IFERROR(INDEX(Lageromsætning!$A$3:$A$79,SMALL(IF(Lageromsætning!$A$3:$A$79=$A$2,ROW(Lageromsætning!$A$3:$A$79)-CELL("row",Lageromsætning!$A$3:$A$79)+1),ROWS($1:86))),"") ->  | B89: =IFERROR(INDEX(Lageromsætning!$C$3:$C$79,SMALL(IF(Lageromsætning!$A$3:$A$79=$A$2,ROW(Lageromsætning!$A$3:$A$79)-CELL("row",Lageromsætning!$A$3:$A$79)+1),ROWS($2:87))),"") ->  | C89: =IFERROR(INDEX(Lageromsætning!$D$3:$D$79,SMALL(IF(Lageromsætning!$A$3:$A$79=$A$2,ROW(Lageromsætning!$A$3:$A$79)-CELL("row",Lageromsætning!$A$3:$A$79)+1),ROWS($2:87))),"") ->  | D89: =IFERROR(INDEX(Lageromsætning!$E$3:$E$79,SMALL(IF(Lageromsætning!$A$3:$A$79=$A$2,ROW(Lageromsætning!$A$3:$A$79)-CELL("row",Lageromsætning!$A$3:$A$79)+1),ROWS($2:87))),"") ->  | E89: =IFERROR(INDEX(Lageromsætning!$AF$3:$AF$79,SMALL(IF(Lageromsætning!$A$3:$A$79=$A$2,ROW(Lageromsætning!$A$3:$A$79)-CELL("row",Lageromsætning!$A$3:$A$79)+1),ROWS($2:87))),"") ->  | F89: =SUMIFS('Lager antal'!$D$3:$D$2508,'Lager antal'!$B$3:$B$2508,B89,'Lager antal'!$C$3:$C$2508,C89) -> 0 | G89: =SUMIFS('Lager antal'!$F$3:$F$2508,'Lager antal'!$B$3:$B$2508,B89,'Lager antal'!$C$3:$C$2508,C89) -> 0 | H89: =IF(ISNA(VLOOKUP($C89,'Lager antal'!$C$3:$K$508,9,FALSE))=TRUE,"",VLOOKUP($C89,'Lager antal'!$C$3:$K$508,9,FALSE)) ->  | I89: =IFERROR(INDEX(Lageromsætning!$P$3:$P$79,SMALL(IF(Lageromsætning!$A$3:$A$79=$A$2,ROW(Lageromsætning!$A$3:$A$79)-CELL("row",Lageromsætning!$A$3:$A$79)+1),ROWS($2:87))),"") ->  | J89: =+_xlfn.IFS($M89>=0.01,$M89,TRUE,0)-$F89-K89+G89 -> 0 | K89: =SUMIFS('Lager antal'!$G$3:$G$2508,'Lager antal'!$B$3:$B$2508,B89,'Lager antal'!$C$3:$C$2508,C89) -> 0 | M89: 0 | N89: =SUMIFS(Lageromsætning!$R$3:$R$79,Lageromsætning!$A$3:$A$79,$A$2,Lageromsætning!$C$3:$C$79,B89,Lageromsætning!$D$3:$D$79,C89) -> 0 | O89: =SUMIFS(Lageromsætning!$S$3:$S$79,Lageromsætning!$C$3:$C$79,B89,Lageromsætning!$D$3:$D$79,C89) -> 0
A90: =IFERROR(INDEX(Lageromsætning!$A$3:$A$79,SMALL(IF(Lageromsætning!$A$3:$A$79=$A$2,ROW(Lageromsætning!$A$3:$A$79)-CELL("row",Lageromsætning!$A$3:$A$79)+1),ROWS($1:87))),"") ->  | B90: =IFERROR(INDEX(Lageromsætning!$C$3:$C$79,SMALL(IF(Lageromsætning!$A$3:$A$79=$A$2,ROW(Lageromsætning!$A$3:$A$79)-CELL("row",Lageromsætning!$A$3:$A$79)+1),ROWS($2:88))),"") ->  | C90: =IFERROR(INDEX(Lageromsætning!$D$3:$D$79,SMALL(IF(Lageromsætning!$A$3:$A$79=$A$2,ROW(Lageromsætning!$A$3:$A$79)-CELL("row",Lageromsætning!$A$3:$A$79)+1),ROWS($2:88))),"") ->  | D90: =IFERROR(INDEX(Lageromsætning!$E$3:$E$79,SMALL(IF(Lageromsætning!$A$3:$A$79=$A$2,ROW(Lageromsætning!$A$3:$A$79)-CELL("row",Lageromsætning!$A$3:$A$79)+1),ROWS($2:88))),"") ->  | E90: =IFERROR(INDEX(Lageromsætning!$AF$3:$AF$79,SMALL(IF(Lageromsætning!$A$3:$A$79=$A$2,ROW(Lageromsætning!$A$3:$A$79)-CELL("row",Lageromsætning!$A$3:$A$79)+1),ROWS($2:88))),"") ->  | F90: =SUMIFS('Lager antal'!$D$3:$D$2508,'Lager antal'!$B$3:$B$2508,B90,'Lager antal'!$C$3:$C$2508,C90) -> 0 | G90: =SUMIFS('Lager antal'!$F$3:$F$2508,'Lager antal'!$B$3:$B$2508,B90,'Lager antal'!$C$3:$C$2508,C90) -> 0 | H90: =IF(ISNA(VLOOKUP($C90,'Lager antal'!$C$3:$K$508,9,FALSE))=TRUE,"",VLOOKUP($C90,'Lager antal'!$C$3:$K$508,9,FALSE)) ->  | I90: =IFERROR(INDEX(Lageromsætning!$P$3:$P$79,SMALL(IF(Lageromsætning!$A$3:$A$79=$A$2,ROW(Lageromsætning!$A$3:$A$79)-CELL("row",Lageromsætning!$A$3:$A$79)+1),ROWS($2:88))),"") ->  | J90: =+_xlfn.IFS($M90>=0.01,$M90,TRUE,0)-$F90-K90+G90 -> 0 | K90: =SUMIFS('Lager antal'!$G$3:$G$2508,'Lager antal'!$B$3:$B$2508,B90,'Lager antal'!$C$3:$C$2508,C90) -> 0 | M90: 0 | N90: =SUMIFS(Lageromsætning!$R$3:$R$79,Lageromsætning!$A$3:$A$79,$A$2,Lageromsætning!$C$3:$C$79,B90,Lageromsætning!$D$3:$D$79,C90) -> 0 | O90: =SUMIFS(Lageromsætning!$S$3:$S$79,Lageromsætning!$C$3:$C$79,B90,Lageromsætning!$D$3:$D$79,C90) -> 0
A91: =IFERROR(INDEX(Lageromsætning!$A$3:$A$79,SMALL(IF(Lageromsætning!$A$3:$A$79=$A$2,ROW(Lageromsætning!$A$3:$A$79)-CELL("row",Lageromsætning!$A$3:$A$79)+1),ROWS($1:88))),"") ->  | B91: =IFERROR(INDEX(Lageromsætning!$C$3:$C$79,SMALL(IF(Lageromsætning!$A$3:$A$79=$A$2,ROW(Lageromsætning!$A$3:$A$79)-CELL("row",Lageromsætning!$A$3:$A$79)+1),ROWS($2:89))),"") ->  | C91: =IFERROR(INDEX(Lageromsætning!$D$3:$D$79,SMALL(IF(Lageromsætning!$A$3:$A$79=$A$2,ROW(Lageromsætning!$A$3:$A$79)-CELL("row",Lageromsætning!$A$3:$A$79)+1),ROWS($2:89))),"") ->  | D91: =IFERROR(INDEX(Lageromsætning!$E$3:$E$79,SMALL(IF(Lageromsætning!$A$3:$A$79=$A$2,ROW(Lageromsætning!$A$3:$A$79)-CELL("row",Lageromsætning!$A$3:$A$79)+1),ROWS($2:89))),"") ->  | E91: =IFERROR(INDEX(Lageromsætning!$AF$3:$AF$79,SMALL(IF(Lageromsætning!$A$3:$A$79=$A$2,ROW(Lageromsætning!$A$3:$A$79)-CELL("row",Lageromsætning!$A$3:$A$79)+1),ROWS($2:89))),"") ->  | F91: =SUMIFS('Lager antal'!$D$3:$D$2508,'Lager antal'!$B$3:$B$2508,B91,'Lager antal'!$C$3:$C$2508,C91) -> 0 | G91: =SUMIFS('Lager antal'!$F$3:$F$2508,'Lager antal'!$B$3:$B$2508,B91,'Lager antal'!$C$3:$C$2508,C91) -> 0 | H91: =IF(ISNA(VLOOKUP($C91,'Lager antal'!$C$3:$K$508,9,FALSE))=TRUE,"",VLOOKUP($C91,'Lager antal'!$C$3:$K$508,9,FALSE)) ->  | I91: =IFERROR(INDEX(Lageromsætning!$P$3:$P$79,SMALL(IF(Lageromsætning!$A$3:$A$79=$A$2,ROW(Lageromsætning!$A$3:$A$79)-CELL("row",Lageromsætning!$A$3:$A$79)+1),ROWS($2:89))),"") ->  | J91: =+_xlfn.IFS($M91>=0.01,$M91,TRUE,0)-$F91-K91+G91 -> 0 | K91: =SUMIFS('Lager antal'!$G$3:$G$2508,'Lager antal'!$B$3:$B$2508,B91,'Lager antal'!$C$3:$C$2508,C91) -> 0 | M91: 0 | N91: =SUMIFS(Lageromsætning!$R$3:$R$79,Lageromsætning!$A$3:$A$79,$A$2,Lageromsætning!$C$3:$C$79,B91,Lageromsætning!$D$3:$D$79,C91) -> 0 | O91: =SUMIFS(Lageromsætning!$S$3:$S$79,Lageromsætning!$C$3:$C$79,B91,Lageromsætning!$D$3:$D$79,C91) -> 0
A92: =IFERROR(INDEX(Lageromsætning!$A$3:$A$79,SMALL(IF(Lageromsætning!$A$3:$A$79=$A$2,ROW(Lageromsætning!$A$3:$A$79)-CELL("row",Lageromsætning!$A$3:$A$79)+1),ROWS($1:89))),"") ->  | B92: =IFERROR(INDEX(Lageromsætning!$C$3:$C$79,SMALL(IF(Lageromsætning!$A$3:$A$79=$A$2,ROW(Lageromsætning!$A$3:$A$79)-CELL("row",Lageromsætning!$A$3:$A$79)+1),ROWS($2:90))),"") ->  | C92: =IFERROR(INDEX(Lageromsætning!$D$3:$D$79,SMALL(IF(Lageromsætning!$A$3:$A$79=$A$2,ROW(Lageromsætning!$A$3:$A$79)-CELL("row",Lageromsætning!$A$3:$A$79)+1),ROWS($2:90))),"") ->  | D92: =IFERROR(INDEX(Lageromsætning!$E$3:$E$79,SMALL(IF(Lageromsætning!$A$3:$A$79=$A$2,ROW(Lageromsætning!$A$3:$A$79)-CELL("row",Lageromsætning!$A$3:$A$79)+1),ROWS($2:90))),"") ->  | E92: =IFERROR(INDEX(Lageromsætning!$AF$3:$AF$79,SMALL(IF(Lageromsætning!$A$3:$A$79=$A$2,ROW(Lageromsætning!$A$3:$A$79)-CELL("row",Lageromsætning!$A$3:$A$79)+1),ROWS($2:90))),"") ->  | F92: =SUMIFS('Lager antal'!$D$3:$D$2508,'Lager antal'!$B$3:$B$2508,B92,'Lager antal'!$C$3:$C$2508,C92) -> 0 | G92: =SUMIFS('Lager antal'!$F$3:$F$2508,'Lager antal'!$B$3:$B$2508,B92,'Lager antal'!$C$3:$C$2508,C92) -> 0 | H92: =IF(ISNA(VLOOKUP($C92,'Lager antal'!$C$3:$K$508,9,FALSE))=TRUE,"",VLOOKUP($C92,'Lager antal'!$C$3:$K$508,9,FALSE)) ->  | I92: =IFERROR(INDEX(Lageromsætning!$P$3:$P$79,SMALL(IF(Lageromsætning!$A$3:$A$79=$A$2,ROW(Lageromsætning!$A$3:$A$79)-CELL("row",Lageromsætning!$A$3:$A$79)+1),ROWS($2:90))),"") ->  | J92: =+_xlfn.IFS($M92>=0.01,$M92,TRUE,0)-$F92-K92+G92 -> 0 | K92: =SUMIFS('Lager antal'!$G$3:$G$2508,'Lager antal'!$B$3:$B$2508,B92,'Lager antal'!$C$3:$C$2508,C92) -> 0 | M92: 0 | N92: =SUMIFS(Lageromsætning!$R$3:$R$79,Lageromsætning!$A$3:$A$79,$A$2,Lageromsætning!$C$3:$C$79,B92,Lageromsætning!$D$3:$D$79,C92) -> 0 | O92: =SUMIFS(Lageromsætning!$S$3:$S$79,Lageromsætning!$C$3:$C$79,B92,Lageromsætning!$D$3:$D$79,C92) -> 0
A93: =IFERROR(INDEX(Lageromsætning!$A$3:$A$79,SMALL(IF(Lageromsætning!$A$3:$A$79=$A$2,ROW(Lageromsætning!$A$3:$A$79)-CELL("row",Lageromsætning!$A$3:$A$79)+1),ROWS($1:90))),"") ->  | B93: =IFERROR(INDEX(Lageromsætning!$C$3:$C$79,SMALL(IF(Lageromsætning!$A$3:$A$79=$A$2,ROW(Lageromsætning!$A$3:$A$79)-CELL("row",Lageromsætning!$A$3:$A$79)+1),ROWS($2:91))),"") ->  | C93: =IFERROR(INDEX(Lageromsætning!$D$3:$D$79,SMALL(IF(Lageromsætning!$A$3:$A$79=$A$2,ROW(Lageromsætning!$A$3:$A$79)-CELL("row",Lageromsætning!$A$3:$A$79)+1),ROWS($2:91))),"") ->  | D93: =IFERROR(INDEX(Lageromsætning!$E$3:$E$79,SMALL(IF(Lageromsætning!$A$3:$A$79=$A$2,ROW(Lageromsætning!$A$3:$A$79)-CELL("row",Lageromsætning!$A$3:$A$79)+1),ROWS($2:91))),"") ->  | E93: =IFERROR(INDEX(Lageromsætning!$AF$3:$AF$79,SMALL(IF(Lageromsætning!$A$3:$A$79=$A$2,ROW(Lageromsætning!$A$3:$A$79)-CELL("row",Lageromsætning!$A$3:$A$79)+1),ROWS($2:91))),"") ->  | F93: =SUMIFS('Lager antal'!$D$3:$D$2508,'Lager antal'!$B$3:$B$2508,B93,'Lager antal'!$C$3:$C$2508,C93) -> 0 | G93: =SUMIFS('Lager antal'!$F$3:$F$2508,'Lager antal'!$B$3:$B$2508,B93,'Lager antal'!$C$3:$C$2508,C93) -> 0 | H93: =IF(ISNA(VLOOKUP($C93,'Lager antal'!$C$3:$K$508,9,FALSE))=TRUE,"",VLOOKUP($C93,'Lager antal'!$C$3:$K$508,9,FALSE)) ->  | I93: =IFERROR(INDEX(Lageromsætning!$P$3:$P$79,SMALL(IF(Lageromsætning!$A$3:$A$79=$A$2,ROW(Lageromsætning!$A$3:$A$79)-CELL("row",Lageromsætning!$A$3:$A$79)+1),ROWS($2:91))),"") ->  | J93: =+_xlfn.IFS($M93>=0.01,$M93,TRUE,0)-$F93-K93+G93 -> 0 | K93: =SUMIFS('Lager antal'!$G$3:$G$2508,'Lager antal'!$B$3:$B$2508,B93,'Lager antal'!$C$3:$C$2508,C93) -> 0 | M93: 0 | N93: =SUMIFS(Lageromsætning!$R$3:$R$79,Lageromsætning!$A$3:$A$79,$A$2,Lageromsætning!$C$3:$C$79,B93,Lageromsætning!$D$3:$D$79,C93) -> 0 | O93: =SUMIFS(Lageromsætning!$S$3:$S$79,Lageromsætning!$C$3:$C$79,B93,Lageromsætning!$D$3:$D$79,C93) -> 0
A94: =IFERROR(INDEX(Lageromsætning!$A$3:$A$79,SMALL(IF(Lageromsætning!$A$3:$A$79=$A$2,ROW(Lageromsætning!$A$3:$A$79)-CELL("row",Lageromsætning!$A$3:$A$79)+1),ROWS($1:91))),"") ->  | B94: =IFERROR(INDEX(Lageromsætning!$C$3:$C$79,SMALL(IF(Lageromsætning!$A$3:$A$79=$A$2,ROW(Lageromsætning!$A$3:$A$79)-CELL("row",Lageromsætning!$A$3:$A$79)+1),ROWS($2:92))),"") ->  | C94: =IFERROR(INDEX(Lageromsætning!$D$3:$D$79,SMALL(IF(Lageromsætning!$A$3:$A$79=$A$2,ROW(Lageromsætning!$A$3:$A$79)-CELL("row",Lageromsætning!$A$3:$A$79)+1),ROWS($2:92))),"") ->  | D94: =IFERROR(INDEX(Lageromsætning!$E$3:$E$79,SMALL(IF(Lageromsætning!$A$3:$A$79=$A$2,ROW(Lageromsætning!$A$3:$A$79)-CELL("row",Lageromsætning!$A$3:$A$79)+1),ROWS($2:92))),"") ->  | E94: =IFERROR(INDEX(Lageromsætning!$AF$3:$AF$79,SMALL(IF(Lageromsætning!$A$3:$A$79=$A$2,ROW(Lageromsætning!$A$3:$A$79)-CELL("row",Lageromsætning!$A$3:$A$79)+1),ROWS($2:92))),"") ->  | F94: =SUMIFS('Lager antal'!$D$3:$D$2508,'Lager antal'!$B$3:$B$2508,B94,'Lager antal'!$C$3:$C$2508,C94) -> 0 | G94: =SUMIFS('Lager antal'!$F$3:$F$2508,'Lager antal'!$B$3:$B$2508,B94,'Lager antal'!$C$3:$C$2508,C94) -> 0 | H94: =IF(ISNA(VLOOKUP($C94,'Lager antal'!$C$3:$K$508,9,FALSE))=TRUE,"",VLOOKUP($C94,'Lager antal'!$C$3:$K$508,9,FALSE)) ->  | I94: =IFERROR(INDEX(Lageromsætning!$P$3:$P$79,SMALL(IF(Lageromsætning!$A$3:$A$79=$A$2,ROW(Lageromsætning!$A$3:$A$79)-CELL("row",Lageromsætning!$A$3:$A$79)+1),ROWS($2:92))),"") ->  | J94: =+_xlfn.IFS($M94>=0.01,$M94,TRUE,0)-$F94-K94+G94 -> 0 | K94: =SUMIFS('Lager antal'!$G$3:$G$2508,'Lager antal'!$B$3:$B$2508,B94,'Lager antal'!$C$3:$C$2508,C94) -> 0 | M94: 0 | N94: =SUMIFS(Lageromsætning!$R$3:$R$79,Lageromsætning!$A$3:$A$79,$A$2,Lageromsætning!$C$3:$C$79,B94,Lageromsætning!$D$3:$D$79,C94) -> 0 | O94: =SUMIFS(Lageromsætning!$S$3:$S$79,Lageromsætning!$C$3:$C$79,B94,Lageromsætning!$D$3:$D$79,C94) -> 0
A95: =IFERROR(INDEX(Lageromsætning!$A$3:$A$79,SMALL(IF(Lageromsætning!$A$3:$A$79=$A$2,ROW(Lageromsætning!$A$3:$A$79)-CELL("row",Lageromsætning!$A$3:$A$79)+1),ROWS($1:92))),"") ->  | B95: =IFERROR(INDEX(Lageromsætning!$C$3:$C$79,SMALL(IF(Lageromsætning!$A$3:$A$79=$A$2,ROW(Lageromsætning!$A$3:$A$79)-CELL("row",Lageromsætning!$A$3:$A$79)+1),ROWS($2:93))),"") ->  | C95: =IFERROR(INDEX(Lageromsætning!$D$3:$D$79,SMALL(IF(Lageromsætning!$A$3:$A$79=$A$2,ROW(Lageromsætning!$A$3:$A$79)-CELL("row",Lageromsætning!$A$3:$A$79)+1),ROWS($2:93))),"") ->  | D95: =IFERROR(INDEX(Lageromsætning!$E$3:$E$79,SMALL(IF(Lageromsætning!$A$3:$A$79=$A$2,ROW(Lageromsætning!$A$3:$A$79)-CELL("row",Lageromsætning!$A$3:$A$79)+1),ROWS($2:93))),"") ->  | E95: =IFERROR(INDEX(Lageromsætning!$AF$3:$AF$79,SMALL(IF(Lageromsætning!$A$3:$A$79=$A$2,ROW(Lageromsætning!$A$3:$A$79)-CELL("row",Lageromsætning!$A$3:$A$79)+1),ROWS($2:93))),"") ->  | F95: =SUMIFS('Lager antal'!$D$3:$D$2508,'Lager antal'!$B$3:$B$2508,B95,'Lager antal'!$C$3:$C$2508,C95) -> 0 | G95: =SUMIFS('Lager antal'!$F$3:$F$2508,'Lager antal'!$B$3:$B$2508,B95,'Lager antal'!$C$3:$C$2508,C95) -> 0 | H95: =IF(ISNA(VLOOKUP($C95,'Lager antal'!$C$3:$K$508,9,FALSE))=TRUE,"",VLOOKUP($C95,'Lager antal'!$C$3:$K$508,9,FALSE)) ->  | I95: =IFERROR(INDEX(Lageromsætning!$P$3:$P$79,SMALL(IF(Lageromsætning!$A$3:$A$79=$A$2,ROW(Lageromsætning!$A$3:$A$79)-CELL("row",Lageromsætning!$A$3:$A$79)+1),ROWS($2:93))),"") ->  | J95: =+_xlfn.IFS($M95>=0.01,$M95,TRUE,0)-$F95-K95+G95 -> 0 | K95: =SUMIFS('Lager antal'!$G$3:$G$2508,'Lager antal'!$B$3:$B$2508,B95,'Lager antal'!$C$3:$C$2508,C95) -> 0 | M95: 0 | N95: =SUMIFS(Lageromsætning!$R$3:$R$79,Lageromsætning!$A$3:$A$79,$A$2,Lageromsætning!$C$3:$C$79,B95,Lageromsætning!$D$3:$D$79,C95) -> 0 | O95: =SUMIFS(Lageromsætning!$S$3:$S$79,Lageromsætning!$C$3:$C$79,B95,Lageromsætning!$D$3:$D$79,C95) -> 0
A96: =IFERROR(INDEX(Lageromsætning!$A$3:$A$79,SMALL(IF(Lageromsætning!$A$3:$A$79=$A$2,ROW(Lageromsætning!$A$3:$A$79)-CELL("row",Lageromsætning!$A$3:$A$79)+1),ROWS($1:93))),"") ->  | B96: =IFERROR(INDEX(Lageromsætning!$C$3:$C$79,SMALL(IF(Lageromsætning!$A$3:$A$79=$A$2,ROW(Lageromsætning!$A$3:$A$79)-CELL("row",Lageromsætning!$A$3:$A$79)+1),ROWS($2:94))),"") ->  | C96: =IFERROR(INDEX(Lageromsætning!$D$3:$D$79,SMALL(IF(Lageromsætning!$A$3:$A$79=$A$2,ROW(Lageromsætning!$A$3:$A$79)-CELL("row",Lageromsætning!$A$3:$A$79)+1),ROWS($2:94))),"") ->  | D96: =IFERROR(INDEX(Lageromsætning!$E$3:$E$79,SMALL(IF(Lageromsætning!$A$3:$A$79=$A$2,ROW(Lageromsætning!$A$3:$A$79)-CELL("row",Lageromsætning!$A$3:$A$79)+1),ROWS($2:94))),"") ->  | E96: =IFERROR(INDEX(Lageromsætning!$AF$3:$AF$79,SMALL(IF(Lageromsætning!$A$3:$A$79=$A$2,ROW(Lageromsætning!$A$3:$A$79)-CELL("row",Lageromsætning!$A$3:$A$79)+1),ROWS($2:94))),"") ->  | F96: =SUMIFS('Lager antal'!$D$3:$D$2508,'Lager antal'!$B$3:$B$2508,B96,'Lager antal'!$C$3:$C$2508,C96) -> 0 | G96: =SUMIFS('Lager antal'!$F$3:$F$2508,'Lager antal'!$B$3:$B$2508,B96,'Lager antal'!$C$3:$C$2508,C96) -> 0 | H96: =IF(ISNA(VLOOKUP($C96,'Lager antal'!$C$3:$K$508,9,FALSE))=TRUE,"",VLOOKUP($C96,'Lager antal'!$C$3:$K$508,9,FALSE)) ->  | I96: =IFERROR(INDEX(Lageromsætning!$P$3:$P$79,SMALL(IF(Lageromsætning!$A$3:$A$79=$A$2,ROW(Lageromsætning!$A$3:$A$79)-CELL("row",Lageromsætning!$A$3:$A$79)+1),ROWS($2:94))),"") ->  | J96: =+_xlfn.IFS($M96>=0.01,$M96,TRUE,0)-$F96-K96+G96 -> 0 | K96: =SUMIFS('Lager antal'!$G$3:$G$2508,'Lager antal'!$B$3:$B$2508,B96,'Lager antal'!$C$3:$C$2508,C96) -> 0 | M96: 0 | N96: =SUMIFS(Lageromsætning!$R$3:$R$79,Lageromsætning!$A$3:$A$79,$A$2,Lageromsætning!$C$3:$C$79,B96,Lageromsætning!$D$3:$D$79,C96) -> 0 | O96: =SUMIFS(Lageromsætning!$S$3:$S$79,Lageromsætning!$C$3:$C$79,B96,Lageromsætning!$D$3:$D$79,C96) -> 0
A97: =IFERROR(INDEX(Lageromsætning!$A$3:$A$79,SMALL(IF(Lageromsætning!$A$3:$A$79=$A$2,ROW(Lageromsætning!$A$3:$A$79)-CELL("row",Lageromsætning!$A$3:$A$79)+1),ROWS($1:94))),"") ->  | B97: =IFERROR(INDEX(Lageromsætning!$C$3:$C$79,SMALL(IF(Lageromsætning!$A$3:$A$79=$A$2,ROW(Lageromsætning!$A$3:$A$79)-CELL("row",Lageromsætning!$A$3:$A$79)+1),ROWS($2:95))),"") ->  | C97: =IFERROR(INDEX(Lageromsætning!$D$3:$D$79,SMALL(IF(Lageromsætning!$A$3:$A$79=$A$2,ROW(Lageromsætning!$A$3:$A$79)-CELL("row",Lageromsætning!$A$3:$A$79)+1),ROWS($2:95))),"") ->  | D97: =IFERROR(INDEX(Lageromsætning!$E$3:$E$79,SMALL(IF(Lageromsætning!$A$3:$A$79=$A$2,ROW(Lageromsætning!$A$3:$A$79)-CELL("row",Lageromsætning!$A$3:$A$79)+1),ROWS($2:95))),"") ->  | E97: =IFERROR(INDEX(Lageromsætning!$AF$3:$AF$79,SMALL(IF(Lageromsætning!$A$3:$A$79=$A$2,ROW(Lageromsætning!$A$3:$A$79)-CELL("row",Lageromsætning!$A$3:$A$79)+1),ROWS($2:95))),"") ->  | F97: =SUMIFS('Lager antal'!$D$3:$D$2508,'Lager antal'!$B$3:$B$2508,B97,'Lager antal'!$C$3:$C$2508,C97) -> 0 | G97: =SUMIFS('Lager antal'!$F$3:$F$2508,'Lager antal'!$B$3:$B$2508,B97,'Lager antal'!$C$3:$C$2508,C97) -> 0 | H97: =IF(ISNA(VLOOKUP($C97,'Lager antal'!$C$3:$K$508,9,FALSE))=TRUE,"",VLOOKUP($C97,'Lager antal'!$C$3:$K$508,9,FALSE)) ->  | I97: =IFERROR(INDEX(Lageromsætning!$P$3:$P$79,SMALL(IF(Lageromsætning!$A$3:$A$79=$A$2,ROW(Lageromsætning!$A$3:$A$79)-CELL("row",Lageromsætning!$A$3:$A$79)+1),ROWS($2:95))),"") ->  | J97: =+_xlfn.IFS($M97>=0.01,$M97,TRUE,0)-$F97-K97+G97 -> 0 | K97: =SUMIFS('Lager antal'!$G$3:$G$2508,'Lager antal'!$B$3:$B$2508,B97,'Lager antal'!$C$3:$C$2508,C97) -> 0 | M97: 0 | N97: =SUMIFS(Lageromsætning!$R$3:$R$79,Lageromsætning!$A$3:$A$79,$A$2,Lageromsætning!$C$3:$C$79,B97,Lageromsætning!$D$3:$D$79,C97) -> 0 | O97: =SUMIFS(Lageromsætning!$S$3:$S$79,Lageromsætning!$C$3:$C$79,B97,Lageromsætning!$D$3:$D$79,C97) -> 0
A98: =IFERROR(INDEX(Lageromsætning!$A$3:$A$79,SMALL(IF(Lageromsætning!$A$3:$A$79=$A$2,ROW(Lageromsætning!$A$3:$A$79)-CELL("row",Lageromsætning!$A$3:$A$79)+1),ROWS($1:95))),"") ->  | B98: =IFERROR(INDEX(Lageromsætning!$C$3:$C$79,SMALL(IF(Lageromsætning!$A$3:$A$79=$A$2,ROW(Lageromsætning!$A$3:$A$79)-CELL("row",Lageromsætning!$A$3:$A$79)+1),ROWS($2:96))),"") ->  | C98: =IFERROR(INDEX(Lageromsætning!$D$3:$D$79,SMALL(IF(Lageromsætning!$A$3:$A$79=$A$2,ROW(Lageromsætning!$A$3:$A$79)-CELL("row",Lageromsætning!$A$3:$A$79)+1),ROWS($2:96))),"") ->  | D98: =IFERROR(INDEX(Lageromsætning!$E$3:$E$79,SMALL(IF(Lageromsætning!$A$3:$A$79=$A$2,ROW(Lageromsætning!$A$3:$A$79)-CELL("row",Lageromsætning!$A$3:$A$79)+1),ROWS($2:96))),"") ->  | E98: =IFERROR(INDEX(Lageromsætning!$AF$3:$AF$79,SMALL(IF(Lageromsætning!$A$3:$A$79=$A$2,ROW(Lageromsætning!$A$3:$A$79)-CELL("row",Lageromsætning!$A$3:$A$79)+1),ROWS($2:96))),"") ->  | F98: =SUMIFS('Lager antal'!$D$3:$D$2508,'Lager antal'!$B$3:$B$2508,B98,'Lager antal'!$C$3:$C$2508,C98) -> 0 | G98: =SUMIFS('Lager antal'!$F$3:$F$2508,'Lager antal'!$B$3:$B$2508,B98,'Lager antal'!$C$3:$C$2508,C98) -> 0 | H98: =IF(ISNA(VLOOKUP($C98,'Lager antal'!$C$3:$K$508,9,FALSE))=TRUE,"",VLOOKUP($C98,'Lager antal'!$C$3:$K$508,9,FALSE)) ->  | I98: =IFERROR(INDEX(Lageromsætning!$P$3:$P$79,SMALL(IF(Lageromsætning!$A$3:$A$79=$A$2,ROW(Lageromsætning!$A$3:$A$79)-CELL("row",Lageromsætning!$A$3:$A$79)+1),ROWS($2:96))),"") ->  | J98: =+_xlfn.IFS($M98>=0.01,$M98,TRUE,0)-$F98-K98+G98 -> 0 | K98: =SUMIFS('Lager antal'!$G$3:$G$2508,'Lager antal'!$B$3:$B$2508,B98,'Lager antal'!$C$3:$C$2508,C98) -> 0 | M98: 0 | N98: =SUMIFS(Lageromsætning!$R$3:$R$79,Lageromsætning!$A$3:$A$79,$A$2,Lageromsætning!$C$3:$C$79,B98,Lageromsætning!$D$3:$D$79,C98) -> 0 | O98: =SUMIFS(Lageromsætning!$S$3:$S$79,Lageromsætning!$C$3:$C$79,B98,Lageromsætning!$D$3:$D$79,C98) -> 0
A99: =IFERROR(INDEX(Lageromsætning!$A$3:$A$79,SMALL(IF(Lageromsætning!$A$3:$A$79=$A$2,ROW(Lageromsætning!$A$3:$A$79)-CELL("row",Lageromsætning!$A$3:$A$79)+1),ROWS($1:96))),"") ->  | B99: =IFERROR(INDEX(Lageromsætning!$C$3:$C$79,SMALL(IF(Lageromsætning!$A$3:$A$79=$A$2,ROW(Lageromsætning!$A$3:$A$79)-CELL("row",Lageromsætning!$A$3:$A$79)+1),ROWS($2:97))),"") ->  | C99: =IFERROR(INDEX(Lageromsætning!$D$3:$D$79,SMALL(IF(Lageromsætning!$A$3:$A$79=$A$2,ROW(Lageromsætning!$A$3:$A$79)-CELL("row",Lageromsætning!$A$3:$A$79)+1),ROWS($2:97))),"") ->  | D99: =IFERROR(INDEX(Lageromsætning!$E$3:$E$79,SMALL(IF(Lageromsætning!$A$3:$A$79=$A$2,ROW(Lageromsætning!$A$3:$A$79)-CELL("row",Lageromsætning!$A$3:$A$79)+1),ROWS($2:97))),"") ->  | E99: =IFERROR(INDEX(Lageromsætning!$AF$3:$AF$79,SMALL(IF(Lageromsætning!$A$3:$A$79=$A$2,ROW(Lageromsætning!$A$3:$A$79)-CELL("row",Lageromsætning!$A$3:$A$79)+1),ROWS($2:97))),"") ->  | F99: =SUMIFS('Lager antal'!$D$3:$D$2508,'Lager antal'!$B$3:$B$2508,B99,'Lager antal'!$C$3:$C$2508,C99) -> 0 | G99: =SUMIFS('Lager antal'!$F$3:$F$2508,'Lager antal'!$B$3:$B$2508,B99,'Lager antal'!$C$3:$C$2508,C99) -> 0 | H99: =IF(ISNA(VLOOKUP($C99,'Lager antal'!$C$3:$K$508,9,FALSE))=TRUE,"",VLOOKUP($C99,'Lager antal'!$C$3:$K$508,9,FALSE)) ->  | I99: =IFERROR(INDEX(Lageromsætning!$P$3:$P$79,SMALL(IF(Lageromsætning!$A$3:$A$79=$A$2,ROW(Lageromsætning!$A$3:$A$79)-CELL("row",Lageromsætning!$A$3:$A$79)+1),ROWS($2:97))),"") ->  | J99: =+_xlfn.IFS($M99>=0.01,$M99,TRUE,0)-$F99-K99+G99 -> 0 | K99: =SUMIFS('Lager antal'!$G$3:$G$2508,'Lager antal'!$B$3:$B$2508,B99,'Lager antal'!$C$3:$C$2508,C99) -> 0 | M99: 0 | N99: =SUMIFS(Lageromsætning!$R$3:$R$79,Lageromsætning!$A$3:$A$79,$A$2,Lageromsætning!$C$3:$C$79,B99,Lageromsætning!$D$3:$D$79,C99) -> 0 | O99: =SUMIFS(Lageromsætning!$S$3:$S$79,Lageromsætning!$C$3:$C$79,B99,Lageromsætning!$D$3:$D$79,C99) -> 0
A100: =IFERROR(INDEX(Lageromsætning!$A$3:$A$79,SMALL(IF(Lageromsætning!$A$3:$A$79=$A$2,ROW(Lageromsætning!$A$3:$A$79)-CELL("row",Lageromsætning!$A$3:$A$79)+1),ROWS($1:97))),"") ->  | B100: =IFERROR(INDEX(Lageromsætning!$C$3:$C$79,SMALL(IF(Lageromsætning!$A$3:$A$79=$A$2,ROW(Lageromsætning!$A$3:$A$79)-CELL("row",Lageromsætning!$A$3:$A$79)+1),ROWS($2:98))),"") ->  | C100: =IFERROR(INDEX(Lageromsætning!$D$3:$D$79,SMALL(IF(Lageromsætning!$A$3:$A$79=$A$2,ROW(Lageromsætning!$A$3:$A$79)-CELL("row",Lageromsætning!$A$3:$A$79)+1),ROWS($2:98))),"") ->  | D100: =IFERROR(INDEX(Lageromsætning!$E$3:$E$79,SMALL(IF(Lageromsætning!$A$3:$A$79=$A$2,ROW(Lageromsætning!$A$3:$A$79)-CELL("row",Lageromsætning!$A$3:$A$79)+1),ROWS($2:98))),"") ->  | E100: =IFERROR(INDEX(Lageromsætning!$AF$3:$AF$79,SMALL(IF(Lageromsætning!$A$3:$A$79=$A$2,ROW(Lageromsætning!$A$3:$A$79)-CELL("row",Lageromsætning!$A$3:$A$79)+1),ROWS($2:98))),"") ->  | F100: =SUMIFS('Lager antal'!$D$3:$D$2508,'Lager antal'!$B$3:$B$2508,B100,'Lager antal'!$C$3:$C$2508,C100) -> 0 | G100: =SUMIFS('Lager antal'!$F$3:$F$2508,'Lager antal'!$B$3:$B$2508,B100,'Lager antal'!$C$3:$C$2508,C100) -> 0 | H100: =IF(ISNA(VLOOKUP($C100,'Lager antal'!$C$3:$K$508,9,FALSE))=TRUE,"",VLOOKUP($C100,'Lager antal'!$C$3:$K$508,9,FALSE)) ->  | I100: =IFERROR(INDEX(Lageromsætning!$P$3:$P$79,SMALL(IF(Lageromsætning!$A$3:$A$79=$A$2,ROW(Lageromsætning!$A$3:$A$79)-CELL("row",Lageromsætning!$A$3:$A$79)+1),ROWS($2:98))),"") ->  | J100: =+_xlfn.IFS($M100>=0.01,$M100,TRUE,0)-$F100-K100+G100 -> 0 | K100: =SUMIFS('Lager antal'!$G$3:$G$2508,'Lager antal'!$B$3:$B$2508,B100,'Lager antal'!$C$3:$C$2508,C100) -> 0 | M100: 0 | N100: =SUMIFS(Lageromsætning!$R$3:$R$79,Lageromsætning!$A$3:$A$79,$A$2,Lageromsætning!$C$3:$C$79,B100,Lageromsætning!$D$3:$D$79,C100) -> 0 | O100: =SUMIFS(Lageromsætning!$S$3:$S$79,Lageromsætning!$C$3:$C$79,B100,Lageromsætning!$D$3:$D$79,C100) -> 0
A101: =IFERROR(INDEX(Lageromsætning!$A$3:$A$79,SMALL(IF(Lageromsætning!$A$3:$A$79=$A$2,ROW(Lageromsætning!$A$3:$A$79)-CELL("row",Lageromsætning!$A$3:$A$79)+1),ROWS($1:98))),"") ->  | B101: =IFERROR(INDEX(Lageromsætning!$C$3:$C$79,SMALL(IF(Lageromsætning!$A$3:$A$79=$A$2,ROW(Lageromsætning!$A$3:$A$79)-CELL("row",Lageromsætning!$A$3:$A$79)+1),ROWS($2:99))),"") ->  | C101: =IFERROR(INDEX(Lageromsætning!$D$3:$D$79,SMALL(IF(Lageromsætning!$A$3:$A$79=$A$2,ROW(Lageromsætning!$A$3:$A$79)-CELL("row",Lageromsætning!$A$3:$A$79)+1),ROWS($2:99))),"") ->  | D101: =IFERROR(INDEX(Lageromsætning!$E$3:$E$79,SMALL(IF(Lageromsætning!$A$3:$A$79=$A$2,ROW(Lageromsætning!$A$3:$A$79)-CELL("row",Lageromsætning!$A$3:$A$79)+1),ROWS($2:99))),"") ->  | E101: =IFERROR(INDEX(Lageromsætning!$AF$3:$AF$79,SMALL(IF(Lageromsætning!$A$3:$A$79=$A$2,ROW(Lageromsætning!$A$3:$A$79)-CELL("row",Lageromsætning!$A$3:$A$79)+1),ROWS($2:99))),"") ->  | F101: =SUMIFS('Lager antal'!$D$3:$D$2508,'Lager antal'!$B$3:$B$2508,B101,'Lager antal'!$C$3:$C$2508,C101) -> 0 | G101: =SUMIFS('Lager antal'!$F$3:$F$2508,'Lager antal'!$B$3:$B$2508,B101,'Lager antal'!$C$3:$C$2508,C101) -> 0 | H101: =IF(ISNA(VLOOKUP($C101,'Lager antal'!$C$3:$K$508,9,FALSE))=TRUE,"",VLOOKUP($C101,'Lager antal'!$C$3:$K$508,9,FALSE)) ->  | I101: =IFERROR(INDEX(Lageromsætning!$P$3:$P$79,SMALL(IF(Lageromsætning!$A$3:$A$79=$A$2,ROW(Lageromsætning!$A$3:$A$79)-CELL("row",Lageromsætning!$A$3:$A$79)+1),ROWS($2:99))),"") ->  | J101: =+_xlfn.IFS($M101>=0.01,$M101,TRUE,0)-$F101-K101+G101 -> 0 | K101: =SUMIFS('Lager antal'!$G$3:$G$2508,'Lager antal'!$B$3:$B$2508,B101,'Lager antal'!$C$3:$C$2508,C101) -> 0 | M101: 0 | N101: =SUMIFS(Lageromsætning!$R$3:$R$79,Lageromsætning!$A$3:$A$79,$A$2,Lageromsætning!$C$3:$C$79,B101,Lageromsætning!$D$3:$D$79,C101) -> 0 | O101: =SUMIFS(Lageromsætning!$S$3:$S$79,Lageromsætning!$C$3:$C$79,B101,Lageromsætning!$D$3:$D$79,C101) -> 0
A102: =IFERROR(INDEX(Lageromsætning!$A$3:$A$79,SMALL(IF(Lageromsætning!$A$3:$A$79=$A$2,ROW(Lageromsætning!$A$3:$A$79)-CELL("row",Lageromsætning!$A$3:$A$79)+1),ROWS($1:99))),"") ->  | B102: =IFERROR(INDEX(Lageromsætning!$C$3:$C$79,SMALL(IF(Lageromsætning!$A$3:$A$79=$A$2,ROW(Lageromsætning!$A$3:$A$79)-CELL("row",Lageromsætning!$A$3:$A$79)+1),ROWS($2:100))),"") ->  | C102: =IFERROR(INDEX(Lageromsætning!$D$3:$D$79,SMALL(IF(Lageromsætning!$A$3:$A$79=$A$2,ROW(Lageromsætning!$A$3:$A$79)-CELL("row",Lageromsætning!$A$3:$A$79)+1),ROWS($2:100))),"") ->  | D102: =IFERROR(INDEX(Lageromsætning!$E$3:$E$79,SMALL(IF(Lageromsætning!$A$3:$A$79=$A$2,ROW(Lageromsætning!$A$3:$A$79)-CELL("row",Lageromsætning!$A$3:$A$79)+1),ROWS($2:100))),"") ->  | E102: =IFERROR(INDEX(Lageromsætning!$AF$3:$AF$79,SMALL(IF(Lageromsætning!$A$3:$A$79=$A$2,ROW(Lageromsætning!$A$3:$A$79)-CELL("row",Lageromsætning!$A$3:$A$79)+1),ROWS($2:100))),"") ->  | F102: =SUMIFS('Lager antal'!$D$3:$D$2508,'Lager antal'!$B$3:$B$2508,B102,'Lager antal'!$C$3:$C$2508,C102) -> 0 | G102: =SUMIFS('Lager antal'!$F$3:$F$2508,'Lager antal'!$B$3:$B$2508,B102,'Lager antal'!$C$3:$C$2508,C102) -> 0 | H102: =IF(ISNA(VLOOKUP($C102,'Lager antal'!$C$3:$K$508,9,FALSE))=TRUE,"",VLOOKUP($C102,'Lager antal'!$C$3:$K$508,9,FALSE)) ->  | I102: =IFERROR(INDEX(Lageromsætning!$P$3:$P$79,SMALL(IF(Lageromsætning!$A$3:$A$79=$A$2,ROW(Lageromsætning!$A$3:$A$79)-CELL("row",Lageromsætning!$A$3:$A$79)+1),ROWS($2:100))),"") ->  | J102: =+_xlfn.IFS($M102>=0.01,$M102,TRUE,0)-$F102-K102+G102 -> 0 | K102: =SUMIFS('Lager antal'!$G$3:$G$2508,'Lager antal'!$B$3:$B$2508,B102,'Lager antal'!$C$3:$C$2508,C102) -> 0 | M102: 0 | N102: =SUMIFS(Lageromsætning!$R$3:$R$79,Lageromsætning!$A$3:$A$79,$A$2,Lageromsætning!$C$3:$C$79,B102,Lageromsætning!$D$3:$D$79,C102) -> 0 | O102: =SUMIFS(Lageromsætning!$S$3:$S$79,Lageromsætning!$C$3:$C$79,B102,Lageromsætning!$D$3:$D$79,C102) -> 0
A103: =IFERROR(INDEX(Lageromsætning!$A$3:$A$79,SMALL(IF(Lageromsætning!$A$3:$A$79=$A$2,ROW(Lageromsætning!$A$3:$A$79)-CELL("row",Lageromsætning!$A$3:$A$79)+1),ROWS($1:100))),"") ->  | B103: =IFERROR(INDEX(Lageromsætning!$C$3:$C$79,SMALL(IF(Lageromsætning!$A$3:$A$79=$A$2,ROW(Lageromsætning!$A$3:$A$79)-CELL("row",Lageromsætning!$A$3:$A$79)+1),ROWS($2:101))),"") ->  | C103: =IFERROR(INDEX(Lageromsætning!$D$3:$D$79,SMALL(IF(Lageromsætning!$A$3:$A$79=$A$2,ROW(Lageromsætning!$A$3:$A$79)-CELL("row",Lageromsætning!$A$3:$A$79)+1),ROWS($2:101))),"") ->  | D103: =IFERROR(INDEX(Lageromsætning!$E$3:$E$79,SMALL(IF(Lageromsætning!$A$3:$A$79=$A$2,ROW(Lageromsætning!$A$3:$A$79)-CELL("row",Lageromsætning!$A$3:$A$79)+1),ROWS($2:101))),"") ->  | E103: =IFERROR(INDEX(Lageromsætning!$AF$3:$AF$79,SMALL(IF(Lageromsætning!$A$3:$A$79=$A$2,ROW(Lageromsætning!$A$3:$A$79)-CELL("row",Lageromsætning!$A$3:$A$79)+1),ROWS($2:101))),"") ->  | F103: =SUMIFS('Lager antal'!$D$3:$D$2508,'Lager antal'!$B$3:$B$2508,B103,'Lager antal'!$C$3:$C$2508,C103) -> 0 | G103: =SUMIFS('Lager antal'!$F$3:$F$2508,'Lager antal'!$B$3:$B$2508,B103,'Lager antal'!$C$3:$C$2508,C103) -> 0 | H103: =IF(ISNA(VLOOKUP($C103,'Lager antal'!$C$3:$K$508,9,FALSE))=TRUE,"",VLOOKUP($C103,'Lager antal'!$C$3:$K$508,9,FALSE)) ->  | I103: =IFERROR(INDEX(Lageromsætning!$P$3:$P$79,SMALL(IF(Lageromsætning!$A$3:$A$79=$A$2,ROW(Lageromsætning!$A$3:$A$79)-CELL("row",Lageromsætning!$A$3:$A$79)+1),ROWS($2:101))),"") ->  | J103: =+_xlfn.IFS($M103>=0.01,$M103,TRUE,0)-$F103-K103+G103 -> 0 | K103: =SUMIFS('Lager antal'!$G$3:$G$2508,'Lager antal'!$B$3:$B$2508,B103,'Lager antal'!$C$3:$C$2508,C103) -> 0 | M103: 0 | N103: =SUMIFS(Lageromsætning!$R$3:$R$79,Lageromsætning!$A$3:$A$79,$A$2,Lageromsætning!$C$3:$C$79,B103,Lageromsætning!$D$3:$D$79,C103) -> 0 | O103: =SUMIFS(Lageromsætning!$S$3:$S$79,Lageromsætning!$C$3:$C$79,B103,Lageromsætning!$D$3:$D$79,C103) -> 0
A104: =IFERROR(INDEX(Lageromsætning!$A$3:$A$79,SMALL(IF(Lageromsætning!$A$3:$A$79=$A$2,ROW(Lageromsætning!$A$3:$A$79)-CELL("row",Lageromsætning!$A$3:$A$79)+1),ROWS($1:101))),"") ->  | B104: =IFERROR(INDEX(Lageromsætning!$C$3:$C$79,SMALL(IF(Lageromsætning!$A$3:$A$79=$A$2,ROW(Lageromsætning!$A$3:$A$79)-CELL("row",Lageromsætning!$A$3:$A$79)+1),ROWS($2:102))),"") ->  | C104: =IFERROR(INDEX(Lageromsætning!$D$3:$D$79,SMALL(IF(Lageromsætning!$A$3:$A$79=$A$2,ROW(Lageromsætning!$A$3:$A$79)-CELL("row",Lageromsætning!$A$3:$A$79)+1),ROWS($2:102))),"") ->  | D104: =IFERROR(INDEX(Lageromsætning!$E$3:$E$79,SMALL(IF(Lageromsætning!$A$3:$A$79=$A$2,ROW(Lageromsætning!$A$3:$A$79)-CELL("row",Lageromsætning!$A$3:$A$79)+1),ROWS($2:102))),"") ->  | E104: =IFERROR(INDEX(Lageromsætning!$AF$3:$AF$79,SMALL(IF(Lageromsætning!$A$3:$A$79=$A$2,ROW(Lageromsætning!$A$3:$A$79)-CELL("row",Lageromsætning!$A$3:$A$79)+1),ROWS($2:102))),"") ->  | F104: =SUMIFS('Lager antal'!$D$3:$D$2508,'Lager antal'!$B$3:$B$2508,B104,'Lager antal'!$C$3:$C$2508,C104) -> 0 | G104: =SUMIFS('Lager antal'!$F$3:$F$2508,'Lager antal'!$B$3:$B$2508,B104,'Lager antal'!$C$3:$C$2508,C104) -> 0 | H104: =IF(ISNA(VLOOKUP($C104,'Lager antal'!$C$3:$K$508,9,FALSE))=TRUE,"",VLOOKUP($C104,'Lager antal'!$C$3:$K$508,9,FALSE)) ->  | I104: =IFERROR(INDEX(Lageromsætning!$P$3:$P$79,SMALL(IF(Lageromsætning!$A$3:$A$79=$A$2,ROW(Lageromsætning!$A$3:$A$79)-CELL("row",Lageromsætning!$A$3:$A$79)+1),ROWS($2:102))),"") ->  | J104: =+_xlfn.IFS($M104>=0.01,$M104,TRUE,0)-$F104-K104+G104 -> 0 | K104: =SUMIFS('Lager antal'!$G$3:$G$2508,'Lager antal'!$B$3:$B$2508,B104,'Lager antal'!$C$3:$C$2508,C104) -> 0 | M104: 0 | N104: =SUMIFS(Lageromsætning!$R$3:$R$79,Lageromsætning!$A$3:$A$79,$A$2,Lageromsætning!$C$3:$C$79,B104,Lageromsætning!$D$3:$D$79,C104) -> 0 | O104: =SUMIFS(Lageromsætning!$S$3:$S$79,Lageromsætning!$C$3:$C$79,B104,Lageromsætning!$D$3:$D$79,C104) -> 0
A105: =IFERROR(INDEX(Lageromsætning!$A$3:$A$79,SMALL(IF(Lageromsætning!$A$3:$A$79=$A$2,ROW(Lageromsætning!$A$3:$A$79)-CELL("row",Lageromsætning!$A$3:$A$79)+1),ROWS($1:102))),"") ->  | B105: =IFERROR(INDEX(Lageromsætning!$C$3:$C$79,SMALL(IF(Lageromsætning!$A$3:$A$79=$A$2,ROW(Lageromsætning!$A$3:$A$79)-CELL("row",Lageromsætning!$A$3:$A$79)+1),ROWS($2:103))),"") ->  | C105: =IFERROR(INDEX(Lageromsætning!$D$3:$D$79,SMALL(IF(Lageromsætning!$A$3:$A$79=$A$2,ROW(Lageromsætning!$A$3:$A$79)-CELL("row",Lageromsætning!$A$3:$A$79)+1),ROWS($2:103))),"") ->  | D105: =IFERROR(INDEX(Lageromsætning!$E$3:$E$79,SMALL(IF(Lageromsætning!$A$3:$A$79=$A$2,ROW(Lageromsætning!$A$3:$A$79)-CELL("row",Lageromsætning!$A$3:$A$79)+1),ROWS($2:103))),"") ->  | E105: =IFERROR(INDEX(Lageromsætning!$AF$3:$AF$79,SMALL(IF(Lageromsætning!$A$3:$A$79=$A$2,ROW(Lageromsætning!$A$3:$A$79)-CELL("row",Lageromsætning!$A$3:$A$79)+1),ROWS($2:103))),"") ->  | F105: =SUMIFS('Lager antal'!$D$3:$D$2508,'Lager antal'!$B$3:$B$2508,B105,'Lager antal'!$C$3:$C$2508,C105) -> 0 | G105: =SUMIFS('Lager antal'!$F$3:$F$2508,'Lager antal'!$B$3:$B$2508,B105,'Lager antal'!$C$3:$C$2508,C105) -> 0 | H105: =IF(ISNA(VLOOKUP($C105,'Lager antal'!$C$3:$K$508,9,FALSE))=TRUE,"",VLOOKUP($C105,'Lager antal'!$C$3:$K$508,9,FALSE)) ->  | I105: =IFERROR(INDEX(Lageromsætning!$P$3:$P$79,SMALL(IF(Lageromsætning!$A$3:$A$79=$A$2,ROW(Lageromsætning!$A$3:$A$79)-CELL("row",Lageromsætning!$A$3:$A$79)+1),ROWS($2:103))),"") ->  | J105: =+_xlfn.IFS($M105>=0.01,$M105,TRUE,0)-$F105-K105+G105 -> 0 | K105: =SUMIFS('Lager antal'!$G$3:$G$2508,'Lager antal'!$B$3:$B$2508,B105,'Lager antal'!$C$3:$C$2508,C105) -> 0 | M105: 0 | N105: =SUMIFS(Lageromsætning!$R$3:$R$79,Lageromsætning!$A$3:$A$79,$A$2,Lageromsætning!$C$3:$C$79,B105,Lageromsætning!$D$3:$D$79,C105) -> 0 | O105: =SUMIFS(Lageromsætning!$S$3:$S$79,Lageromsætning!$C$3:$C$79,B105,Lageromsætning!$D$3:$D$79,C105) -> 0
A106: =IFERROR(INDEX(Lageromsætning!$A$3:$A$79,SMALL(IF(Lageromsætning!$A$3:$A$79=$A$2,ROW(Lageromsætning!$A$3:$A$79)-CELL("row",Lageromsætning!$A$3:$A$79)+1),ROWS($1:103))),"") ->  | B106: =IFERROR(INDEX(Lageromsætning!$C$3:$C$79,SMALL(IF(Lageromsætning!$A$3:$A$79=$A$2,ROW(Lageromsætning!$A$3:$A$79)-CELL("row",Lageromsætning!$A$3:$A$79)+1),ROWS($2:104))),"") ->  | C106: =IFERROR(INDEX(Lageromsætning!$D$3:$D$79,SMALL(IF(Lageromsætning!$A$3:$A$79=$A$2,ROW(Lageromsætning!$A$3:$A$79)-CELL("row",Lageromsætning!$A$3:$A$79)+1),ROWS($2:104))),"") ->  | D106: =IFERROR(INDEX(Lageromsætning!$E$3:$E$79,SMALL(IF(Lageromsætning!$A$3:$A$79=$A$2,ROW(Lageromsætning!$A$3:$A$79)-CELL("row",Lageromsætning!$A$3:$A$79)+1),ROWS($2:104))),"") ->  | E106: =IFERROR(INDEX(Lageromsætning!$AF$3:$AF$79,SMALL(IF(Lageromsætning!$A$3:$A$79=$A$2,ROW(Lageromsætning!$A$3:$A$79)-CELL("row",Lageromsætning!$A$3:$A$79)+1),ROWS($2:104))),"") ->  | F106: =SUMIFS('Lager antal'!$D$3:$D$2508,'Lager antal'!$B$3:$B$2508,B106,'Lager antal'!$C$3:$C$2508,C106) -> 0 | G106: =SUMIFS('Lager antal'!$F$3:$F$2508,'Lager antal'!$B$3:$B$2508,B106,'Lager antal'!$C$3:$C$2508,C106) -> 0 | H106: =IF(ISNA(VLOOKUP($C106,'Lager antal'!$C$3:$K$508,9,FALSE))=TRUE,"",VLOOKUP($C106,'Lager antal'!$C$3:$K$508,9,FALSE)) ->  | I106: =IFERROR(INDEX(Lageromsætning!$P$3:$P$79,SMALL(IF(Lageromsætning!$A$3:$A$79=$A$2,ROW(Lageromsætning!$A$3:$A$79)-CELL("row",Lageromsætning!$A$3:$A$79)+1),ROWS($2:104))),"") ->  | J106: =+_xlfn.IFS($M106>=0.01,$M106,TRUE,0)-$F106-K106+G106 -> 0 | K106: =SUMIFS('Lager antal'!$G$3:$G$2508,'Lager antal'!$B$3:$B$2508,B106,'Lager antal'!$C$3:$C$2508,C106) -> 0 | M106: 0 | N106: =SUMIFS(Lageromsætning!$R$3:$R$79,Lageromsætning!$A$3:$A$79,$A$2,Lageromsætning!$C$3:$C$79,B106,Lageromsætning!$D$3:$D$79,C106) -> 0 | O106: =SUMIFS(Lageromsætning!$S$3:$S$79,Lageromsætning!$C$3:$C$79,B106,Lageromsætning!$D$3:$D$79,C106) -> 0
A107: =IFERROR(INDEX(Lageromsætning!$A$3:$A$79,SMALL(IF(Lageromsætning!$A$3:$A$79=$A$2,ROW(Lageromsætning!$A$3:$A$79)-CELL("row",Lageromsætning!$A$3:$A$79)+1),ROWS($1:104))),"") ->  | B107: =IFERROR(INDEX(Lageromsætning!$C$3:$C$79,SMALL(IF(Lageromsætning!$A$3:$A$79=$A$2,ROW(Lageromsætning!$A$3:$A$79)-CELL("row",Lageromsætning!$A$3:$A$79)+1),ROWS($2:105))),"") ->  | C107: =IFERROR(INDEX(Lageromsætning!$D$3:$D$79,SMALL(IF(Lageromsætning!$A$3:$A$79=$A$2,ROW(Lageromsætning!$A$3:$A$79)-CELL("row",Lageromsætning!$A$3:$A$79)+1),ROWS($2:105))),"") ->  | D107: =IFERROR(INDEX(Lageromsætning!$E$3:$E$79,SMALL(IF(Lageromsætning!$A$3:$A$79=$A$2,ROW(Lageromsætning!$A$3:$A$79)-CELL("row",Lageromsætning!$A$3:$A$79)+1),ROWS($2:105))),"") ->  | E107: =IFERROR(INDEX(Lageromsætning!$AF$3:$AF$79,SMALL(IF(Lageromsætning!$A$3:$A$79=$A$2,ROW(Lageromsætning!$A$3:$A$79)-CELL("row",Lageromsætning!$A$3:$A$79)+1),ROWS($2:105))),"") ->  | F107: =SUMIFS('Lager antal'!$D$3:$D$2508,'Lager antal'!$B$3:$B$2508,B107,'Lager antal'!$C$3:$C$2508,C107) -> 0 | G107: =SUMIFS('Lager antal'!$F$3:$F$2508,'Lager antal'!$B$3:$B$2508,B107,'Lager antal'!$C$3:$C$2508,C107) -> 0 | H107: =IF(ISNA(VLOOKUP($C107,'Lager antal'!$C$3:$K$508,9,FALSE))=TRUE,"",VLOOKUP($C107,'Lager antal'!$C$3:$K$508,9,FALSE)) ->  | I107: =IFERROR(INDEX(Lageromsætning!$P$3:$P$79,SMALL(IF(Lageromsætning!$A$3:$A$79=$A$2,ROW(Lageromsætning!$A$3:$A$79)-CELL("row",Lageromsætning!$A$3:$A$79)+1),ROWS($2:105))),"") ->  | J107: =+_xlfn.IFS($M107>=0.01,$M107,TRUE,0)-$F107-K107+G107 -> 0 | K107: =SUMIFS('Lager antal'!$G$3:$G$2508,'Lager antal'!$B$3:$B$2508,B107,'Lager antal'!$C$3:$C$2508,C107) -> 0 | M107: 0 | N107: =SUMIFS(Lageromsætning!$R$3:$R$79,Lageromsætning!$A$3:$A$79,$A$2,Lageromsætning!$C$3:$C$79,B107,Lageromsætning!$D$3:$D$79,C107) -> 0 | O107: =SUMIFS(Lageromsætning!$S$3:$S$79,Lageromsætning!$C$3:$C$79,B107,Lageromsætning!$D$3:$D$79,C107) -> 0
A108: =IFERROR(INDEX(Lageromsætning!$A$3:$A$79,SMALL(IF(Lageromsætning!$A$3:$A$79=$A$2,ROW(Lageromsætning!$A$3:$A$79)-CELL("row",Lageromsætning!$A$3:$A$79)+1),ROWS($1:105))),"") ->  | B108: =IFERROR(INDEX(Lageromsætning!$C$3:$C$79,SMALL(IF(Lageromsætning!$A$3:$A$79=$A$2,ROW(Lageromsætning!$A$3:$A$79)-CELL("row",Lageromsætning!$A$3:$A$79)+1),ROWS($2:106))),"") ->  | C108: =IFERROR(INDEX(Lageromsætning!$D$3:$D$79,SMALL(IF(Lageromsætning!$A$3:$A$79=$A$2,ROW(Lageromsætning!$A$3:$A$79)-CELL("row",Lageromsætning!$A$3:$A$79)+1),ROWS($2:106))),"") ->  | D108: =IFERROR(INDEX(Lageromsætning!$E$3:$E$79,SMALL(IF(Lageromsætning!$A$3:$A$79=$A$2,ROW(Lageromsætning!$A$3:$A$79)-CELL("row",Lageromsætning!$A$3:$A$79)+1),ROWS($2:106))),"") ->  | E108: =IFERROR(INDEX(Lageromsætning!$AF$3:$AF$79,SMALL(IF(Lageromsætning!$A$3:$A$79=$A$2,ROW(Lageromsætning!$A$3:$A$79)-CELL("row",Lageromsætning!$A$3:$A$79)+1),ROWS($2:106))),"") ->  | F108: =SUMIFS('Lager antal'!$D$3:$D$2508,'Lager antal'!$B$3:$B$2508,B108,'Lager antal'!$C$3:$C$2508,C108) -> 0 | G108: =SUMIFS('Lager antal'!$F$3:$F$2508,'Lager antal'!$B$3:$B$2508,B108,'Lager antal'!$C$3:$C$2508,C108) -> 0 | H108: =IF(ISNA(VLOOKUP($C108,'Lager antal'!$C$3:$K$508,9,FALSE))=TRUE,"",VLOOKUP($C108,'Lager antal'!$C$3:$K$508,9,FALSE)) ->  | I108: =IFERROR(INDEX(Lageromsætning!$P$3:$P$79,SMALL(IF(Lageromsætning!$A$3:$A$79=$A$2,ROW(Lageromsætning!$A$3:$A$79)-CELL("row",Lageromsætning!$A$3:$A$79)+1),ROWS($2:106))),"") ->  | J108: =+_xlfn.IFS($M108>=0.01,$M108,TRUE,0)-$F108-K108+G108 -> 0 | K108: =SUMIFS('Lager antal'!$G$3:$G$2508,'Lager antal'!$B$3:$B$2508,B108,'Lager antal'!$C$3:$C$2508,C108) -> 0 | M108: 0 | N108: =SUMIFS(Lageromsætning!$R$3:$R$79,Lageromsætning!$A$3:$A$79,$A$2,Lageromsætning!$C$3:$C$79,B108,Lageromsætning!$D$3:$D$79,C108) -> 0 | O108: =SUMIFS(Lageromsætning!$S$3:$S$79,Lageromsætning!$C$3:$C$79,B108,Lageromsætning!$D$3:$D$79,C108) -> 0
A109: =IFERROR(INDEX(Lageromsætning!$A$3:$A$79,SMALL(IF(Lageromsætning!$A$3:$A$79=$A$2,ROW(Lageromsætning!$A$3:$A$79)-CELL("row",Lageromsætning!$A$3:$A$79)+1),ROWS($1:106))),"") ->  | B109: =IFERROR(INDEX(Lageromsætning!$C$3:$C$79,SMALL(IF(Lageromsætning!$A$3:$A$79=$A$2,ROW(Lageromsætning!$A$3:$A$79)-CELL("row",Lageromsætning!$A$3:$A$79)+1),ROWS($2:107))),"") ->  | C109: =IFERROR(INDEX(Lageromsætning!$D$3:$D$79,SMALL(IF(Lageromsætning!$A$3:$A$79=$A$2,ROW(Lageromsætning!$A$3:$A$79)-CELL("row",Lageromsætning!$A$3:$A$79)+1),ROWS($2:107))),"") ->  | D109: =IFERROR(INDEX(Lageromsætning!$E$3:$E$79,SMALL(IF(Lageromsætning!$A$3:$A$79=$A$2,ROW(Lageromsætning!$A$3:$A$79)-CELL("row",Lageromsætning!$A$3:$A$79)+1),ROWS($2:107))),"") ->  | E109: =IFERROR(INDEX(Lageromsætning!$AF$3:$AF$79,SMALL(IF(Lageromsætning!$A$3:$A$79=$A$2,ROW(Lageromsætning!$A$3:$A$79)-CELL("row",Lageromsætning!$A$3:$A$79)+1),ROWS($2:107))),"") ->  | F109: =SUMIFS('Lager antal'!$D$3:$D$2508,'Lager antal'!$B$3:$B$2508,B109,'Lager antal'!$C$3:$C$2508,C109) -> 0 | G109: =SUMIFS('Lager antal'!$F$3:$F$2508,'Lager antal'!$B$3:$B$2508,B109,'Lager antal'!$C$3:$C$2508,C109) -> 0 | H109: =IF(ISNA(VLOOKUP($C109,'Lager antal'!$C$3:$K$508,9,FALSE))=TRUE,"",VLOOKUP($C109,'Lager antal'!$C$3:$K$508,9,FALSE)) ->  | I109: =IFERROR(INDEX(Lageromsætning!$P$3:$P$79,SMALL(IF(Lageromsætning!$A$3:$A$79=$A$2,ROW(Lageromsætning!$A$3:$A$79)-CELL("row",Lageromsætning!$A$3:$A$79)+1),ROWS($2:107))),"") ->  | J109: =+_xlfn.IFS($M109>=0.01,$M109,TRUE,0)-$F109-K109+G109 -> 0 | K109: =SUMIFS('Lager antal'!$G$3:$G$2508,'Lager antal'!$B$3:$B$2508,B109,'Lager antal'!$C$3:$C$2508,C109) -> 0 | M109: 0 | N109: =SUMIFS(Lageromsætning!$R$3:$R$79,Lageromsætning!$A$3:$A$79,$A$2,Lageromsætning!$C$3:$C$79,B109,Lageromsætning!$D$3:$D$79,C109) -> 0 | O109: =SUMIFS(Lageromsætning!$S$3:$S$79,Lageromsætning!$C$3:$C$79,B109,Lageromsætning!$D$3:$D$79,C109) -> 0
A110: =IFERROR(INDEX(Lageromsætning!$A$3:$A$79,SMALL(IF(Lageromsætning!$A$3:$A$79=$A$2,ROW(Lageromsætning!$A$3:$A$79)-CELL("row",Lageromsætning!$A$3:$A$79)+1),ROWS($1:107))),"") ->  | B110: =IFERROR(INDEX(Lageromsætning!$C$3:$C$79,SMALL(IF(Lageromsætning!$A$3:$A$79=$A$2,ROW(Lageromsætning!$A$3:$A$79)-CELL("row",Lageromsætning!$A$3:$A$79)+1),ROWS($2:108))),"") ->  | C110: =IFERROR(INDEX(Lageromsætning!$D$3:$D$79,SMALL(IF(Lageromsætning!$A$3:$A$79=$A$2,ROW(Lageromsætning!$A$3:$A$79)-CELL("row",Lageromsætning!$A$3:$A$79)+1),ROWS($2:108))),"") ->  | D110: =IFERROR(INDEX(Lageromsætning!$E$3:$E$79,SMALL(IF(Lageromsætning!$A$3:$A$79=$A$2,ROW(Lageromsætning!$A$3:$A$79)-CELL("row",Lageromsætning!$A$3:$A$79)+1),ROWS($2:108))),"") ->  | E110: =IFERROR(INDEX(Lageromsætning!$AF$3:$AF$79,SMALL(IF(Lageromsætning!$A$3:$A$79=$A$2,ROW(Lageromsætning!$A$3:$A$79)-CELL("row",Lageromsætning!$A$3:$A$79)+1),ROWS($2:108))),"") ->  | F110: =SUMIFS('Lager antal'!$D$3:$D$2508,'Lager antal'!$B$3:$B$2508,B110,'Lager antal'!$C$3:$C$2508,C110) -> 0 | G110: =SUMIFS('Lager antal'!$F$3:$F$2508,'Lager antal'!$B$3:$B$2508,B110,'Lager antal'!$C$3:$C$2508,C110) -> 0 | H110: =IF(ISNA(VLOOKUP($C110,'Lager antal'!$C$3:$K$508,9,FALSE))=TRUE,"",VLOOKUP($C110,'Lager antal'!$C$3:$K$508,9,FALSE)) ->  | I110: =IFERROR(INDEX(Lageromsætning!$P$3:$P$79,SMALL(IF(Lageromsætning!$A$3:$A$79=$A$2,ROW(Lageromsætning!$A$3:$A$79)-CELL("row",Lageromsætning!$A$3:$A$79)+1),ROWS($2:108))),"") ->  | J110: =+_xlfn.IFS($M110>=0.01,$M110,TRUE,0)-$F110-K110+G110 -> 0 | K110: =SUMIFS('Lager antal'!$G$3:$G$2508,'Lager antal'!$B$3:$B$2508,B110,'Lager antal'!$C$3:$C$2508,C110) -> 0 | M110: 0 | N110: =SUMIFS(Lageromsætning!$R$3:$R$79,Lageromsætning!$A$3:$A$79,$A$2,Lageromsætning!$C$3:$C$79,B110,Lageromsætning!$D$3:$D$79,C110) -> 0 | O110: =SUMIFS(Lageromsætning!$S$3:$S$79,Lageromsætning!$C$3:$C$79,B110,Lageromsætning!$D$3:$D$79,C110) -> 0
A111: =IFERROR(INDEX(Lageromsætning!$A$3:$A$79,SMALL(IF(Lageromsætning!$A$3:$A$79=$A$2,ROW(Lageromsætning!$A$3:$A$79)-CELL("row",Lageromsætning!$A$3:$A$79)+1),ROWS($1:108))),"") ->  | B111: =IFERROR(INDEX(Lageromsætning!$C$3:$C$79,SMALL(IF(Lageromsætning!$A$3:$A$79=$A$2,ROW(Lageromsætning!$A$3:$A$79)-CELL("row",Lageromsætning!$A$3:$A$79)+1),ROWS($2:109))),"") ->  | C111: =IFERROR(INDEX(Lageromsætning!$D$3:$D$79,SMALL(IF(Lageromsætning!$A$3:$A$79=$A$2,ROW(Lageromsætning!$A$3:$A$79)-CELL("row",Lageromsætning!$A$3:$A$79)+1),ROWS($2:109))),"") ->  | D111: =IFERROR(INDEX(Lageromsætning!$E$3:$E$79,SMALL(IF(Lageromsætning!$A$3:$A$79=$A$2,ROW(Lageromsætning!$A$3:$A$79)-CELL("row",Lageromsætning!$A$3:$A$79)+1),ROWS($2:109))),"") ->  | E111: =IFERROR(INDEX(Lageromsætning!$AF$3:$AF$79,SMALL(IF(Lageromsætning!$A$3:$A$79=$A$2,ROW(Lageromsætning!$A$3:$A$79)-CELL("row",Lageromsætning!$A$3:$A$79)+1),ROWS($2:109))),"") ->  | F111: =SUMIFS('Lager antal'!$D$3:$D$2508,'Lager antal'!$B$3:$B$2508,B111,'Lager antal'!$C$3:$C$2508,C111) -> 0 | G111: =SUMIFS('Lager antal'!$F$3:$F$2508,'Lager antal'!$B$3:$B$2508,B111,'Lager antal'!$C$3:$C$2508,C111) -> 0 | H111: =IF(ISNA(VLOOKUP($C111,'Lager antal'!$C$3:$K$508,9,FALSE))=TRUE,"",VLOOKUP($C111,'Lager antal'!$C$3:$K$508,9,FALSE)) ->  | I111: =IFERROR(INDEX(Lageromsætning!$P$3:$P$79,SMALL(IF(Lageromsætning!$A$3:$A$79=$A$2,ROW(Lageromsætning!$A$3:$A$79)-CELL("row",Lageromsætning!$A$3:$A$79)+1),ROWS($2:109))),"") ->  | J111: =+_xlfn.IFS($M111>=0.01,$M111,TRUE,0)-$F111-K111+G111 -> 0 | K111: =SUMIFS('Lager antal'!$G$3:$G$2508,'Lager antal'!$B$3:$B$2508,B111,'Lager antal'!$C$3:$C$2508,C111) -> 0 | M111: 0 | N111: =SUMIFS(Lageromsætning!$R$3:$R$79,Lageromsætning!$A$3:$A$79,$A$2,Lageromsætning!$C$3:$C$79,B111,Lageromsætning!$D$3:$D$79,C111) -> 0 | O111: =SUMIFS(Lageromsætning!$S$3:$S$79,Lageromsætning!$C$3:$C$79,B111,Lageromsætning!$D$3:$D$79,C111) -> 0
A112: =IFERROR(INDEX(Lageromsætning!$A$3:$A$79,SMALL(IF(Lageromsætning!$A$3:$A$79=$A$2,ROW(Lageromsætning!$A$3:$A$79)-CELL("row",Lageromsætning!$A$3:$A$79)+1),ROWS($1:109))),"") ->  | B112: =IFERROR(INDEX(Lageromsætning!$C$3:$C$79,SMALL(IF(Lageromsætning!$A$3:$A$79=$A$2,ROW(Lageromsætning!$A$3:$A$79)-CELL("row",Lageromsætning!$A$3:$A$79)+1),ROWS($2:110))),"") ->  | C112: =IFERROR(INDEX(Lageromsætning!$D$3:$D$79,SMALL(IF(Lageromsætning!$A$3:$A$79=$A$2,ROW(Lageromsætning!$A$3:$A$79)-CELL("row",Lageromsætning!$A$3:$A$79)+1),ROWS($2:110))),"") ->  | D112: =IFERROR(INDEX(Lageromsætning!$E$3:$E$79,SMALL(IF(Lageromsætning!$A$3:$A$79=$A$2,ROW(Lageromsætning!$A$3:$A$79)-CELL("row",Lageromsætning!$A$3:$A$79)+1),ROWS($2:110))),"") ->  | E112: =IFERROR(INDEX(Lageromsætning!$AF$3:$AF$79,SMALL(IF(Lageromsætning!$A$3:$A$79=$A$2,ROW(Lageromsætning!$A$3:$A$79)-CELL("row",Lageromsætning!$A$3:$A$79)+1),ROWS($2:110))),"") ->  | F112: =SUMIFS('Lager antal'!$D$3:$D$2508,'Lager antal'!$B$3:$B$2508,B112,'Lager antal'!$C$3:$C$2508,C112) -> 0 | G112: =SUMIFS('Lager antal'!$F$3:$F$2508,'Lager antal'!$B$3:$B$2508,B112,'Lager antal'!$C$3:$C$2508,C112) -> 0 | H112: =IF(ISNA(VLOOKUP($C112,'Lager antal'!$C$3:$K$508,9,FALSE))=TRUE,"",VLOOKUP($C112,'Lager antal'!$C$3:$K$508,9,FALSE)) ->  | I112: =IFERROR(INDEX(Lageromsætning!$P$3:$P$79,SMALL(IF(Lageromsætning!$A$3:$A$79=$A$2,ROW(Lageromsætning!$A$3:$A$79)-CELL("row",Lageromsætning!$A$3:$A$79)+1),ROWS($2:110))),"") ->  | J112: =+_xlfn.IFS($M112>=0.01,$M112,TRUE,0)-$F112-K112+G112 -> 0 | K112: =SUMIFS('Lager antal'!$G$3:$G$2508,'Lager antal'!$B$3:$B$2508,B112,'Lager antal'!$C$3:$C$2508,C112) -> 0 | M112: 0 | N112: =SUMIFS(Lageromsætning!$R$3:$R$79,Lageromsætning!$A$3:$A$79,$A$2,Lageromsætning!$C$3:$C$79,B112,Lageromsætning!$D$3:$D$79,C112) -> 0 | O112: =SUMIFS(Lageromsætning!$S$3:$S$79,Lageromsætning!$C$3:$C$79,B112,Lageromsætning!$D$3:$D$79,C112) -> 0
A113: =IFERROR(INDEX(Lageromsætning!$A$3:$A$79,SMALL(IF(Lageromsætning!$A$3:$A$79=$A$2,ROW(Lageromsætning!$A$3:$A$79)-CELL("row",Lageromsætning!$A$3:$A$79)+1),ROWS($1:110))),"") ->  | B113: =IFERROR(INDEX(Lageromsætning!$C$3:$C$79,SMALL(IF(Lageromsætning!$A$3:$A$79=$A$2,ROW(Lageromsætning!$A$3:$A$79)-CELL("row",Lageromsætning!$A$3:$A$79)+1),ROWS($2:111))),"") ->  | C113: =IFERROR(INDEX(Lageromsætning!$D$3:$D$79,SMALL(IF(Lageromsætning!$A$3:$A$79=$A$2,ROW(Lageromsætning!$A$3:$A$79)-CELL("row",Lageromsætning!$A$3:$A$79)+1),ROWS($2:111))),"") ->  | D113: =IFERROR(INDEX(Lageromsætning!$E$3:$E$79,SMALL(IF(Lageromsætning!$A$3:$A$79=$A$2,ROW(Lageromsætning!$A$3:$A$79)-CELL("row",Lageromsætning!$A$3:$A$79)+1),ROWS($2:111))),"") ->  | E113: =IFERROR(INDEX(Lageromsætning!$AF$3:$AF$79,SMALL(IF(Lageromsætning!$A$3:$A$79=$A$2,ROW(Lageromsætning!$A$3:$A$79)-CELL("row",Lageromsætning!$A$3:$A$79)+1),ROWS($2:111))),"") ->  | F113: =SUMIFS('Lager antal'!$D$3:$D$2508,'Lager antal'!$B$3:$B$2508,B113,'Lager antal'!$C$3:$C$2508,C113) -> 0 | G113: =SUMIFS('Lager antal'!$F$3:$F$2508,'Lager antal'!$B$3:$B$2508,B113,'Lager antal'!$C$3:$C$2508,C113) -> 0 | H113: =IF(ISNA(VLOOKUP($C113,'Lager antal'!$C$3:$K$508,9,FALSE))=TRUE,"",VLOOKUP($C113,'Lager antal'!$C$3:$K$508,9,FALSE)) ->  | I113: =IFERROR(INDEX(Lageromsætning!$P$3:$P$79,SMALL(IF(Lageromsætning!$A$3:$A$79=$A$2,ROW(Lageromsætning!$A$3:$A$79)-CELL("row",Lageromsætning!$A$3:$A$79)+1),ROWS($2:111))),"") ->  | J113: =+_xlfn.IFS($M113>=0.01,$M113,TRUE,0)-$F113-K113+G113 -> 0 | K113: =SUMIFS('Lager antal'!$G$3:$G$2508,'Lager antal'!$B$3:$B$2508,B113,'Lager antal'!$C$3:$C$2508,C113) -> 0 | M113: 0 | N113: =SUMIFS(Lageromsætning!$R$3:$R$79,Lageromsætning!$A$3:$A$79,$A$2,Lageromsætning!$C$3:$C$79,B113,Lageromsætning!$D$3:$D$79,C113) -> 0 | O113: =SUMIFS(Lageromsætning!$S$3:$S$79,Lageromsætning!$C$3:$C$79,B113,Lageromsætning!$D$3:$D$79,C113) -> 0
A114: =IFERROR(INDEX(Lageromsætning!$A$3:$A$79,SMALL(IF(Lageromsætning!$A$3:$A$79=$A$2,ROW(Lageromsætning!$A$3:$A$79)-CELL("row",Lageromsætning!$A$3:$A$79)+1),ROWS($1:111))),"") ->  | B114: =IFERROR(INDEX(Lageromsætning!$C$3:$C$79,SMALL(IF(Lageromsætning!$A$3:$A$79=$A$2,ROW(Lageromsætning!$A$3:$A$79)-CELL("row",Lageromsætning!$A$3:$A$79)+1),ROWS($2:112))),"") ->  | C114: =IFERROR(INDEX(Lageromsætning!$D$3:$D$79,SMALL(IF(Lageromsætning!$A$3:$A$79=$A$2,ROW(Lageromsætning!$A$3:$A$79)-CELL("row",Lageromsætning!$A$3:$A$79)+1),ROWS($2:112))),"") ->  | D114: =IFERROR(INDEX(Lageromsætning!$E$3:$E$79,SMALL(IF(Lageromsætning!$A$3:$A$79=$A$2,ROW(Lageromsætning!$A$3:$A$79)-CELL("row",Lageromsætning!$A$3:$A$79)+1),ROWS($2:112))),"") ->  | E114: =IFERROR(INDEX(Lageromsætning!$AF$3:$AF$79,SMALL(IF(Lageromsætning!$A$3:$A$79=$A$2,ROW(Lageromsætning!$A$3:$A$79)-CELL("row",Lageromsætning!$A$3:$A$79)+1),ROWS($2:112))),"") ->  | F114: =SUMIFS('Lager antal'!$D$3:$D$2508,'Lager antal'!$B$3:$B$2508,B114,'Lager antal'!$C$3:$C$2508,C114) -> 0 | G114: =SUMIFS('Lager antal'!$F$3:$F$2508,'Lager antal'!$B$3:$B$2508,B114,'Lager antal'!$C$3:$C$2508,C114) -> 0 | H114: =IF(ISNA(VLOOKUP($C114,'Lager antal'!$C$3:$K$508,9,FALSE))=TRUE,"",VLOOKUP($C114,'Lager antal'!$C$3:$K$508,9,FALSE)) ->  | I114: =IFERROR(INDEX(Lageromsætning!$P$3:$P$79,SMALL(IF(Lageromsætning!$A$3:$A$79=$A$2,ROW(Lageromsætning!$A$3:$A$79)-CELL("row",Lageromsætning!$A$3:$A$79)+1),ROWS($2:112))),"") ->  | J114: =+_xlfn.IFS($M114>=0.01,$M114,TRUE,0)-$F114-K114+G114 -> 0 | K114: =SUMIFS('Lager antal'!$G$3:$G$2508,'Lager antal'!$B$3:$B$2508,B114,'Lager antal'!$C$3:$C$2508,C114) -> 0 | M114: 0 | N114: =SUMIFS(Lageromsætning!$R$3:$R$79,Lageromsætning!$A$3:$A$79,$A$2,Lageromsætning!$C$3:$C$79,B114,Lageromsætning!$D$3:$D$79,C114) -> 0 | O114: =SUMIFS(Lageromsætning!$S$3:$S$79,Lageromsætning!$C$3:$C$79,B114,Lageromsætning!$D$3:$D$79,C114) -> 0
A115: =IFERROR(INDEX(Lageromsætning!$A$3:$A$79,SMALL(IF(Lageromsætning!$A$3:$A$79=$A$2,ROW(Lageromsætning!$A$3:$A$79)-CELL("row",Lageromsætning!$A$3:$A$79)+1),ROWS($1:112))),"") ->  | B115: =IFERROR(INDEX(Lageromsætning!$C$3:$C$79,SMALL(IF(Lageromsætning!$A$3:$A$79=$A$2,ROW(Lageromsætning!$A$3:$A$79)-CELL("row",Lageromsætning!$A$3:$A$79)+1),ROWS($2:113))),"") ->  | C115: =IFERROR(INDEX(Lageromsætning!$D$3:$D$79,SMALL(IF(Lageromsætning!$A$3:$A$79=$A$2,ROW(Lageromsætning!$A$3:$A$79)-CELL("row",Lageromsætning!$A$3:$A$79)+1),ROWS($2:113))),"") ->  | D115: =IFERROR(INDEX(Lageromsætning!$E$3:$E$79,SMALL(IF(Lageromsætning!$A$3:$A$79=$A$2,ROW(Lageromsætning!$A$3:$A$79)-CELL("row",Lageromsætning!$A$3:$A$79)+1),ROWS($2:113))),"") ->  | E115: =IFERROR(INDEX(Lageromsætning!$AF$3:$AF$79,SMALL(IF(Lageromsætning!$A$3:$A$79=$A$2,ROW(Lageromsætning!$A$3:$A$79)-CELL("row",Lageromsætning!$A$3:$A$79)+1),ROWS($2:113))),"") ->  | F115: =SUMIFS('Lager antal'!$D$3:$D$2508,'Lager antal'!$B$3:$B$2508,B115,'Lager antal'!$C$3:$C$2508,C115) -> 0 | G115: =SUMIFS('Lager antal'!$F$3:$F$2508,'Lager antal'!$B$3:$B$2508,B115,'Lager antal'!$C$3:$C$2508,C115) -> 0 | H115: =IF(ISNA(VLOOKUP($C115,'Lager antal'!$C$3:$K$508,9,FALSE))=TRUE,"",VLOOKUP($C115,'Lager antal'!$C$3:$K$508,9,FALSE)) ->  | I115: =IFERROR(INDEX(Lageromsætning!$P$3:$P$79,SMALL(IF(Lageromsætning!$A$3:$A$79=$A$2,ROW(Lageromsætning!$A$3:$A$79)-CELL("row",Lageromsætning!$A$3:$A$79)+1),ROWS($2:113))),"") ->  | J115: =+_xlfn.IFS($M115>=0.01,$M115,TRUE,0)-$F115-K115+G115 -> 0 | K115: =SUMIFS('Lager antal'!$G$3:$G$2508,'Lager antal'!$B$3:$B$2508,B115,'Lager antal'!$C$3:$C$2508,C115) -> 0 | M115: 0 | N115: =SUMIFS(Lageromsætning!$R$3:$R$79,Lageromsætning!$A$3:$A$79,$A$2,Lageromsætning!$C$3:$C$79,B115,Lageromsætning!$D$3:$D$79,C115) -> 0 | O115: =SUMIFS(Lageromsætning!$S$3:$S$79,Lageromsætning!$C$3:$C$79,B115,Lageromsætning!$D$3:$D$79,C115) -> 0
A116: =IFERROR(INDEX(Lageromsætning!$A$3:$A$79,SMALL(IF(Lageromsætning!$A$3:$A$79=$A$2,ROW(Lageromsætning!$A$3:$A$79)-CELL("row",Lageromsætning!$A$3:$A$79)+1),ROWS($1:113))),"") ->  | B116: =IFERROR(INDEX(Lageromsætning!$C$3:$C$79,SMALL(IF(Lageromsætning!$A$3:$A$79=$A$2,ROW(Lageromsætning!$A$3:$A$79)-CELL("row",Lageromsætning!$A$3:$A$79)+1),ROWS($2:114))),"") ->  | C116: =IFERROR(INDEX(Lageromsætning!$D$3:$D$79,SMALL(IF(Lageromsætning!$A$3:$A$79=$A$2,ROW(Lageromsætning!$A$3:$A$79)-CELL("row",Lageromsætning!$A$3:$A$79)+1),ROWS($2:114))),"") ->  | D116: =IFERROR(INDEX(Lageromsætning!$E$3:$E$79,SMALL(IF(Lageromsætning!$A$3:$A$79=$A$2,ROW(Lageromsætning!$A$3:$A$79)-CELL("row",Lageromsætning!$A$3:$A$79)+1),ROWS($2:114))),"") ->  | E116: =IFERROR(INDEX(Lageromsætning!$AF$3:$AF$79,SMALL(IF(Lageromsætning!$A$3:$A$79=$A$2,ROW(Lageromsætning!$A$3:$A$79)-CELL("row",Lageromsætning!$A$3:$A$79)+1),ROWS($2:114))),"") ->  | F116: =SUMIFS('Lager antal'!$D$3:$D$2508,'Lager antal'!$B$3:$B$2508,B116,'Lager antal'!$C$3:$C$2508,C116) -> 0 | G116: =SUMIFS('Lager antal'!$F$3:$F$2508,'Lager antal'!$B$3:$B$2508,B116,'Lager antal'!$C$3:$C$2508,C116) -> 0 | H116: =IF(ISNA(VLOOKUP($C116,'Lager antal'!$C$3:$K$508,9,FALSE))=TRUE,"",VLOOKUP($C116,'Lager antal'!$C$3:$K$508,9,FALSE)) ->  | I116: =IFERROR(INDEX(Lageromsætning!$P$3:$P$79,SMALL(IF(Lageromsætning!$A$3:$A$79=$A$2,ROW(Lageromsætning!$A$3:$A$79)-CELL("row",Lageromsætning!$A$3:$A$79)+1),ROWS($2:114))),"") ->  | J116: =+_xlfn.IFS($M116>=0.01,$M116,TRUE,0)-$F116-K116+G116 -> 0 | K116: =SUMIFS('Lager antal'!$G$3:$G$2508,'Lager antal'!$B$3:$B$2508,B116,'Lager antal'!$C$3:$C$2508,C116) -> 0 | M116: 0 | N116: =SUMIFS(Lageromsætning!$R$3:$R$79,Lageromsætning!$A$3:$A$79,$A$2,Lageromsætning!$C$3:$C$79,B116,Lageromsætning!$D$3:$D$79,C116) -> 0 | O116: =SUMIFS(Lageromsætning!$S$3:$S$79,Lageromsætning!$C$3:$C$79,B116,Lageromsætning!$D$3:$D$79,C116) -> 0
A117: =IFERROR(INDEX(Lageromsætning!$A$3:$A$79,SMALL(IF(Lageromsætning!$A$3:$A$79=$A$2,ROW(Lageromsætning!$A$3:$A$79)-CELL("row",Lageromsætning!$A$3:$A$79)+1),ROWS($1:114))),"") ->  | B117: =IFERROR(INDEX(Lageromsætning!$C$3:$C$79,SMALL(IF(Lageromsætning!$A$3:$A$79=$A$2,ROW(Lageromsætning!$A$3:$A$79)-CELL("row",Lageromsætning!$A$3:$A$79)+1),ROWS($2:115))),"") ->  | C117: =IFERROR(INDEX(Lageromsætning!$D$3:$D$79,SMALL(IF(Lageromsætning!$A$3:$A$79=$A$2,ROW(Lageromsætning!$A$3:$A$79)-CELL("row",Lageromsætning!$A$3:$A$79)+1),ROWS($2:115))),"") ->  | D117: =IFERROR(INDEX(Lageromsætning!$E$3:$E$79,SMALL(IF(Lageromsætning!$A$3:$A$79=$A$2,ROW(Lageromsætning!$A$3:$A$79)-CELL("row",Lageromsætning!$A$3:$A$79)+1),ROWS($2:115))),"") ->  | E117: =IFERROR(INDEX(Lageromsætning!$AF$3:$AF$79,SMALL(IF(Lageromsætning!$A$3:$A$79=$A$2,ROW(Lageromsætning!$A$3:$A$79)-CELL("row",Lageromsætning!$A$3:$A$79)+1),ROWS($2:115))),"") ->  | F117: =SUMIFS('Lager antal'!$D$3:$D$2508,'Lager antal'!$B$3:$B$2508,B117,'Lager antal'!$C$3:$C$2508,C117) -> 0 | G117: =SUMIFS('Lager antal'!$F$3:$F$2508,'Lager antal'!$B$3:$B$2508,B117,'Lager antal'!$C$3:$C$2508,C117) -> 0 | H117: =IF(ISNA(VLOOKUP($C117,'Lager antal'!$C$3:$K$508,9,FALSE))=TRUE,"",VLOOKUP($C117,'Lager antal'!$C$3:$K$508,9,FALSE)) ->  | I117: =IFERROR(INDEX(Lageromsætning!$P$3:$P$79,SMALL(IF(Lageromsætning!$A$3:$A$79=$A$2,ROW(Lageromsætning!$A$3:$A$79)-CELL("row",Lageromsætning!$A$3:$A$79)+1),ROWS($2:115))),"") ->  | J117: =+_xlfn.IFS($M117>=0.01,$M117,TRUE,0)-$F117-K117+G117 -> 0 | K117: =SUMIFS('Lager antal'!$G$3:$G$2508,'Lager antal'!$B$3:$B$2508,B117,'Lager antal'!$C$3:$C$2508,C117) -> 0 | M117: 0 | N117: =SUMIFS(Lageromsætning!$R$3:$R$79,Lageromsætning!$A$3:$A$79,$A$2,Lageromsætning!$C$3:$C$79,B117,Lageromsætning!$D$3:$D$79,C117) -> 0 | O117: =SUMIFS(Lageromsætning!$S$3:$S$79,Lageromsætning!$C$3:$C$79,B117,Lageromsætning!$D$3:$D$79,C117) -> 0
A118: =IFERROR(INDEX(Lageromsætning!$A$3:$A$79,SMALL(IF(Lageromsætning!$A$3:$A$79=$A$2,ROW(Lageromsætning!$A$3:$A$79)-CELL("row",Lageromsætning!$A$3:$A$79)+1),ROWS($1:115))),"") ->  | B118: =IFERROR(INDEX(Lageromsætning!$C$3:$C$79,SMALL(IF(Lageromsætning!$A$3:$A$79=$A$2,ROW(Lageromsætning!$A$3:$A$79)-CELL("row",Lageromsætning!$A$3:$A$79)+1),ROWS($2:116))),"") ->  | C118: =IFERROR(INDEX(Lageromsætning!$D$3:$D$79,SMALL(IF(Lageromsætning!$A$3:$A$79=$A$2,ROW(Lageromsætning!$A$3:$A$79)-CELL("row",Lageromsætning!$A$3:$A$79)+1),ROWS($2:116))),"") ->  | D118: =IFERROR(INDEX(Lageromsætning!$E$3:$E$79,SMALL(IF(Lageromsætning!$A$3:$A$79=$A$2,ROW(Lageromsætning!$A$3:$A$79)-CELL("row",Lageromsætning!$A$3:$A$79)+1),ROWS($2:116))),"") ->  | E118: =IFERROR(INDEX(Lageromsætning!$AF$3:$AF$79,SMALL(IF(Lageromsætning!$A$3:$A$79=$A$2,ROW(Lageromsætning!$A$3:$A$79)-CELL("row",Lageromsætning!$A$3:$A$79)+1),ROWS($2:116))),"") ->  | F118: =SUMIFS('Lager antal'!$D$3:$D$2508,'Lager antal'!$B$3:$B$2508,B118,'Lager antal'!$C$3:$C$2508,C118) -> 0 | G118: =SUMIFS('Lager antal'!$F$3:$F$2508,'Lager antal'!$B$3:$B$2508,B118,'Lager antal'!$C$3:$C$2508,C118) -> 0 | H118: =IF(ISNA(VLOOKUP($C118,'Lager antal'!$C$3:$K$508,9,FALSE))=TRUE,"",VLOOKUP($C118,'Lager antal'!$C$3:$K$508,9,FALSE)) ->  | I118: =IFERROR(INDEX(Lageromsætning!$P$3:$P$79,SMALL(IF(Lageromsætning!$A$3:$A$79=$A$2,ROW(Lageromsætning!$A$3:$A$79)-CELL("row",Lageromsætning!$A$3:$A$79)+1),ROWS($2:116))),"") ->  | J118: =+_xlfn.IFS($M118>=0.01,$M118,TRUE,0)-$F118-K118+G118 -> 0 | K118: =SUMIFS('Lager antal'!$G$3:$G$2508,'Lager antal'!$B$3:$B$2508,B118,'Lager antal'!$C$3:$C$2508,C118) -> 0 | M118: 0 | N118: =SUMIFS(Lageromsætning!$R$3:$R$79,Lageromsætning!$A$3:$A$79,$A$2,Lageromsætning!$C$3:$C$79,B118,Lageromsætning!$D$3:$D$79,C118) -> 0 | O118: =SUMIFS(Lageromsætning!$S$3:$S$79,Lageromsætning!$C$3:$C$79,B118,Lageromsætning!$D$3:$D$79,C118) -> 0
A119: =IFERROR(INDEX(Lageromsætning!$A$3:$A$79,SMALL(IF(Lageromsætning!$A$3:$A$79=$A$2,ROW(Lageromsætning!$A$3:$A$79)-CELL("row",Lageromsætning!$A$3:$A$79)+1),ROWS($1:116))),"") ->  | B119: =IFERROR(INDEX(Lageromsætning!$C$3:$C$79,SMALL(IF(Lageromsætning!$A$3:$A$79=$A$2,ROW(Lageromsætning!$A$3:$A$79)-CELL("row",Lageromsætning!$A$3:$A$79)+1),ROWS($2:117))),"") ->  | C119: =IFERROR(INDEX(Lageromsætning!$D$3:$D$79,SMALL(IF(Lageromsætning!$A$3:$A$79=$A$2,ROW(Lageromsætning!$A$3:$A$79)-CELL("row",Lageromsætning!$A$3:$A$79)+1),ROWS($2:117))),"") ->  | D119: =IFERROR(INDEX(Lageromsætning!$E$3:$E$79,SMALL(IF(Lageromsætning!$A$3:$A$79=$A$2,ROW(Lageromsætning!$A$3:$A$79)-CELL("row",Lageromsætning!$A$3:$A$79)+1),ROWS($2:117))),"") ->  | E119: =IFERROR(INDEX(Lageromsætning!$AF$3:$AF$79,SMALL(IF(Lageromsætning!$A$3:$A$79=$A$2,ROW(Lageromsætning!$A$3:$A$79)-CELL("row",Lageromsætning!$A$3:$A$79)+1),ROWS($2:117))),"") ->  | F119: =SUMIFS('Lager antal'!$D$3:$D$2508,'Lager antal'!$B$3:$B$2508,B119,'Lager antal'!$C$3:$C$2508,C119) -> 0 | G119: =SUMIFS('Lager antal'!$F$3:$F$2508,'Lager antal'!$B$3:$B$2508,B119,'Lager antal'!$C$3:$C$2508,C119) -> 0 | H119: =IF(ISNA(VLOOKUP($C119,'Lager antal'!$C$3:$K$508,9,FALSE))=TRUE,"",VLOOKUP($C119,'Lager antal'!$C$3:$K$508,9,FALSE)) ->  | I119: =IFERROR(INDEX(Lageromsætning!$P$3:$P$79,SMALL(IF(Lageromsætning!$A$3:$A$79=$A$2,ROW(Lageromsætning!$A$3:$A$79)-CELL("row",Lageromsætning!$A$3:$A$79)+1),ROWS($2:117))),"") ->  | J119: =+_xlfn.IFS($M119>=0.01,$M119,TRUE,0)-$F119-K119+G119 -> 0 | K119: =SUMIFS('Lager antal'!$G$3:$G$2508,'Lager antal'!$B$3:$B$2508,B119,'Lager antal'!$C$3:$C$2508,C119) -> 0 | M119: 0 | N119: =SUMIFS(Lageromsætning!$R$3:$R$79,Lageromsætning!$A$3:$A$79,$A$2,Lageromsætning!$C$3:$C$79,B119,Lageromsætning!$D$3:$D$79,C119) -> 0 | O119: =SUMIFS(Lageromsætning!$S$3:$S$79,Lageromsætning!$C$3:$C$79,B119,Lageromsætning!$D$3:$D$79,C119) -> 0
A120: =IFERROR(INDEX(Lageromsætning!$A$3:$A$79,SMALL(IF(Lageromsætning!$A$3:$A$79=$A$2,ROW(Lageromsætning!$A$3:$A$79)-CELL("row",Lageromsætning!$A$3:$A$79)+1),ROWS($1:117))),"") ->  | B120: =IFERROR(INDEX(Lageromsætning!$C$3:$C$79,SMALL(IF(Lageromsætning!$A$3:$A$79=$A$2,ROW(Lageromsætning!$A$3:$A$79)-CELL("row",Lageromsætning!$A$3:$A$79)+1),ROWS($2:118))),"") ->  | C120: =IFERROR(INDEX(Lageromsætning!$D$3:$D$79,SMALL(IF(Lageromsætning!$A$3:$A$79=$A$2,ROW(Lageromsætning!$A$3:$A$79)-CELL("row",Lageromsætning!$A$3:$A$79)+1),ROWS($2:118))),"") ->  | D120: =IFERROR(INDEX(Lageromsætning!$E$3:$E$79,SMALL(IF(Lageromsætning!$A$3:$A$79=$A$2,ROW(Lageromsætning!$A$3:$A$79)-CELL("row",Lageromsætning!$A$3:$A$79)+1),ROWS($2:118))),"") ->  | E120: =IFERROR(INDEX(Lageromsætning!$AF$3:$AF$79,SMALL(IF(Lageromsætning!$A$3:$A$79=$A$2,ROW(Lageromsætning!$A$3:$A$79)-CELL("row",Lageromsætning!$A$3:$A$79)+1),ROWS($2:118))),"") ->  | F120: =SUMIFS('Lager antal'!$D$3:$D$2508,'Lager antal'!$B$3:$B$2508,B120,'Lager antal'!$C$3:$C$2508,C120) -> 0 | G120: =SUMIFS('Lager antal'!$F$3:$F$2508,'Lager antal'!$B$3:$B$2508,B120,'Lager antal'!$C$3:$C$2508,C120) -> 0 | H120: =IF(ISNA(VLOOKUP($C120,'Lager antal'!$C$3:$K$508,9,FALSE))=TRUE,"",VLOOKUP($C120,'Lager antal'!$C$3:$K$508,9,FALSE)) ->  | I120: =IFERROR(INDEX(Lageromsætning!$P$3:$P$79,SMALL(IF(Lageromsætning!$A$3:$A$79=$A$2,ROW(Lageromsætning!$A$3:$A$79)-CELL("row",Lageromsætning!$A$3:$A$79)+1),ROWS($2:118))),"") ->  | J120: =+_xlfn.IFS($M120>=0.01,$M120,TRUE,0)-$F120-K120+G120 -> 0 | K120: =SUMIFS('Lager antal'!$G$3:$G$2508,'Lager antal'!$B$3:$B$2508,B120,'Lager antal'!$C$3:$C$2508,C120) -> 0 | M120: 0 | N120: =SUMIFS(Lageromsætning!$R$3:$R$79,Lageromsætning!$A$3:$A$79,$A$2,Lageromsætning!$C$3:$C$79,B120,Lageromsætning!$D$3:$D$79,C120) -> 0 | O120: =SUMIFS(Lageromsætning!$S$3:$S$79,Lageromsætning!$C$3:$C$79,B120,Lageromsætning!$D$3:$D$79,C120) -> 0
A121: =IFERROR(INDEX(Lageromsætning!$A$3:$A$79,SMALL(IF(Lageromsætning!$A$3:$A$79=$A$2,ROW(Lageromsætning!$A$3:$A$79)-CELL("row",Lageromsætning!$A$3:$A$79)+1),ROWS($1:118))),"") ->  | B121: =IFERROR(INDEX(Lageromsætning!$C$3:$C$79,SMALL(IF(Lageromsætning!$A$3:$A$79=$A$2,ROW(Lageromsætning!$A$3:$A$79)-CELL("row",Lageromsætning!$A$3:$A$79)+1),ROWS($2:119))),"") ->  | C121: =IFERROR(INDEX(Lageromsætning!$D$3:$D$79,SMALL(IF(Lageromsætning!$A$3:$A$79=$A$2,ROW(Lageromsætning!$A$3:$A$79)-CELL("row",Lageromsætning!$A$3:$A$79)+1),ROWS($2:119))),"") ->  | D121: =IFERROR(INDEX(Lageromsætning!$E$3:$E$79,SMALL(IF(Lageromsætning!$A$3:$A$79=$A$2,ROW(Lageromsætning!$A$3:$A$79)-CELL("row",Lageromsætning!$A$3:$A$79)+1),ROWS($2:119))),"") ->  | E121: =IFERROR(INDEX(Lageromsætning!$AF$3:$AF$79,SMALL(IF(Lageromsætning!$A$3:$A$79=$A$2,ROW(Lageromsætning!$A$3:$A$79)-CELL("row",Lageromsætning!$A$3:$A$79)+1),ROWS($2:119))),"") ->  | F121: =SUMIFS('Lager antal'!$D$3:$D$2508,'Lager antal'!$B$3:$B$2508,B121,'Lager antal'!$C$3:$C$2508,C121) -> 0 | G121: =SUMIFS('Lager antal'!$F$3:$F$2508,'Lager antal'!$B$3:$B$2508,B121,'Lager antal'!$C$3:$C$2508,C121) -> 0 | H121: =IF(ISNA(VLOOKUP($C121,'Lager antal'!$C$3:$K$508,9,FALSE))=TRUE,"",VLOOKUP($C121,'Lager antal'!$C$3:$K$508,9,FALSE)) ->  | I121: =IFERROR(INDEX(Lageromsætning!$P$3:$P$79,SMALL(IF(Lageromsætning!$A$3:$A$79=$A$2,ROW(Lageromsætning!$A$3:$A$79)-CELL("row",Lageromsætning!$A$3:$A$79)+1),ROWS($2:119))),"") ->  | J121: =+_xlfn.IFS($M121>=0.01,$M121,TRUE,0)-$F121-K121+G121 -> 0 | K121: =SUMIFS('Lager antal'!$G$3:$G$2508,'Lager antal'!$B$3:$B$2508,B121,'Lager antal'!$C$3:$C$2508,C121) -> 0 | M121: 0 | N121: =SUMIFS(Lageromsætning!$R$3:$R$79,Lageromsætning!$A$3:$A$79,$A$2,Lageromsætning!$C$3:$C$79,B121,Lageromsætning!$D$3:$D$79,C121) -> 0 | O121: =SUMIFS(Lageromsætning!$S$3:$S$79,Lageromsætning!$C$3:$C$79,B121,Lageromsætning!$D$3:$D$79,C121) -> 0
A122: =IFERROR(INDEX(Lageromsætning!$A$3:$A$79,SMALL(IF(Lageromsætning!$A$3:$A$79=$A$2,ROW(Lageromsætning!$A$3:$A$79)-CELL("row",Lageromsætning!$A$3:$A$79)+1),ROWS($1:119))),"") ->  | B122: =IFERROR(INDEX(Lageromsætning!$C$3:$C$79,SMALL(IF(Lageromsætning!$A$3:$A$79=$A$2,ROW(Lageromsætning!$A$3:$A$79)-CELL("row",Lageromsætning!$A$3:$A$79)+1),ROWS($2:120))),"") ->  | C122: =IFERROR(INDEX(Lageromsætning!$D$3:$D$79,SMALL(IF(Lageromsætning!$A$3:$A$79=$A$2,ROW(Lageromsætning!$A$3:$A$79)-CELL("row",Lageromsætning!$A$3:$A$79)+1),ROWS($2:120))),"") ->  | D122: =IFERROR(INDEX(Lageromsætning!$E$3:$E$79,SMALL(IF(Lageromsætning!$A$3:$A$79=$A$2,ROW(Lageromsætning!$A$3:$A$79)-CELL("row",Lageromsætning!$A$3:$A$79)+1),ROWS($2:120))),"") ->  | E122: =IFERROR(INDEX(Lageromsætning!$AF$3:$AF$79,SMALL(IF(Lageromsætning!$A$3:$A$79=$A$2,ROW(Lageromsætning!$A$3:$A$79)-CELL("row",Lageromsætning!$A$3:$A$79)+1),ROWS($2:120))),"") ->  | F122: =SUMIFS('Lager antal'!$D$3:$D$2508,'Lager antal'!$B$3:$B$2508,B122,'Lager antal'!$C$3:$C$2508,C122) -> 0 | G122: =SUMIFS('Lager antal'!$F$3:$F$2508,'Lager antal'!$B$3:$B$2508,B122,'Lager antal'!$C$3:$C$2508,C122) -> 0 | H122: =IF(ISNA(VLOOKUP($C122,'Lager antal'!$C$3:$K$508,9,FALSE))=TRUE,"",VLOOKUP($C122,'Lager antal'!$C$3:$K$508,9,FALSE)) ->  | I122: =IFERROR(INDEX(Lageromsætning!$P$3:$P$79,SMALL(IF(Lageromsætning!$A$3:$A$79=$A$2,ROW(Lageromsætning!$A$3:$A$79)-CELL("row",Lageromsætning!$A$3:$A$79)+1),ROWS($2:120))),"") ->  | J122: =+_xlfn.IFS($M122>=0.01,$M122,TRUE,0)-$F122-K122+G122 -> 0 | K122: =SUMIFS('Lager antal'!$G$3:$G$2508,'Lager antal'!$B$3:$B$2508,B122,'Lager antal'!$C$3:$C$2508,C122) -> 0 | M122: 0 | N122: =SUMIFS(Lageromsætning!$R$3:$R$79,Lageromsætning!$A$3:$A$79,$A$2,Lageromsætning!$C$3:$C$79,B122,Lageromsætning!$D$3:$D$79,C122) -> 0 | O122: =SUMIFS(Lageromsætning!$S$3:$S$79,Lageromsætning!$C$3:$C$79,B122,Lageromsætning!$D$3:$D$79,C122) -> 0
A123: =IFERROR(INDEX(Lageromsætning!$A$3:$A$79,SMALL(IF(Lageromsætning!$A$3:$A$79=$A$2,ROW(Lageromsætning!$A$3:$A$79)-CELL("row",Lageromsætning!$A$3:$A$79)+1),ROWS($1:120))),"") ->  | B123: =IFERROR(INDEX(Lageromsætning!$C$3:$C$79,SMALL(IF(Lageromsætning!$A$3:$A$79=$A$2,ROW(Lageromsætning!$A$3:$A$79)-CELL("row",Lageromsætning!$A$3:$A$79)+1),ROWS($2:121))),"") ->  | C123: =IFERROR(INDEX(Lageromsætning!$D$3:$D$79,SMALL(IF(Lageromsætning!$A$3:$A$79=$A$2,ROW(Lageromsætning!$A$3:$A$79)-CELL("row",Lageromsætning!$A$3:$A$79)+1),ROWS($2:121))),"") ->  | D123: =IFERROR(INDEX(Lageromsætning!$E$3:$E$79,SMALL(IF(Lageromsætning!$A$3:$A$79=$A$2,ROW(Lageromsætning!$A$3:$A$79)-CELL("row",Lageromsætning!$A$3:$A$79)+1),ROWS($2:121))),"") ->  | E123: =IFERROR(INDEX(Lageromsætning!$AF$3:$AF$79,SMALL(IF(Lageromsætning!$A$3:$A$79=$A$2,ROW(Lageromsætning!$A$3:$A$79)-CELL("row",Lageromsætning!$A$3:$A$79)+1),ROWS($2:121))),"") ->  | F123: =SUMIFS('Lager antal'!$D$3:$D$2508,'Lager antal'!$B$3:$B$2508,B123,'Lager antal'!$C$3:$C$2508,C123) -> 0 | G123: =SUMIFS('Lager antal'!$F$3:$F$2508,'Lager antal'!$B$3:$B$2508,B123,'Lager antal'!$C$3:$C$2508,C123) -> 0 | H123: =IF(ISNA(VLOOKUP($C123,'Lager antal'!$C$3:$K$508,9,FALSE))=TRUE,"",VLOOKUP($C123,'Lager antal'!$C$3:$K$508,9,FALSE)) ->  | I123: =IFERROR(INDEX(Lageromsætning!$P$3:$P$79,SMALL(IF(Lageromsætning!$A$3:$A$79=$A$2,ROW(Lageromsætning!$A$3:$A$79)-CELL("row",Lageromsætning!$A$3:$A$79)+1),ROWS($2:121))),"") ->  | J123: =+_xlfn.IFS($M123>=0.01,$M123,TRUE,0)-$F123-K123+G123 -> 0 | K123: =SUMIFS('Lager antal'!$G$3:$G$2508,'Lager antal'!$B$3:$B$2508,B123,'Lager antal'!$C$3:$C$2508,C123) -> 0 | M123: 0 | N123: =SUMIFS(Lageromsætning!$R$3:$R$79,Lageromsætning!$A$3:$A$79,$A$2,Lageromsætning!$C$3:$C$79,B123,Lageromsætning!$D$3:$D$79,C123) -> 0 | O123: =SUMIFS(Lageromsætning!$S$3:$S$79,Lageromsætning!$C$3:$C$79,B123,Lageromsætning!$D$3:$D$79,C123) -> 0
A124: =IFERROR(INDEX(Lageromsætning!$A$3:$A$79,SMALL(IF(Lageromsætning!$A$3:$A$79=$A$2,ROW(Lageromsætning!$A$3:$A$79)-CELL("row",Lageromsætning!$A$3:$A$79)+1),ROWS($1:121))),"") ->  | B124: =IFERROR(INDEX(Lageromsætning!$C$3:$C$79,SMALL(IF(Lageromsætning!$A$3:$A$79=$A$2,ROW(Lageromsætning!$A$3:$A$79)-CELL("row",Lageromsætning!$A$3:$A$79)+1),ROWS($2:122))),"") ->  | C124: =IFERROR(INDEX(Lageromsætning!$D$3:$D$79,SMALL(IF(Lageromsætning!$A$3:$A$79=$A$2,ROW(Lageromsætning!$A$3:$A$79)-CELL("row",Lageromsætning!$A$3:$A$79)+1),ROWS($2:122))),"") ->  | D124: =IFERROR(INDEX(Lageromsætning!$E$3:$E$79,SMALL(IF(Lageromsætning!$A$3:$A$79=$A$2,ROW(Lageromsætning!$A$3:$A$79)-CELL("row",Lageromsætning!$A$3:$A$79)+1),ROWS($2:122))),"") ->  | E124: =IFERROR(INDEX(Lageromsætning!$AF$3:$AF$79,SMALL(IF(Lageromsætning!$A$3:$A$79=$A$2,ROW(Lageromsætning!$A$3:$A$79)-CELL("row",Lageromsætning!$A$3:$A$79)+1),ROWS($2:122))),"") ->  | F124: =SUMIFS('Lager antal'!$D$3:$D$2508,'Lager antal'!$B$3:$B$2508,B124,'Lager antal'!$C$3:$C$2508,C124) -> 0 | G124: =SUMIFS('Lager antal'!$F$3:$F$2508,'Lager antal'!$B$3:$B$2508,B124,'Lager antal'!$C$3:$C$2508,C124) -> 0 | H124: =IF(ISNA(VLOOKUP($C124,'Lager antal'!$C$3:$K$508,9,FALSE))=TRUE,"",VLOOKUP($C124,'Lager antal'!$C$3:$K$508,9,FALSE)) ->  | I124: =IFERROR(INDEX(Lageromsætning!$P$3:$P$79,SMALL(IF(Lageromsætning!$A$3:$A$79=$A$2,ROW(Lageromsætning!$A$3:$A$79)-CELL("row",Lageromsætning!$A$3:$A$79)+1),ROWS($2:122))),"") ->  | J124: =+_xlfn.IFS($M124>=0.01,$M124,TRUE,0)-$F124-K124+G124 -> 0 | K124: =SUMIFS('Lager antal'!$G$3:$G$2508,'Lager antal'!$B$3:$B$2508,B124,'Lager antal'!$C$3:$C$2508,C124) -> 0 | M124: 0 | N124: =SUMIFS(Lageromsætning!$R$3:$R$79,Lageromsætning!$A$3:$A$79,$A$2,Lageromsætning!$C$3:$C$79,B124,Lageromsætning!$D$3:$D$79,C124) -> 0 | O124: =SUMIFS(Lageromsætning!$S$3:$S$79,Lageromsætning!$C$3:$C$79,B124,Lageromsætning!$D$3:$D$79,C124) -> 0
A125: =IFERROR(INDEX(Lageromsætning!$A$3:$A$79,SMALL(IF(Lageromsætning!$A$3:$A$79=$A$2,ROW(Lageromsætning!$A$3:$A$79)-CELL("row",Lageromsætning!$A$3:$A$79)+1),ROWS($1:122))),"") ->  | B125: =IFERROR(INDEX(Lageromsætning!$C$3:$C$79,SMALL(IF(Lageromsætning!$A$3:$A$79=$A$2,ROW(Lageromsætning!$A$3:$A$79)-CELL("row",Lageromsætning!$A$3:$A$79)+1),ROWS($2:123))),"") ->  | C125: =IFERROR(INDEX(Lageromsætning!$D$3:$D$79,SMALL(IF(Lageromsætning!$A$3:$A$79=$A$2,ROW(Lageromsætning!$A$3:$A$79)-CELL("row",Lageromsætning!$A$3:$A$79)+1),ROWS($2:123))),"") ->  | D125: =IFERROR(INDEX(Lageromsætning!$E$3:$E$79,SMALL(IF(Lageromsætning!$A$3:$A$79=$A$2,ROW(Lageromsætning!$A$3:$A$79)-CELL("row",Lageromsætning!$A$3:$A$79)+1),ROWS($2:123))),"") ->  | E125: =IFERROR(INDEX(Lageromsætning!$AF$3:$AF$79,SMALL(IF(Lageromsætning!$A$3:$A$79=$A$2,ROW(Lageromsætning!$A$3:$A$79)-CELL("row",Lageromsætning!$A$3:$A$79)+1),ROWS($2:123))),"") ->  | F125: =SUMIFS('Lager antal'!$D$3:$D$2508,'Lager antal'!$B$3:$B$2508,B125,'Lager antal'!$C$3:$C$2508,C125) -> 0 | G125: =SUMIFS('Lager antal'!$F$3:$F$2508,'Lager antal'!$B$3:$B$2508,B125,'Lager antal'!$C$3:$C$2508,C125) -> 0 | H125: =IF(ISNA(VLOOKUP($C125,'Lager antal'!$C$3:$K$508,9,FALSE))=TRUE,"",VLOOKUP($C125,'Lager antal'!$C$3:$K$508,9,FALSE)) ->  | I125: =IFERROR(INDEX(Lageromsætning!$P$3:$P$79,SMALL(IF(Lageromsætning!$A$3:$A$79=$A$2,ROW(Lageromsætning!$A$3:$A$79)-CELL("row",Lageromsætning!$A$3:$A$79)+1),ROWS($2:123))),"") ->  | J125: =+_xlfn.IFS($M125>=0.01,$M125,TRUE,0)-$F125-K125+G125 -> 0 | K125: =SUMIFS('Lager antal'!$G$3:$G$2508,'Lager antal'!$B$3:$B$2508,B125,'Lager antal'!$C$3:$C$2508,C125) -> 0 | M125: 0 | N125: =SUMIFS(Lageromsætning!$R$3:$R$79,Lageromsætning!$A$3:$A$79,$A$2,Lageromsætning!$C$3:$C$79,B125,Lageromsætning!$D$3:$D$79,C125) -> 0 | O125: =SUMIFS(Lageromsætning!$S$3:$S$79,Lageromsætning!$C$3:$C$79,B125,Lageromsætning!$D$3:$D$79,C125) -> 0
A126: =IFERROR(INDEX(Lageromsætning!$A$3:$A$79,SMALL(IF(Lageromsætning!$A$3:$A$79=$A$2,ROW(Lageromsætning!$A$3:$A$79)-CELL("row",Lageromsætning!$A$3:$A$79)+1),ROWS($1:123))),"") ->  | B126: =IFERROR(INDEX(Lageromsætning!$C$3:$C$79,SMALL(IF(Lageromsætning!$A$3:$A$79=$A$2,ROW(Lageromsætning!$A$3:$A$79)-CELL("row",Lageromsætning!$A$3:$A$79)+1),ROWS($2:124))),"") ->  | C126: =IFERROR(INDEX(Lageromsætning!$D$3:$D$79,SMALL(IF(Lageromsætning!$A$3:$A$79=$A$2,ROW(Lageromsætning!$A$3:$A$79)-CELL("row",Lageromsætning!$A$3:$A$79)+1),ROWS($2:124))),"") ->  | D126: =IFERROR(INDEX(Lageromsætning!$E$3:$E$79,SMALL(IF(Lageromsætning!$A$3:$A$79=$A$2,ROW(Lageromsætning!$A$3:$A$79)-CELL("row",Lageromsætning!$A$3:$A$79)+1),ROWS($2:124))),"") ->  | E126: =IFERROR(INDEX(Lageromsætning!$AF$3:$AF$79,SMALL(IF(Lageromsætning!$A$3:$A$79=$A$2,ROW(Lageromsætning!$A$3:$A$79)-CELL("row",Lageromsætning!$A$3:$A$79)+1),ROWS($2:124))),"") ->  | F126: =SUMIFS('Lager antal'!$D$3:$D$2508,'Lager antal'!$B$3:$B$2508,B126,'Lager antal'!$C$3:$C$2508,C126) -> 0 | G126: =SUMIFS('Lager antal'!$F$3:$F$2508,'Lager antal'!$B$3:$B$2508,B126,'Lager antal'!$C$3:$C$2508,C126) -> 0 | H126: =IF(ISNA(VLOOKUP($C126,'Lager antal'!$C$3:$K$508,9,FALSE))=TRUE,"",VLOOKUP($C126,'Lager antal'!$C$3:$K$508,9,FALSE)) ->  | I126: =IFERROR(INDEX(Lageromsætning!$P$3:$P$79,SMALL(IF(Lageromsætning!$A$3:$A$79=$A$2,ROW(Lageromsætning!$A$3:$A$79)-CELL("row",Lageromsætning!$A$3:$A$79)+1),ROWS($2:124))),"") ->  | J126: =+_xlfn.IFS($M126>=0.01,$M126,TRUE,0)-$F126-K126+G126 -> 0 | K126: =SUMIFS('Lager antal'!$G$3:$G$2508,'Lager antal'!$B$3:$B$2508,B126,'Lager antal'!$C$3:$C$2508,C126) -> 0 | M126: 0 | N126: =SUMIFS(Lageromsætning!$R$3:$R$79,Lageromsætning!$A$3:$A$79,$A$2,Lageromsætning!$C$3:$C$79,B126,Lageromsætning!$D$3:$D$79,C126) -> 0 | O126: =SUMIFS(Lageromsætning!$S$3:$S$79,Lageromsætning!$C$3:$C$79,B126,Lageromsætning!$D$3:$D$79,C126) -> 0
A127: =IFERROR(INDEX(Lageromsætning!$A$3:$A$79,SMALL(IF(Lageromsætning!$A$3:$A$79=$A$2,ROW(Lageromsætning!$A$3:$A$79)-CELL("row",Lageromsætning!$A$3:$A$79)+1),ROWS($1:124))),"") ->  | B127: =IFERROR(INDEX(Lageromsætning!$C$3:$C$79,SMALL(IF(Lageromsætning!$A$3:$A$79=$A$2,ROW(Lageromsætning!$A$3:$A$79)-CELL("row",Lageromsætning!$A$3:$A$79)+1),ROWS($2:125))),"") ->  | C127: =IFERROR(INDEX(Lageromsætning!$D$3:$D$79,SMALL(IF(Lageromsætning!$A$3:$A$79=$A$2,ROW(Lageromsætning!$A$3:$A$79)-CELL("row",Lageromsætning!$A$3:$A$79)+1),ROWS($2:125))),"") ->  | D127: =IFERROR(INDEX(Lageromsætning!$E$3:$E$79,SMALL(IF(Lageromsætning!$A$3:$A$79=$A$2,ROW(Lageromsætning!$A$3:$A$79)-CELL("row",Lageromsætning!$A$3:$A$79)+1),ROWS($2:125))),"") ->  | E127: =IFERROR(INDEX(Lageromsætning!$AF$3:$AF$79,SMALL(IF(Lageromsætning!$A$3:$A$79=$A$2,ROW(Lageromsætning!$A$3:$A$79)-CELL("row",Lageromsætning!$A$3:$A$79)+1),ROWS($2:125))),"") ->  | F127: =SUMIFS('Lager antal'!$D$3:$D$2508,'Lager antal'!$B$3:$B$2508,B127,'Lager antal'!$C$3:$C$2508,C127) -> 0 | G127: =SUMIFS('Lager antal'!$F$3:$F$2508,'Lager antal'!$B$3:$B$2508,B127,'Lager antal'!$C$3:$C$2508,C127) -> 0 | H127: =IF(ISNA(VLOOKUP($C127,'Lager antal'!$C$3:$K$508,9,FALSE))=TRUE,"",VLOOKUP($C127,'Lager antal'!$C$3:$K$508,9,FALSE)) ->  | I127: =IFERROR(INDEX(Lageromsætning!$P$3:$P$79,SMALL(IF(Lageromsætning!$A$3:$A$79=$A$2,ROW(Lageromsætning!$A$3:$A$79)-CELL("row",Lageromsætning!$A$3:$A$79)+1),ROWS($2:125))),"") ->  | J127: =+_xlfn.IFS($M127>=0.01,$M127,TRUE,0)-$F127-K127+G127 -> 0 | K127: =SUMIFS('Lager antal'!$G$3:$G$2508,'Lager antal'!$B$3:$B$2508,B127,'Lager antal'!$C$3:$C$2508,C127) -> 0 | M127: 0 | N127: =SUMIFS(Lageromsætning!$R$3:$R$79,Lageromsætning!$A$3:$A$79,$A$2,Lageromsætning!$C$3:$C$79,B127,Lageromsætning!$D$3:$D$79,C127) -> 0 | O127: =SUMIFS(Lageromsætning!$S$3:$S$79,Lageromsætning!$C$3:$C$79,B127,Lageromsætning!$D$3:$D$79,C127) -> 0
A128: =IFERROR(INDEX(Lageromsætning!$A$3:$A$79,SMALL(IF(Lageromsætning!$A$3:$A$79=$A$2,ROW(Lageromsætning!$A$3:$A$79)-CELL("row",Lageromsætning!$A$3:$A$79)+1),ROWS($1:125))),"") ->  | B128: =IFERROR(INDEX(Lageromsætning!$C$3:$C$79,SMALL(IF(Lageromsætning!$A$3:$A$79=$A$2,ROW(Lageromsætning!$A$3:$A$79)-CELL("row",Lageromsætning!$A$3:$A$79)+1),ROWS($2:126))),"") ->  | C128: =IFERROR(INDEX(Lageromsætning!$D$3:$D$79,SMALL(IF(Lageromsætning!$A$3:$A$79=$A$2,ROW(Lageromsætning!$A$3:$A$79)-CELL("row",Lageromsætning!$A$3:$A$79)+1),ROWS($2:126))),"") ->  | D128: =IFERROR(INDEX(Lageromsætning!$E$3:$E$79,SMALL(IF(Lageromsætning!$A$3:$A$79=$A$2,ROW(Lageromsætning!$A$3:$A$79)-CELL("row",Lageromsætning!$A$3:$A$79)+1),ROWS($2:126))),"") ->  | E128: =IFERROR(INDEX(Lageromsætning!$AF$3:$AF$79,SMALL(IF(Lageromsætning!$A$3:$A$79=$A$2,ROW(Lageromsætning!$A$3:$A$79)-CELL("row",Lageromsætning!$A$3:$A$79)+1),ROWS($2:126))),"") ->  | F128: =SUMIFS('Lager antal'!$D$3:$D$2508,'Lager antal'!$B$3:$B$2508,B128,'Lager antal'!$C$3:$C$2508,C128) -> 0 | G128: =SUMIFS('Lager antal'!$F$3:$F$2508,'Lager antal'!$B$3:$B$2508,B128,'Lager antal'!$C$3:$C$2508,C128) -> 0 | H128: =IF(ISNA(VLOOKUP($C128,'Lager antal'!$C$3:$K$508,9,FALSE))=TRUE,"",VLOOKUP($C128,'Lager antal'!$C$3:$K$508,9,FALSE)) ->  | I128: =IFERROR(INDEX(Lageromsætning!$P$3:$P$79,SMALL(IF(Lageromsætning!$A$3:$A$79=$A$2,ROW(Lageromsætning!$A$3:$A$79)-CELL("row",Lageromsætning!$A$3:$A$79)+1),ROWS($2:126))),"") ->  | J128: =+_xlfn.IFS($M128>=0.01,$M128,TRUE,0)-$F128-K128+G128 -> 0 | K128: =SUMIFS('Lager antal'!$G$3:$G$2508,'Lager antal'!$B$3:$B$2508,B128,'Lager antal'!$C$3:$C$2508,C128) -> 0 | M128: 0 | N128: =SUMIFS(Lageromsætning!$R$3:$R$79,Lageromsætning!$A$3:$A$79,$A$2,Lageromsætning!$C$3:$C$79,B128,Lageromsætning!$D$3:$D$79,C128) -> 0 | O128: =SUMIFS(Lageromsætning!$S$3:$S$79,Lageromsætning!$C$3:$C$79,B128,Lageromsætning!$D$3:$D$79,C128) -> 0
A129: =IFERROR(INDEX(Lageromsætning!$A$3:$A$79,SMALL(IF(Lageromsætning!$A$3:$A$79=$A$2,ROW(Lageromsætning!$A$3:$A$79)-CELL("row",Lageromsætning!$A$3:$A$79)+1),ROWS($1:126))),"") ->  | B129: =IFERROR(INDEX(Lageromsætning!$C$3:$C$79,SMALL(IF(Lageromsætning!$A$3:$A$79=$A$2,ROW(Lageromsætning!$A$3:$A$79)-CELL("row",Lageromsætning!$A$3:$A$79)+1),ROWS($2:127))),"") ->  | C129: =IFERROR(INDEX(Lageromsætning!$D$3:$D$79,SMALL(IF(Lageromsætning!$A$3:$A$79=$A$2,ROW(Lageromsætning!$A$3:$A$79)-CELL("row",Lageromsætning!$A$3:$A$79)+1),ROWS($2:127))),"") ->  | D129: =IFERROR(INDEX(Lageromsætning!$E$3:$E$79,SMALL(IF(Lageromsætning!$A$3:$A$79=$A$2,ROW(Lageromsætning!$A$3:$A$79)-CELL("row",Lageromsætning!$A$3:$A$79)+1),ROWS($2:127))),"") ->  | E129: =IFERROR(INDEX(Lageromsætning!$AF$3:$AF$79,SMALL(IF(Lageromsætning!$A$3:$A$79=$A$2,ROW(Lageromsætning!$A$3:$A$79)-CELL("row",Lageromsætning!$A$3:$A$79)+1),ROWS($2:127))),"") ->  | F129: =SUMIFS('Lager antal'!$D$3:$D$2508,'Lager antal'!$B$3:$B$2508,B129,'Lager antal'!$C$3:$C$2508,C129) -> 0 | G129: =SUMIFS('Lager antal'!$F$3:$F$2508,'Lager antal'!$B$3:$B$2508,B129,'Lager antal'!$C$3:$C$2508,C129) -> 0 | H129: =IF(ISNA(VLOOKUP($C129,'Lager antal'!$C$3:$K$508,9,FALSE))=TRUE,"",VLOOKUP($C129,'Lager antal'!$C$3:$K$508,9,FALSE)) ->  | I129: =IFERROR(INDEX(Lageromsætning!$P$3:$P$79,SMALL(IF(Lageromsætning!$A$3:$A$79=$A$2,ROW(Lageromsætning!$A$3:$A$79)-CELL("row",Lageromsætning!$A$3:$A$79)+1),ROWS($2:127))),"") ->  | J129: =+_xlfn.IFS($M129>=0.01,$M129,TRUE,0)-$F129-K129+G129 -> 0 | K129: =SUMIFS('Lager antal'!$G$3:$G$2508,'Lager antal'!$B$3:$B$2508,B129,'Lager antal'!$C$3:$C$2508,C129) -> 0 | M129: 0 | N129: =SUMIFS(Lageromsætning!$R$3:$R$79,Lageromsætning!$A$3:$A$79,$A$2,Lageromsætning!$C$3:$C$79,B129,Lageromsætning!$D$3:$D$79,C129) -> 0 | O129: =SUMIFS(Lageromsætning!$S$3:$S$79,Lageromsætning!$C$3:$C$79,B129,Lageromsætning!$D$3:$D$79,C129) -> 0
A130: =IFERROR(INDEX(Lageromsætning!$A$3:$A$79,SMALL(IF(Lageromsætning!$A$3:$A$79=$A$2,ROW(Lageromsætning!$A$3:$A$79)-CELL("row",Lageromsætning!$A$3:$A$79)+1),ROWS($1:127))),"") ->  | B130: =IFERROR(INDEX(Lageromsætning!$C$3:$C$79,SMALL(IF(Lageromsætning!$A$3:$A$79=$A$2,ROW(Lageromsætning!$A$3:$A$79)-CELL("row",Lageromsætning!$A$3:$A$79)+1),ROWS($2:128))),"") ->  | C130: =IFERROR(INDEX(Lageromsætning!$D$3:$D$79,SMALL(IF(Lageromsætning!$A$3:$A$79=$A$2,ROW(Lageromsætning!$A$3:$A$79)-CELL("row",Lageromsætning!$A$3:$A$79)+1),ROWS($2:128))),"") ->  | D130: =IFERROR(INDEX(Lageromsætning!$E$3:$E$79,SMALL(IF(Lageromsætning!$A$3:$A$79=$A$2,ROW(Lageromsætning!$A$3:$A$79)-CELL("row",Lageromsætning!$A$3:$A$79)+1),ROWS($2:128))),"") ->  | E130: =IFERROR(INDEX(Lageromsætning!$AF$3:$AF$79,SMALL(IF(Lageromsætning!$A$3:$A$79=$A$2,ROW(Lageromsætning!$A$3:$A$79)-CELL("row",Lageromsætning!$A$3:$A$79)+1),ROWS($2:128))),"") ->  | F130: =SUMIFS('Lager antal'!$D$3:$D$2508,'Lager antal'!$B$3:$B$2508,B130,'Lager antal'!$C$3:$C$2508,C130) -> 0 | G130: =SUMIFS('Lager antal'!$F$3:$F$2508,'Lager antal'!$B$3:$B$2508,B130,'Lager antal'!$C$3:$C$2508,C130) -> 0 | H130: =IF(ISNA(VLOOKUP($C130,'Lager antal'!$C$3:$K$508,9,FALSE))=TRUE,"",VLOOKUP($C130,'Lager antal'!$C$3:$K$508,9,FALSE)) ->  | I130: =IFERROR(INDEX(Lageromsætning!$P$3:$P$79,SMALL(IF(Lageromsætning!$A$3:$A$79=$A$2,ROW(Lageromsætning!$A$3:$A$79)-CELL("row",Lageromsætning!$A$3:$A$79)+1),ROWS($2:128))),"") ->  | J130: =+_xlfn.IFS($M130>=0.01,$M130,TRUE,0)-$F130-K130+G130 -> 0 | K130: =SUMIFS('Lager antal'!$G$3:$G$2508,'Lager antal'!$B$3:$B$2508,B130,'Lager antal'!$C$3:$C$2508,C130) -> 0 | M130: 0 | N130: =SUMIFS(Lageromsætning!$R$3:$R$79,Lageromsætning!$A$3:$A$79,$A$2,Lageromsætning!$C$3:$C$79,B130,Lageromsætning!$D$3:$D$79,C130) -> 0 | O130: =SUMIFS(Lageromsætning!$S$3:$S$79,Lageromsætning!$C$3:$C$79,B130,Lageromsætning!$D$3:$D$79,C130) -> 0
A131: =IFERROR(INDEX(Lageromsætning!$A$3:$A$79,SMALL(IF(Lageromsætning!$A$3:$A$79=$A$2,ROW(Lageromsætning!$A$3:$A$79)-CELL("row",Lageromsætning!$A$3:$A$79)+1),ROWS($1:128))),"") ->  | B131: =IFERROR(INDEX(Lageromsætning!$C$3:$C$79,SMALL(IF(Lageromsætning!$A$3:$A$79=$A$2,ROW(Lageromsætning!$A$3:$A$79)-CELL("row",Lageromsætning!$A$3:$A$79)+1),ROWS($2:129))),"") ->  | C131: =IFERROR(INDEX(Lageromsætning!$D$3:$D$79,SMALL(IF(Lageromsætning!$A$3:$A$79=$A$2,ROW(Lageromsætning!$A$3:$A$79)-CELL("row",Lageromsætning!$A$3:$A$79)+1),ROWS($2:129))),"") ->  | D131: =IFERROR(INDEX(Lageromsætning!$E$3:$E$79,SMALL(IF(Lageromsætning!$A$3:$A$79=$A$2,ROW(Lageromsætning!$A$3:$A$79)-CELL("row",Lageromsætning!$A$3:$A$79)+1),ROWS($2:129))),"") ->  | E131: =IFERROR(INDEX(Lageromsætning!$AF$3:$AF$79,SMALL(IF(Lageromsætning!$A$3:$A$79=$A$2,ROW(Lageromsætning!$A$3:$A$79)-CELL("row",Lageromsætning!$A$3:$A$79)+1),ROWS($2:129))),"") ->  | F131: =SUMIFS('Lager antal'!$D$3:$D$2508,'Lager antal'!$B$3:$B$2508,B131,'Lager antal'!$C$3:$C$2508,C131) -> 0 | G131: =SUMIFS('Lager antal'!$F$3:$F$2508,'Lager antal'!$B$3:$B$2508,B131,'Lager antal'!$C$3:$C$2508,C131) -> 0 | H131: =IF(ISNA(VLOOKUP($C131,'Lager antal'!$C$3:$K$508,9,FALSE))=TRUE,"",VLOOKUP($C131,'Lager antal'!$C$3:$K$508,9,FALSE)) ->  | I131: =IFERROR(INDEX(Lageromsætning!$P$3:$P$79,SMALL(IF(Lageromsætning!$A$3:$A$79=$A$2,ROW(Lageromsætning!$A$3:$A$79)-CELL("row",Lageromsætning!$A$3:$A$79)+1),ROWS($2:129))),"") ->  | J131: =+_xlfn.IFS($M131>=0.01,$M131,TRUE,0)-$F131-K131+G131 -> 0 | K131: =SUMIFS('Lager antal'!$G$3:$G$2508,'Lager antal'!$B$3:$B$2508,B131,'Lager antal'!$C$3:$C$2508,C131) -> 0 | M131: 0 | N131: =SUMIFS(Lageromsætning!$R$3:$R$79,Lageromsætning!$A$3:$A$79,$A$2,Lageromsætning!$C$3:$C$79,B131,Lageromsætning!$D$3:$D$79,C131) -> 0 | O131: =SUMIFS(Lageromsætning!$S$3:$S$79,Lageromsætning!$C$3:$C$79,B131,Lageromsætning!$D$3:$D$79,C131) -> 0
A132: =IFERROR(INDEX(Lageromsætning!$A$3:$A$79,SMALL(IF(Lageromsætning!$A$3:$A$79=$A$2,ROW(Lageromsætning!$A$3:$A$79)-CELL("row",Lageromsætning!$A$3:$A$79)+1),ROWS($1:129))),"") ->  | B132: =IFERROR(INDEX(Lageromsætning!$C$3:$C$79,SMALL(IF(Lageromsætning!$A$3:$A$79=$A$2,ROW(Lageromsætning!$A$3:$A$79)-CELL("row",Lageromsætning!$A$3:$A$79)+1),ROWS($2:130))),"") ->  | C132: =IFERROR(INDEX(Lageromsætning!$D$3:$D$79,SMALL(IF(Lageromsætning!$A$3:$A$79=$A$2,ROW(Lageromsætning!$A$3:$A$79)-CELL("row",Lageromsætning!$A$3:$A$79)+1),ROWS($2:130))),"") ->  | D132: =IFERROR(INDEX(Lageromsætning!$E$3:$E$79,SMALL(IF(Lageromsætning!$A$3:$A$79=$A$2,ROW(Lageromsætning!$A$3:$A$79)-CELL("row",Lageromsætning!$A$3:$A$79)+1),ROWS($2:130))),"") ->  | E132: =IFERROR(INDEX(Lageromsætning!$AF$3:$AF$79,SMALL(IF(Lageromsætning!$A$3:$A$79=$A$2,ROW(Lageromsætning!$A$3:$A$79)-CELL("row",Lageromsætning!$A$3:$A$79)+1),ROWS($2:130))),"") ->  | F132: =SUMIFS('Lager antal'!$D$3:$D$2508,'Lager antal'!$B$3:$B$2508,B132,'Lager antal'!$C$3:$C$2508,C132) -> 0 | G132: =SUMIFS('Lager antal'!$F$3:$F$2508,'Lager antal'!$B$3:$B$2508,B132,'Lager antal'!$C$3:$C$2508,C132) -> 0 | H132: =IF(ISNA(VLOOKUP($C132,'Lager antal'!$C$3:$K$508,9,FALSE))=TRUE,"",VLOOKUP($C132,'Lager antal'!$C$3:$K$508,9,FALSE)) ->  | I132: =IFERROR(INDEX(Lageromsætning!$P$3:$P$79,SMALL(IF(Lageromsætning!$A$3:$A$79=$A$2,ROW(Lageromsætning!$A$3:$A$79)-CELL("row",Lageromsætning!$A$3:$A$79)+1),ROWS($2:130))),"") ->  | J132: =+_xlfn.IFS($M132>=0.01,$M132,TRUE,0)-$F132-K132+G132 -> 0 | K132: =SUMIFS('Lager antal'!$G$3:$G$2508,'Lager antal'!$B$3:$B$2508,B132,'Lager antal'!$C$3:$C$2508,C132) -> 0 | M132: =+$N132/$K$2 -> 0 | N132: =SUMIFS(Lageromsætning!$R$3:$R$79,Lageromsætning!$A$3:$A$79,$A$2,Lageromsætning!$C$3:$C$79,B132,Lageromsætning!$D$3:$D$79,C132) -> 0 | O132: =SUMIFS(Lageromsætning!$S$3:$S$79,Lageromsætning!$C$3:$C$79,B132,Lageromsætning!$D$3:$D$79,C132) -> 0
A133: =IFERROR(INDEX(Lageromsætning!$A$3:$A$79,SMALL(IF(Lageromsætning!$A$3:$A$79=$A$2,ROW(Lageromsætning!$A$3:$A$79)-CELL("row",Lageromsætning!$A$3:$A$79)+1),ROWS($1:130))),"") ->  | B133: =IFERROR(INDEX(Lageromsætning!$C$3:$C$79,SMALL(IF(Lageromsætning!$A$3:$A$79=$A$2,ROW(Lageromsætning!$A$3:$A$79)-CELL("row",Lageromsætning!$A$3:$A$79)+1),ROWS($2:131))),"") ->  | C133: =IFERROR(INDEX(Lageromsætning!$D$3:$D$79,SMALL(IF(Lageromsætning!$A$3:$A$79=$A$2,ROW(Lageromsætning!$A$3:$A$79)-CELL("row",Lageromsætning!$A$3:$A$79)+1),ROWS($2:131))),"") ->  | D133: =IFERROR(INDEX(Lageromsætning!$E$3:$E$79,SMALL(IF(Lageromsætning!$A$3:$A$79=$A$2,ROW(Lageromsætning!$A$3:$A$79)-CELL("row",Lageromsætning!$A$3:$A$79)+1),ROWS($2:131))),"") ->  | E133: =IFERROR(INDEX(Lageromsætning!$AF$3:$AF$79,SMALL(IF(Lageromsætning!$A$3:$A$79=$A$2,ROW(Lageromsætning!$A$3:$A$79)-CELL("row",Lageromsætning!$A$3:$A$79)+1),ROWS($2:131))),"") ->  | F133: =SUMIFS('Lager antal'!$D$3:$D$2508,'Lager antal'!$B$3:$B$2508,B133,'Lager antal'!$C$3:$C$2508,C133) -> 0 | G133: =SUMIFS('Lager antal'!$F$3:$F$2508,'Lager antal'!$B$3:$B$2508,B133,'Lager antal'!$C$3:$C$2508,C133) -> 0 | H133: =IF(ISNA(VLOOKUP($C133,'Lager antal'!$C$3:$K$508,9,FALSE))=TRUE,"",VLOOKUP($C133,'Lager antal'!$C$3:$K$508,9,FALSE)) ->  | I133: =IFERROR(INDEX(Lageromsætning!$P$3:$P$79,SMALL(IF(Lageromsætning!$A$3:$A$79=$A$2,ROW(Lageromsætning!$A$3:$A$79)-CELL("row",Lageromsætning!$A$3:$A$79)+1),ROWS($2:131))),"") ->  | J133: =+_xlfn.IFS($M133>=0.01,$M133,TRUE,0)-$F133-K133+G133 -> 0 | K133: =SUMIFS('Lager antal'!$G$3:$G$2508,'Lager antal'!$B$3:$B$2508,B133,'Lager antal'!$C$3:$C$2508,C133) -> 0 | M133: 0 | N133: =SUMIFS(Lageromsætning!$R$3:$R$79,Lageromsætning!$A$3:$A$79,$A$2,Lageromsætning!$C$3:$C$79,B133,Lageromsætning!$D$3:$D$79,C133) -> 0 | O133: =SUMIFS(Lageromsætning!$S$3:$S$79,Lageromsætning!$C$3:$C$79,B133,Lageromsætning!$D$3:$D$79,C133) -> 0
A134: =IFERROR(INDEX(Lageromsætning!$A$3:$A$79,SMALL(IF(Lageromsætning!$A$3:$A$79=$A$2,ROW(Lageromsætning!$A$3:$A$79)-CELL("row",Lageromsætning!$A$3:$A$79)+1),ROWS($1:131))),"") ->  | B134: =IFERROR(INDEX(Lageromsætning!$C$3:$C$79,SMALL(IF(Lageromsætning!$A$3:$A$79=$A$2,ROW(Lageromsætning!$A$3:$A$79)-CELL("row",Lageromsætning!$A$3:$A$79)+1),ROWS($2:132))),"") ->  | C134: =IFERROR(INDEX(Lageromsætning!$D$3:$D$79,SMALL(IF(Lageromsætning!$A$3:$A$79=$A$2,ROW(Lageromsætning!$A$3:$A$79)-CELL("row",Lageromsætning!$A$3:$A$79)+1),ROWS($2:132))),"") ->  | D134: =IFERROR(INDEX(Lageromsætning!$E$3:$E$79,SMALL(IF(Lageromsætning!$A$3:$A$79=$A$2,ROW(Lageromsætning!$A$3:$A$79)-CELL("row",Lageromsætning!$A$3:$A$79)+1),ROWS($2:132))),"") ->  | E134: =IFERROR(INDEX(Lageromsætning!$AF$3:$AF$79,SMALL(IF(Lageromsætning!$A$3:$A$79=$A$2,ROW(Lageromsætning!$A$3:$A$79)-CELL("row",Lageromsætning!$A$3:$A$79)+1),ROWS($2:132))),"") ->  | F134: =SUMIFS('Lager antal'!$D$3:$D$2508,'Lager antal'!$B$3:$B$2508,B134,'Lager antal'!$C$3:$C$2508,C134) -> 0 | G134: =SUMIFS('Lager antal'!$F$3:$F$2508,'Lager antal'!$B$3:$B$2508,B134,'Lager antal'!$C$3:$C$2508,C134) -> 0 | H134: =IF(ISNA(VLOOKUP($C134,'Lager antal'!$C$3:$K$508,9,FALSE))=TRUE,"",VLOOKUP($C134,'Lager antal'!$C$3:$K$508,9,FALSE)) ->  | I134: =IFERROR(INDEX(Lageromsætning!$P$3:$P$79,SMALL(IF(Lageromsætning!$A$3:$A$79=$A$2,ROW(Lageromsætning!$A$3:$A$79)-CELL("row",Lageromsætning!$A$3:$A$79)+1),ROWS($2:132))),"") ->  | J134: =+_xlfn.IFS($M134>=0.01,$M134,TRUE,0)-$F134-K134+G134 -> 0 | K134: =SUMIFS('Lager antal'!$G$3:$G$2508,'Lager antal'!$B$3:$B$2508,B134,'Lager antal'!$C$3:$C$2508,C134) -> 0 | M134: 0 | N134: =SUMIFS(Lageromsætning!$R$3:$R$79,Lageromsætning!$A$3:$A$79,$A$2,Lageromsætning!$C$3:$C$79,B134,Lageromsætning!$D$3:$D$79,C134) -> 0 | O134: =SUMIFS(Lageromsætning!$S$3:$S$79,Lageromsætning!$C$3:$C$79,B134,Lageromsætning!$D$3:$D$79,C134) -> 0
A135: =IFERROR(INDEX(Lageromsætning!$A$3:$A$79,SMALL(IF(Lageromsætning!$A$3:$A$79=$A$2,ROW(Lageromsætning!$A$3:$A$79)-CELL("row",Lageromsætning!$A$3:$A$79)+1),ROWS($1:132))),"") ->  | B135: =IFERROR(INDEX(Lageromsætning!$C$3:$C$79,SMALL(IF(Lageromsætning!$A$3:$A$79=$A$2,ROW(Lageromsætning!$A$3:$A$79)-CELL("row",Lageromsætning!$A$3:$A$79)+1),ROWS($2:133))),"") ->  | C135: =IFERROR(INDEX(Lageromsætning!$D$3:$D$79,SMALL(IF(Lageromsætning!$A$3:$A$79=$A$2,ROW(Lageromsætning!$A$3:$A$79)-CELL("row",Lageromsætning!$A$3:$A$79)+1),ROWS($2:133))),"") ->  | D135: =IFERROR(INDEX(Lageromsætning!$E$3:$E$79,SMALL(IF(Lageromsætning!$A$3:$A$79=$A$2,ROW(Lageromsætning!$A$3:$A$79)-CELL("row",Lageromsætning!$A$3:$A$79)+1),ROWS($2:133))),"") ->  | E135: =IFERROR(INDEX(Lageromsætning!$AF$3:$AF$79,SMALL(IF(Lageromsætning!$A$3:$A$79=$A$2,ROW(Lageromsætning!$A$3:$A$79)-CELL("row",Lageromsætning!$A$3:$A$79)+1),ROWS($2:133))),"") ->  | F135: =SUMIFS('Lager antal'!$D$3:$D$2508,'Lager antal'!$B$3:$B$2508,B135,'Lager antal'!$C$3:$C$2508,C135) -> 0 | G135: =SUMIFS('Lager antal'!$F$3:$F$2508,'Lager antal'!$B$3:$B$2508,B135,'Lager antal'!$C$3:$C$2508,C135) -> 0 | H135: =IF(ISNA(VLOOKUP($C135,'Lager antal'!$C$3:$K$508,9,FALSE))=TRUE,"",VLOOKUP($C135,'Lager antal'!$C$3:$K$508,9,FALSE)) ->  | I135: =IFERROR(INDEX(Lageromsætning!$P$3:$P$79,SMALL(IF(Lageromsætning!$A$3:$A$79=$A$2,ROW(Lageromsætning!$A$3:$A$79)-CELL("row",Lageromsætning!$A$3:$A$79)+1),ROWS($2:133))),"") ->  | J135: =+_xlfn.IFS($M135>=0.01,$M135,TRUE,0)-$F135-K135+G135 -> 0 | K135: =SUMIFS('Lager antal'!$G$3:$G$2508,'Lager antal'!$B$3:$B$2508,B135,'Lager antal'!$C$3:$C$2508,C135) -> 0 | M135: 0 | N135: =SUMIFS(Lageromsætning!$R$3:$R$79,Lageromsætning!$A$3:$A$79,$A$2,Lageromsætning!$C$3:$C$79,B135,Lageromsætning!$D$3:$D$79,C135) -> 0 | O135: =SUMIFS(Lageromsætning!$S$3:$S$79,Lageromsætning!$C$3:$C$79,B135,Lageromsætning!$D$3:$D$79,C135) -> 0
A136: =IFERROR(INDEX(Lageromsætning!$A$3:$A$79,SMALL(IF(Lageromsætning!$A$3:$A$79=$A$2,ROW(Lageromsætning!$A$3:$A$79)-CELL("row",Lageromsætning!$A$3:$A$79)+1),ROWS($1:133))),"") ->  | B136: =IFERROR(INDEX(Lageromsætning!$C$3:$C$79,SMALL(IF(Lageromsætning!$A$3:$A$79=$A$2,ROW(Lageromsætning!$A$3:$A$79)-CELL("row",Lageromsætning!$A$3:$A$79)+1),ROWS($2:134))),"") ->  | C136: =IFERROR(INDEX(Lageromsætning!$D$3:$D$79,SMALL(IF(Lageromsætning!$A$3:$A$79=$A$2,ROW(Lageromsætning!$A$3:$A$79)-CELL("row",Lageromsætning!$A$3:$A$79)+1),ROWS($2:134))),"") ->  | D136: =IFERROR(INDEX(Lageromsætning!$E$3:$E$79,SMALL(IF(Lageromsætning!$A$3:$A$79=$A$2,ROW(Lageromsætning!$A$3:$A$79)-CELL("row",Lageromsætning!$A$3:$A$79)+1),ROWS($2:134))),"") ->  | E136: =IFERROR(INDEX(Lageromsætning!$AF$3:$AF$79,SMALL(IF(Lageromsætning!$A$3:$A$79=$A$2,ROW(Lageromsætning!$A$3:$A$79)-CELL("row",Lageromsætning!$A$3:$A$79)+1),ROWS($2:134))),"") ->  | F136: =SUMIFS('Lager antal'!$D$3:$D$2508,'Lager antal'!$B$3:$B$2508,B136,'Lager antal'!$C$3:$C$2508,C136) -> 0 | G136: =SUMIFS('Lager antal'!$F$3:$F$2508,'Lager antal'!$B$3:$B$2508,B136,'Lager antal'!$C$3:$C$2508,C136) -> 0 | H136: =IF(ISNA(VLOOKUP($C136,'Lager antal'!$C$3:$K$508,9,FALSE))=TRUE,"",VLOOKUP($C136,'Lager antal'!$C$3:$K$508,9,FALSE)) ->  | I136: =IFERROR(INDEX(Lageromsætning!$P$3:$P$79,SMALL(IF(Lageromsætning!$A$3:$A$79=$A$2,ROW(Lageromsætning!$A$3:$A$79)-CELL("row",Lageromsætning!$A$3:$A$79)+1),ROWS($2:134))),"") ->  | J136: =+_xlfn.IFS($M136>=0.01,$M136,TRUE,0)-$F136-K136+G136 -> 0 | K136: =SUMIFS('Lager antal'!$G$3:$G$2508,'Lager antal'!$B$3:$B$2508,B136,'Lager antal'!$C$3:$C$2508,C136) -> 0 | M136: 0 | N136: =SUMIFS(Lageromsætning!$R$3:$R$79,Lageromsætning!$A$3:$A$79,$A$2,Lageromsætning!$C$3:$C$79,B136,Lageromsætning!$D$3:$D$79,C136) -> 0 | O136: =SUMIFS(Lageromsætning!$S$3:$S$79,Lageromsætning!$C$3:$C$79,B136,Lageromsætning!$D$3:$D$79,C136) -> 0
A137: =IFERROR(INDEX(Lageromsætning!$A$3:$A$79,SMALL(IF(Lageromsætning!$A$3:$A$79=$A$2,ROW(Lageromsætning!$A$3:$A$79)-CELL("row",Lageromsætning!$A$3:$A$79)+1),ROWS($1:134))),"") ->  | B137: =IFERROR(INDEX(Lageromsætning!$C$3:$C$79,SMALL(IF(Lageromsætning!$A$3:$A$79=$A$2,ROW(Lageromsætning!$A$3:$A$79)-CELL("row",Lageromsætning!$A$3:$A$79)+1),ROWS($2:135))),"") ->  | C137: =IFERROR(INDEX(Lageromsætning!$D$3:$D$79,SMALL(IF(Lageromsætning!$A$3:$A$79=$A$2,ROW(Lageromsætning!$A$3:$A$79)-CELL("row",Lageromsætning!$A$3:$A$79)+1),ROWS($2:135))),"") ->  | D137: =IFERROR(INDEX(Lageromsætning!$E$3:$E$79,SMALL(IF(Lageromsætning!$A$3:$A$79=$A$2,ROW(Lageromsætning!$A$3:$A$79)-CELL("row",Lageromsætning!$A$3:$A$79)+1),ROWS($2:135))),"") ->  | E137: =IFERROR(INDEX(Lageromsætning!$AF$3:$AF$79,SMALL(IF(Lageromsætning!$A$3:$A$79=$A$2,ROW(Lageromsætning!$A$3:$A$79)-CELL("row",Lageromsætning!$A$3:$A$79)+1),ROWS($2:135))),"") ->  | F137: =SUMIFS('Lager antal'!$D$3:$D$2508,'Lager antal'!$B$3:$B$2508,B137,'Lager antal'!$C$3:$C$2508,C137) -> 0 | G137: =SUMIFS('Lager antal'!$F$3:$F$2508,'Lager antal'!$B$3:$B$2508,B137,'Lager antal'!$C$3:$C$2508,C137) -> 0 | H137: =IF(ISNA(VLOOKUP($C137,'Lager antal'!$C$3:$K$508,9,FALSE))=TRUE,"",VLOOKUP($C137,'Lager antal'!$C$3:$K$508,9,FALSE)) ->  | I137: =IFERROR(INDEX(Lageromsætning!$P$3:$P$79,SMALL(IF(Lageromsætning!$A$3:$A$79=$A$2,ROW(Lageromsætning!$A$3:$A$79)-CELL("row",Lageromsætning!$A$3:$A$79)+1),ROWS($2:135))),"") ->  | J137: =+_xlfn.IFS($M137>=0.01,$M137,TRUE,0)-$F137-K137+G137 -> 0 | K137: =SUMIFS('Lager antal'!$G$3:$G$2508,'Lager antal'!$B$3:$B$2508,B137,'Lager antal'!$C$3:$C$2508,C137) -> 0 | M137: 0 | N137: =SUMIFS(Lageromsætning!$R$3:$R$79,Lageromsætning!$A$3:$A$79,$A$2,Lageromsætning!$C$3:$C$79,B137,Lageromsætning!$D$3:$D$79,C137) -> 0 | O137: =SUMIFS(Lageromsætning!$S$3:$S$79,Lageromsætning!$C$3:$C$79,B137,Lageromsætning!$D$3:$D$79,C137) -> 0
A138: =IFERROR(INDEX(Lageromsætning!$A$3:$A$79,SMALL(IF(Lageromsætning!$A$3:$A$79=$A$2,ROW(Lageromsætning!$A$3:$A$79)-CELL("row",Lageromsætning!$A$3:$A$79)+1),ROWS($1:135))),"") ->  | B138: =IFERROR(INDEX(Lageromsætning!$C$3:$C$79,SMALL(IF(Lageromsætning!$A$3:$A$79=$A$2,ROW(Lageromsætning!$A$3:$A$79)-CELL("row",Lageromsætning!$A$3:$A$79)+1),ROWS($2:136))),"") ->  | C138: =IFERROR(INDEX(Lageromsætning!$D$3:$D$79,SMALL(IF(Lageromsætning!$A$3:$A$79=$A$2,ROW(Lageromsætning!$A$3:$A$79)-CELL("row",Lageromsætning!$A$3:$A$79)+1),ROWS($2:136))),"") ->  | D138: =IFERROR(INDEX(Lageromsætning!$E$3:$E$79,SMALL(IF(Lageromsætning!$A$3:$A$79=$A$2,ROW(Lageromsætning!$A$3:$A$79)-CELL("row",Lageromsætning!$A$3:$A$79)+1),ROWS($2:136))),"") ->  | E138: =IFERROR(INDEX(Lageromsætning!$AF$3:$AF$79,SMALL(IF(Lageromsætning!$A$3:$A$79=$A$2,ROW(Lageromsætning!$A$3:$A$79)-CELL("row",Lageromsætning!$A$3:$A$79)+1),ROWS($2:136))),"") ->  | F138: =SUMIFS('Lager antal'!$D$3:$D$2508,'Lager antal'!$B$3:$B$2508,B138,'Lager antal'!$C$3:$C$2508,C138) -> 0 | G138: =SUMIFS('Lager antal'!$F$3:$F$2508,'Lager antal'!$B$3:$B$2508,B138,'Lager antal'!$C$3:$C$2508,C138) -> 0 | H138: =IF(ISNA(VLOOKUP($C138,'Lager antal'!$C$3:$K$508,9,FALSE))=TRUE,"",VLOOKUP($C138,'Lager antal'!$C$3:$K$508,9,FALSE)) ->  | I138: =IFERROR(INDEX(Lageromsætning!$P$3:$P$79,SMALL(IF(Lageromsætning!$A$3:$A$79=$A$2,ROW(Lageromsætning!$A$3:$A$79)-CELL("row",Lageromsætning!$A$3:$A$79)+1),ROWS($2:136))),"") ->  | J138: =+_xlfn.IFS($M138>=0.01,$M138,TRUE,0)-$F138-K138+G138 -> 0 | K138: =SUMIFS('Lager antal'!$G$3:$G$2508,'Lager antal'!$B$3:$B$2508,B138,'Lager antal'!$C$3:$C$2508,C138) -> 0 | M138: 0 | N138: =SUMIFS(Lageromsætning!$R$3:$R$79,Lageromsætning!$A$3:$A$79,$A$2,Lageromsætning!$C$3:$C$79,B138,Lageromsætning!$D$3:$D$79,C138) -> 0 | O138: =SUMIFS(Lageromsætning!$S$3:$S$79,Lageromsætning!$C$3:$C$79,B138,Lageromsætning!$D$3:$D$79,C138) -> 0
A139: =IFERROR(INDEX(Lageromsætning!$A$3:$A$79,SMALL(IF(Lageromsætning!$A$3:$A$79=$A$2,ROW(Lageromsætning!$A$3:$A$79)-CELL("row",Lageromsætning!$A$3:$A$79)+1),ROWS($1:136))),"") ->  | B139: =IFERROR(INDEX(Lageromsætning!$C$3:$C$79,SMALL(IF(Lageromsætning!$A$3:$A$79=$A$2,ROW(Lageromsætning!$A$3:$A$79)-CELL("row",Lageromsætning!$A$3:$A$79)+1),ROWS($2:137))),"") ->  | C139: =IFERROR(INDEX(Lageromsætning!$D$3:$D$79,SMALL(IF(Lageromsætning!$A$3:$A$79=$A$2,ROW(Lageromsætning!$A$3:$A$79)-CELL("row",Lageromsætning!$A$3:$A$79)+1),ROWS($2:137))),"") ->  | D139: =IFERROR(INDEX(Lageromsætning!$E$3:$E$79,SMALL(IF(Lageromsætning!$A$3:$A$79=$A$2,ROW(Lageromsætning!$A$3:$A$79)-CELL("row",Lageromsætning!$A$3:$A$79)+1),ROWS($2:137))),"") ->  | E139: =IFERROR(INDEX(Lageromsætning!$AF$3:$AF$79,SMALL(IF(Lageromsætning!$A$3:$A$79=$A$2,ROW(Lageromsætning!$A$3:$A$79)-CELL("row",Lageromsætning!$A$3:$A$79)+1),ROWS($2:137))),"") ->  | F139: =SUMIFS('Lager antal'!$D$3:$D$2508,'Lager antal'!$B$3:$B$2508,B139,'Lager antal'!$C$3:$C$2508,C139) -> 0 | G139: =SUMIFS('Lager antal'!$F$3:$F$2508,'Lager antal'!$B$3:$B$2508,B139,'Lager antal'!$C$3:$C$2508,C139) -> 0 | H139: =IF(ISNA(VLOOKUP($C139,'Lager antal'!$C$3:$K$508,9,FALSE))=TRUE,"",VLOOKUP($C139,'Lager antal'!$C$3:$K$508,9,FALSE)) ->  | I139: =IFERROR(INDEX(Lageromsætning!$P$3:$P$79,SMALL(IF(Lageromsætning!$A$3:$A$79=$A$2,ROW(Lageromsætning!$A$3:$A$79)-CELL("row",Lageromsætning!$A$3:$A$79)+1),ROWS($2:137))),"") ->  | J139: =+_xlfn.IFS($M139>=0.01,$M139,TRUE,0)-$F139-K139+G139 -> 0 | K139: =SUMIFS('Lager antal'!$G$3:$G$2508,'Lager antal'!$B$3:$B$2508,B139,'Lager antal'!$C$3:$C$2508,C139) -> 0 | M139: 0 | N139: =SUMIFS(Lageromsætning!$R$3:$R$79,Lageromsætning!$A$3:$A$79,$A$2,Lageromsætning!$C$3:$C$79,B139,Lageromsætning!$D$3:$D$79,C139) -> 0 | O139: =SUMIFS(Lageromsætning!$S$3:$S$79,Lageromsætning!$C$3:$C$79,B139,Lageromsætning!$D$3:$D$79,C139) -> 0
A140: =IFERROR(INDEX(Lageromsætning!$A$3:$A$79,SMALL(IF(Lageromsætning!$A$3:$A$79=$A$2,ROW(Lageromsætning!$A$3:$A$79)-CELL("row",Lageromsætning!$A$3:$A$79)+1),ROWS($1:137))),"") ->  | B140: =IFERROR(INDEX(Lageromsætning!$C$3:$C$79,SMALL(IF(Lageromsætning!$A$3:$A$79=$A$2,ROW(Lageromsætning!$A$3:$A$79)-CELL("row",Lageromsætning!$A$3:$A$79)+1),ROWS($2:138))),"") ->  | C140: =IFERROR(INDEX(Lageromsætning!$D$3:$D$79,SMALL(IF(Lageromsætning!$A$3:$A$79=$A$2,ROW(Lageromsætning!$A$3:$A$79)-CELL("row",Lageromsætning!$A$3:$A$79)+1),ROWS($2:138))),"") ->  | D140: =IFERROR(INDEX(Lageromsætning!$E$3:$E$79,SMALL(IF(Lageromsætning!$A$3:$A$79=$A$2,ROW(Lageromsætning!$A$3:$A$79)-CELL("row",Lageromsætning!$A$3:$A$79)+1),ROWS($2:138))),"") ->  | E140: =IFERROR(INDEX(Lageromsætning!$AF$3:$AF$79,SMALL(IF(Lageromsætning!$A$3:$A$79=$A$2,ROW(Lageromsætning!$A$3:$A$79)-CELL("row",Lageromsætning!$A$3:$A$79)+1),ROWS($2:138))),"") ->  | F140: =SUMIFS('Lager antal'!$D$3:$D$2508,'Lager antal'!$B$3:$B$2508,B140,'Lager antal'!$C$3:$C$2508,C140) -> 0 | G140: =SUMIFS('Lager antal'!$F$3:$F$2508,'Lager antal'!$B$3:$B$2508,B140,'Lager antal'!$C$3:$C$2508,C140) -> 0 | H140: =IF(ISNA(VLOOKUP($C140,'Lager antal'!$C$3:$K$508,9,FALSE))=TRUE,"",VLOOKUP($C140,'Lager antal'!$C$3:$K$508,9,FALSE)) ->  | I140: =IFERROR(INDEX(Lageromsætning!$P$3:$P$79,SMALL(IF(Lageromsætning!$A$3:$A$79=$A$2,ROW(Lageromsætning!$A$3:$A$79)-CELL("row",Lageromsætning!$A$3:$A$79)+1),ROWS($2:138))),"") ->  | J140: =+_xlfn.IFS($M140>=0.01,$M140,TRUE,0)-$F140-K140+G140 -> 0 | K140: =SUMIFS('Lager antal'!$G$3:$G$2508,'Lager antal'!$B$3:$B$2508,B140,'Lager antal'!$C$3:$C$2508,C140) -> 0 | M140: 0 | N140: =SUMIFS(Lageromsætning!$R$3:$R$79,Lageromsætning!$A$3:$A$79,$A$2,Lageromsætning!$C$3:$C$79,B140,Lageromsætning!$D$3:$D$79,C140) -> 0 | O140: =SUMIFS(Lageromsætning!$S$3:$S$79,Lageromsætning!$C$3:$C$79,B140,Lageromsætning!$D$3:$D$79,C140) -> 0
A141: =IFERROR(INDEX(Lageromsætning!$A$3:$A$79,SMALL(IF(Lageromsætning!$A$3:$A$79=$A$2,ROW(Lageromsætning!$A$3:$A$79)-CELL("row",Lageromsætning!$A$3:$A$79)+1),ROWS($1:138))),"") ->  | B141: =IFERROR(INDEX(Lageromsætning!$C$3:$C$79,SMALL(IF(Lageromsætning!$A$3:$A$79=$A$2,ROW(Lageromsætning!$A$3:$A$79)-CELL("row",Lageromsætning!$A$3:$A$79)+1),ROWS($2:139))),"") ->  | C141: =IFERROR(INDEX(Lageromsætning!$D$3:$D$79,SMALL(IF(Lageromsætning!$A$3:$A$79=$A$2,ROW(Lageromsætning!$A$3:$A$79)-CELL("row",Lageromsætning!$A$3:$A$79)+1),ROWS($2:139))),"") ->  | D141: =IFERROR(INDEX(Lageromsætning!$E$3:$E$79,SMALL(IF(Lageromsætning!$A$3:$A$79=$A$2,ROW(Lageromsætning!$A$3:$A$79)-CELL("row",Lageromsætning!$A$3:$A$79)+1),ROWS($2:139))),"") ->  | E141: =IFERROR(INDEX(Lageromsætning!$AF$3:$AF$79,SMALL(IF(Lageromsætning!$A$3:$A$79=$A$2,ROW(Lageromsætning!$A$3:$A$79)-CELL("row",Lageromsætning!$A$3:$A$79)+1),ROWS($2:139))),"") ->  | F141: =SUMIFS('Lager antal'!$D$3:$D$2508,'Lager antal'!$B$3:$B$2508,B141,'Lager antal'!$C$3:$C$2508,C141) -> 0 | G141: =SUMIFS('Lager antal'!$F$3:$F$2508,'Lager antal'!$B$3:$B$2508,B141,'Lager antal'!$C$3:$C$2508,C141) -> 0 | H141: =IF(ISNA(VLOOKUP($C141,'Lager antal'!$C$3:$K$508,9,FALSE))=TRUE,"",VLOOKUP($C141,'Lager antal'!$C$3:$K$508,9,FALSE)) ->  | I141: =IFERROR(INDEX(Lageromsætning!$P$3:$P$79,SMALL(IF(Lageromsætning!$A$3:$A$79=$A$2,ROW(Lageromsætning!$A$3:$A$79)-CELL("row",Lageromsætning!$A$3:$A$79)+1),ROWS($2:139))),"") ->  | J141: =+_xlfn.IFS($M141>=0.01,$M141,TRUE,0)-$F141-K141+G141 -> 0 | K141: =SUMIFS('Lager antal'!$G$3:$G$2508,'Lager antal'!$B$3:$B$2508,B141,'Lager antal'!$C$3:$C$2508,C141) -> 0 | M141: 0 | N141: =SUMIFS(Lageromsætning!$R$3:$R$79,Lageromsætning!$A$3:$A$79,$A$2,Lageromsætning!$C$3:$C$79,B141,Lageromsætning!$D$3:$D$79,C141) -> 0 | O141: =SUMIFS(Lageromsætning!$S$3:$S$79,Lageromsætning!$C$3:$C$79,B141,Lageromsætning!$D$3:$D$79,C141) -> 0
A142: =IFERROR(INDEX(Lageromsætning!$A$3:$A$79,SMALL(IF(Lageromsætning!$A$3:$A$79=$A$2,ROW(Lageromsætning!$A$3:$A$79)-CELL("row",Lageromsætning!$A$3:$A$79)+1),ROWS($1:139))),"") ->  | B142: =IFERROR(INDEX(Lageromsætning!$C$3:$C$79,SMALL(IF(Lageromsætning!$A$3:$A$79=$A$2,ROW(Lageromsætning!$A$3:$A$79)-CELL("row",Lageromsætning!$A$3:$A$79)+1),ROWS($2:140))),"") ->  | C142: =IFERROR(INDEX(Lageromsætning!$D$3:$D$79,SMALL(IF(Lageromsætning!$A$3:$A$79=$A$2,ROW(Lageromsætning!$A$3:$A$79)-CELL("row",Lageromsætning!$A$3:$A$79)+1),ROWS($2:140))),"") ->  | D142: =IFERROR(INDEX(Lageromsætning!$E$3:$E$79,SMALL(IF(Lageromsætning!$A$3:$A$79=$A$2,ROW(Lageromsætning!$A$3:$A$79)-CELL("row",Lageromsætning!$A$3:$A$79)+1),ROWS($2:140))),"") ->  | E142: =IFERROR(INDEX(Lageromsætning!$AF$3:$AF$79,SMALL(IF(Lageromsætning!$A$3:$A$79=$A$2,ROW(Lageromsætning!$A$3:$A$79)-CELL("row",Lageromsætning!$A$3:$A$79)+1),ROWS($2:140))),"") ->  | F142: =SUMIFS('Lager antal'!$D$3:$D$2508,'Lager antal'!$B$3:$B$2508,B142,'Lager antal'!$C$3:$C$2508,C142) -> 0 | G142: =SUMIFS('Lager antal'!$F$3:$F$2508,'Lager antal'!$B$3:$B$2508,B142,'Lager antal'!$C$3:$C$2508,C142) -> 0 | H142: =IF(ISNA(VLOOKUP($C142,'Lager antal'!$C$3:$K$508,9,FALSE))=TRUE,"",VLOOKUP($C142,'Lager antal'!$C$3:$K$508,9,FALSE)) ->  | I142: =IFERROR(INDEX(Lageromsætning!$P$3:$P$79,SMALL(IF(Lageromsætning!$A$3:$A$79=$A$2,ROW(Lageromsætning!$A$3:$A$79)-CELL("row",Lageromsætning!$A$3:$A$79)+1),ROWS($2:140))),"") ->  | J142: =+_xlfn.IFS($M142>=0.01,$M142,TRUE,0)-$F142-K142+G142 -> 0 | K142: =SUMIFS('Lager antal'!$G$3:$G$2508,'Lager antal'!$B$3:$B$2508,B142,'Lager antal'!$C$3:$C$2508,C142) -> 0 | M142: 0 | N142: =SUMIFS(Lageromsætning!$R$3:$R$79,Lageromsætning!$A$3:$A$79,$A$2,Lageromsætning!$C$3:$C$79,B142,Lageromsætning!$D$3:$D$79,C142) -> 0 | O142: =SUMIFS(Lageromsætning!$S$3:$S$79,Lageromsætning!$C$3:$C$79,B142,Lageromsætning!$D$3:$D$79,C142) -> 0
A143: =IFERROR(INDEX(Lageromsætning!$A$3:$A$79,SMALL(IF(Lageromsætning!$A$3:$A$79=$A$2,ROW(Lageromsætning!$A$3:$A$79)-CELL("row",Lageromsætning!$A$3:$A$79)+1),ROWS($1:140))),"") ->  | B143: =IFERROR(INDEX(Lageromsætning!$C$3:$C$79,SMALL(IF(Lageromsætning!$A$3:$A$79=$A$2,ROW(Lageromsætning!$A$3:$A$79)-CELL("row",Lageromsætning!$A$3:$A$79)+1),ROWS($2:141))),"") ->  | C143: =IFERROR(INDEX(Lageromsætning!$D$3:$D$79,SMALL(IF(Lageromsætning!$A$3:$A$79=$A$2,ROW(Lageromsætning!$A$3:$A$79)-CELL("row",Lageromsætning!$A$3:$A$79)+1),ROWS($2:141))),"") ->  | D143: =IFERROR(INDEX(Lageromsætning!$E$3:$E$79,SMALL(IF(Lageromsætning!$A$3:$A$79=$A$2,ROW(Lageromsætning!$A$3:$A$79)-CELL("row",Lageromsætning!$A$3:$A$79)+1),ROWS($2:141))),"") ->  | E143: =IFERROR(INDEX(Lageromsætning!$AF$3:$AF$79,SMALL(IF(Lageromsætning!$A$3:$A$79=$A$2,ROW(Lageromsætning!$A$3:$A$79)-CELL("row",Lageromsætning!$A$3:$A$79)+1),ROWS($2:141))),"") ->  | F143: =SUMIFS('Lager antal'!$D$3:$D$2508,'Lager antal'!$B$3:$B$2508,B143,'Lager antal'!$C$3:$C$2508,C143) -> 0 | G143: =SUMIFS('Lager antal'!$F$3:$F$2508,'Lager antal'!$B$3:$B$2508,B143,'Lager antal'!$C$3:$C$2508,C143) -> 0 | H143: =IF(ISNA(VLOOKUP($C143,'Lager antal'!$C$3:$K$508,9,FALSE))=TRUE,"",VLOOKUP($C143,'Lager antal'!$C$3:$K$508,9,FALSE)) ->  | I143: =IFERROR(INDEX(Lageromsætning!$P$3:$P$79,SMALL(IF(Lageromsætning!$A$3:$A$79=$A$2,ROW(Lageromsætning!$A$3:$A$79)-CELL("row",Lageromsætning!$A$3:$A$79)+1),ROWS($2:141))),"") ->  | J143: =+_xlfn.IFS($M143>=0.01,$M143,TRUE,0)-$F143-K143+G143 -> 0 | K143: =SUMIFS('Lager antal'!$G$3:$G$2508,'Lager antal'!$B$3:$B$2508,B143,'Lager antal'!$C$3:$C$2508,C143) -> 0 | M143: 0 | N143: =SUMIFS(Lageromsætning!$R$3:$R$79,Lageromsætning!$A$3:$A$79,$A$2,Lageromsætning!$C$3:$C$79,B143,Lageromsætning!$D$3:$D$79,C143) -> 0 | O143: =SUMIFS(Lageromsætning!$S$3:$S$79,Lageromsætning!$C$3:$C$79,B143,Lageromsætning!$D$3:$D$79,C143) -> 0
A144: =IFERROR(INDEX(Lageromsætning!$A$3:$A$79,SMALL(IF(Lageromsætning!$A$3:$A$79=$A$2,ROW(Lageromsætning!$A$3:$A$79)-CELL("row",Lageromsætning!$A$3:$A$79)+1),ROWS($1:141))),"") ->  | B144: =IFERROR(INDEX(Lageromsætning!$C$3:$C$79,SMALL(IF(Lageromsætning!$A$3:$A$79=$A$2,ROW(Lageromsætning!$A$3:$A$79)-CELL("row",Lageromsætning!$A$3:$A$79)+1),ROWS($2:142))),"") ->  | C144: =IFERROR(INDEX(Lageromsætning!$D$3:$D$79,SMALL(IF(Lageromsætning!$A$3:$A$79=$A$2,ROW(Lageromsætning!$A$3:$A$79)-CELL("row",Lageromsætning!$A$3:$A$79)+1),ROWS($2:142))),"") ->  | D144: =IFERROR(INDEX(Lageromsætning!$E$3:$E$79,SMALL(IF(Lageromsætning!$A$3:$A$79=$A$2,ROW(Lageromsætning!$A$3:$A$79)-CELL("row",Lageromsætning!$A$3:$A$79)+1),ROWS($2:142))),"") ->  | E144: =IFERROR(INDEX(Lageromsætning!$AF$3:$AF$79,SMALL(IF(Lageromsætning!$A$3:$A$79=$A$2,ROW(Lageromsætning!$A$3:$A$79)-CELL("row",Lageromsætning!$A$3:$A$79)+1),ROWS($2:142))),"") ->  | F144: =SUMIFS('Lager antal'!$D$3:$D$2508,'Lager antal'!$B$3:$B$2508,B144,'Lager antal'!$C$3:$C$2508,C144) -> 0 | G144: =SUMIFS('Lager antal'!$F$3:$F$2508,'Lager antal'!$B$3:$B$2508,B144,'Lager antal'!$C$3:$C$2508,C144) -> 0 | H144: =IF(ISNA(VLOOKUP($C144,'Lager antal'!$C$3:$K$508,9,FALSE))=TRUE,"",VLOOKUP($C144,'Lager antal'!$C$3:$K$508,9,FALSE)) ->  | I144: =IFERROR(INDEX(Lageromsætning!$P$3:$P$79,SMALL(IF(Lageromsætning!$A$3:$A$79=$A$2,ROW(Lageromsætning!$A$3:$A$79)-CELL("row",Lageromsætning!$A$3:$A$79)+1),ROWS($2:142))),"") ->  | J144: =+_xlfn.IFS($M144>=0.01,$M144,TRUE,0)-$F144-K144+G144 -> 0 | K144: =SUMIFS('Lager antal'!$G$3:$G$2508,'Lager antal'!$B$3:$B$2508,B144,'Lager antal'!$C$3:$C$2508,C144) -> 0 | M144: 0 | N144: =SUMIFS(Lageromsætning!$R$3:$R$79,Lageromsætning!$A$3:$A$79,$A$2,Lageromsætning!$C$3:$C$79,B144,Lageromsætning!$D$3:$D$79,C144) -> 0 | O144: =SUMIFS(Lageromsætning!$S$3:$S$79,Lageromsætning!$C$3:$C$79,B144,Lageromsætning!$D$3:$D$79,C144) -> 0
A145: =IFERROR(INDEX(Lageromsætning!$A$3:$A$79,SMALL(IF(Lageromsætning!$A$3:$A$79=$A$2,ROW(Lageromsætning!$A$3:$A$79)-CELL("row",Lageromsætning!$A$3:$A$79)+1),ROWS($1:142))),"") ->  | B145: =IFERROR(INDEX(Lageromsætning!$C$3:$C$79,SMALL(IF(Lageromsætning!$A$3:$A$79=$A$2,ROW(Lageromsætning!$A$3:$A$79)-CELL("row",Lageromsætning!$A$3:$A$79)+1),ROWS($2:143))),"") ->  | C145: =IFERROR(INDEX(Lageromsætning!$D$3:$D$79,SMALL(IF(Lageromsætning!$A$3:$A$79=$A$2,ROW(Lageromsætning!$A$3:$A$79)-CELL("row",Lageromsætning!$A$3:$A$79)+1),ROWS($2:143))),"") ->  | D145: =IFERROR(INDEX(Lageromsætning!$E$3:$E$79,SMALL(IF(Lageromsætning!$A$3:$A$79=$A$2,ROW(Lageromsætning!$A$3:$A$79)-CELL("row",Lageromsætning!$A$3:$A$79)+1),ROWS($2:143))),"") ->  | E145: =IFERROR(INDEX(Lageromsætning!$AF$3:$AF$79,SMALL(IF(Lageromsætning!$A$3:$A$79=$A$2,ROW(Lageromsætning!$A$3:$A$79)-CELL("row",Lageromsætning!$A$3:$A$79)+1),ROWS($2:143))),"") ->  | F145: =SUMIFS('Lager antal'!$D$3:$D$2508,'Lager antal'!$B$3:$B$2508,B145,'Lager antal'!$C$3:$C$2508,C145) -> 0 | G145: =SUMIFS('Lager antal'!$F$3:$F$2508,'Lager antal'!$B$3:$B$2508,B145,'Lager antal'!$C$3:$C$2508,C145) -> 0 | H145: =IF(ISNA(VLOOKUP($C145,'Lager antal'!$C$3:$K$508,9,FALSE))=TRUE,"",VLOOKUP($C145,'Lager antal'!$C$3:$K$508,9,FALSE)) ->  | I145: =IFERROR(INDEX(Lageromsætning!$P$3:$P$79,SMALL(IF(Lageromsætning!$A$3:$A$79=$A$2,ROW(Lageromsætning!$A$3:$A$79)-CELL("row",Lageromsætning!$A$3:$A$79)+1),ROWS($2:143))),"") ->  | J145: =+_xlfn.IFS($M145>=0.01,$M145,TRUE,0)-$F145-K145+G145 -> 0 | K145: =SUMIFS('Lager antal'!$G$3:$G$2508,'Lager antal'!$B$3:$B$2508,B145,'Lager antal'!$C$3:$C$2508,C145) -> 0 | M145: 0 | N145: =SUMIFS(Lageromsætning!$R$3:$R$79,Lageromsætning!$A$3:$A$79,$A$2,Lageromsætning!$C$3:$C$79,B145,Lageromsætning!$D$3:$D$79,C145) -> 0 | O145: =SUMIFS(Lageromsætning!$S$3:$S$79,Lageromsætning!$C$3:$C$79,B145,Lageromsætning!$D$3:$D$79,C145) -> 0
A146: =IFERROR(INDEX(Lageromsætning!$A$3:$A$79,SMALL(IF(Lageromsætning!$A$3:$A$79=$A$2,ROW(Lageromsætning!$A$3:$A$79)-CELL("row",Lageromsætning!$A$3:$A$79)+1),ROWS($1:143))),"") ->  | B146: =IFERROR(INDEX(Lageromsætning!$C$3:$C$79,SMALL(IF(Lageromsætning!$A$3:$A$79=$A$2,ROW(Lageromsætning!$A$3:$A$79)-CELL("row",Lageromsætning!$A$3:$A$79)+1),ROWS($2:144))),"") ->  | C146: =IFERROR(INDEX(Lageromsætning!$D$3:$D$79,SMALL(IF(Lageromsætning!$A$3:$A$79=$A$2,ROW(Lageromsætning!$A$3:$A$79)-CELL("row",Lageromsætning!$A$3:$A$79)+1),ROWS($2:144))),"") ->  | D146: =IFERROR(INDEX(Lageromsætning!$E$3:$E$79,SMALL(IF(Lageromsætning!$A$3:$A$79=$A$2,ROW(Lageromsætning!$A$3:$A$79)-CELL("row",Lageromsætning!$A$3:$A$79)+1),ROWS($2:144))),"") ->  | E146: =IFERROR(INDEX(Lageromsætning!$AF$3:$AF$79,SMALL(IF(Lageromsætning!$A$3:$A$79=$A$2,ROW(Lageromsætning!$A$3:$A$79)-CELL("row",Lageromsætning!$A$3:$A$79)+1),ROWS($2:144))),"") ->  | F146: =SUMIFS('Lager antal'!$D$3:$D$2508,'Lager antal'!$B$3:$B$2508,B146,'Lager antal'!$C$3:$C$2508,C146) -> 0 | G146: =SUMIFS('Lager antal'!$F$3:$F$2508,'Lager antal'!$B$3:$B$2508,B146,'Lager antal'!$C$3:$C$2508,C146) -> 0 | H146: =IF(ISNA(VLOOKUP($C146,'Lager antal'!$C$3:$K$508,9,FALSE))=TRUE,"",VLOOKUP($C146,'Lager antal'!$C$3:$K$508,9,FALSE)) ->  | I146: =IFERROR(INDEX(Lageromsætning!$P$3:$P$79,SMALL(IF(Lageromsætning!$A$3:$A$79=$A$2,ROW(Lageromsætning!$A$3:$A$79)-CELL("row",Lageromsætning!$A$3:$A$79)+1),ROWS($2:144))),"") ->  | J146: =+_xlfn.IFS($M146>=0.01,$M146,TRUE,0)-$F146-K146+G146 -> 0 | K146: =SUMIFS('Lager antal'!$G$3:$G$2508,'Lager antal'!$B$3:$B$2508,B146,'Lager antal'!$C$3:$C$2508,C146) -> 0 | M146: 0 | N146: =SUMIFS(Lageromsætning!$R$3:$R$79,Lageromsætning!$A$3:$A$79,$A$2,Lageromsætning!$C$3:$C$79,B146,Lageromsætning!$D$3:$D$79,C146) -> 0 | O146: =SUMIFS(Lageromsætning!$S$3:$S$79,Lageromsætning!$C$3:$C$79,B146,Lageromsætning!$D$3:$D$79,C146) -> 0
A147: =IFERROR(INDEX(Lageromsætning!$A$3:$A$79,SMALL(IF(Lageromsætning!$A$3:$A$79=$A$2,ROW(Lageromsætning!$A$3:$A$79)-CELL("row",Lageromsætning!$A$3:$A$79)+1),ROWS($1:144))),"") ->  | B147: =IFERROR(INDEX(Lageromsætning!$C$3:$C$79,SMALL(IF(Lageromsætning!$A$3:$A$79=$A$2,ROW(Lageromsætning!$A$3:$A$79)-CELL("row",Lageromsætning!$A$3:$A$79)+1),ROWS($2:145))),"") ->  | C147: =IFERROR(INDEX(Lageromsætning!$D$3:$D$79,SMALL(IF(Lageromsætning!$A$3:$A$79=$A$2,ROW(Lageromsætning!$A$3:$A$79)-CELL("row",Lageromsætning!$A$3:$A$79)+1),ROWS($2:145))),"") ->  | D147: =IFERROR(INDEX(Lageromsætning!$E$3:$E$79,SMALL(IF(Lageromsætning!$A$3:$A$79=$A$2,ROW(Lageromsætning!$A$3:$A$79)-CELL("row",Lageromsætning!$A$3:$A$79)+1),ROWS($2:145))),"") ->  | E147: =IFERROR(INDEX(Lageromsætning!$AF$3:$AF$79,SMALL(IF(Lageromsætning!$A$3:$A$79=$A$2,ROW(Lageromsætning!$A$3:$A$79)-CELL("row",Lageromsætning!$A$3:$A$79)+1),ROWS($2:145))),"") ->  | F147: =SUMIFS('Lager antal'!$D$3:$D$2508,'Lager antal'!$B$3:$B$2508,B147,'Lager antal'!$C$3:$C$2508,C147) -> 0 | G147: =SUMIFS('Lager antal'!$F$3:$F$2508,'Lager antal'!$B$3:$B$2508,B147,'Lager antal'!$C$3:$C$2508,C147) -> 0 | H147: =IF(ISNA(VLOOKUP($C147,'Lager antal'!$C$3:$K$508,9,FALSE))=TRUE,"",VLOOKUP($C147,'Lager antal'!$C$3:$K$508,9,FALSE)) ->  | I147: =IFERROR(INDEX(Lageromsætning!$P$3:$P$79,SMALL(IF(Lageromsætning!$A$3:$A$79=$A$2,ROW(Lageromsætning!$A$3:$A$79)-CELL("row",Lageromsætning!$A$3:$A$79)+1),ROWS($2:145))),"") ->  | J147: =+_xlfn.IFS($M147>=0.01,$M147,TRUE,0)-$F147-K147+G147 -> 0 | K147: =SUMIFS('Lager antal'!$G$3:$G$2508,'Lager antal'!$B$3:$B$2508,B147,'Lager antal'!$C$3:$C$2508,C147) -> 0 | M147: 0 | N147: =SUMIFS(Lageromsætning!$R$3:$R$79,Lageromsætning!$A$3:$A$79,$A$2,Lageromsætning!$C$3:$C$79,B147,Lageromsætning!$D$3:$D$79,C147) -> 0 | O147: =SUMIFS(Lageromsætning!$S$3:$S$79,Lageromsætning!$C$3:$C$79,B147,Lageromsætning!$D$3:$D$79,C147) -> 0
A148: =IFERROR(INDEX(Lageromsætning!$A$3:$A$79,SMALL(IF(Lageromsætning!$A$3:$A$79=$A$2,ROW(Lageromsætning!$A$3:$A$79)-CELL("row",Lageromsætning!$A$3:$A$79)+1),ROWS($1:145))),"") ->  | B148: =IFERROR(INDEX(Lageromsætning!$C$3:$C$79,SMALL(IF(Lageromsætning!$A$3:$A$79=$A$2,ROW(Lageromsætning!$A$3:$A$79)-CELL("row",Lageromsætning!$A$3:$A$79)+1),ROWS($2:146))),"") ->  | C148: =IFERROR(INDEX(Lageromsætning!$D$3:$D$79,SMALL(IF(Lageromsætning!$A$3:$A$79=$A$2,ROW(Lageromsætning!$A$3:$A$79)-CELL("row",Lageromsætning!$A$3:$A$79)+1),ROWS($2:146))),"") ->  | D148: =IFERROR(INDEX(Lageromsætning!$E$3:$E$79,SMALL(IF(Lageromsætning!$A$3:$A$79=$A$2,ROW(Lageromsætning!$A$3:$A$79)-CELL("row",Lageromsætning!$A$3:$A$79)+1),ROWS($2:146))),"") ->  | E148: =IFERROR(INDEX(Lageromsætning!$AF$3:$AF$79,SMALL(IF(Lageromsætning!$A$3:$A$79=$A$2,ROW(Lageromsætning!$A$3:$A$79)-CELL("row",Lageromsætning!$A$3:$A$79)+1),ROWS($2:146))),"") ->  | F148: =SUMIFS('Lager antal'!$D$3:$D$2508,'Lager antal'!$B$3:$B$2508,B148,'Lager antal'!$C$3:$C$2508,C148) -> 0 | G148: =SUMIFS('Lager antal'!$F$3:$F$2508,'Lager antal'!$B$3:$B$2508,B148,'Lager antal'!$C$3:$C$2508,C148) -> 0 | H148: =IF(ISNA(VLOOKUP($C148,'Lager antal'!$C$3:$K$508,9,FALSE))=TRUE,"",VLOOKUP($C148,'Lager antal'!$C$3:$K$508,9,FALSE)) ->  | I148: =IFERROR(INDEX(Lageromsætning!$P$3:$P$79,SMALL(IF(Lageromsætning!$A$3:$A$79=$A$2,ROW(Lageromsætning!$A$3:$A$79)-CELL("row",Lageromsætning!$A$3:$A$79)+1),ROWS($2:146))),"") ->  | J148: =+_xlfn.IFS($M148>=0.01,$M148,TRUE,0)-$F148-K148+G148 -> 0 | K148: =SUMIFS('Lager antal'!$G$3:$G$2508,'Lager antal'!$B$3:$B$2508,B148,'Lager antal'!$C$3:$C$2508,C148) -> 0 | M148: 0 | N148: =SUMIFS(Lageromsætning!$R$3:$R$79,Lageromsætning!$A$3:$A$79,$A$2,Lageromsætning!$C$3:$C$79,B148,Lageromsætning!$D$3:$D$79,C148) -> 0 | O148: =SUMIFS(Lageromsætning!$S$3:$S$79,Lageromsætning!$C$3:$C$79,B148,Lageromsætning!$D$3:$D$79,C148) -> 0
A149: =IFERROR(INDEX(Lageromsætning!$A$3:$A$79,SMALL(IF(Lageromsætning!$A$3:$A$79=$A$2,ROW(Lageromsætning!$A$3:$A$79)-CELL("row",Lageromsætning!$A$3:$A$79)+1),ROWS($1:146))),"") ->  | B149: =IFERROR(INDEX(Lageromsætning!$C$3:$C$79,SMALL(IF(Lageromsætning!$A$3:$A$79=$A$2,ROW(Lageromsætning!$A$3:$A$79)-CELL("row",Lageromsætning!$A$3:$A$79)+1),ROWS($2:147))),"") ->  | C149: =IFERROR(INDEX(Lageromsætning!$D$3:$D$79,SMALL(IF(Lageromsætning!$A$3:$A$79=$A$2,ROW(Lageromsætning!$A$3:$A$79)-CELL("row",Lageromsætning!$A$3:$A$79)+1),ROWS($2:147))),"") ->  | D149: =IFERROR(INDEX(Lageromsætning!$E$3:$E$79,SMALL(IF(Lageromsætning!$A$3:$A$79=$A$2,ROW(Lageromsætning!$A$3:$A$79)-CELL("row",Lageromsætning!$A$3:$A$79)+1),ROWS($2:147))),"") ->  | E149: =IFERROR(INDEX(Lageromsætning!$AF$3:$AF$79,SMALL(IF(Lageromsætning!$A$3:$A$79=$A$2,ROW(Lageromsætning!$A$3:$A$79)-CELL("row",Lageromsætning!$A$3:$A$79)+1),ROWS($2:147))),"") ->  | F149: =SUMIFS('Lager antal'!$D$3:$D$2508,'Lager antal'!$B$3:$B$2508,B149,'Lager antal'!$C$3:$C$2508,C149) -> 0 | G149: =SUMIFS('Lager antal'!$F$3:$F$2508,'Lager antal'!$B$3:$B$2508,B149,'Lager antal'!$C$3:$C$2508,C149) -> 0 | H149: =IF(ISNA(VLOOKUP($C149,'Lager antal'!$C$3:$K$508,9,FALSE))=TRUE,"",VLOOKUP($C149,'Lager antal'!$C$3:$K$508,9,FALSE)) ->  | I149: =IFERROR(INDEX(Lageromsætning!$P$3:$P$79,SMALL(IF(Lageromsætning!$A$3:$A$79=$A$2,ROW(Lageromsætning!$A$3:$A$79)-CELL("row",Lageromsætning!$A$3:$A$79)+1),ROWS($2:147))),"") ->  | J149: =+_xlfn.IFS($M149>=0.01,$M149,TRUE,0)-$F149-K149+G149 -> 0 | K149: =SUMIFS('Lager antal'!$G$3:$G$2508,'Lager antal'!$B$3:$B$2508,B149,'Lager antal'!$C$3:$C$2508,C149) -> 0 | M149: 0 | N149: =SUMIFS(Lageromsætning!$R$3:$R$79,Lageromsætning!$A$3:$A$79,$A$2,Lageromsætning!$C$3:$C$79,B149,Lageromsætning!$D$3:$D$79,C149) -> 0 | O149: =SUMIFS(Lageromsætning!$S$3:$S$79,Lageromsætning!$C$3:$C$79,B149,Lageromsætning!$D$3:$D$79,C149) -> 0
A150: =IFERROR(INDEX(Lageromsætning!$A$3:$A$79,SMALL(IF(Lageromsætning!$A$3:$A$79=$A$2,ROW(Lageromsætning!$A$3:$A$79)-CELL("row",Lageromsætning!$A$3:$A$79)+1),ROWS($1:147))),"") ->  | B150: =IFERROR(INDEX(Lageromsætning!$C$3:$C$79,SMALL(IF(Lageromsætning!$A$3:$A$79=$A$2,ROW(Lageromsætning!$A$3:$A$79)-CELL("row",Lageromsætning!$A$3:$A$79)+1),ROWS($2:148))),"") ->  | C150: =IFERROR(INDEX(Lageromsætning!$D$3:$D$79,SMALL(IF(Lageromsætning!$A$3:$A$79=$A$2,ROW(Lageromsætning!$A$3:$A$79)-CELL("row",Lageromsætning!$A$3:$A$79)+1),ROWS($2:148))),"") ->  | D150: =IFERROR(INDEX(Lageromsætning!$E$3:$E$79,SMALL(IF(Lageromsætning!$A$3:$A$79=$A$2,ROW(Lageromsætning!$A$3:$A$79)-CELL("row",Lageromsætning!$A$3:$A$79)+1),ROWS($2:148))),"") ->  | E150: =IFERROR(INDEX(Lageromsætning!$AF$3:$AF$79,SMALL(IF(Lageromsætning!$A$3:$A$79=$A$2,ROW(Lageromsætning!$A$3:$A$79)-CELL("row",Lageromsætning!$A$3:$A$79)+1),ROWS($2:148))),"") ->  | F150: =SUMIFS('Lager antal'!$D$3:$D$2508,'Lager antal'!$B$3:$B$2508,B150,'Lager antal'!$C$3:$C$2508,C150) -> 0 | G150: =SUMIFS('Lager antal'!$F$3:$F$2508,'Lager antal'!$B$3:$B$2508,B150,'Lager antal'!$C$3:$C$2508,C150) -> 0 | H150: =IF(ISNA(VLOOKUP($C150,'Lager antal'!$C$3:$K$508,9,FALSE))=TRUE,"",VLOOKUP($C150,'Lager antal'!$C$3:$K$508,9,FALSE)) ->  | I150: =IFERROR(INDEX(Lageromsætning!$P$3:$P$79,SMALL(IF(Lageromsætning!$A$3:$A$79=$A$2,ROW(Lageromsætning!$A$3:$A$79)-CELL("row",Lageromsætning!$A$3:$A$79)+1),ROWS($2:148))),"") ->  | J150: =+_xlfn.IFS($M150>=0.01,$M150,TRUE,0)-$F150-K150+G150 -> 0 | K150: =SUMIFS('Lager antal'!$G$3:$G$2508,'Lager antal'!$B$3:$B$2508,B150,'Lager antal'!$C$3:$C$2508,C150) -> 0 | M150: 0 | N150: =SUMIFS(Lageromsætning!$R$3:$R$79,Lageromsætning!$A$3:$A$79,$A$2,Lageromsætning!$C$3:$C$79,B150,Lageromsætning!$D$3:$D$79,C150) -> 0 | O150: =SUMIFS(Lageromsætning!$S$3:$S$79,Lageromsætning!$C$3:$C$79,B150,Lageromsætning!$D$3:$D$79,C150) -> 0
A151: =IFERROR(INDEX(Lageromsætning!$A$3:$A$79,SMALL(IF(Lageromsætning!$A$3:$A$79=$A$2,ROW(Lageromsætning!$A$3:$A$79)-CELL("row",Lageromsætning!$A$3:$A$79)+1),ROWS($1:148))),"") ->  | B151: =IFERROR(INDEX(Lageromsætning!$C$3:$C$79,SMALL(IF(Lageromsætning!$A$3:$A$79=$A$2,ROW(Lageromsætning!$A$3:$A$79)-CELL("row",Lageromsætning!$A$3:$A$79)+1),ROWS($2:149))),"") ->  | C151: =IFERROR(INDEX(Lageromsætning!$D$3:$D$79,SMALL(IF(Lageromsætning!$A$3:$A$79=$A$2,ROW(Lageromsætning!$A$3:$A$79)-CELL("row",Lageromsætning!$A$3:$A$79)+1),ROWS($2:149))),"") ->  | D151: =IFERROR(INDEX(Lageromsætning!$E$3:$E$79,SMALL(IF(Lageromsætning!$A$3:$A$79=$A$2,ROW(Lageromsætning!$A$3:$A$79)-CELL("row",Lageromsætning!$A$3:$A$79)+1),ROWS($2:149))),"") ->  | E151: =IFERROR(INDEX(Lageromsætning!$AF$3:$AF$79,SMALL(IF(Lageromsætning!$A$3:$A$79=$A$2,ROW(Lageromsætning!$A$3:$A$79)-CELL("row",Lageromsætning!$A$3:$A$79)+1),ROWS($2:149))),"") ->  | F151: =SUMIFS('Lager antal'!$D$3:$D$2508,'Lager antal'!$B$3:$B$2508,B151,'Lager antal'!$C$3:$C$2508,C151) -> 0 | G151: =SUMIFS('Lager antal'!$F$3:$F$2508,'Lager antal'!$B$3:$B$2508,B151,'Lager antal'!$C$3:$C$2508,C151) -> 0 | H151: =IF(ISNA(VLOOKUP($C151,'Lager antal'!$C$3:$K$508,9,FALSE))=TRUE,"",VLOOKUP($C151,'Lager antal'!$C$3:$K$508,9,FALSE)) ->  | I151: =IFERROR(INDEX(Lageromsætning!$P$3:$P$79,SMALL(IF(Lageromsætning!$A$3:$A$79=$A$2,ROW(Lageromsætning!$A$3:$A$79)-CELL("row",Lageromsætning!$A$3:$A$79)+1),ROWS($2:149))),"") ->  | J151: =+_xlfn.IFS($M151>=0.01,$M151,TRUE,0)-$F151-K151+G151 -> 0 | K151: =SUMIFS('Lager antal'!$G$3:$G$2508,'Lager antal'!$B$3:$B$2508,B151,'Lager antal'!$C$3:$C$2508,C151) -> 0 | M151: 0 | N151: =SUMIFS(Lageromsætning!$R$3:$R$79,Lageromsætning!$A$3:$A$79,$A$2,Lageromsætning!$C$3:$C$79,B151,Lageromsætning!$D$3:$D$79,C151) -> 0 | O151: =SUMIFS(Lageromsætning!$S$3:$S$79,Lageromsætning!$C$3:$C$79,B151,Lageromsætning!$D$3:$D$79,C151) -> 0
A152: =IFERROR(INDEX(Lageromsætning!$A$3:$A$79,SMALL(IF(Lageromsætning!$A$3:$A$79=$A$2,ROW(Lageromsætning!$A$3:$A$79)-CELL("row",Lageromsætning!$A$3:$A$79)+1),ROWS($1:149))),"") ->  | B152: =IFERROR(INDEX(Lageromsætning!$C$3:$C$79,SMALL(IF(Lageromsætning!$A$3:$A$79=$A$2,ROW(Lageromsætning!$A$3:$A$79)-CELL("row",Lageromsætning!$A$3:$A$79)+1),ROWS($2:150))),"") ->  | C152: =IFERROR(INDEX(Lageromsætning!$D$3:$D$79,SMALL(IF(Lageromsætning!$A$3:$A$79=$A$2,ROW(Lageromsætning!$A$3:$A$79)-CELL("row",Lageromsætning!$A$3:$A$79)+1),ROWS($2:150))),"") ->  | D152: =IFERROR(INDEX(Lageromsætning!$E$3:$E$79,SMALL(IF(Lageromsætning!$A$3:$A$79=$A$2,ROW(Lageromsætning!$A$3:$A$79)-CELL("row",Lageromsætning!$A$3:$A$79)+1),ROWS($2:150))),"") ->  | E152: =IFERROR(INDEX(Lageromsætning!$AF$3:$AF$79,SMALL(IF(Lageromsætning!$A$3:$A$79=$A$2,ROW(Lageromsætning!$A$3:$A$79)-CELL("row",Lageromsætning!$A$3:$A$79)+1),ROWS($2:150))),"") ->  | F152: =SUMIFS('Lager antal'!$D$3:$D$2508,'Lager antal'!$B$3:$B$2508,B152,'Lager antal'!$C$3:$C$2508,C152) -> 0 | G152: =SUMIFS('Lager antal'!$F$3:$F$2508,'Lager antal'!$B$3:$B$2508,B152,'Lager antal'!$C$3:$C$2508,C152) -> 0 | H152: =IF(ISNA(VLOOKUP($C152,'Lager antal'!$C$3:$K$508,9,FALSE))=TRUE,"",VLOOKUP($C152,'Lager antal'!$C$3:$K$508,9,FALSE)) ->  | I152: =IFERROR(INDEX(Lageromsætning!$P$3:$P$79,SMALL(IF(Lageromsætning!$A$3:$A$79=$A$2,ROW(Lageromsætning!$A$3:$A$79)-CELL("row",Lageromsætning!$A$3:$A$79)+1),ROWS($2:150))),"") ->  | J152: =+_xlfn.IFS($M152>=0.01,$M152,TRUE,0)-$F152-K152+G152 -> 0 | K152: =SUMIFS('Lager antal'!$G$3:$G$2508,'Lager antal'!$B$3:$B$2508,B152,'Lager antal'!$C$3:$C$2508,C152) -> 0 | M152: 0 | N152: =SUMIFS(Lageromsætning!$R$3:$R$79,Lageromsætning!$A$3:$A$79,$A$2,Lageromsætning!$C$3:$C$79,B152,Lageromsætning!$D$3:$D$79,C152) -> 0 | O152: =SUMIFS(Lageromsætning!$S$3:$S$79,Lageromsætning!$C$3:$C$79,B152,Lageromsætning!$D$3:$D$79,C152) -> 0
A153: =IFERROR(INDEX(Lageromsætning!$A$3:$A$79,SMALL(IF(Lageromsætning!$A$3:$A$79=$A$2,ROW(Lageromsætning!$A$3:$A$79)-CELL("row",Lageromsætning!$A$3:$A$79)+1),ROWS($1:150))),"") ->  | B153: =IFERROR(INDEX(Lageromsætning!$C$3:$C$79,SMALL(IF(Lageromsætning!$A$3:$A$79=$A$2,ROW(Lageromsætning!$A$3:$A$79)-CELL("row",Lageromsætning!$A$3:$A$79)+1),ROWS($2:151))),"") ->  | C153: =IFERROR(INDEX(Lageromsætning!$D$3:$D$79,SMALL(IF(Lageromsætning!$A$3:$A$79=$A$2,ROW(Lageromsætning!$A$3:$A$79)-CELL("row",Lageromsætning!$A$3:$A$79)+1),ROWS($2:151))),"") ->  | D153: =IFERROR(INDEX(Lageromsætning!$E$3:$E$79,SMALL(IF(Lageromsætning!$A$3:$A$79=$A$2,ROW(Lageromsætning!$A$3:$A$79)-CELL("row",Lageromsætning!$A$3:$A$79)+1),ROWS($2:151))),"") ->  | E153: =IFERROR(INDEX(Lageromsætning!$AF$3:$AF$79,SMALL(IF(Lageromsætning!$A$3:$A$79=$A$2,ROW(Lageromsætning!$A$3:$A$79)-CELL("row",Lageromsætning!$A$3:$A$79)+1),ROWS($2:151))),"") ->  | F153: =SUMIFS('Lager antal'!$D$3:$D$2508,'Lager antal'!$B$3:$B$2508,B153,'Lager antal'!$C$3:$C$2508,C153) -> 0 | G153: =SUMIFS('Lager antal'!$F$3:$F$2508,'Lager antal'!$B$3:$B$2508,B153,'Lager antal'!$C$3:$C$2508,C153) -> 0 | H153: =IF(ISNA(VLOOKUP($C153,'Lager antal'!$C$3:$K$508,9,FALSE))=TRUE,"",VLOOKUP($C153,'Lager antal'!$C$3:$K$508,9,FALSE)) ->  | I153: =IFERROR(INDEX(Lageromsætning!$P$3:$P$79,SMALL(IF(Lageromsætning!$A$3:$A$79=$A$2,ROW(Lageromsætning!$A$3:$A$79)-CELL("row",Lageromsætning!$A$3:$A$79)+1),ROWS($2:151))),"") ->  | J153: =+_xlfn.IFS($M153>=0.01,$M153,TRUE,0)-$F153-K153+G153 -> 0 | K153: =SUMIFS('Lager antal'!$G$3:$G$2508,'Lager antal'!$B$3:$B$2508,B153,'Lager antal'!$C$3:$C$2508,C153) -> 0 | M153: 0 | N153: =SUMIFS(Lageromsætning!$R$3:$R$79,Lageromsætning!$A$3:$A$79,$A$2,Lageromsætning!$C$3:$C$79,B153,Lageromsætning!$D$3:$D$79,C153) -> 0 | O153: =SUMIFS(Lageromsætning!$S$3:$S$79,Lageromsætning!$C$3:$C$79,B153,Lageromsætning!$D$3:$D$79,C153) -> 0
A154: =IFERROR(INDEX(Lageromsætning!$A$3:$A$79,SMALL(IF(Lageromsætning!$A$3:$A$79=$A$2,ROW(Lageromsætning!$A$3:$A$79)-CELL("row",Lageromsætning!$A$3:$A$79)+1),ROWS($1:151))),"") ->  | B154: =IFERROR(INDEX(Lageromsætning!$C$3:$C$79,SMALL(IF(Lageromsætning!$A$3:$A$79=$A$2,ROW(Lageromsætning!$A$3:$A$79)-CELL("row",Lageromsætning!$A$3:$A$79)+1),ROWS($2:152))),"") ->  | C154: =IFERROR(INDEX(Lageromsætning!$D$3:$D$79,SMALL(IF(Lageromsætning!$A$3:$A$79=$A$2,ROW(Lageromsætning!$A$3:$A$79)-CELL("row",Lageromsætning!$A$3:$A$79)+1),ROWS($2:152))),"") ->  | D154: =IFERROR(INDEX(Lageromsætning!$E$3:$E$79,SMALL(IF(Lageromsætning!$A$3:$A$79=$A$2,ROW(Lageromsætning!$A$3:$A$79)-CELL("row",Lageromsætning!$A$3:$A$79)+1),ROWS($2:152))),"") ->  | E154: =IFERROR(INDEX(Lageromsætning!$AF$3:$AF$79,SMALL(IF(Lageromsætning!$A$3:$A$79=$A$2,ROW(Lageromsætning!$A$3:$A$79)-CELL("row",Lageromsætning!$A$3:$A$79)+1),ROWS($2:152))),"") ->  | F154: =SUMIFS('Lager antal'!$D$3:$D$2508,'Lager antal'!$B$3:$B$2508,B154,'Lager antal'!$C$3:$C$2508,C154) -> 0 | G154: =SUMIFS('Lager antal'!$F$3:$F$2508,'Lager antal'!$B$3:$B$2508,B154,'Lager antal'!$C$3:$C$2508,C154) -> 0 | H154: =IF(ISNA(VLOOKUP($C154,'Lager antal'!$C$3:$K$508,9,FALSE))=TRUE,"",VLOOKUP($C154,'Lager antal'!$C$3:$K$508,9,FALSE)) ->  | I154: =IFERROR(INDEX(Lageromsætning!$P$3:$P$79,SMALL(IF(Lageromsætning!$A$3:$A$79=$A$2,ROW(Lageromsætning!$A$3:$A$79)-CELL("row",Lageromsætning!$A$3:$A$79)+1),ROWS($2:152))),"") ->  | J154: =+_xlfn.IFS($M154>=0.01,$M154,TRUE,0)-$F154-K154+G154 -> 0 | K154: =SUMIFS('Lager antal'!$G$3:$G$2508,'Lager antal'!$B$3:$B$2508,B154,'Lager antal'!$C$3:$C$2508,C154) -> 0 | M154: 0 | N154: =SUMIFS(Lageromsætning!$R$3:$R$79,Lageromsætning!$A$3:$A$79,$A$2,Lageromsætning!$C$3:$C$79,B154,Lageromsætning!$D$3:$D$79,C154) -> 0 | O154: =SUMIFS(Lageromsætning!$S$3:$S$79,Lageromsætning!$C$3:$C$79,B154,Lageromsætning!$D$3:$D$79,C154) -> 0
A155: =IFERROR(INDEX(Lageromsætning!$A$3:$A$79,SMALL(IF(Lageromsætning!$A$3:$A$79=$A$2,ROW(Lageromsætning!$A$3:$A$79)-CELL("row",Lageromsætning!$A$3:$A$79)+1),ROWS($1:152))),"") ->  | B155: =IFERROR(INDEX(Lageromsætning!$C$3:$C$79,SMALL(IF(Lageromsætning!$A$3:$A$79=$A$2,ROW(Lageromsætning!$A$3:$A$79)-CELL("row",Lageromsætning!$A$3:$A$79)+1),ROWS($2:153))),"") ->  | C155: =IFERROR(INDEX(Lageromsætning!$D$3:$D$79,SMALL(IF(Lageromsætning!$A$3:$A$79=$A$2,ROW(Lageromsætning!$A$3:$A$79)-CELL("row",Lageromsætning!$A$3:$A$79)+1),ROWS($2:153))),"") ->  | D155: =IFERROR(INDEX(Lageromsætning!$E$3:$E$79,SMALL(IF(Lageromsætning!$A$3:$A$79=$A$2,ROW(Lageromsætning!$A$3:$A$79)-CELL("row",Lageromsætning!$A$3:$A$79)+1),ROWS($2:153))),"") ->  | E155: =IFERROR(INDEX(Lageromsætning!$AF$3:$AF$79,SMALL(IF(Lageromsætning!$A$3:$A$79=$A$2,ROW(Lageromsætning!$A$3:$A$79)-CELL("row",Lageromsætning!$A$3:$A$79)+1),ROWS($2:153))),"") ->  | F155: =SUMIFS('Lager antal'!$D$3:$D$2508,'Lager antal'!$B$3:$B$2508,B155,'Lager antal'!$C$3:$C$2508,C155) -> 0 | G155: =SUMIFS('Lager antal'!$F$3:$F$2508,'Lager antal'!$B$3:$B$2508,B155,'Lager antal'!$C$3:$C$2508,C155) -> 0 | H155: =IF(ISNA(VLOOKUP($C155,'Lager antal'!$C$3:$K$508,9,FALSE))=TRUE,"",VLOOKUP($C155,'Lager antal'!$C$3:$K$508,9,FALSE)) ->  | I155: =IFERROR(INDEX(Lageromsætning!$P$3:$P$79,SMALL(IF(Lageromsætning!$A$3:$A$79=$A$2,ROW(Lageromsætning!$A$3:$A$79)-CELL("row",Lageromsætning!$A$3:$A$79)+1),ROWS($2:153))),"") ->  | J155: =+_xlfn.IFS($M155>=0.01,$M155,TRUE,0)-$F155-K155+G155 -> 0 | K155: =SUMIFS('Lager antal'!$G$3:$G$2508,'Lager antal'!$B$3:$B$2508,B155,'Lager antal'!$C$3:$C$2508,C155) -> 0 | M155: 0 | N155: =SUMIFS(Lageromsætning!$R$3:$R$79,Lageromsætning!$A$3:$A$79,$A$2,Lageromsætning!$C$3:$C$79,B155,Lageromsætning!$D$3:$D$79,C155) -> 0 | O155: =SUMIFS(Lageromsætning!$S$3:$S$79,Lageromsætning!$C$3:$C$79,B155,Lageromsætning!$D$3:$D$79,C155) -> 0
A156: =IFERROR(INDEX(Lageromsætning!$A$3:$A$79,SMALL(IF(Lageromsætning!$A$3:$A$79=$A$2,ROW(Lageromsætning!$A$3:$A$79)-CELL("row",Lageromsætning!$A$3:$A$79)+1),ROWS($1:153))),"") ->  | B156: =IFERROR(INDEX(Lageromsætning!$C$3:$C$79,SMALL(IF(Lageromsætning!$A$3:$A$79=$A$2,ROW(Lageromsætning!$A$3:$A$79)-CELL("row",Lageromsætning!$A$3:$A$79)+1),ROWS($2:154))),"") ->  | C156: =IFERROR(INDEX(Lageromsætning!$D$3:$D$79,SMALL(IF(Lageromsætning!$A$3:$A$79=$A$2,ROW(Lageromsætning!$A$3:$A$79)-CELL("row",Lageromsætning!$A$3:$A$79)+1),ROWS($2:154))),"") ->  | D156: =IFERROR(INDEX(Lageromsætning!$E$3:$E$79,SMALL(IF(Lageromsætning!$A$3:$A$79=$A$2,ROW(Lageromsætning!$A$3:$A$79)-CELL("row",Lageromsætning!$A$3:$A$79)+1),ROWS($2:154))),"") ->  | E156: =IFERROR(INDEX(Lageromsætning!$AF$3:$AF$79,SMALL(IF(Lageromsætning!$A$3:$A$79=$A$2,ROW(Lageromsætning!$A$3:$A$79)-CELL("row",Lageromsætning!$A$3:$A$79)+1),ROWS($2:154))),"") ->  | F156: =SUMIFS('Lager antal'!$D$3:$D$2508,'Lager antal'!$B$3:$B$2508,B156,'Lager antal'!$C$3:$C$2508,C156) -> 0 | G156: =SUMIFS('Lager antal'!$F$3:$F$2508,'Lager antal'!$B$3:$B$2508,B156,'Lager antal'!$C$3:$C$2508,C156) -> 0 | H156: =IF(ISNA(VLOOKUP($C156,'Lager antal'!$C$3:$K$508,9,FALSE))=TRUE,"",VLOOKUP($C156,'Lager antal'!$C$3:$K$508,9,FALSE)) ->  | I156: =IFERROR(INDEX(Lageromsætning!$P$3:$P$79,SMALL(IF(Lageromsætning!$A$3:$A$79=$A$2,ROW(Lageromsætning!$A$3:$A$79)-CELL("row",Lageromsætning!$A$3:$A$79)+1),ROWS($2:154))),"") ->  | J156: =+_xlfn.IFS($M156>=0.01,$M156,TRUE,0)-$F156-K156+G156 -> 0 | K156: =SUMIFS('Lager antal'!$G$3:$G$2508,'Lager antal'!$B$3:$B$2508,B156,'Lager antal'!$C$3:$C$2508,C156) -> 0 | M156: 0 | N156: =SUMIFS(Lageromsætning!$R$3:$R$79,Lageromsætning!$A$3:$A$79,$A$2,Lageromsætning!$C$3:$C$79,B156,Lageromsætning!$D$3:$D$79,C156) -> 0 | O156: =SUMIFS(Lageromsætning!$S$3:$S$79,Lageromsætning!$C$3:$C$79,B156,Lageromsætning!$D$3:$D$79,C156) -> 0
A157: =IFERROR(INDEX(Lageromsætning!$A$3:$A$79,SMALL(IF(Lageromsætning!$A$3:$A$79=$A$2,ROW(Lageromsætning!$A$3:$A$79)-CELL("row",Lageromsætning!$A$3:$A$79)+1),ROWS($1:154))),"") ->  | B157: =IFERROR(INDEX(Lageromsætning!$C$3:$C$79,SMALL(IF(Lageromsætning!$A$3:$A$79=$A$2,ROW(Lageromsætning!$A$3:$A$79)-CELL("row",Lageromsætning!$A$3:$A$79)+1),ROWS($2:155))),"") ->  | C157: =IFERROR(INDEX(Lageromsætning!$D$3:$D$79,SMALL(IF(Lageromsætning!$A$3:$A$79=$A$2,ROW(Lageromsætning!$A$3:$A$79)-CELL("row",Lageromsætning!$A$3:$A$79)+1),ROWS($2:155))),"") ->  | D157: =IFERROR(INDEX(Lageromsætning!$E$3:$E$79,SMALL(IF(Lageromsætning!$A$3:$A$79=$A$2,ROW(Lageromsætning!$A$3:$A$79)-CELL("row",Lageromsætning!$A$3:$A$79)+1),ROWS($2:155))),"") ->  | E157: =IFERROR(INDEX(Lageromsætning!$AF$3:$AF$79,SMALL(IF(Lageromsætning!$A$3:$A$79=$A$2,ROW(Lageromsætning!$A$3:$A$79)-CELL("row",Lageromsætning!$A$3:$A$79)+1),ROWS($2:155))),"") ->  | F157: =SUMIFS('Lager antal'!$D$3:$D$2508,'Lager antal'!$B$3:$B$2508,B157,'Lager antal'!$C$3:$C$2508,C157) -> 0 | G157: =SUMIFS('Lager antal'!$F$3:$F$2508,'Lager antal'!$B$3:$B$2508,B157,'Lager antal'!$C$3:$C$2508,C157) -> 0 | H157: =IF(ISNA(VLOOKUP($C157,'Lager antal'!$C$3:$K$508,9,FALSE))=TRUE,"",VLOOKUP($C157,'Lager antal'!$C$3:$K$508,9,FALSE)) ->  | I157: =IFERROR(INDEX(Lageromsætning!$P$3:$P$79,SMALL(IF(Lageromsætning!$A$3:$A$79=$A$2,ROW(Lageromsætning!$A$3:$A$79)-CELL("row",Lageromsætning!$A$3:$A$79)+1),ROWS($2:155))),"") ->  | J157: =+_xlfn.IFS($M157>=0.01,$M157,TRUE,0)-$F157-K157+G157 -> 0 | K157: =SUMIFS('Lager antal'!$G$3:$G$2508,'Lager antal'!$B$3:$B$2508,B157,'Lager antal'!$C$3:$C$2508,C157) -> 0 | M157: 0 | N157: =SUMIFS(Lageromsætning!$R$3:$R$79,Lageromsætning!$A$3:$A$79,$A$2,Lageromsætning!$C$3:$C$79,B157,Lageromsætning!$D$3:$D$79,C157) -> 0 | O157: =SUMIFS(Lageromsætning!$S$3:$S$79,Lageromsætning!$C$3:$C$79,B157,Lageromsætning!$D$3:$D$79,C157) -> 0
A158: =IFERROR(INDEX(Lageromsætning!$A$3:$A$79,SMALL(IF(Lageromsætning!$A$3:$A$79=$A$2,ROW(Lageromsætning!$A$3:$A$79)-CELL("row",Lageromsætning!$A$3:$A$79)+1),ROWS($1:155))),"") ->  | B158: =IFERROR(INDEX(Lageromsætning!$C$3:$C$79,SMALL(IF(Lageromsætning!$A$3:$A$79=$A$2,ROW(Lageromsætning!$A$3:$A$79)-CELL("row",Lageromsætning!$A$3:$A$79)+1),ROWS($2:156))),"") ->  | C158: =IFERROR(INDEX(Lageromsætning!$D$3:$D$79,SMALL(IF(Lageromsætning!$A$3:$A$79=$A$2,ROW(Lageromsætning!$A$3:$A$79)-CELL("row",Lageromsætning!$A$3:$A$79)+1),ROWS($2:156))),"") ->  | D158: =IFERROR(INDEX(Lageromsætning!$E$3:$E$79,SMALL(IF(Lageromsætning!$A$3:$A$79=$A$2,ROW(Lageromsætning!$A$3:$A$79)-CELL("row",Lageromsætning!$A$3:$A$79)+1),ROWS($2:156))),"") ->  | E158: =IFERROR(INDEX(Lageromsætning!$AF$3:$AF$79,SMALL(IF(Lageromsætning!$A$3:$A$79=$A$2,ROW(Lageromsætning!$A$3:$A$79)-CELL("row",Lageromsætning!$A$3:$A$79)+1),ROWS($2:156))),"") ->  | F158: =SUMIFS('Lager antal'!$D$3:$D$2508,'Lager antal'!$B$3:$B$2508,B158,'Lager antal'!$C$3:$C$2508,C158) -> 0 | G158: =SUMIFS('Lager antal'!$F$3:$F$2508,'Lager antal'!$B$3:$B$2508,B158,'Lager antal'!$C$3:$C$2508,C158) -> 0 | H158: =IF(ISNA(VLOOKUP($C158,'Lager antal'!$C$3:$K$508,9,FALSE))=TRUE,"",VLOOKUP($C158,'Lager antal'!$C$3:$K$508,9,FALSE)) ->  | I158: =IFERROR(INDEX(Lageromsætning!$P$3:$P$79,SMALL(IF(Lageromsætning!$A$3:$A$79=$A$2,ROW(Lageromsætning!$A$3:$A$79)-CELL("row",Lageromsætning!$A$3:$A$79)+1),ROWS($2:156))),"") ->  | J158: =+_xlfn.IFS($M158>=0.01,$M158,TRUE,0)-$F158-K158+G158 -> 0 | K158: =SUMIFS('Lager antal'!$G$3:$G$2508,'Lager antal'!$B$3:$B$2508,B158,'Lager antal'!$C$3:$C$2508,C158) -> 0 | M158: 0 | N158: =SUMIFS(Lageromsætning!$R$3:$R$79,Lageromsætning!$A$3:$A$79,$A$2,Lageromsætning!$C$3:$C$79,B158,Lageromsætning!$D$3:$D$79,C158) -> 0 | O158: =SUMIFS(Lageromsætning!$S$3:$S$79,Lageromsætning!$C$3:$C$79,B158,Lageromsætning!$D$3:$D$79,C158) -> 0
A159: =IFERROR(INDEX(Lageromsætning!$A$3:$A$79,SMALL(IF(Lageromsætning!$A$3:$A$79=$A$2,ROW(Lageromsætning!$A$3:$A$79)-CELL("row",Lageromsætning!$A$3:$A$79)+1),ROWS($1:156))),"") ->  | B159: =IFERROR(INDEX(Lageromsætning!$C$3:$C$79,SMALL(IF(Lageromsætning!$A$3:$A$79=$A$2,ROW(Lageromsætning!$A$3:$A$79)-CELL("row",Lageromsætning!$A$3:$A$79)+1),ROWS($2:157))),"") ->  | C159: =IFERROR(INDEX(Lageromsætning!$D$3:$D$79,SMALL(IF(Lageromsætning!$A$3:$A$79=$A$2,ROW(Lageromsætning!$A$3:$A$79)-CELL("row",Lageromsætning!$A$3:$A$79)+1),ROWS($2:157))),"") ->  | D159: =IFERROR(INDEX(Lageromsætning!$E$3:$E$79,SMALL(IF(Lageromsætning!$A$3:$A$79=$A$2,ROW(Lageromsætning!$A$3:$A$79)-CELL("row",Lageromsætning!$A$3:$A$79)+1),ROWS($2:157))),"") ->  | E159: =IFERROR(INDEX(Lageromsætning!$AF$3:$AF$79,SMALL(IF(Lageromsætning!$A$3:$A$79=$A$2,ROW(Lageromsætning!$A$3:$A$79)-CELL("row",Lageromsætning!$A$3:$A$79)+1),ROWS($2:157))),"") ->  | F159: =SUMIFS('Lager antal'!$D$3:$D$2508,'Lager antal'!$B$3:$B$2508,B159,'Lager antal'!$C$3:$C$2508,C159) -> 0 | G159: =SUMIFS('Lager antal'!$F$3:$F$2508,'Lager antal'!$B$3:$B$2508,B159,'Lager antal'!$C$3:$C$2508,C159) -> 0 | H159: =IF(ISNA(VLOOKUP($C159,'Lager antal'!$C$3:$K$508,9,FALSE))=TRUE,"",VLOOKUP($C159,'Lager antal'!$C$3:$K$508,9,FALSE)) ->  | I159: =IFERROR(INDEX(Lageromsætning!$P$3:$P$79,SMALL(IF(Lageromsætning!$A$3:$A$79=$A$2,ROW(Lageromsætning!$A$3:$A$79)-CELL("row",Lageromsætning!$A$3:$A$79)+1),ROWS($2:157))),"") ->  | J159: =+_xlfn.IFS($M159>=0.01,$M159,TRUE,0)-$F159-K159+G159 -> 0 | K159: =SUMIFS('Lager antal'!$G$3:$G$2508,'Lager antal'!$B$3:$B$2508,B159,'Lager antal'!$C$3:$C$2508,C159) -> 0 | M159: 0 | N159: =SUMIFS(Lageromsætning!$R$3:$R$79,Lageromsætning!$A$3:$A$79,$A$2,Lageromsætning!$C$3:$C$79,B159,Lageromsætning!$D$3:$D$79,C159) -> 0 | O159: =SUMIFS(Lageromsætning!$S$3:$S$79,Lageromsætning!$C$3:$C$79,B159,Lageromsætning!$D$3:$D$79,C159) -> 0
A160: =IFERROR(INDEX(Lageromsætning!$A$3:$A$79,SMALL(IF(Lageromsætning!$A$3:$A$79=$A$2,ROW(Lageromsætning!$A$3:$A$79)-CELL("row",Lageromsætning!$A$3:$A$79)+1),ROWS($1:157))),"") ->  | B160: =IFERROR(INDEX(Lageromsætning!$C$3:$C$79,SMALL(IF(Lageromsætning!$A$3:$A$79=$A$2,ROW(Lageromsætning!$A$3:$A$79)-CELL("row",Lageromsætning!$A$3:$A$79)+1),ROWS($2:158))),"") ->  | C160: =IFERROR(INDEX(Lageromsætning!$D$3:$D$79,SMALL(IF(Lageromsætning!$A$3:$A$79=$A$2,ROW(Lageromsætning!$A$3:$A$79)-CELL("row",Lageromsætning!$A$3:$A$79)+1),ROWS($2:158))),"") ->  | D160: =IFERROR(INDEX(Lageromsætning!$E$3:$E$79,SMALL(IF(Lageromsætning!$A$3:$A$79=$A$2,ROW(Lageromsætning!$A$3:$A$79)-CELL("row",Lageromsætning!$A$3:$A$79)+1),ROWS($2:158))),"") ->  | E160: =IFERROR(INDEX(Lageromsætning!$AF$3:$AF$79,SMALL(IF(Lageromsætning!$A$3:$A$79=$A$2,ROW(Lageromsætning!$A$3:$A$79)-CELL("row",Lageromsætning!$A$3:$A$79)+1),ROWS($2:158))),"") ->  | F160: =SUMIFS('Lager antal'!$D$3:$D$2508,'Lager antal'!$B$3:$B$2508,B160,'Lager antal'!$C$3:$C$2508,C160) -> 0 | G160: =SUMIFS('Lager antal'!$F$3:$F$2508,'Lager antal'!$B$3:$B$2508,B160,'Lager antal'!$C$3:$C$2508,C160) -> 0 | H160: =IF(ISNA(VLOOKUP($C160,'Lager antal'!$C$3:$K$508,9,FALSE))=TRUE,"",VLOOKUP($C160,'Lager antal'!$C$3:$K$508,9,FALSE)) ->  | I160: =IFERROR(INDEX(Lageromsætning!$P$3:$P$79,SMALL(IF(Lageromsætning!$A$3:$A$79=$A$2,ROW(Lageromsætning!$A$3:$A$79)-CELL("row",Lageromsætning!$A$3:$A$79)+1),ROWS($2:158))),"") ->  | J160: =+_xlfn.IFS($M160>=0.01,$M160,TRUE,0)-$F160-K160+G160 -> 0 | K160: =SUMIFS('Lager antal'!$G$3:$G$2508,'Lager antal'!$B$3:$B$2508,B160,'Lager antal'!$C$3:$C$2508,C160) -> 0 | M160: 0 | N160: =SUMIFS(Lageromsætning!$R$3:$R$79,Lageromsætning!$A$3:$A$79,$A$2,Lageromsætning!$C$3:$C$79,B160,Lageromsætning!$D$3:$D$79,C160) -> 0 | O160: =SUMIFS(Lageromsætning!$S$3:$S$79,Lageromsætning!$C$3:$C$79,B160,Lageromsætning!$D$3:$D$79,C160) -> 0
A161: =IFERROR(INDEX(Lageromsætning!$A$3:$A$79,SMALL(IF(Lageromsætning!$A$3:$A$79=$A$2,ROW(Lageromsætning!$A$3:$A$79)-CELL("row",Lageromsætning!$A$3:$A$79)+1),ROWS($1:158))),"") ->  | B161: =IFERROR(INDEX(Lageromsætning!$C$3:$C$79,SMALL(IF(Lageromsætning!$A$3:$A$79=$A$2,ROW(Lageromsætning!$A$3:$A$79)-CELL("row",Lageromsætning!$A$3:$A$79)+1),ROWS($2:159))),"") ->  | C161: =IFERROR(INDEX(Lageromsætning!$D$3:$D$79,SMALL(IF(Lageromsætning!$A$3:$A$79=$A$2,ROW(Lageromsætning!$A$3:$A$79)-CELL("row",Lageromsætning!$A$3:$A$79)+1),ROWS($2:159))),"") ->  | D161: =IFERROR(INDEX(Lageromsætning!$E$3:$E$79,SMALL(IF(Lageromsætning!$A$3:$A$79=$A$2,ROW(Lageromsætning!$A$3:$A$79)-CELL("row",Lageromsætning!$A$3:$A$79)+1),ROWS($2:159))),"") ->  | E161: =IFERROR(INDEX(Lageromsætning!$AF$3:$AF$79,SMALL(IF(Lageromsætning!$A$3:$A$79=$A$2,ROW(Lageromsætning!$A$3:$A$79)-CELL("row",Lageromsætning!$A$3:$A$79)+1),ROWS($2:159))),"") ->  | F161: =SUMIFS('Lager antal'!$D$3:$D$2508,'Lager antal'!$B$3:$B$2508,B161,'Lager antal'!$C$3:$C$2508,C161) -> 0 | G161: =SUMIFS('Lager antal'!$F$3:$F$2508,'Lager antal'!$B$3:$B$2508,B161,'Lager antal'!$C$3:$C$2508,C161) -> 0 | H161: =IF(ISNA(VLOOKUP($C161,'Lager antal'!$C$3:$K$508,9,FALSE))=TRUE,"",VLOOKUP($C161,'Lager antal'!$C$3:$K$508,9,FALSE)) ->  | I161: =IFERROR(INDEX(Lageromsætning!$P$3:$P$79,SMALL(IF(Lageromsætning!$A$3:$A$79=$A$2,ROW(Lageromsætning!$A$3:$A$79)-CELL("row",Lageromsætning!$A$3:$A$79)+1),ROWS($2:159))),"") ->  | J161: =+_xlfn.IFS($M161>=0.01,$M161,TRUE,0)-$F161-K161+G161 -> 0 | K161: =SUMIFS('Lager antal'!$G$3:$G$2508,'Lager antal'!$B$3:$B$2508,B161,'Lager antal'!$C$3:$C$2508,C161) -> 0 | M161: 0 | N161: =SUMIFS(Lageromsætning!$R$3:$R$79,Lageromsætning!$A$3:$A$79,$A$2,Lageromsætning!$C$3:$C$79,B161,Lageromsætning!$D$3:$D$79,C161) -> 0 | O161: =SUMIFS(Lageromsætning!$S$3:$S$79,Lageromsætning!$C$3:$C$79,B161,Lageromsætning!$D$3:$D$79,C161) -> 0
